Workbook

Sheet Control
A1: Mens | L1: Ladies | W1: Clubs | AA1: Rules - Men | AD1: Runners - Men
A2: 1 | B2: 21 | C2: 41 | D2: 61 | E2: 81 | F2: 101 | G2: 121 | H2: 141 | I2: 161 | J2: 181 | L2: 1 | M2: 21 | N2: 41 | O2: 61 | P2: 81 | Q2: 101 | R2: 121 | S2: 141 | T2: 161 | U2: 181 | W2: Race | X2: Club | Y2: Code | AA2: Number of Scoring Runners | AB2: 8 | AD2: Club | AE2: Race 1 | AF2: Race 2 | AG2: Race 3 | AH2: Race 4
A3: 2 | B3: 22 | C3: 42 | D3: 62 | E3: 82 | F3: 102 | G3: 122 | H3: 142 | I3: 162 | J3: 182 | L3: 2 | M3: 22 | N3: 42 | O3: 62 | P3: 82 | Q3: 102 | R3: 122 | S3: 142 | T3: 162 | U3: 182 | W3: 1 | X3: Ware Joggers | Y3: WJ | AA3: Number of Veterans | AB3: 2 | AD3: =X3 -> Ware Joggers | AE3: 27 | AF3: 26 | AG3: 34 | AH3: 29
A4: 3 | B4: 23 | C4: 43 | D4: 63 | E4: 83 | F4: 103 | G4: 123 | H4: 143 | I4: 163 | J4: 183 | L4: 3 | M4: 23 | N4: 43 | O4: 63 | P4: 83 | Q4: 103 | R4: 123 | S4: 143 | T4: 163 | U4: 183 | W4: 2 | X4: Bishop's Stortford | Y4: BS | AA4: Number of 2nd Claim Scorers | AB4: 2 | AD4: =X4 -> Bishop's Stortford | AE4: 15 | AF4: 23 | AG4: 15 | AH4: 11
A5: 4 | B5: 24 | C5: 44 | D5: 64 | E5: 84 | F5: 104 | G5: 124 | H5: 144 | I5: 164 | J5: 184 | L5: 4 | M5: 24 | N5: 44 | O5: 64 | P5: 84 | Q5: 104 | R5: 124 | S5: 144 | T5: 164 | U5: 184 | W5: 3 | X5: Saffron Striders | Y5: SS | AD5: =X5 -> Saffron Striders | AE5: 11 | AF5: 17 | AG5: 11 | AH5: 10
A6: 5 | B6: 25 | C6: 45 | D6: 65 | E6: 85 | F6: 105 | G6: 125 | H6: 145 | I6: 165 | J6: 185 | L6: 5 | M6: 25 | N6: 45 | O6: 65 | P6: 85 | Q6: 105 | R6: 125 | S6: 145 | T6: 165 | U6: 185 | W6: 4 | X6: Harlow Running & Tri Club | Y6: HRC | AA6: Rules - Ladies | AD6: =X6 -> Harlow Running & Tri Club | AE6: 18 | AF6: 26 | AG6: 17 | AH6: 18
A7: 6 | B7: 26 | C7: 46 | D7: 66 | E7: 86 | F7: 106 | G7: 126 | H7: 146 | I7: 166 | J7: 186 | L7: 6 | M7: 26 | N7: 46 | O7: 66 | P7: 86 | Q7: 106 | R7: 126 | S7: 146 | T7: 166 | U7: 186 | W7: 5 | AA7: Number of Scoring Runners | AB7: 8 | AD7: =X7 -> 0 | AE7: 0 | AF7: 0 | AG7: 0 | AH7: 0
A8: 7 | B8: 27 | C8: 47 | D8: 67 | E8: 87 | F8: 107 | G8: 127 | H8: 147 | I8: 167 | J8: 187 | L8: 7 | M8: 27 | N8: 47 | O8: 67 | P8: 87 | Q8: 107 | R8: 127 | S8: 147 | T8: 167 | U8: 187 | W8: 6 | AA8: Number of Veterans | AB8: 2
A9: 8 | B9: 28 | C9: 48 | D9: 68 | E9: 88 | F9: 108 | G9: 128 | H9: 148 | I9: 168 | J9: 188 | L9: 8 | M9: 28 | N9: 48 | O9: 68 | P9: 88 | Q9: 108 | R9: 128 | S9: 148 | T9: 168 | U9: 188 | W9: 7 | AA9: Number of 2nd Claim Scorers | AB9: 2
A10: 9 | B10: 29 | C10: 49 | D10: 69 | E10: 89 | F10: 109 | G10: 129 | H10: 149 | I10: 169 | J10: 189 | L10: 9 | M10: 29 | N10: 49 | O10: 69 | P10: 89 | Q10: 109 | R10: 129 | S10: 149 | T10: 169 | U10: 189 | W10: 8
A11: 10 | B11: 30 | C11: 50 | D11: 70 | E11: 90 | F11: 110 | G11: 130 | H11: 150 | I11: 170 | J11: 190 | L11: 10 | M11: 30 | N11: 50 | O11: 70 | P11: 90 | Q11: 110 | R11: 130 | S11: 150 | T11: 170 | U11: 190 | W11: 9 | AA11: Penalty for Incomplete team
A12: 11 | B12: 31 | C12: 51 | D12: 71 | E12: 91 | F12: 111 | G12: 131 | H12: 151 | I12: 171 | J12: 191 | L12: 11 | M12: 31 | N12: 51 | O12: 71 | P12: 91 | Q12: 111 | R12: 131 | S12: 151 | T12: 171 | U12: 191 | W12: 10 | AA12: Men | AB12: 78
A13: 12 | B13: 32 | C13: 52 | D13: 72 | E13: 92 | F13: 112 | G13: 132 | H13: 152 | I13: 172 | J13: 192 | L13: 12 | M13: 32 | N13: 52 | O13: 72 | P13: 92 | Q13: 112 | R13: 132 | S13: 152 | T13: 172 | U13: 192 | AA13: Ladies | AB13: 63
A14: 13 | B14: 33 | C14: 53 | D14: 73 | E14: 93 | F14: 113 | G14: 133 | H14: 153 | I14: 173 | J14: 193 | L14: 13 | M14: 33 | N14: 53 | O14: 73 | P14: 93 | Q14: 113 | R14: 133 | S14: 153 | T14: 173 | U14: 193 | AD14: Runners - Ladies
A15: 14 | B15: 34 | C15: 54 | D15: 74 | E15: 94 | F15: 114 | G15: 134 | H15: 154 | I15: 174 | J15: 194 | L15: 14 | M15: 34 | N15: 54 | O15: 74 | P15: 94 | Q15: 114 | R15: 134 | S15: 154 | T15: 174 | U15: 194 | X15: Race Number | Y15: 4 | AD15: Club | AE15: Race 1 | AF15: Race 2 | AG15: Race 3 | AH15: Race 4
A16: 15 | B16: 35 | C16: 55 | D16: 75 | E16: 95 | F16: 115 | G16: 135 | H16: 155 | I16: 175 | J16: 195 | L16: 15 | M16: 35 | N16: 55 | O16: 75 | P16: 95 | Q16: 115 | R16: 135 | S16: 155 | T16: 175 | U16: 195 | AD16: =X3 -> Ware Joggers | AE16: 18 | AF16: 17 | AG16: 22 | AH16: 21
A17: 16 | B17: 36 | C17: 56 | D17: 76 | E17: 96 | F17: 116 | G17: 136 | H17: 156 | I17: 176 | J17: 196 | L17: 16 | M17: 36 | N17: 56 | O17: 76 | P17: 96 | Q17: 116 | R17: 136 | S17: 156 | T17: 176 | U17: 196 | AD17: =X4 -> Bishop's Stortford | AE17: 9 | AF17: 16 | AG17: 15 | AH17: 4
A18: 17 | B18: 37 | C18: 57 | D18: 77 | E18: 97 | F18: 117 | G18: 137 | H18: 157 | I18: 177 | J18: 197 | L18: 17 | M18: 37 | N18: 57 | O18: 77 | P18: 97 | Q18: 117 | R18: 137 | S18: 157 | T18: 177 | U18: 197 | AD18: Saffron Striders | AE18: 8 | AF18: 10 | AG18: 7 | AH18: 4
A19: 18 | B19: 38 | C19: 58 | D19: 78 | E19: 98 | F19: 118 | G19: 138 | H19: 158 | I19: 178 | J19: 198 | L19: 18 | M19: 38 | N19: 58 | O19: 78 | P19: 98 | Q19: 118 | R19: 138 | S19: 158 | T19: 178 | U19: 198 | AD19: Harlow Running & Tri Club | AE19: 17 | AF19: 17 | AG19: 11 | AH19: 24
A20: 19 | B20: 39 | C20: 59 | D20: 79 | E20: 99 | F20: 119 | G20: 139 | H20: 159 | I20: 179 | J20: 199 | L20: 19 | M20: 39 | N20: 59 | O20: 79 | P20: 99 | Q20: 119 | R20: 139 | S20: 159 | T20: 179 | U20: 199 | AD20: 0 | AE20: 0 | AF20: 0 | AG20: 0 | AH20: 0
A21: 20 | B21: 40 | C21: 60 | D21: 80 | E21: 100 | F21: 120 | G21: 140 | H21: 160 | I21: 180 | J21: 200 | L21: 20 | M21: 40 | N21: 60 | O21: 80 | P21: 100 | Q21: 120 | R21: 140 | S21: 160 | T21: 180 | U21: 200
X23: Age Categories
X24: Men | Y24: S | Z24: V40 | AA24: V50 | AB24: V60 | AC24: V70
X25: Ladies | Y25: S | Z25: V35 | AA25: V45 | AB25: V55 | AC25: V65

Sheet Members
A1: Name | B1: Club | C1: Age Category | D1: Claim | E1: Finish Position | G1: Name | H1: Club | I1: Age Category | J1: Claim | K1: Finish Position
A2: Adam Beaumont | B2: BS | C2: S | D2: 1st | G2: Abby Canfield | H2: BS | I2: S | J2: 1st
A3: Adam Chapman | B3: BS | C3: V40 | D3: 1st | G3: Abigail White | H3: BS | I3: S | J3: 1st
A4: adrian hampstead | B4: BS | C4: V50 | D4: 1st | G4: Alexia Kitching | H4: BS | I4: V55 | J4: 1st
A5: Alasdair Bruce | B5: BS | C5: V50 | D5: 1st | G5: Alison Chadwick | H5: BS | I5: S | J5: 1st
A6: Alastair Humphrey | B6: BS | C6: V40 | D6: 1st | G6: Alison Malcolm | H6: BS | I6: V45 | J6: 1st
A7: Alec Felstead | B7: BS | C7: V70 | D7: 1st | G7: Alison Street | H7: BS | I7: V45 | J7: 1st
A8: Andrew Cook | B8: BS | C8: V50 | D8: 1st | G8: Amanda Bavin | H8: BS | I8: V45 | J8: 1st
A9: Andrew Farmery | B9: BS | C9: S | D9: 1st | G9: Amanda Edwards | H9: BS | I9: V45 | J9: 1st
A10: Andrew Pooley | B10: BS | C10: V40 | D10: 1st | G10: Andrea Thorpe | H10: BS | I10: V45 | J10: 1st
A11: Andrew Wilson | B11: BS | C11: V50 | D11: 1st | G11: Anne-Claire Definod | H11: BS | J11: 1st
A12: Andy Kumar | B12: BS | D12: 2nd | G12: Bekah Cranch | H12: BS | I12: S | J12: 1st
A13: Anthony Kirby | B13: BS | C13: V40 | D13: 1st | G13: Briony Hudson | H13: BS | I13: V35
A14: Antony Welden | B14: BS | C14: V50 | D14: 1st | G14: Catherine Bacon | H14: BS | I14: V55 | J14: 1st
A15: Archie Gilbey | B15: BS | C15: S | D15: 1st | G15: Catherine Gage | H15: BS | I15: V35 | J15: 1st
A16: Ashish Tiwari | B16: BS | C16: S | D16: 1st | G16: Catherine Howard | H16: BS | I16: V45 | J16: 1st
A17: Ben Dean | B17: BS | C17: V40 | D17: 1st | G17: Cathy Dutta | H17: BS | I17: V55 | J17: 1st
A18: Ben Pickford | B18: BS | C18: V40 | D18: 1st | G18: Charlotte Hoole | H18: BS | I18: S | J18: 1st
A19: Brian Sullivan | B19: BS | C19: V50 | D19: 1st | G19: Charlotte Hussey | H19: BS | I19: V35 | J19: 1st
A20: Callum Ross | B20: BS | D20: 1st | G20: Charu Dayama | H20: BS | I20: V35 | J20: 1st
A21: Chris Allan | B21: BS | C21: V50 | D21: 1st | G21: Chloe Boyce | H21: BS | I21: V35 | J21: 1st
A22: Chris Brolly | B22: BS | C22: V60 | D22: 1st | G22: Claire Boylan | H22: BS | I22: V45 | J22: 1st
A23: Chris Chew | B23: BS | C23: V50 | D23: 1st | E23: 39 | G23: Claire Fields | H23: BS | I23: V45 | J23: 1st
A24: Chun Hei Alvin Cheng | B24: BS | C24: S | D24: 1st | G24: Claire Nicholson | H24: BS | I24: S | J24: 1st
A25: Connor Mak | B25: BS | C25: S | D25: 1st | G25: Clare Gallagher | H25: BS | I25: V35 | J25: 1st
A26: Dan Palmer | B26: BS | C26: S | D26: 1st | G26: Clare Masterson | H26: BS | I26: V35 | J26: 1st
A27: Daniel Beazley | B27: BS | C27: V40 | D27: 1st | G27: Colette Kerins | H27: BS | I27: V45 | J27: 1st
A28: Daniel Brayshaw | B28: BS | C28: V40 | D28: 1st | G28: Corinna Rowe | H28: BS | I28: V55 | J28: 1st
A29: Daniel Hume | B29: BS | C29: V40 | D29: 1st | G29: Danielle Sims | H29: BS | I29: V45 | J29: 1st
A30: David Broughton | B30: BS | C30: V50 | D30: 1st | G30: Deborah Bridges | H30: BS | I30: V45 | J30: 1st
A31: David McMillan | B31: BS | C31: V50 | D31: 1st | G31: Deirdre Walton | H31: BS | I31: V55 | J31: 1st
A32: David Rutter | B32: BS | C32: V50 | D32: 1st | G32: Eilidh Malcolm | H32: BS | I32: S | J32: 2nd | K32: 19
A33: Dawid Szulc | B33: BS | C33: S | D33: 1st | G33: Eleanor Mason | H33: BS | I33: S | J33: 2nd
A34: Dean Aylott | B34: BS | C34: S | D34: 1st | G34: Eleanor Rodgers | H34: BS | I34: V45 | J34: 1st
A35: Dominic Mason | B35: BS | C35: V50 | D35: 1st | G35: Eleanor Wells | H35: BS | I35: S | J35: 1st
A36: Douglas Mathers | B36: BS | D36: 1st | G36: Eleanor Williams | H36: BS | I36: V45 | J36: 1st
A37: Ernesto Johnson | B37: BS | C37: V60 | D37: 1st | G37: Elizabeth Bellinger | H37: BS | I37: V35 | J37: 1st
A38: Etienne Faure | B38: BS | C38: V40 | D38: 1st | E38: 34 | G38: Ellen Brooks | H38: BS | I38: V35 | J38: 1st
A39: Evan Stewart | B39: BS | C39: S | D39: 1st | G39: Elna Vermaak | H39: BS | I39: V55 | J39: 1st
A40: Feridun Kadir | B40: BS | C40: V50 | D40: 1st | G40: Emily Clancey | H40: BS | I40: S | J40: 1st
A41: Garry Stuart | B41: BS | C41: V50 | D41: 1st | G41: Emily Warrington | H41: BS | I41: S | J41: 1st
A42: Gary Jones | B42: BS | C42: V50 | D42: 1st | G42: Emma Barnes | H42: BS | I42: V35 | J42: 1st
A43: Gavin Moulton | B43: BS | C43: V50 | D43: 1st | G43: Emma Harvey | H43: BS | I43: V45 | J43: 1st
A44: George Thomas | B44: BS | C44: V70 | D44: 1st | G44: Emma Nixon | H44: BS | I44: V55 | J44: 1st | K44: 26
A45: George Thorpe | B45: BS | C45: S | D45: 1st | G45: Eve Warrington | H45: BS | I45: S | J45: 1st
A46: Glen Malcolm | B46: BS | C46: V50 | D46: 1st | G46: Fay Dodgen | H46: BS | I46: V45 | J46: 1st
A47: Gordon Mcleod | B47: BS | C47: S | D47: 1st | E47: 38 | G47: Fay Humphries | H47: BS | I47: S | J47: 1st
A48: Gordon Wilson | B48: BS | C48: V60 | D48: 1st | G48: Fiona Liddell | H48: BS | I48: V55 | J48: 1st
A49: Graham O'Malley | B49: BS | C49: V60 | D49: 1st | G49: Frances Iwaschkin | H49: BS | I49: V35 | J49: 1st
A50: Graham Ross | B50: BS | C50: S | D50: 1st | G50: Francesca Palmer | H50: BS | I50: V45 | J50: 1st
A51: Graham Statter | B51: BS | C51: V60 | D51: 1st | G51: Georgie Hoole | H51: BS | I51: S | J51: 1st
A52: Graham Willson | B52: BS | C52: V50 | D52: 1st | G52: Grace Malcolm | H52: BS | I52: S | J52: 2nd
A53: Henry Ward | B53: BS | C53: S | D53: 1st | E53: 11 | G53: Greta Lyons | H53: BS | I53: V55 | J53: 1st
A54: Ian Griffiths | B54: BS | C54: V40 | D54: 1st | G54: Hannah McIlvenna | H54: BS | I54: V45 | J54: 2nd
A55: Ian McClymont | B55: BS | C55: V70 | D55: 1st | G55: Hannah Prince | H55: BS | I55: V45 | J55: 1st
A56: Ian Penson | B56: BS | C56: V60 | D56: 1st | E56: 65 | G56: Harriet Wyatt | H56: BS | I56: V55 | J56: 1st
A57: James Delve | B57: BS | C57: V40 | D57: 1st | E57: 28 | G57: Hayley Miller | H57: BS | I57: V35 | J57: 1st
A58: James Gurr | B58: BS | D58: 1st | G58: Helen Baucher | H58: BS | I58: V55 | J58: 1st
A59: Jamie Smith | B59: BS | C59: V40 | D59: 1st | E59: 51 | G59: Helen Brown | H59: BS | I59: V55 | J59: 1st
A60: Jan Bisschoff | B60: BS | C60: V70 | D60: 1st | G60: Helen Hollingsworth | H60: BS | I60: V45 | J60: 1st
A61: Jason Haigh | B61: BS | C61: V50 | D61: 1st | G61: Imogen Drake | H61: BS | I61: S | J61: 1st
A62: Jason Hasty | B62: BS | C62: V50 | D62: 1st | G62: Inese Stan | H62: BS | I62: V35 | J62: 1st
A63: Jerry Piron | B63: BS | C63: V60 | D63: 1st | G63: Jane Malone | H63: BS | I63: V45 | J63: 1st
A64: Jess Melville | B64: BS | C64: V40 | D64: 1st | G64: Jane Mansfield | H64: BS | I64: V55 | J64: 1st
A65: Joe Costley | B65: BS | C65: V50 | D65: 2nd | G65: Janet Howes | H65: BS | I65: V65 | J65: 1st
A66: John Appleby | B66: BS | C66: V50 | D66: 1st | G66: Janna Jenkins | H66: BS | I66: V35 | J66: 1st
A67: John Baker | B67: BS | C67: V70 | D67: 1st | G67: Jasmine Crawford | H67: BS | J67: 1st
A68: John Dodsworth | B68: BS | C68: V50 | D68: 1st | G68: Jenny Barnett | H68: BS | I68: V45 | J68: 1st
A69: John Earley | B69: BS | C69: V50 | D69: 1st | G69: Jenny Brayshaw | H69: BS | I69: V65 | J69: 1st
A70: John Etherden | B70: BS | C70: V70 | D70: 1st | G70: Jenny Latham | H70: BS | I70: V35 | J70: 1st
A71: John Ivens | B71: BS | C71: V60 | D71: 1st | G71: Jenny Wright | H71: BS | I71: V45 | J71: 1st
A72: John Kennedy | B72: BS | C72: V50 | D72: 1st | G72: Jilly Palmer | H72: BS | I72: V55 | J72: 1st | K72: 48
A73: John Neary | B73: BS | C73: V60 | D73: 1st | G73: Joanna Jurd | H73: BS | I73: V35 | J73: 1st
A74: John Nichol | B74: BS | C74: V50 | D74: 1st | G74: Joanna Keable | H74: BS | J74: 1st
A75: John Wright | B75: BS | C75: V40 | D75: 1st | G75: joanna Sturrock | H75: BS | I75: V45 | J75: 1st
A76: Jonathan Derrick | B76: BS | C76: S | D76: 1st | G76: Joanne Hume | H76: BS | I76: V45 | J76: 1st
A77: Jonathan Haynes | B77: BS | C77: V60 | D77: 1st | G77: Julia Fonnereau | H77: BS | I77: V55 | J77: 1st
A78: Jonathan Round | B78: BS | C78: S | D78: 1st | G78: Julie Pagram | H78: BS | I78: V45 | J78: 1st
A79: Justin Patten | B79: BS | C79: V50 | D79: 1st | G79: Julie Rogers | H79: BS | I79: V55 | J79: 1st
A80: Keir Mann | B80: BS | C80: V40 | D80: 1st | G80: Julie Witchalls | H80: BS | I80: V45 | J80: 1st
A81: Keith House | B81: BS | C81: V60 | D81: 1st | G81: Karen Roddam | H81: BS | I81: V45 | J81: 1st
A82: Keith Phillips | B82: BS | C82: V60 | D82: 1st | G82: Kathryn Chapman | H82: BS | I82: V45 | J82: 1st
A83: Kevin Gillespie | B83: BS | C83: V50 | D83: 1st | G83: Kirsty Reid | H83: BS | I83: V35 | J83: 1st
A84: Kevin Marshall | B84: BS | C84: V50 | D84: 1st | G84: Lara Wheeldon | H84: BS | I84: V45 | J84: 1st
A85: Kevin Mully | B85: BS | C85: V40 | D85: 1st | E85: 17 | G85: Laura Hollis | H85: BS | J85: 1st
A86: Krishna Kakkaiyadi | B86: BS | C86: S | D86: 1st | G86: Lisa Collier-Smith | H86: BS | I86: V45 | J86: 1st
A87: Laurence Foote | B87: BS | C87: V40 | D87: 1st | G87: Lorraine Evans | H87: BS | I87: V55 | J87: 1st
A88: Laurence Lee | B88: BS | C88: V50 | D88: 1st | G88: Lucy Northedge | H88: BS | I88: V35 | J88: 1st
A89: Lee Boswell | B89: BS | C89: S | D89: 1st | E89: 42 | G89: Lucy Robinson | H89: BS | I89: V35 | J89: 1st
A90: Lee Kirby | B90: BS | C90: V40 | D90: 1st | G90: Mairead Wright | H90: BS | I90: V35 | J90: 1st
A91: Lee Maughan | B91: BS | C91: S | D91: 1st | G91: Mairi Malcolm | H91: BS | I91: S | J91: 2nd
A92: Lee Pickering | B92: BS | C92: V50 | D92: 1st | G92: Marie Hockley | H92: BS | I92: V55 | J92: 1st
A93: Lee Rhodes | B93: BS | C93: V40 | D93: 1st | G93: Mary Amos | H93: BS | I93: V65 | J93: 1st
A94: Lee Vass | B94: BS | C94: V40 | D94: 1st | G94: Meryl Herniman | H94: BS | I94: V35 | J94: 1st
A95: Liam Dillon | B95: BS | C95: V40 | D95: 1st | G95: Michelle Cook | H95: BS | J95: 1st
A96: Liam Sheils | B96: BS | C96: V40 | D96: 1st | G96: Michelle Hasty | H96: BS | I96: V45 | J96: 1st
A97: Luke Shepherd | B97: BS | C97: S | D97: 1st | G97: Mrinalini Kar | H97: BS | I97: V35 | J97: 1st
A98: Malcolm Dewhurst | B98: BS | C98: V60 | D98: 1st | G98: Natasha Spiller | H98: BS | I98: V35 | J98: 1st
A99: Marcus Collings | B99: BS | D99: 1st | G99: Neema Sheby | H99: BS | I99: V35 | J99: 1st
A100: Mark Booker | B100: BS | C100: V50 | D100: 1st | G100: Nick Smith | H100: BS | I100: V35 | J100: 1st
A101: Mark Burkett | B101: BS | C101: V50 | D101: 1st | G101: Nicola Cockerell | H101: BS | I101: V35 | J101: 1st
A102: Mark Lawrence | B102: BS | C102: S | D102: 1st | G102: Niki Champion | H102: BS | I102: V45 | J102: 1st
A103: Mark Palmer | B103: BS | C103: V40 | D103: 1st | G103: Nikki Frostick | H103: BS | J103: 1st
A104: Mark Spiller | B104: BS | C104: S | D104: 1st | G104: Olivia Beresford | H104: BS | I104: S | J104: 1st
A105: Mark Wilds | B105: BS | C105: V50 | D105: 1st | G105: Patricia Poole | H105: BS | I105: V55 | J105: 1st
A106: Martin Brooks | B106: BS | C106: S | D106: 1st | G106: Paula Beades | H106: BS | I106: V45 | J106: 1st
A107: Martin Cockerell | B107: BS | C107: V40 | D107: 1st | G107: Peijie Zhu | H107: BS | I107: V45 | J107: 1st
A108: Martin Collier-Smith | B108: BS | C108: V50 | D108: 1st | G108: Penelope Roux | H108: BS | I108: S | J108: 1st
A109: Martin Howe | B109: BS | C109: V60 | D109: 1st | G109: Rachael Fletcher | H109: BS | I109: V45 | J109: 1st
A110: Martin Pettitt | B110: BS | C110: V60 | D110: 1st | G110: Rachel Rissbrook | H110: BS | I110: V55 | J110: 1st
A111: Matt Cooker | B111: BS | C111: V40 | G111: Rachel Turvey | H111: BS | I111: V45 | J111: 1st
A112: Matt McRandal | B112: BS | C112: S | D112: 1st | G112: Rebecca Cole | H112: BS | I112: V35 | J112: 1st
A113: Matthew Coaker | B113: BS | C113: V40 | D113: 1st | G113: Rebecca Dolan | H113: BS | I113: S | J113: 1st
A114: Matthew Cole | B114: BS | C114: V40 | D114: 1st | G114: Rebecca Thorp | H114: BS | I114: V35 | J114: 1st
A115: Matthew Ironside | B115: BS | C115: S | D115: 1st | G115: Robinne Colby | H115: BS | I115: V55 | J115: 1st
A116: Matthieu Militon | B116: BS | C116: V40 | D116: 1st | G116: Rosemary Nugent | H116: BS | I116: V65 | J116: 1st
A117: Melvyn Grimwood | B117: BS | C117: V40 | D117: 1st | G117: Sally House | H117: BS | I117: V55 | J117: 1st
A118: Michael Chinnery | B118: BS | C118: S | D118: 1st | G118: sarah crooks | H118: BS | I118: V35 | J118: 1st
A119: Michael Connolly | B119: BS | C119: V60 | D119: 1st | G119: Sarah Godfrey | H119: BS | I119: V45 | J119: 1st
A120: Mike Grant | B120: BS | C120: V60 | D120: 1st | G120: Sarah Mackay | H120: BS | I120: V35 | J120: 1st
A121: NEIL GAGE | B121: BS | C121: V40 | D121: 1st | G121: Sarah Mathura | H121: BS | I121: V45 | J121: 1st
A122: Nick Yeadon | B122: BS | C122: V50 | D122: 1st | G122: Sarah Porter | H122: BS | I122: V45 | J122: 1st
A123: Owen Bailey | B123: BS | C123: V40 | D123: 1st | G123: Serena Beresford | H123: BS | I123: V35 | J123: 1st
A124: Paul Dearlove | B124: BS | C124: V50 | D124: 1st | G124: Sharon Neary | H124: BS | I124: V55 | J124: 1st
A125: Paul Kerins | B125: BS | C125: V50 | D125: 1st | G125: Shirley Ball | H125: BS | I125: V65 | J125: 1st
A126: Paul Malone | B126: BS | C126: V40 | D126: 1st | G126: Sophie Barc | H126: BS | I126: V45 | J126: 1st
A127: Paul Scofield | B127: BS | C127: V40 | D127: 1st | G127: Sophie Evans | H127: BS | I127: V35 | J127: 1st
A128: Paul Walker | B128: BS | C128: V50 | D128: 1st | G128: Sophie Paterson | H128: BS | J128: 1st
A129: Pekka Aalto | B129: BS | C129: V40 | D129: 1st | G129: Stacey Smith | H129: BS | I129: V35 | J129: 1st
A130: Peter Allen | B130: BS | C130: V60 | D130: 1st | G130: Stefanie Azuga | H130: BS | I130: V45 | J130: 1st
A131: Peter Beatty | B131: BS | C131: V60 | D131: 1st | G131: Susan Albiston | H131: BS | I131: V45 | J131: 1st
A132: Peter Cormack | B132: BS | C132: S | D132: 1st | G132: Susan Anderson | H132: BS | I132: V35 | J132: 1st
A133: Peter Forsey | B133: BS | C133: V40 | D133: 1st | G133: Susan Judge | H133: BS | I133: V35 | J133: 1st
A134: Peter Jurd | B134: BS | C134: V40 | D134: 1st | G134: Susan Tidman | H134: BS | I134: V45 | J134: 1st
A135: Peter Rowe | B135: BS | C135: V50 | D135: 1st | G135: Theresa Burke | H135: BS | I135: V65 | J135: 1st
A136: Peter Wenzel | B136: BS | C136: V70 | D136: 1st | G136: Trudy Lynch | H136: BS | I136: V45 | J136: 1st
A137: Peter Winfield | B137: BS | D137: 1st | G137: Vicky Simpson | H137: BS | I137: V45 | J137: 1st | K137: 8
A138: Philip Butson | B138: BS | C138: V50 | D138: 1st | G138: Victoria Maddox | H138: BS | I138: V35 | J138: 1st
A139: Philip Chaplin | B139: BS | C139: V50 | D139: 2nd | G139: Alex Soady | H139: HRC | I139: S | J139: 1st
A140: Philip Gibsone | B140: BS | C140: V50 | D140: 1st | G140: Alison Bull | H140: HRC | I140: V55 | J140: 1st
A141: Phillip Mansfield | B141: BS | C141: V50 | D141: 1st | G141: Alison Wilkinson | H141: HRC | I141: V55 | J141: 1st | K141: 45
A142: Quentin Downes | B142: BS | D142: 1st | G142: Allison Beeton | H142: HRC | I142: V55 | J142: 1st
A143: Richard Eddershaw | B143: BS | C143: V60 | D143: 1st | E143: 31 | G143: Amanda Martin-Hose | H143: HRC | I143: V35 | J143: 1st
A144: Richard Faverker | B144: BS | C144: V40 | E144: 59 | G144: Amber Ingle | H144: HRC | I144: S | J144: 1st
A145: Richard Payne | B145: BS | C145: V40 | D145: 1st | G145: Angela Cook | H145: HRC | I145: V55 | J145: 1st
A146: Robert Thorpe | B146: BS | C146: V50 | D146: 1st | G146: Anique Liiv | H146: HRC | I146: V35 | J146: 1st
A147: Robin Newman | B147: BS | C147: V40 | D147: 1st | G147: Anna Robey | H147: HRC | I147: V35 | J147: 1st
A148: Roger Berry | B148: BS | C148: V40 | D148: 1st | G148: Annabel Moeser | H148: HRC | I148: S | J148: 1st
A149: Rohit Dayama | B149: BS | C149: V40 | D149: 1st | G149: Antonella Crudgington | H149: HRC | I149: V45 | J149: 1st
A150: Ryan Gow | B150: BS | C150: S | D150: 1st | G150: Carinne Jay | H150: HRC | I150: V55 | J150: 1st
A151: Samuel Brennan | B151: BS | D151: 1st | G151: Carla Hockley | H151: HRC | I151: V35 | J151: 1st
A152: Samuel Pedley | B152: BS | C152: S | D152: 1st | G152: Catherine Ridge | H152: HRC | I152: V35 | J152: 1st | K152: 11
A153: Shane Tomlinson | B153: BS | C153: V40 | D153: 1st | G153: Charleen Tillotson | H153: HRC | I153: V35 | J153: 1st
A154: Simon Dewhurst | B154: BS | C154: S | D154: 1st | G154: Claire Carter | H154: HRC | I154: V45 | J154: 1st | K154: 43
A155: Simon Judkins | B155: BS | C155: V40 | D155: 1st | G155: Claire Clark | H155: HRC | I155: V35 | J155: 1st
A156: Simon Treadwell | B156: BS | C156: S | D156: 1st | G156: Claire Johnson | H156: HRC | I156: V45 | J156: 1st
A157: Stephen Ball | B157: BS | C157: V60 | D157: 1st | G157: Claire Morris | H157: HRC | I157: V35 | J157: 1st | K157: 39
A158: Stephen Berry | B158: BS | C158: V40 | D158: 1st | G158: Claire Sage | H158: HRC | I158: S | J158: 1st
A159: Stephen Chimunye | B159: BS | D159: 1st | G159: Dawn Elford | H159: HRC | I159: V45 | J159: 1st
A160: Stephen Crafford | B160: BS | C160: V50 | D160: 1st | G160: Debbie Barry | H160: HRC | I160: V55 | J160: 1st
A161: Stephen Price | B161: BS | C161: S | D161: 1st | G161: Debbie Hayden | H161: HRC | I161: V35 | J161: 1st
A162: Stephen Wilkes | B162: BS | C162: V50 | D162: 1st | G162: Debbie Mead | H162: HRC | I162: V45 | J162: 1st
A163: Steve Page | B163: BS | C163: V60 | D163: 1st | G163: Deborah Garfield | H163: HRC | I163: V45 | J163: 2nd
A164: Steven Prosser | B164: BS | C164: V40 | D164: 1st | G164: Deborah Pomphret | H164: HRC | I164: V45 | J164: 1st
A165: Steven Vale | B165: BS | C165: V50 | D165: 1st | G165: Debra Monk | H165: HRC | I165: V55 | J165: 1st
A166: Stewart Grant | B166: BS | C166: V50 | D166: 1st | G166: Dionne Jones | H166: HRC | I166: V45 | J166: 1st
A167: Stuart Davenport | B167: BS | C167: V50 | D167: 1st | G167: Donna Milton | H167: HRC | I167: V45 | J167: 1st | K167: 30
A168: Themi Petridis | B168: BS | C168: V40 | D168: 1st | G168: Elizabeth Roberts | H168: HRC | I168: S | J168: 1st
A169: Thomas Castle | B169: BS | C169: V40 | D169: 1st | G169: Elle Curran | H169: HRC | I169: S | J169: 1st
A170: Thomas Wilton | B170: BS | C170: S | D170: 1st | G170: Ellie Williams | H170: HRC | I170: S | J170: 1st
A171: Tim Kelly | B171: BS | C171: V60 | D171: 1st | G171: Emma Luck | H171: HRC | I171: V45 | J171: 1st | K171: 37
A172: Toby Allanson | B172: BS | C172: V40 | D172: 1st | G172: Emma Thompson | H172: HRC | I172: V45 | J172: 1st
A173: Tommy Fanton | B173: BS | C173: V40 | D173: 1st | G173: Eva Lenicka | H173: HRC | I173: V35 | J173: 1st
A174: Tony Chada | B174: BS | C174: V50 | D174: 1st | G174: Fieke Blackwell | H174: HRC | I174: V35 | J174: 1st | K174: 9
A175: Tony Dawkins | B175: BS | C175: V60 | D175: 1st | G175: Fionnuala Quinn | H175: HRC | I175: V35 | J175: 1st
A176: Wayne Greet | B176: BS | C176: V50 | D176: 1st | G176: Freya Anglin-Liiv | H176: HRC | I176: S | J176: 1st
A177: Will Bell | B177: BS | C177: S | D177: 1st | G177: Gail Nicholls | H177: HRC | I177: V55 | J177: 1st | K177: 31
A178: Will Hunt Vincent | B178: BS | C178: V50 | D178: 1st | G178: Gemma Curran | H178: HRC | I178: S | J178: 1st
A179: Will Morton | B179: BS | C179: S | D179: 1st | G179: Gulsun Shevket | H179: HRC | I179: S | J179: 1st
A180: William Price | B180: BS | C180: S | D180: 1st | G180: Harriett Martin | H180: HRC | I180: S | J180: 1st
A181: Adam Galloway | B181: HRC | C181: S | D181: 1st | G181: Heidi Fox | H181: HRC | I181: V35 | J181: 1st
A182: Alan Chatterton | B182: HRC | C182: S | D182: 1st | G182: Helen Barnes-Martin | H182: HRC | I182: V55 | J182: 1st
A183: Alan Cootes | B183: HRC | C183: V60 | D183: 1st | G183: Helen Barrell | H183: HRC | I183: S | J183: 1st
A184: Alan Godbold | B184: HRC | C184: V50 | D184: 1st | G184: Helena May | H184: HRC | I184: S | J184: 1st
A185: Alan Knightley | B185: HRC | C185: V50 | D185: 1st | G185: Holly Nairn | H185: HRC | I185: S | J185: 1st
A186: Alan Wellbelove | B186: HRC | C186: V60 | D186: 1st | G186: Iwona Antolik | H186: HRC | I186: V45 | J186: 1st
A187: Alexis Ellington | B187: HRC | C187: V50 | D187: 1st | G187: Jane Evans | H187: HRC | I187: V55 | J187: 1st
A188: Andrew Kinney | B188: HRC | C188: V50 | D188: 1st | G188: Janet Webster | H188: HRC | I188: V65 | J188: 1st
A189: Andrew Smith | B189: HRC | C189: V50 | D189: 1st | E189: 67 | G189: Jayne Mouser | H189: HRC | I189: V45 | J189: 1st
A190: Andrew Terrell | B190: HRC | C190: V40 | D190: 1st | E190: 30 | G190: Jessica Carter | H190: HRC | I190: S | J190: 1st
A191: Austin Nyamande | B191: HRC | C191: V60 | D191: 1st | G191: Joanne Mills | H191: HRC | I191: V65 | J191: 1st
A192: Ben Fowler | B192: HRC | C192: V40 | D192: 1st | G192: Joy Hale | H192: HRC | I192: V35 | J192: 1st
A193: Benjamin Usher | B193: HRC | C193: S | D193: 1st | E193: 19 | G193: Judy Ward | H193: HRC | I193: V65 | J193: 1st
A194: Bradley Holmes | B194: HRC | C194: S | D194: 1st | G194: Julia Gardiner | H194: HRC | I194: V35 | J194: 1st
A195: Bradley Power | B195: HRC | C195: S | D195: 1st | G195: Julie Bradley | H195: HRC | I195: V55 | J195: 1st
A196: Chris Arnell | B196: HRC | C196: V40 | D196: 1st | E196: 48 | G196: Julie Bull | H196: HRC | I196: V45 | J196: 1st
A197: Chris Mella | B197: HRC | C197: S | D197: 1st | E197: 41 | G197: Julie Ireland | H197: HRC | I197: V55 | J197: 1st
A198: Christian Golebiowski | B198: HRC | C198: S | D198: 1st | G198: Karen Moir | H198: HRC | I198: V55 | J198: 1st
A199: Christopher Donnelly | B199: HRC | C199: V40 | D199: 1st | G199: Kate Babb | H199: HRC | I199: V55 | J199: 1st | K199: 46
A200: Colin Baker | B200: HRC | C200: V40 | D200: 1st | E200: 26 | G200: Kate Porter | H200: HRC | I200: V45 | J200: 1st | K200: 34
... 300 more rows

Sheet Results
A1: T | B1: Mens Score | J1: Mens Score
B2: Club | C2: Race 1 | D2: Race 2 | E2: Race 3 | F2: Race 4 | G2: Total | J2: Club | K2: Race 1 | L2: Race 2 | M2: Race 3 | N2: Race 4 | O2: Total
B3: =Control!AD3 -> Ware Joggers | C3: 46 | D3: 51 | E3: 57 | F3: 50 | G3: =SUM(C3:F3) -> 204 | J3: Ware Joggers | K3: =IF(ISNA(RANK(C3,C$3:C$6)),0,RANK(C3,C$3:C$6)) -> 4 | L3: 4 | M3: 4 | N3: =IF(ISNA(RANK(F3,F$3:F$6)),0,RANK(F3,F$3:F$6)) -> 4 | O3: =SUM(K3:N3) -> 16
B4: =Control!AD4 -> Bishop's Stortford | C4: 156 | D4: 254 | E4: 254 | F4: 240 | G4: =SUM(C4:F4) -> 904 | J4: Bishop's Stortford | K4: =IF(ISNA(RANK(C4,C$3:C$6)),0,RANK(C4,C$3:C$6)) -> 3 | L4: =IF(ISNA(RANK(D4,D$3:D$6)),0,RANK(D4,D$3:D$6)) -> 1 | M4: =IF(ISNA(RANK(E4,E$3:E$6)),0,RANK(E4,E$3:E$6)) -> 2 | N4: =IF(ISNA(RANK(F4,F$3:F$6)),0,RANK(F4,F$3:F$6)) -> 2 | O4: =SUM(K4:N4) -> 8
B5: =Control!AD5 -> Saffron Striders | C5: 280 | D5: 183 | E5: 289 | F5: 333 | G5: =SUM(C5:F5) -> 1085 | J5: Saffron Striders | K5: 1 | L5: 2 | M5: 1 | N5: 1 | O5: 5
B6: =Control!AD6 -> Harlow Running & Tri Club | C6: 172 | D6: 133 | E6: 149 | F6: 165 | G6: =SUM(C6:F6) -> 619 | J6: Harlow Running & Tri Club | K6: 2 | L6: 3 | M6: 3 | N6: 3 | O6: 11
D7: 816 | E7: 696 | F7: 624
B14: Ladies Score | J14: Ladies Score
B15: Club | C15: Race 1 | D15: Race 2 | E15: Race 3 | F15: Race 4 | G15: Total | J15: Club | K15: Race 1 | L15: Race 2 | M15: Race 3 | N15: Race 4 | O15: Total
B16: =Control!AD16 -> Ware Joggers | C16: 80 | D16: 100 | E16: 119 | F16: 72 | G16: =SUM(C16:F16) -> 371 | J16: Ware Joggers | K16: =IF(ISNA(RANK(C16,C$16:C$19)),0,RANK(C16,C$16:C$19)) -> 4 | L16: =IF(ISNA(RANK(D16,D$16:D$19)),0,RANK(D16,D$16:D$19)) -> 4 | M16: 3 | N16: =IF(ISNA(RANK(F16,F$16:F$19)),0,RANK(F16,F$16:F$19)) -> 4 | O16: =SUM(K16:N16) -> 15
B17: =Control!AD17 -> Bishop's Stortford | C17: 179 | D17: 171 | E17: 82 | F17: 353 | G17: 785 | J17: Bishop's Stortford | K17: =IF(ISNA(RANK(C17,C$16:C$19)),0,RANK(C17,C$16:C$19)) -> 2 | L17: 2 | M17: 4 | N17: 1 | O17: 9
B18: =Control!AD18 -> Saffron Striders | C18: 187 | D18: 174 | E18: 241 | F18: 328 | G18: 930 | J18: Saffron Striders | K18: 1 | L18: 1 | M18: 1 | N18: 2 | O18: 5
B19: =Control!AD19 -> Harlow Running & Tri Club | C19: 123 | D19: 116 | E19: 160 | F19: 99 | G19: 498 | J19: Harlow Running & Tri Club | K19: 3 | L19: 3 | M19: 2 | N19: 3 | O19: 11
D20: 560 | E20: 520 | F20: 504
B27: Overall Score | J27: Overall Score
B28: Club | C28: Race 1 | D28: Race 2 | E28: Race 3 | F28: Race 4 | G28: Total | J28: Club | K28: Race 1 | L28: Race 2 | M28: Race 3 | N28: Race 4 | O28: Total
B29: =B16 -> Ware Joggers | C29: =C3+C16 -> 126 | D29: 151 | E29: 176 | F29: 122 | G29: =SUM(C29:F29) -> 575 | J29: Ware Joggers | K29: =IF(ISNA(RANK(C29,C$29:C$32)),0,RANK(C29,C$29:C$32)) -> 4 | L29: =IF(ISNA(RANK(D29,D$29:D$32)),0,RANK(D29,D$29:D$32)) -> 4 | M29: 4 | N29: =IF(F29=0,0,RANK(F29,F$29:F$32)) -> 4 | O29: =SUM(K29:N29) -> 16
B30: =B17 -> Bishop's Stortford | C30: 335 | D30: 425 | E30: 336 | F30: 593 | G30: 1689 | J30: Bishop's Stortford | K30: =IF(ISNA(RANK(C30,C$29:C$32)),0,RANK(C30,C$29:C$32)) -> 2 | L30: =IF(ISNA(RANK(D30,D$29:D$32)),0,RANK(D30,D$29:D$32)) -> 1 | M30: =IF(ISNA(RANK(E30,E$29:E$32)),0,RANK(E30,E$29:E$32)) -> 2 | N30: =IF(F30=0,0,RANK(F30,F$29:F$32)) -> 2 | O30: 7
B31: =B18 -> Saffron Striders | C31: 467 | D31: 357 | E31: 530 | F31: 661 | G31: 2015 | J31: Saffron Striders | K31: 1 | L31: 2 | M31: 1 | N31: 1 | O31: 5
B32: =B19 -> Harlow Running & Tri Club | C32: 295 | D32: 249 | E32: 309 | F32: 264 | G32: 1117 | J32: Harlow Running & Tri Club | K32: 3 | L32: 3 | M32: 3 | N32: 3 | O32: 12

Sheet Scores-Men (hidden)

Sheet Scores-ladies (hidden)

Sheet Individual Series Winners
A1: Mens
A2: Michael Waddington | B2: WJ | C2: S
A3: Andrew Mynott | B3: WJ | C3: V40
A4: Rob Lowe | B4: HRC | C4: V50
A5: Garth Morris | B5: WJ | C5: V60
A8: Ladies
A9: Lucy Barnes | B9: HRC | C9: S
A10: Katy Woodward | B10: WJ | C10: V35
A11: Susan Millward | B11: WJ | C11: V45
A12: Linda Helm-Manley | B12: HRC | C12: V55
A13: Pamela Wilson | B13: WJ | C13: V65

Sheet Men Inidividual Series
A1: Name | B1: Club | C1: Age Category | D1: Race 1 Age Category Result | E1: Race 2 Age Category Result | F1: Race 3 Age Category Result | G1: Race 4 Age Category Result | H1: Best 1 | I1: Best 2 | J1: Best 3 | K1: Total Series Score | L1: Rank
A2: Andy Kumar | B2: BS | D2: =IF(ISNA(VLOOKUP($A2,'Race 1-Men'!$G$34:$L$53,6,0)),100,VLOOKUP($A2,'Race 1-Men'!$G$34:$L$53,6,0)) -> 100 | E2: =IF(ISNA(VLOOKUP($A2,'Race 2-Men'!$G$32:$L$53,6,0)),100,VLOOKUP($A2,'Race 2-Men'!$G$32:$L$53,6,0)) -> 100 | F2: =IF(ISNA(VLOOKUP($A2,'Race 3-Men'!$G$40:$L$61,6,0)),100,VLOOKUP($A2,'Race 3-Men'!$G$40:$L$61,6,0)) -> 100 | G2: =IF(ISNA(VLOOKUP($A2,'Race 4-Men'!$G$35:$L$100,6,0)),100,VLOOKUP($A2,'Race 4-Men'!$G$35:$L$100,6,0)) -> 100 | H2: =SMALL(D2:G2,{1,2,3}) -> 100 | I2: 100 | J2: 100 | K2: =SUM(H2:J2) -> 300 | L2: =RANK(K2,$K$2:$K$118,1) -> 34
A3: Callum Ross | B3: BS | D3: =IF(ISNA(VLOOKUP($A3,'Race 1-Men'!$G$34:$L$53,6,0)),100,VLOOKUP($A3,'Race 1-Men'!$G$34:$L$53,6,0)) -> 100 | E3: =IF(ISNA(VLOOKUP($A3,'Race 2-Men'!$G$32:$L$53,6,0)),100,VLOOKUP($A3,'Race 2-Men'!$G$32:$L$53,6,0)) -> 100 | F3: =IF(ISNA(VLOOKUP($A3,'Race 3-Men'!$G$40:$L$61,6,0)),100,VLOOKUP($A3,'Race 3-Men'!$G$40:$L$61,6,0)) -> 100 | G3: =IF(ISNA(VLOOKUP($A3,'Race 4-Men'!$G$35:$L$100,6,0)),100,VLOOKUP($A3,'Race 4-Men'!$G$35:$L$100,6,0)) -> 100 | H3: =SMALL(D3:G3,{1,2,3}) -> 100 | I3: 100 | J3: 100 | K3: =SUM(H3:J3) -> 300 | L3: =RANK(K3,$K$2:$K$118,1) -> 34
A4: Douglas Mathers | B4: BS | D4: =IF(ISNA(VLOOKUP($A4,'Race 1-Men'!$G$34:$L$53,6,0)),100,VLOOKUP($A4,'Race 1-Men'!$G$34:$L$53,6,0)) -> 100 | E4: =IF(ISNA(VLOOKUP($A4,'Race 2-Men'!$G$32:$L$53,6,0)),100,VLOOKUP($A4,'Race 2-Men'!$G$32:$L$53,6,0)) -> 100 | F4: =IF(ISNA(VLOOKUP($A4,'Race 3-Men'!$G$40:$L$61,6,0)),100,VLOOKUP($A4,'Race 3-Men'!$G$40:$L$61,6,0)) -> 100 | G4: =IF(ISNA(VLOOKUP($A4,'Race 4-Men'!$G$35:$L$100,6,0)),100,VLOOKUP($A4,'Race 4-Men'!$G$35:$L$100,6,0)) -> 100 | H4: =SMALL(D4:G4,{1,2,3}) -> 100 | I4: 100 | J4: 100 | K4: 300 | L4: 34
A5: James Gurr | B5: BS | D5: =IF(ISNA(VLOOKUP($A5,'Race 1-Men'!$G$34:$L$53,6,0)),100,VLOOKUP($A5,'Race 1-Men'!$G$34:$L$53,6,0)) -> 100 | E5: =IF(ISNA(VLOOKUP($A5,'Race 2-Men'!$G$32:$L$53,6,0)),100,VLOOKUP($A5,'Race 2-Men'!$G$32:$L$53,6,0)) -> 100 | F5: =IF(ISNA(VLOOKUP($A5,'Race 3-Men'!$G$40:$L$61,6,0)),100,VLOOKUP($A5,'Race 3-Men'!$G$40:$L$61,6,0)) -> 100 | G5: =IF(ISNA(VLOOKUP($A5,'Race 4-Men'!$G$35:$L$100,6,0)),100,VLOOKUP($A5,'Race 4-Men'!$G$35:$L$100,6,0)) -> 100 | H5: =SMALL(D5:G5,{1,2,3}) -> 100 | I5: 100 | J5: 100 | K5: 300 | L5: 34
A6: Marcus Collings | B6: BS | D6: =IF(ISNA(VLOOKUP($A6,'Race 1-Men'!$G$34:$L$53,6,0)),100,VLOOKUP($A6,'Race 1-Men'!$G$34:$L$53,6,0)) -> 100 | E6: =IF(ISNA(VLOOKUP($A6,'Race 2-Men'!$G$32:$L$53,6,0)),100,VLOOKUP($A6,'Race 2-Men'!$G$32:$L$53,6,0)) -> 100 | F6: =IF(ISNA(VLOOKUP($A6,'Race 3-Men'!$G$40:$L$61,6,0)),100,VLOOKUP($A6,'Race 3-Men'!$G$40:$L$61,6,0)) -> 100 | G6: =IF(ISNA(VLOOKUP($A6,'Race 4-Men'!$G$35:$L$100,6,0)),100,VLOOKUP($A6,'Race 4-Men'!$G$35:$L$100,6,0)) -> 100 | H6: =SMALL(D6:G6,{1,2,3}) -> 100 | I6: 100 | J6: 100 | K6: 300 | L6: 34
A7: Peter Winfield | B7: BS | D7: =IF(ISNA(VLOOKUP($A7,'Race 1-Men'!$G$34:$L$53,6,0)),100,VLOOKUP($A7,'Race 1-Men'!$G$34:$L$53,6,0)) -> 100 | E7: =IF(ISNA(VLOOKUP($A7,'Race 2-Men'!$G$32:$L$53,6,0)),100,VLOOKUP($A7,'Race 2-Men'!$G$32:$L$53,6,0)) -> 100 | F7: =IF(ISNA(VLOOKUP($A7,'Race 3-Men'!$G$40:$L$61,6,0)),100,VLOOKUP($A7,'Race 3-Men'!$G$40:$L$61,6,0)) -> 100 | G7: =IF(ISNA(VLOOKUP($A7,'Race 4-Men'!$G$35:$L$100,6,0)),100,VLOOKUP($A7,'Race 4-Men'!$G$35:$L$100,6,0)) -> 100 | H7: =SMALL(D7:G7,{1,2,3}) -> 100 | I7: 100 | J7: 100 | K7: 300 | L7: 34
A8: Quentin Downes | B8: BS | D8: =IF(ISNA(VLOOKUP($A8,'Race 1-Men'!$G$34:$L$53,6,0)),100,VLOOKUP($A8,'Race 1-Men'!$G$34:$L$53,6,0)) -> 100 | E8: =IF(ISNA(VLOOKUP($A8,'Race 2-Men'!$G$32:$L$53,6,0)),100,VLOOKUP($A8,'Race 2-Men'!$G$32:$L$53,6,0)) -> 100 | F8: =IF(ISNA(VLOOKUP($A8,'Race 3-Men'!$G$40:$L$61,6,0)),100,VLOOKUP($A8,'Race 3-Men'!$G$40:$L$61,6,0)) -> 100 | G8: =IF(ISNA(VLOOKUP($A8,'Race 4-Men'!$G$35:$L$100,6,0)),100,VLOOKUP($A8,'Race 4-Men'!$G$35:$L$100,6,0)) -> 100 | H8: =SMALL(D8:G8,{1,2,3}) -> 100 | I8: 100 | J8: 100 | K8: 300 | L8: 34
A9: Samuel Brennan | B9: BS | D9: =IF(ISNA(VLOOKUP($A9,'Race 1-Men'!$G$34:$L$53,6,0)),100,VLOOKUP($A9,'Race 1-Men'!$G$34:$L$53,6,0)) -> 100 | E9: =IF(ISNA(VLOOKUP($A9,'Race 2-Men'!$G$32:$L$53,6,0)),100,VLOOKUP($A9,'Race 2-Men'!$G$32:$L$53,6,0)) -> 100 | F9: =IF(ISNA(VLOOKUP($A9,'Race 3-Men'!$G$40:$L$61,6,0)),100,VLOOKUP($A9,'Race 3-Men'!$G$40:$L$61,6,0)) -> 100 | G9: =IF(ISNA(VLOOKUP($A9,'Race 4-Men'!$G$35:$L$100,6,0)),100,VLOOKUP($A9,'Race 4-Men'!$G$35:$L$100,6,0)) -> 100 | H9: =SMALL(D9:G9,{1,2,3}) -> 100 | I9: 100 | J9: 100 | K9: 300 | L9: 34
A10: Stephen Chimunye | B10: BS | D10: =IF(ISNA(VLOOKUP($A10,'Race 1-Men'!$G$34:$L$53,6,0)),100,VLOOKUP($A10,'Race 1-Men'!$G$34:$L$53,6,0)) -> 100 | E10: =IF(ISNA(VLOOKUP($A10,'Race 2-Men'!$G$32:$L$53,6,0)),100,VLOOKUP($A10,'Race 2-Men'!$G$32:$L$53,6,0)) -> 100 | F10: =IF(ISNA(VLOOKUP($A10,'Race 3-Men'!$G$40:$L$61,6,0)),100,VLOOKUP($A10,'Race 3-Men'!$G$40:$L$61,6,0)) -> 100 | G10: =IF(ISNA(VLOOKUP($A10,'Race 4-Men'!$G$35:$L$100,6,0)),100,VLOOKUP($A10,'Race 4-Men'!$G$35:$L$100,6,0)) -> 100 | H10: =SMALL(D10:G10,{1,2,3}) -> 100 | I10: 100 | J10: 100 | K10: 300 | L10: 34
A11: Adam Beaumont | B11: BS | C11: S | D11: =IF(ISNA(VLOOKUP($A11,'Race 1-Men'!$G$34:$L$53,6,0)),100,VLOOKUP($A11,'Race 1-Men'!$G$34:$L$53,6,0)) -> 100 | E11: =IF(ISNA(VLOOKUP($A11,'Race 2-Men'!$G$32:$L$53,6,0)),100,VLOOKUP($A11,'Race 2-Men'!$G$32:$L$53,6,0)) -> 100 | F11: =IF(ISNA(VLOOKUP($A11,'Race 3-Men'!$G$40:$L$61,6,0)),100,VLOOKUP($A11,'Race 3-Men'!$G$40:$L$61,6,0)) -> 100 | G11: =IF(ISNA(VLOOKUP($A11,'Race 4-Men'!$G$35:$L$100,6,0)),100,VLOOKUP($A11,'Race 4-Men'!$G$35:$L$100,6,0)) -> 100 | H11: =SMALL(D11:G11,{1,2,3}) -> 100 | I11: 100 | J11: 100 | K11: 300 | L11: 34
A12: Adam Galloway | B12: HRC | C12: S | D12: =IF(ISNA(VLOOKUP($A12,'Race 1-Men'!$G$34:$L$53,6,0)),100,VLOOKUP($A12,'Race 1-Men'!$G$34:$L$53,6,0)) -> 100 | E12: =IF(ISNA(VLOOKUP($A12,'Race 2-Men'!$G$32:$L$53,6,0)),100,VLOOKUP($A12,'Race 2-Men'!$G$32:$L$53,6,0)) -> 100 | F12: =IF(ISNA(VLOOKUP($A12,'Race 3-Men'!$G$40:$L$61,6,0)),100,VLOOKUP($A12,'Race 3-Men'!$G$40:$L$61,6,0)) -> 100 | G12: =IF(ISNA(VLOOKUP($A12,'Race 4-Men'!$G$35:$L$100,6,0)),100,VLOOKUP($A12,'Race 4-Men'!$G$35:$L$100,6,0)) -> 100 | H12: =SMALL(D12:G12,{1,2,3}) -> 100 | I12: 100 | J12: 100 | K12: 300 | L12: 34
A13: Adam Watson | B13: WJ | C13: S | D13: =IF(ISNA(VLOOKUP($A13,'Race 1-Men'!$G$34:$L$53,6,0)),100,VLOOKUP($A13,'Race 1-Men'!$G$34:$L$53,6,0)) -> 12 | E13: =IF(ISNA(VLOOKUP($A13,'Race 2-Men'!$G$32:$L$53,6,0)),100,VLOOKUP($A13,'Race 2-Men'!$G$32:$L$53,6,0)) -> 100 | F13: =IF(ISNA(VLOOKUP($A13,'Race 3-Men'!$G$40:$L$61,6,0)),100,VLOOKUP($A13,'Race 3-Men'!$G$40:$L$61,6,0)) -> 16 | G13: =IF(ISNA(VLOOKUP($A13,'Race 4-Men'!$G$35:$L$100,6,0)),100,VLOOKUP($A13,'Race 4-Men'!$G$35:$L$100,6,0)) -> 14 | H13: =SMALL(D13:G13,{1,2,3}) -> 12 | I13: 14 | J13: 16 | K13: 42 | L13: 12
A14: Alan Chatterton | B14: HRC | C14: S | D14: =IF(ISNA(VLOOKUP($A14,'Race 1-Men'!$G$34:$L$53,6,0)),100,VLOOKUP($A14,'Race 1-Men'!$G$34:$L$53,6,0)) -> 100 | E14: =IF(ISNA(VLOOKUP($A14,'Race 2-Men'!$G$32:$L$53,6,0)),100,VLOOKUP($A14,'Race 2-Men'!$G$32:$L$53,6,0)) -> 100 | F14: =IF(ISNA(VLOOKUP($A14,'Race 3-Men'!$G$40:$L$61,6,0)),100,VLOOKUP($A14,'Race 3-Men'!$G$40:$L$61,6,0)) -> 100 | G14: =IF(ISNA(VLOOKUP($A14,'Race 4-Men'!$G$35:$L$100,6,0)),100,VLOOKUP($A14,'Race 4-Men'!$G$35:$L$100,6,0)) -> 100 | H14: =SMALL(D14:G14,{1,2,3}) -> 100 | I14: 100 | J14: 100 | K14: 300 | L14: 34
A15: Alex Smith | B15: SS | C15: S | D15: =IF(ISNA(VLOOKUP($A15,'Race 1-Men'!$G$34:$L$53,6,0)),100,VLOOKUP($A15,'Race 1-Men'!$G$34:$L$53,6,0)) -> 100 | E15: =IF(ISNA(VLOOKUP($A15,'Race 2-Men'!$G$32:$L$53,6,0)),100,VLOOKUP($A15,'Race 2-Men'!$G$32:$L$53,6,0)) -> 100 | F15: =IF(ISNA(VLOOKUP($A15,'Race 3-Men'!$G$40:$L$61,6,0)),100,VLOOKUP($A15,'Race 3-Men'!$G$40:$L$61,6,0)) -> 100 | G15: =IF(ISNA(VLOOKUP($A15,'Race 4-Men'!$G$35:$L$100,6,0)),100,VLOOKUP($A15,'Race 4-Men'!$G$35:$L$100,6,0)) -> 100 | H15: =SMALL(D15:G15,{1,2,3}) -> 100 | I15: 100 | J15: 100 | K15: 300 | L15: 34
A16: Alexander Chappell | B16: WJ | C16: S | D16: =IF(ISNA(VLOOKUP($A16,'Race 1-Men'!$G$34:$L$53,6,0)),100,VLOOKUP($A16,'Race 1-Men'!$G$34:$L$53,6,0)) -> 15 | E16: =IF(ISNA(VLOOKUP($A16,'Race 2-Men'!$G$32:$L$53,6,0)),100,VLOOKUP($A16,'Race 2-Men'!$G$32:$L$53,6,0)) -> 100 | F16: =IF(ISNA(VLOOKUP($A16,'Race 3-Men'!$G$40:$L$61,6,0)),100,VLOOKUP($A16,'Race 3-Men'!$G$40:$L$61,6,0)) -> 13 | G16: =IF(ISNA(VLOOKUP($A16,'Race 4-Men'!$G$35:$L$100,6,0)),100,VLOOKUP($A16,'Race 4-Men'!$G$35:$L$100,6,0)) -> 12 | H16: =SMALL(D16:G16,{1,2,3}) -> 12 | I16: 13 | J16: 15 | K16: 40 | L16: 11
A17: Amit Davda | B17: SS | C17: S | D17: =IF(ISNA(VLOOKUP($A17,'Race 1-Men'!$G$34:$L$53,6,0)),100,VLOOKUP($A17,'Race 1-Men'!$G$34:$L$53,6,0)) -> 100 | E17: =IF(ISNA(VLOOKUP($A17,'Race 2-Men'!$G$32:$L$53,6,0)),100,VLOOKUP($A17,'Race 2-Men'!$G$32:$L$53,6,0)) -> 20 | F17: =IF(ISNA(VLOOKUP($A17,'Race 3-Men'!$G$40:$L$61,6,0)),100,VLOOKUP($A17,'Race 3-Men'!$G$40:$L$61,6,0)) -> 100 | G17: =IF(ISNA(VLOOKUP($A17,'Race 4-Men'!$G$35:$L$100,6,0)),100,VLOOKUP($A17,'Race 4-Men'!$G$35:$L$100,6,0)) -> 100 | H17: =SMALL(D17:G17,{1,2,3}) -> 20 | I17: 100 | J17: 100 | K17: 220 | L17: 33
A18: Andrew Colbran | B18: WJ | C18: S | D18: =IF(ISNA(VLOOKUP($A18,'Race 1-Men'!$G$34:$L$53,6,0)),100,VLOOKUP($A18,'Race 1-Men'!$G$34:$L$53,6,0)) -> 100 | E18: =IF(ISNA(VLOOKUP($A18,'Race 2-Men'!$G$32:$L$53,6,0)),100,VLOOKUP($A18,'Race 2-Men'!$G$32:$L$53,6,0)) -> 100 | F18: =IF(ISNA(VLOOKUP($A18,'Race 3-Men'!$G$40:$L$61,6,0)),100,VLOOKUP($A18,'Race 3-Men'!$G$40:$L$61,6,0)) -> 100 | G18: =IF(ISNA(VLOOKUP($A18,'Race 4-Men'!$G$35:$L$100,6,0)),100,VLOOKUP($A18,'Race 4-Men'!$G$35:$L$100,6,0)) -> 100 | H18: =SMALL(D18:G18,{1,2,3}) -> 100 | I18: 100 | J18: 100 | K18: 300 | L18: 34
A19: Andrew Farmery | B19: BS | C19: S | D19: =IF(ISNA(VLOOKUP($A19,'Race 1-Men'!$G$34:$L$53,6,0)),100,VLOOKUP($A19,'Race 1-Men'!$G$34:$L$53,6,0)) -> 100 | E19: =IF(ISNA(VLOOKUP($A19,'Race 2-Men'!$G$32:$L$53,6,0)),100,VLOOKUP($A19,'Race 2-Men'!$G$32:$L$53,6,0)) -> 100 | F19: =IF(ISNA(VLOOKUP($A19,'Race 3-Men'!$G$40:$L$61,6,0)),100,VLOOKUP($A19,'Race 3-Men'!$G$40:$L$61,6,0)) -> 100 | G19: =IF(ISNA(VLOOKUP($A19,'Race 4-Men'!$G$35:$L$100,6,0)),100,VLOOKUP($A19,'Race 4-Men'!$G$35:$L$100,6,0)) -> 100 | H19: =SMALL(D19:G19,{1,2,3}) -> 100 | I19: 100 | J19: 100 | K19: 300 | L19: 34
A20: Andrew Jacklin | B20: SS | C20: S | D20: =IF(ISNA(VLOOKUP($A20,'Race 1-Men'!$G$34:$L$53,6,0)),100,VLOOKUP($A20,'Race 1-Men'!$G$34:$L$53,6,0)) -> 100 | E20: =IF(ISNA(VLOOKUP($A20,'Race 2-Men'!$G$32:$L$53,6,0)),100,VLOOKUP($A20,'Race 2-Men'!$G$32:$L$53,6,0)) -> 100 | F20: =IF(ISNA(VLOOKUP($A20,'Race 3-Men'!$G$40:$L$61,6,0)),100,VLOOKUP($A20,'Race 3-Men'!$G$40:$L$61,6,0)) -> 100 | G20: =IF(ISNA(VLOOKUP($A20,'Race 4-Men'!$G$35:$L$100,6,0)),100,VLOOKUP($A20,'Race 4-Men'!$G$35:$L$100,6,0)) -> 100 | H20: =SMALL(D20:G20,{1,2,3}) -> 100 | I20: 100 | J20: 100 | K20: 300 | L20: 34
A21: Andrew Kavanagh | B21: WJ | C21: S | D21: =IF(ISNA(VLOOKUP($A21,'Race 1-Men'!$G$34:$L$53,6,0)),100,VLOOKUP($A21,'Race 1-Men'!$G$34:$L$53,6,0)) -> 14 | E21: =IF(ISNA(VLOOKUP($A21,'Race 2-Men'!$G$32:$L$53,6,0)),100,VLOOKUP($A21,'Race 2-Men'!$G$32:$L$53,6,0)) -> 100 | F21: =IF(ISNA(VLOOKUP($A21,'Race 3-Men'!$G$40:$L$61,6,0)),100,VLOOKUP($A21,'Race 3-Men'!$G$40:$L$61,6,0)) -> 15 | G21: =IF(ISNA(VLOOKUP($A21,'Race 4-Men'!$G$35:$L$100,6,0)),100,VLOOKUP($A21,'Race 4-Men'!$G$35:$L$100,6,0)) -> 100 | H21: =SMALL(D21:G21,{1,2,3}) -> 14 | I21: 15 | J21: 100 | K21: 129 | L21: 21
A22: Andrew Tait | B22: WJ | C22: S | D22: =IF(ISNA(VLOOKUP($A22,'Race 1-Men'!$G$34:$L$53,6,0)),100,VLOOKUP($A22,'Race 1-Men'!$G$34:$L$53,6,0)) -> 100 | E22: =IF(ISNA(VLOOKUP($A22,'Race 2-Men'!$G$32:$L$53,6,0)),100,VLOOKUP($A22,'Race 2-Men'!$G$32:$L$53,6,0)) -> 100 | F22: =IF(ISNA(VLOOKUP($A22,'Race 3-Men'!$G$40:$L$61,6,0)),100,VLOOKUP($A22,'Race 3-Men'!$G$40:$L$61,6,0)) -> 100 | G22: =IF(ISNA(VLOOKUP($A22,'Race 4-Men'!$G$35:$L$100,6,0)),100,VLOOKUP($A22,'Race 4-Men'!$G$35:$L$100,6,0)) -> 100 | H22: =SMALL(D22:G22,{1,2,3}) -> 100 | I22: 100 | J22: 100 | K22: 300 | L22: 34
A23: Archie Gilbey | B23: BS | C23: S | D23: =IF(ISNA(VLOOKUP($A23,'Race 1-Men'!$G$34:$L$53,6,0)),100,VLOOKUP($A23,'Race 1-Men'!$G$34:$L$53,6,0)) -> 100 | E23: =IF(ISNA(VLOOKUP($A23,'Race 2-Men'!$G$32:$L$53,6,0)),100,VLOOKUP($A23,'Race 2-Men'!$G$32:$L$53,6,0)) -> 100 | F23: =IF(ISNA(VLOOKUP($A23,'Race 3-Men'!$G$40:$L$61,6,0)),100,VLOOKUP($A23,'Race 3-Men'!$G$40:$L$61,6,0)) -> 100 | G23: =IF(ISNA(VLOOKUP($A23,'Race 4-Men'!$G$35:$L$100,6,0)),100,VLOOKUP($A23,'Race 4-Men'!$G$35:$L$100,6,0)) -> 100 | H23: =SMALL(D23:G23,{1,2,3}) -> 100 | I23: 100 | J23: 100 | K23: 300 | L23: 34
A24: Ashish Tiwari | B24: BS | C24: S | D24: =IF(ISNA(VLOOKUP($A24,'Race 1-Men'!$G$34:$L$53,6,0)),100,VLOOKUP($A24,'Race 1-Men'!$G$34:$L$53,6,0)) -> 100 | E24: =IF(ISNA(VLOOKUP($A24,'Race 2-Men'!$G$32:$L$53,6,0)),100,VLOOKUP($A24,'Race 2-Men'!$G$32:$L$53,6,0)) -> 100 | F24: =IF(ISNA(VLOOKUP($A24,'Race 3-Men'!$G$40:$L$61,6,0)),100,VLOOKUP($A24,'Race 3-Men'!$G$40:$L$61,6,0)) -> 100 | G24: =IF(ISNA(VLOOKUP($A24,'Race 4-Men'!$G$35:$L$100,6,0)),100,VLOOKUP($A24,'Race 4-Men'!$G$35:$L$100,6,0)) -> 100 | H24: =SMALL(D24:G24,{1,2,3}) -> 100 | I24: 100 | J24: 100 | K24: 300 | L24: 34
A25: Ashley Smith | B25: WJ | C25: S | D25: =IF(ISNA(VLOOKUP($A25,'Race 1-Men'!$G$34:$L$53,6,0)),100,VLOOKUP($A25,'Race 1-Men'!$G$34:$L$53,6,0)) -> 100 | E25: =IF(ISNA(VLOOKUP($A25,'Race 2-Men'!$G$32:$L$53,6,0)),100,VLOOKUP($A25,'Race 2-Men'!$G$32:$L$53,6,0)) -> 100 | F25: =IF(ISNA(VLOOKUP($A25,'Race 3-Men'!$G$40:$L$61,6,0)),100,VLOOKUP($A25,'Race 3-Men'!$G$40:$L$61,6,0)) -> 100 | G25: =IF(ISNA(VLOOKUP($A25,'Race 4-Men'!$G$35:$L$100,6,0)),100,VLOOKUP($A25,'Race 4-Men'!$G$35:$L$100,6,0)) -> 100 | H25: =SMALL(D25:G25,{1,2,3}) -> 100 | I25: 100 | J25: 100 | K25: 300 | L25: 34
A26: Bailey Doe | B26: WJ | C26: S | D26: =IF(ISNA(VLOOKUP($A26,'Race 1-Men'!$G$34:$L$53,6,0)),100,VLOOKUP($A26,'Race 1-Men'!$G$34:$L$53,6,0)) -> 100 | E26: =IF(ISNA(VLOOKUP($A26,'Race 2-Men'!$G$32:$L$53,6,0)),100,VLOOKUP($A26,'Race 2-Men'!$G$32:$L$53,6,0)) -> 100 | F26: =IF(ISNA(VLOOKUP($A26,'Race 3-Men'!$G$40:$L$61,6,0)),100,VLOOKUP($A26,'Race 3-Men'!$G$40:$L$61,6,0)) -> 100 | G26: =IF(ISNA(VLOOKUP($A26,'Race 4-Men'!$G$35:$L$100,6,0)),100,VLOOKUP($A26,'Race 4-Men'!$G$35:$L$100,6,0)) -> 100 | H26: =SMALL(D26:G26,{1,2,3}) -> 100 | I26: 100 | J26: 100 | K26: 300 | L26: 34
A27: Ben Wright | B27: SS | C27: S | D27: =IF(ISNA(VLOOKUP($A27,'Race 1-Men'!$G$34:$L$53,6,0)),100,VLOOKUP($A27,'Race 1-Men'!$G$34:$L$53,6,0)) -> 100 | E27: =IF(ISNA(VLOOKUP($A27,'Race 2-Men'!$G$32:$L$53,6,0)),100,VLOOKUP($A27,'Race 2-Men'!$G$32:$L$53,6,0)) -> 100 | F27: =IF(ISNA(VLOOKUP($A27,'Race 3-Men'!$G$40:$L$61,6,0)),100,VLOOKUP($A27,'Race 3-Men'!$G$40:$L$61,6,0)) -> 100 | G27: =IF(ISNA(VLOOKUP($A27,'Race 4-Men'!$G$35:$L$100,6,0)),100,VLOOKUP($A27,'Race 4-Men'!$G$35:$L$100,6,0)) -> 100 | H27: =SMALL(D27:G27,{1,2,3}) -> 100 | I27: 100 | J27: 100 | K27: 300 | L27: 34
A28: Benjamin Usher | B28: HRC | C28: S | D28: =IF(ISNA(VLOOKUP($A28,'Race 1-Men'!$G$34:$L$53,6,0)),100,VLOOKUP($A28,'Race 1-Men'!$G$34:$L$53,6,0)) -> 16 | E28: =IF(ISNA(VLOOKUP($A28,'Race 2-Men'!$G$32:$L$53,6,0)),100,VLOOKUP($A28,'Race 2-Men'!$G$32:$L$53,6,0)) -> 100 | F28: =IF(ISNA(VLOOKUP($A28,'Race 3-Men'!$G$40:$L$61,6,0)),100,VLOOKUP($A28,'Race 3-Men'!$G$40:$L$61,6,0)) -> 100 | G28: =IF(ISNA(VLOOKUP($A28,'Race 4-Men'!$G$35:$L$100,6,0)),100,VLOOKUP($A28,'Race 4-Men'!$G$35:$L$100,6,0)) -> 13 | H28: =SMALL(D28:G28,{1,2,3}) -> 13 | I28: 16 | J28: 100 | K28: 129 | L28: 21
A29: Bradley Holmes | B29: HRC | C29: S | D29: =IF(ISNA(VLOOKUP($A29,'Race 1-Men'!$G$34:$L$53,6,0)),100,VLOOKUP($A29,'Race 1-Men'!$G$34:$L$53,6,0)) -> 100 | E29: =IF(ISNA(VLOOKUP($A29,'Race 2-Men'!$G$32:$L$53,6,0)),100,VLOOKUP($A29,'Race 2-Men'!$G$32:$L$53,6,0)) -> 100 | F29: =IF(ISNA(VLOOKUP($A29,'Race 3-Men'!$G$40:$L$61,6,0)),100,VLOOKUP($A29,'Race 3-Men'!$G$40:$L$61,6,0)) -> 100 | G29: =IF(ISNA(VLOOKUP($A29,'Race 4-Men'!$G$35:$L$100,6,0)),100,VLOOKUP($A29,'Race 4-Men'!$G$35:$L$100,6,0)) -> 100 | H29: =SMALL(D29:G29,{1,2,3}) -> 100 | I29: 100 | J29: 100 | K29: 300 | L29: 34
A30: Bradley Power | B30: HRC | C30: S | D30: =IF(ISNA(VLOOKUP($A30,'Race 1-Men'!$G$34:$L$53,6,0)),100,VLOOKUP($A30,'Race 1-Men'!$G$34:$L$53,6,0)) -> 100 | E30: =IF(ISNA(VLOOKUP($A30,'Race 2-Men'!$G$32:$L$53,6,0)),100,VLOOKUP($A30,'Race 2-Men'!$G$32:$L$53,6,0)) -> 100 | F30: =IF(ISNA(VLOOKUP($A30,'Race 3-Men'!$G$40:$L$61,6,0)),100,VLOOKUP($A30,'Race 3-Men'!$G$40:$L$61,6,0)) -> 100 | G30: =IF(ISNA(VLOOKUP($A30,'Race 4-Men'!$G$35:$L$100,6,0)),100,VLOOKUP($A30,'Race 4-Men'!$G$35:$L$100,6,0)) -> 100 | H30: =SMALL(D30:G30,{1,2,3}) -> 100 | I30: 100 | J30: 100 | K30: 300 | L30: 34
A31: Chris Mella | B31: HRC | C31: S | D31: =IF(ISNA(VLOOKUP($A31,'Race 1-Men'!$G$34:$L$53,6,0)),100,VLOOKUP($A31,'Race 1-Men'!$G$34:$L$53,6,0)) -> 18 | E31: =IF(ISNA(VLOOKUP($A31,'Race 2-Men'!$G$32:$L$53,6,0)),100,VLOOKUP($A31,'Race 2-Men'!$G$32:$L$53,6,0)) -> 11 | F31: =IF(ISNA(VLOOKUP($A31,'Race 3-Men'!$G$40:$L$61,6,0)),100,VLOOKUP($A31,'Race 3-Men'!$G$40:$L$61,6,0)) -> 18 | G31: =IF(ISNA(VLOOKUP($A31,'Race 4-Men'!$G$35:$L$100,6,0)),100,VLOOKUP($A31,'Race 4-Men'!$G$35:$L$100,6,0)) -> 19 | H31: =SMALL(D31:G31,{1,2,3}) -> 11 | I31: 18 | J31: 18 | K31: 47 | L31: 13
A32: Chris O'Donovan | B32: SS | C32: S | D32: =IF(ISNA(VLOOKUP($A32,'Race 1-Men'!$G$34:$L$53,6,0)),100,VLOOKUP($A32,'Race 1-Men'!$G$34:$L$53,6,0)) -> 10 | E32: =IF(ISNA(VLOOKUP($A32,'Race 2-Men'!$G$32:$L$53,6,0)),100,VLOOKUP($A32,'Race 2-Men'!$G$32:$L$53,6,0)) -> 21 | F32: =IF(ISNA(VLOOKUP($A32,'Race 3-Men'!$G$40:$L$61,6,0)),100,VLOOKUP($A32,'Race 3-Men'!$G$40:$L$61,6,0)) -> 100 | G32: =IF(ISNA(VLOOKUP($A32,'Race 4-Men'!$G$35:$L$100,6,0)),100,VLOOKUP($A32,'Race 4-Men'!$G$35:$L$100,6,0)) -> 100 | H32: =SMALL(D32:G32,{1,2,3}) -> 10 | I32: 21 | J32: 100 | K32: 131 | L32: 23
A33: Chris Shucksmith | B33: SS | C33: S | D33: =IF(ISNA(VLOOKUP($A33,'Race 1-Men'!$G$34:$L$53,6,0)),100,VLOOKUP($A33,'Race 1-Men'!$G$34:$L$53,6,0)) -> 100 | E33: =IF(ISNA(VLOOKUP($A33,'Race 2-Men'!$G$32:$L$53,6,0)),100,VLOOKUP($A33,'Race 2-Men'!$G$32:$L$53,6,0)) -> 100 | F33: =IF(ISNA(VLOOKUP($A33,'Race 3-Men'!$G$40:$L$61,6,0)),100,VLOOKUP($A33,'Race 3-Men'!$G$40:$L$61,6,0)) -> 100 | G33: =IF(ISNA(VLOOKUP($A33,'Race 4-Men'!$G$35:$L$100,6,0)),100,VLOOKUP($A33,'Race 4-Men'!$G$35:$L$100,6,0)) -> 100 | H33: =SMALL(D33:G33,{1,2,3}) -> 100 | I33: 100 | J33: 100 | K33: 300 | L33: 34
A34: Christian Golebiowski | B34: HRC | C34: S | D34: =IF(ISNA(VLOOKUP($A34,'Race 1-Men'!$G$34:$L$53,6,0)),100,VLOOKUP($A34,'Race 1-Men'!$G$34:$L$53,6,0)) -> 100 | E34: =IF(ISNA(VLOOKUP($A34,'Race 2-Men'!$G$32:$L$53,6,0)),100,VLOOKUP($A34,'Race 2-Men'!$G$32:$L$53,6,0)) -> 100 | F34: =IF(ISNA(VLOOKUP($A34,'Race 3-Men'!$G$40:$L$61,6,0)),100,VLOOKUP($A34,'Race 3-Men'!$G$40:$L$61,6,0)) -> 100 | G34: =IF(ISNA(VLOOKUP($A34,'Race 4-Men'!$G$35:$L$100,6,0)),100,VLOOKUP($A34,'Race 4-Men'!$G$35:$L$100,6,0)) -> 100 | H34: =SMALL(D34:G34,{1,2,3}) -> 100 | I34: 100 | J34: 100 | K34: 300 | L34: 34
A35: Chun Hei Alvin Cheng | B35: BS | C35: S | D35: =IF(ISNA(VLOOKUP($A35,'Race 1-Men'!$G$34:$L$53,6,0)),100,VLOOKUP($A35,'Race 1-Men'!$G$34:$L$53,6,0)) -> 100 | E35: =IF(ISNA(VLOOKUP($A35,'Race 2-Men'!$G$32:$L$53,6,0)),100,VLOOKUP($A35,'Race 2-Men'!$G$32:$L$53,6,0)) -> 100 | F35: =IF(ISNA(VLOOKUP($A35,'Race 3-Men'!$G$40:$L$61,6,0)),100,VLOOKUP($A35,'Race 3-Men'!$G$40:$L$61,6,0)) -> 100 | G35: =IF(ISNA(VLOOKUP($A35,'Race 4-Men'!$G$35:$L$100,6,0)),100,VLOOKUP($A35,'Race 4-Men'!$G$35:$L$100,6,0)) -> 100 | H35: =SMALL(D35:G35,{1,2,3}) -> 100 | I35: 100 | J35: 100 | K35: 300 | L35: 34
A36: Colin Langbridge | B36: HRC | C36: S | D36: =IF(ISNA(VLOOKUP($A36,'Race 1-Men'!$G$34:$L$53,6,0)),100,VLOOKUP($A36,'Race 1-Men'!$G$34:$L$53,6,0)) -> 100 | E36: =IF(ISNA(VLOOKUP($A36,'Race 2-Men'!$G$32:$L$53,6,0)),100,VLOOKUP($A36,'Race 2-Men'!$G$32:$L$53,6,0)) -> 100 | F36: =IF(ISNA(VLOOKUP($A36,'Race 3-Men'!$G$40:$L$61,6,0)),100,VLOOKUP($A36,'Race 3-Men'!$G$40:$L$61,6,0)) -> 100 | G36: =IF(ISNA(VLOOKUP($A36,'Race 4-Men'!$G$35:$L$100,6,0)),100,VLOOKUP($A36,'Race 4-Men'!$G$35:$L$100,6,0)) -> 100 | H36: =SMALL(D36:G36,{1,2,3}) -> 100 | I36: 100 | J36: 100 | K36: 300 | L36: 34
A37: Connor Mak | B37: BS | C37: S | D37: =IF(ISNA(VLOOKUP($A37,'Race 1-Men'!$G$34:$L$53,6,0)),100,VLOOKUP($A37,'Race 1-Men'!$G$34:$L$53,6,0)) -> 100 | E37: =IF(ISNA(VLOOKUP($A37,'Race 2-Men'!$G$32:$L$53,6,0)),100,VLOOKUP($A37,'Race 2-Men'!$G$32:$L$53,6,0)) -> 100 | F37: =IF(ISNA(VLOOKUP($A37,'Race 3-Men'!$G$40:$L$61,6,0)),100,VLOOKUP($A37,'Race 3-Men'!$G$40:$L$61,6,0)) -> 100 | G37: =IF(ISNA(VLOOKUP($A37,'Race 4-Men'!$G$35:$L$100,6,0)),100,VLOOKUP($A37,'Race 4-Men'!$G$35:$L$100,6,0)) -> 100 | H37: =SMALL(D37:G37,{1,2,3}) -> 100 | I37: 100 | J37: 100 | K37: 300 | L37: 34
A38: Craig Segal | B38: HRC | C38: S | D38: =IF(ISNA(VLOOKUP($A38,'Race 1-Men'!$G$34:$L$53,6,0)),100,VLOOKUP($A38,'Race 1-Men'!$G$34:$L$53,6,0)) -> 100 | E38: =IF(ISNA(VLOOKUP($A38,'Race 2-Men'!$G$32:$L$53,6,0)),100,VLOOKUP($A38,'Race 2-Men'!$G$32:$L$53,6,0)) -> 100 | F38: =IF(ISNA(VLOOKUP($A38,'Race 3-Men'!$G$40:$L$61,6,0)),100,VLOOKUP($A38,'Race 3-Men'!$G$40:$L$61,6,0)) -> 100 | G38: =IF(ISNA(VLOOKUP($A38,'Race 4-Men'!$G$35:$L$100,6,0)),100,VLOOKUP($A38,'Race 4-Men'!$G$35:$L$100,6,0)) -> 100 | H38: =SMALL(D38:G38,{1,2,3}) -> 100 | I38: 100 | J38: 100 | K38: 300 | L38: 34
A39: Dan Palmer | B39: BS | C39: S | D39: =IF(ISNA(VLOOKUP($A39,'Race 1-Men'!$G$34:$L$53,6,0)),100,VLOOKUP($A39,'Race 1-Men'!$G$34:$L$53,6,0)) -> 100 | E39: =IF(ISNA(VLOOKUP($A39,'Race 2-Men'!$G$32:$L$53,6,0)),100,VLOOKUP($A39,'Race 2-Men'!$G$32:$L$53,6,0)) -> 100 | F39: =IF(ISNA(VLOOKUP($A39,'Race 3-Men'!$G$40:$L$61,6,0)),100,VLOOKUP($A39,'Race 3-Men'!$G$40:$L$61,6,0)) -> 100 | G39: =IF(ISNA(VLOOKUP($A39,'Race 4-Men'!$G$35:$L$100,6,0)),100,VLOOKUP($A39,'Race 4-Men'!$G$35:$L$100,6,0)) -> 100 | H39: =SMALL(D39:G39,{1,2,3}) -> 100 | I39: 100 | J39: 100 | K39: 300 | L39: 34
A40: David Craddock | B40: WJ | C40: S | D40: =IF(ISNA(VLOOKUP($A40,'Race 1-Men'!$G$34:$L$53,6,0)),100,VLOOKUP($A40,'Race 1-Men'!$G$34:$L$53,6,0)) -> 100 | E40: =IF(ISNA(VLOOKUP($A40,'Race 2-Men'!$G$32:$L$53,6,0)),100,VLOOKUP($A40,'Race 2-Men'!$G$32:$L$53,6,0)) -> 100 | F40: =IF(ISNA(VLOOKUP($A40,'Race 3-Men'!$G$40:$L$61,6,0)),100,VLOOKUP($A40,'Race 3-Men'!$G$40:$L$61,6,0)) -> 100 | G40: =IF(ISNA(VLOOKUP($A40,'Race 4-Men'!$G$35:$L$100,6,0)),100,VLOOKUP($A40,'Race 4-Men'!$G$35:$L$100,6,0)) -> 100 | H40: =SMALL(D40:G40,{1,2,3}) -> 100 | I40: 100 | J40: 100 | K40: 300 | L40: 34
A41: Dawid Szulc | B41: BS | C41: S | D41: =IF(ISNA(VLOOKUP($A41,'Race 1-Men'!$G$34:$L$53,6,0)),100,VLOOKUP($A41,'Race 1-Men'!$G$34:$L$53,6,0)) -> 100 | E41: =IF(ISNA(VLOOKUP($A41,'Race 2-Men'!$G$32:$L$53,6,0)),100,VLOOKUP($A41,'Race 2-Men'!$G$32:$L$53,6,0)) -> 100 | F41: =IF(ISNA(VLOOKUP($A41,'Race 3-Men'!$G$40:$L$61,6,0)),100,VLOOKUP($A41,'Race 3-Men'!$G$40:$L$61,6,0)) -> 100 | G41: =IF(ISNA(VLOOKUP($A41,'Race 4-Men'!$G$35:$L$100,6,0)),100,VLOOKUP($A41,'Race 4-Men'!$G$35:$L$100,6,0)) -> 100 | H41: =SMALL(D41:G41,{1,2,3}) -> 100 | I41: 100 | J41: 100 | K41: 300 | L41: 34
A42: Dean Aylott | B42: BS | C42: S | D42: =IF(ISNA(VLOOKUP($A42,'Race 1-Men'!$G$34:$L$53,6,0)),100,VLOOKUP($A42,'Race 1-Men'!$G$34:$L$53,6,0)) -> 100 | E42: =IF(ISNA(VLOOKUP($A42,'Race 2-Men'!$G$32:$L$53,6,0)),100,VLOOKUP($A42,'Race 2-Men'!$G$32:$L$53,6,0)) -> 100 | F42: =IF(ISNA(VLOOKUP($A42,'Race 3-Men'!$G$40:$L$61,6,0)),100,VLOOKUP($A42,'Race 3-Men'!$G$40:$L$61,6,0)) -> 100 | G42: =IF(ISNA(VLOOKUP($A42,'Race 4-Men'!$G$35:$L$100,6,0)),100,VLOOKUP($A42,'Race 4-Men'!$G$35:$L$100,6,0)) -> 100 | H42: =SMALL(D42:G42,{1,2,3}) -> 100 | I42: 100 | J42: 100 | K42: 300 | L42: 34
A43: Evan Stewart | B43: BS | C43: S | D43: =IF(ISNA(VLOOKUP($A43,'Race 1-Men'!$G$34:$L$53,6,0)),100,VLOOKUP($A43,'Race 1-Men'!$G$34:$L$53,6,0)) -> 100 | E43: =IF(ISNA(VLOOKUP($A43,'Race 2-Men'!$G$32:$L$53,6,0)),100,VLOOKUP($A43,'Race 2-Men'!$G$32:$L$53,6,0)) -> 100 | F43: =IF(ISNA(VLOOKUP($A43,'Race 3-Men'!$G$40:$L$61,6,0)),100,VLOOKUP($A43,'Race 3-Men'!$G$40:$L$61,6,0)) -> 100 | G43: =IF(ISNA(VLOOKUP($A43,'Race 4-Men'!$G$35:$L$100,6,0)),100,VLOOKUP($A43,'Race 4-Men'!$G$35:$L$100,6,0)) -> 100 | H43: =SMALL(D43:G43,{1,2,3}) -> 100 | I43: 100 | J43: 100 | K43: 300 | L43: 34
A44: George Lloyd | B44: SS | C44: S | D44: =IF(ISNA(VLOOKUP($A44,'Race 1-Men'!$G$34:$L$53,6,0)),100,VLOOKUP($A44,'Race 1-Men'!$G$34:$L$53,6,0)) -> 100 | E44: =IF(ISNA(VLOOKUP($A44,'Race 2-Men'!$G$32:$L$53,6,0)),100,VLOOKUP($A44,'Race 2-Men'!$G$32:$L$53,6,0)) -> 100 | F44: =IF(ISNA(VLOOKUP($A44,'Race 3-Men'!$G$40:$L$61,6,0)),100,VLOOKUP($A44,'Race 3-Men'!$G$40:$L$61,6,0)) -> 100 | G44: =IF(ISNA(VLOOKUP($A44,'Race 4-Men'!$G$35:$L$100,6,0)),100,VLOOKUP($A44,'Race 4-Men'!$G$35:$L$100,6,0)) -> 100 | H44: =SMALL(D44:G44,{1,2,3}) -> 100 | I44: 100 | J44: 100 | K44: 300 | L44: 34
A45: George Thorpe | B45: BS | C45: S | D45: =IF(ISNA(VLOOKUP($A45,'Race 1-Men'!$G$34:$L$53,6,0)),100,VLOOKUP($A45,'Race 1-Men'!$G$34:$L$53,6,0)) -> 100 | E45: =IF(ISNA(VLOOKUP($A45,'Race 2-Men'!$G$32:$L$53,6,0)),100,VLOOKUP($A45,'Race 2-Men'!$G$32:$L$53,6,0)) -> 100 | F45: =IF(ISNA(VLOOKUP($A45,'Race 3-Men'!$G$40:$L$61,6,0)),100,VLOOKUP($A45,'Race 3-Men'!$G$40:$L$61,6,0)) -> 100 | G45: =IF(ISNA(VLOOKUP($A45,'Race 4-Men'!$G$35:$L$100,6,0)),100,VLOOKUP($A45,'Race 4-Men'!$G$35:$L$100,6,0)) -> 100 | H45: =SMALL(D45:G45,{1,2,3}) -> 100 | I45: 100 | J45: 100 | K45: 300 | L45: 34
A46: Georgia Gadsdon | B46: HRC | C46: S | D46: =IF(ISNA(VLOOKUP($A46,'Race 1-Men'!$G$34:$L$53,6,0)),100,VLOOKUP($A46,'Race 1-Men'!$G$34:$L$53,6,0)) -> 100 | E46: =IF(ISNA(VLOOKUP($A46,'Race 2-Men'!$G$32:$L$53,6,0)),100,VLOOKUP($A46,'Race 2-Men'!$G$32:$L$53,6,0)) -> 100 | F46: =IF(ISNA(VLOOKUP($A46,'Race 3-Men'!$G$40:$L$61,6,0)),100,VLOOKUP($A46,'Race 3-Men'!$G$40:$L$61,6,0)) -> 100 | G46: =IF(ISNA(VLOOKUP($A46,'Race 4-Men'!$G$35:$L$100,6,0)),100,VLOOKUP($A46,'Race 4-Men'!$G$35:$L$100,6,0)) -> 100 | H46: =SMALL(D46:G46,{1,2,3}) -> 100 | I46: 100 | J46: 100 | K46: 300 | L46: 34
A47: Gordon Mcleod | B47: BS | C47: S | D47: =IF(ISNA(VLOOKUP($A47,'Race 1-Men'!$G$34:$L$53,6,0)),100,VLOOKUP($A47,'Race 1-Men'!$G$34:$L$53,6,0)) -> 100 | E47: =IF(ISNA(VLOOKUP($A47,'Race 2-Men'!$G$32:$L$53,6,0)),100,VLOOKUP($A47,'Race 2-Men'!$G$32:$L$53,6,0)) -> 17 | F47: =IF(ISNA(VLOOKUP($A47,'Race 3-Men'!$G$40:$L$61,6,0)),100,VLOOKUP($A47,'Race 3-Men'!$G$40:$L$61,6,0)) -> 100 | G47: =IF(ISNA(VLOOKUP($A47,'Race 4-Men'!$G$35:$L$100,6,0)),100,VLOOKUP($A47,'Race 4-Men'!$G$35:$L$100,6,0)) -> 17 | H47: =SMALL(D47:G47,{1,2,3}) -> 17 | I47: 17 | J47: 100 | K47: 134 | L47: 24
A48: Graham Ross | B48: BS | C48: S | D48: =IF(ISNA(VLOOKUP($A48,'Race 1-Men'!$G$34:$L$53,6,0)),100,VLOOKUP($A48,'Race 1-Men'!$G$34:$L$53,6,0)) -> 100 | E48: =IF(ISNA(VLOOKUP($A48,'Race 2-Men'!$G$32:$L$53,6,0)),100,VLOOKUP($A48,'Race 2-Men'!$G$32:$L$53,6,0)) -> 100 | F48: =IF(ISNA(VLOOKUP($A48,'Race 3-Men'!$G$40:$L$61,6,0)),100,VLOOKUP($A48,'Race 3-Men'!$G$40:$L$61,6,0)) -> 100 | G48: =IF(ISNA(VLOOKUP($A48,'Race 4-Men'!$G$35:$L$100,6,0)),100,VLOOKUP($A48,'Race 4-Men'!$G$35:$L$100,6,0)) -> 100 | H48: =SMALL(D48:G48,{1,2,3}) -> 100 | I48: 100 | J48: 100 | K48: 300 | L48: 34
A49: Guy Taylor | B49: SS | C49: S | D49: =IF(ISNA(VLOOKUP($A49,'Race 1-Men'!$G$34:$L$53,6,0)),100,VLOOKUP($A49,'Race 1-Men'!$G$34:$L$53,6,0)) -> 100 | E49: =IF(ISNA(VLOOKUP($A49,'Race 2-Men'!$G$32:$L$53,6,0)),100,VLOOKUP($A49,'Race 2-Men'!$G$32:$L$53,6,0)) -> 100 | F49: =IF(ISNA(VLOOKUP($A49,'Race 3-Men'!$G$40:$L$61,6,0)),100,VLOOKUP($A49,'Race 3-Men'!$G$40:$L$61,6,0)) -> 100 | G49: =IF(ISNA(VLOOKUP($A49,'Race 4-Men'!$G$35:$L$100,6,0)),100,VLOOKUP($A49,'Race 4-Men'!$G$35:$L$100,6,0)) -> 100 | H49: =SMALL(D49:G49,{1,2,3}) -> 100 | I49: 100 | J49: 100 | K49: 300 | L49: 34
A50: Harry Game | B50: SS | C50: S | D50: =IF(ISNA(VLOOKUP($A50,'Race 1-Men'!$G$34:$L$53,6,0)),100,VLOOKUP($A50,'Race 1-Men'!$G$34:$L$53,6,0)) -> 100 | E50: =IF(ISNA(VLOOKUP($A50,'Race 2-Men'!$G$32:$L$53,6,0)),100,VLOOKUP($A50,'Race 2-Men'!$G$32:$L$53,6,0)) -> 100 | F50: =IF(ISNA(VLOOKUP($A50,'Race 3-Men'!$G$40:$L$61,6,0)),100,VLOOKUP($A50,'Race 3-Men'!$G$40:$L$61,6,0)) -> 100 | G50: =IF(ISNA(VLOOKUP($A50,'Race 4-Men'!$G$35:$L$100,6,0)),100,VLOOKUP($A50,'Race 4-Men'!$G$35:$L$100,6,0)) -> 100 | H50: =SMALL(D50:G50,{1,2,3}) -> 100 | I50: 100 | J50: 100 | K50: 300 | L50: 34
A51: Henry Ward | B51: BS | C51: S | D51: =IF(ISNA(VLOOKUP($A51,'Race 1-Men'!$G$34:$L$53,6,0)),100,VLOOKUP($A51,'Race 1-Men'!$G$34:$L$53,6,0)) -> 13 | E51: =IF(ISNA(VLOOKUP($A51,'Race 2-Men'!$G$32:$L$53,6,0)),100,VLOOKUP($A51,'Race 2-Men'!$G$32:$L$53,6,0)) -> 9 | F51: =IF(ISNA(VLOOKUP($A51,'Race 3-Men'!$G$40:$L$61,6,0)),100,VLOOKUP($A51,'Race 3-Men'!$G$40:$L$61,6,0)) -> 10 | G51: =IF(ISNA(VLOOKUP($A51,'Race 4-Men'!$G$35:$L$100,6,0)),100,VLOOKUP($A51,'Race 4-Men'!$G$35:$L$100,6,0)) -> 7 | H51: =SMALL(D51:G51,{1,2,3}) -> 7 | I51: 9 | J51: 10 | K51: 26 | L51: 9
A52: Iain McMurray | B52: WJ | C52: S | D52: =IF(ISNA(VLOOKUP($A52,'Race 1-Men'!$G$34:$L$53,6,0)),100,VLOOKUP($A52,'Race 1-Men'!$G$34:$L$53,6,0)) -> 100 | E52: =IF(ISNA(VLOOKUP($A52,'Race 2-Men'!$G$32:$L$53,6,0)),100,VLOOKUP($A52,'Race 2-Men'!$G$32:$L$53,6,0)) -> 100 | F52: =IF(ISNA(VLOOKUP($A52,'Race 3-Men'!$G$40:$L$61,6,0)),100,VLOOKUP($A52,'Race 3-Men'!$G$40:$L$61,6,0)) -> 100 | G52: =IF(ISNA(VLOOKUP($A52,'Race 4-Men'!$G$35:$L$100,6,0)),100,VLOOKUP($A52,'Race 4-Men'!$G$35:$L$100,6,0)) -> 5 | H52: =SMALL(D52:G52,{1,2,3}) -> 5 | I52: 100 | J52: 100 | K52: 205 | L52: 27
A53: Ian Perrins | B53: WJ | C53: S | D53: =IF(ISNA(VLOOKUP($A53,'Race 1-Men'!$G$34:$L$53,6,0)),100,VLOOKUP($A53,'Race 1-Men'!$G$34:$L$53,6,0)) -> 100 | E53: =IF(ISNA(VLOOKUP($A53,'Race 2-Men'!$G$32:$L$53,6,0)),100,VLOOKUP($A53,'Race 2-Men'!$G$32:$L$53,6,0)) -> 100 | F53: =IF(ISNA(VLOOKUP($A53,'Race 3-Men'!$G$40:$L$61,6,0)),100,VLOOKUP($A53,'Race 3-Men'!$G$40:$L$61,6,0)) -> 100 | G53: =IF(ISNA(VLOOKUP($A53,'Race 4-Men'!$G$35:$L$100,6,0)),100,VLOOKUP($A53,'Race 4-Men'!$G$35:$L$100,6,0)) -> 10 | H53: =SMALL(D53:G53,{1,2,3}) -> 10 | I53: 100 | J53: 100 | K53: =SUM(H53:J53) -> 210 | L53: =RANK(K53,$K$2:$K$118,1) -> 30
A54: Jack Kelly | B54: HRC | C54: S | D54: =IF(ISNA(VLOOKUP($A54,'Race 1-Men'!$G$34:$L$53,6,0)),100,VLOOKUP($A54,'Race 1-Men'!$G$34:$L$53,6,0)) -> 100 | E54: =IF(ISNA(VLOOKUP($A54,'Race 2-Men'!$G$32:$L$53,6,0)),100,VLOOKUP($A54,'Race 2-Men'!$G$32:$L$53,6,0)) -> 100 | F54: =IF(ISNA(VLOOKUP($A54,'Race 3-Men'!$G$40:$L$61,6,0)),100,VLOOKUP($A54,'Race 3-Men'!$G$40:$L$61,6,0)) -> 100 | G54: =IF(ISNA(VLOOKUP($A54,'Race 4-Men'!$G$35:$L$100,6,0)),100,VLOOKUP($A54,'Race 4-Men'!$G$35:$L$100,6,0)) -> 100 | H54: =SMALL(D54:G54,{1,2,3}) -> 100 | I54: 100 | J54: 100 | K54: 300 | L54: 34
A55: Jack Shury | B55: HRC | C55: S | D55: =IF(ISNA(VLOOKUP($A55,'Race 1-Men'!$G$34:$L$53,6,0)),100,VLOOKUP($A55,'Race 1-Men'!$G$34:$L$53,6,0)) -> 100 | E55: =IF(ISNA(VLOOKUP($A55,'Race 2-Men'!$G$32:$L$53,6,0)),100,VLOOKUP($A55,'Race 2-Men'!$G$32:$L$53,6,0)) -> 100 | F55: =IF(ISNA(VLOOKUP($A55,'Race 3-Men'!$G$40:$L$61,6,0)),100,VLOOKUP($A55,'Race 3-Men'!$G$40:$L$61,6,0)) -> 100 | G55: =IF(ISNA(VLOOKUP($A55,'Race 4-Men'!$G$35:$L$100,6,0)),100,VLOOKUP($A55,'Race 4-Men'!$G$35:$L$100,6,0)) -> 100 | H55: =SMALL(D55:G55,{1,2,3}) -> 100 | I55: 100 | J55: 100 | K55: 300 | L55: 34
A56: Jack Waight | B56: HRC | C56: S | D56: =IF(ISNA(VLOOKUP($A56,'Race 1-Men'!$G$34:$L$53,6,0)),100,VLOOKUP($A56,'Race 1-Men'!$G$34:$L$53,6,0)) -> 100 | E56: =IF(ISNA(VLOOKUP($A56,'Race 2-Men'!$G$32:$L$53,6,0)),100,VLOOKUP($A56,'Race 2-Men'!$G$32:$L$53,6,0)) -> 100 | F56: =IF(ISNA(VLOOKUP($A56,'Race 3-Men'!$G$40:$L$61,6,0)),100,VLOOKUP($A56,'Race 3-Men'!$G$40:$L$61,6,0)) -> 100 | G56: =IF(ISNA(VLOOKUP($A56,'Race 4-Men'!$G$35:$L$100,6,0)),100,VLOOKUP($A56,'Race 4-Men'!$G$35:$L$100,6,0)) -> 100 | H56: =SMALL(D56:G56,{1,2,3}) -> 100 | I56: 100 | J56: 100 | K56: 300 | L56: 34
A57: James Hay | B57: HRC | C57: S | D57: =IF(ISNA(VLOOKUP($A57,'Race 1-Men'!$G$34:$L$53,6,0)),100,VLOOKUP($A57,'Race 1-Men'!$G$34:$L$53,6,0)) -> 100 | E57: =IF(ISNA(VLOOKUP($A57,'Race 2-Men'!$G$32:$L$53,6,0)),100,VLOOKUP($A57,'Race 2-Men'!$G$32:$L$53,6,0)) -> 100 | F57: =IF(ISNA(VLOOKUP($A57,'Race 3-Men'!$G$40:$L$61,6,0)),100,VLOOKUP($A57,'Race 3-Men'!$G$40:$L$61,6,0)) -> 100 | G57: =IF(ISNA(VLOOKUP($A57,'Race 4-Men'!$G$35:$L$100,6,0)),100,VLOOKUP($A57,'Race 4-Men'!$G$35:$L$100,6,0)) -> 100 | H57: =SMALL(D57:G57,{1,2,3}) -> 100 | I57: 100 | J57: 100 | K57: 300 | L57: 34
A58: James Randall | B58: WJ | C58: S | D58: =IF(ISNA(VLOOKUP($A58,'Race 1-Men'!$G$34:$L$53,6,0)),100,VLOOKUP($A58,'Race 1-Men'!$G$34:$L$53,6,0)) -> 20 | E58: =IF(ISNA(VLOOKUP($A58,'Race 2-Men'!$G$32:$L$53,6,0)),100,VLOOKUP($A58,'Race 2-Men'!$G$32:$L$53,6,0)) -> 15 | F58: =IF(ISNA(VLOOKUP($A58,'Race 3-Men'!$G$40:$L$61,6,0)),100,VLOOKUP($A58,'Race 3-Men'!$G$40:$L$61,6,0)) -> 21 | G58: =IF(ISNA(VLOOKUP($A58,'Race 4-Men'!$G$35:$L$100,6,0)),100,VLOOKUP($A58,'Race 4-Men'!$G$35:$L$100,6,0)) -> 100 | H58: =SMALL(D58:G58,{1,2,3}) -> 15 | I58: 20 | J58: 21 | K58: 56 | L58: 18
A59: Jermaine Shand | B59: HRC | C59: S | D59: =IF(ISNA(VLOOKUP($A59,'Race 1-Men'!$G$34:$L$53,6,0)),100,VLOOKUP($A59,'Race 1-Men'!$G$34:$L$53,6,0)) -> 100 | E59: =IF(ISNA(VLOOKUP($A59,'Race 2-Men'!$G$32:$L$53,6,0)),100,VLOOKUP($A59,'Race 2-Men'!$G$32:$L$53,6,0)) -> 14 | F59: =IF(ISNA(VLOOKUP($A59,'Race 3-Men'!$G$40:$L$61,6,0)),100,VLOOKUP($A59,'Race 3-Men'!$G$40:$L$61,6,0)) -> 19 | G59: =IF(ISNA(VLOOKUP($A59,'Race 4-Men'!$G$35:$L$100,6,0)),100,VLOOKUP($A59,'Race 4-Men'!$G$35:$L$100,6,0)) -> 16 | H59: =SMALL(D59:G59,{1,2,3}) -> 14 | I59: 16 | J59: 19 | K59: 49 | L59: 15
A60: Jonathan Derrick | B60: BS | C60: S | D60: =IF(ISNA(VLOOKUP($A60,'Race 1-Men'!$G$34:$L$53,6,0)),100,VLOOKUP($A60,'Race 1-Men'!$G$34:$L$53,6,0)) -> 100 | E60: =IF(ISNA(VLOOKUP($A60,'Race 2-Men'!$G$32:$L$53,6,0)),100,VLOOKUP($A60,'Race 2-Men'!$G$32:$L$53,6,0)) -> 100 | F60: =IF(ISNA(VLOOKUP($A60,'Race 3-Men'!$G$40:$L$61,6,0)),100,VLOOKUP($A60,'Race 3-Men'!$G$40:$L$61,6,0)) -> 100 | G60: =IF(ISNA(VLOOKUP($A60,'Race 4-Men'!$G$35:$L$100,6,0)),100,VLOOKUP($A60,'Race 4-Men'!$G$35:$L$100,6,0)) -> 100 | H60: =SMALL(D60:G60,{1,2,3}) -> 100 | I60: 100 | J60: 100 | K60: 300 | L60: 34
A61: Jonathan Round | B61: BS | C61: S | D61: =IF(ISNA(VLOOKUP($A61,'Race 1-Men'!$G$34:$L$53,6,0)),100,VLOOKUP($A61,'Race 1-Men'!$G$34:$L$53,6,0)) -> 100 | E61: =IF(ISNA(VLOOKUP($A61,'Race 2-Men'!$G$32:$L$53,6,0)),100,VLOOKUP($A61,'Race 2-Men'!$G$32:$L$53,6,0)) -> 100 | F61: =IF(ISNA(VLOOKUP($A61,'Race 3-Men'!$G$40:$L$61,6,0)),100,VLOOKUP($A61,'Race 3-Men'!$G$40:$L$61,6,0)) -> 100 | G61: =IF(ISNA(VLOOKUP($A61,'Race 4-Men'!$G$35:$L$100,6,0)),100,VLOOKUP($A61,'Race 4-Men'!$G$35:$L$100,6,0)) -> 100 | H61: =SMALL(D61:G61,{1,2,3}) -> 100 | I61: 100 | J61: 100 | K61: 300 | L61: 34
A62: Joshua Entwistle | B62: SS | C62: S | D62: =IF(ISNA(VLOOKUP($A62,'Race 1-Men'!$G$34:$L$53,6,0)),100,VLOOKUP($A62,'Race 1-Men'!$G$34:$L$53,6,0)) -> 100 | E62: =IF(ISNA(VLOOKUP($A62,'Race 2-Men'!$G$32:$L$53,6,0)),100,VLOOKUP($A62,'Race 2-Men'!$G$32:$L$53,6,0)) -> 100 | F62: =IF(ISNA(VLOOKUP($A62,'Race 3-Men'!$G$40:$L$61,6,0)),100,VLOOKUP($A62,'Race 3-Men'!$G$40:$L$61,6,0)) -> 100 | G62: =IF(ISNA(VLOOKUP($A62,'Race 4-Men'!$G$35:$L$100,6,0)),100,VLOOKUP($A62,'Race 4-Men'!$G$35:$L$100,6,0)) -> 100 | H62: =SMALL(D62:G62,{1,2,3}) -> 100 | I62: 100 | J62: 100 | K62: 300 | L62: 34
A63: Krishna Kakkaiyadi | B63: BS | C63: S | D63: =IF(ISNA(VLOOKUP($A63,'Race 1-Men'!$G$34:$L$53,6,0)),100,VLOOKUP($A63,'Race 1-Men'!$G$34:$L$53,6,0)) -> 100 | E63: =IF(ISNA(VLOOKUP($A63,'Race 2-Men'!$G$32:$L$53,6,0)),100,VLOOKUP($A63,'Race 2-Men'!$G$32:$L$53,6,0)) -> 100 | F63: =IF(ISNA(VLOOKUP($A63,'Race 3-Men'!$G$40:$L$61,6,0)),100,VLOOKUP($A63,'Race 3-Men'!$G$40:$L$61,6,0)) -> 100 | G63: =IF(ISNA(VLOOKUP($A63,'Race 4-Men'!$G$35:$L$100,6,0)),100,VLOOKUP($A63,'Race 4-Men'!$G$35:$L$100,6,0)) -> 100 | H63: =SMALL(D63:G63,{1,2,3}) -> 100 | I63: 100 | J63: 100 | K63: 300 | L63: 34
A64: Lee Boswell | B64: BS | C64: S | D64: =IF(ISNA(VLOOKUP($A64,'Race 1-Men'!$G$34:$L$53,6,0)),100,VLOOKUP($A64,'Race 1-Men'!$G$34:$L$53,6,0)) -> 17 | E64: =IF(ISNA(VLOOKUP($A64,'Race 2-Men'!$G$32:$L$53,6,0)),100,VLOOKUP($A64,'Race 2-Men'!$G$32:$L$53,6,0)) -> 13 | F64: =IF(ISNA(VLOOKUP($A64,'Race 3-Men'!$G$40:$L$61,6,0)),100,VLOOKUP($A64,'Race 3-Men'!$G$40:$L$61,6,0)) -> 100 | G64: =IF(ISNA(VLOOKUP($A64,'Race 4-Men'!$G$35:$L$100,6,0)),100,VLOOKUP($A64,'Race 4-Men'!$G$35:$L$100,6,0)) -> 20 | H64: =SMALL(D64:G64,{1,2,3}) -> 13 | I64: 17 | J64: 20 | K64: 50 | L64: 16
A65: Lee Daniels | B65: HRC | C65: S | D65: =IF(ISNA(VLOOKUP($A65,'Race 1-Men'!$G$34:$L$53,6,0)),100,VLOOKUP($A65,'Race 1-Men'!$G$34:$L$53,6,0)) -> 100 | E65: =IF(ISNA(VLOOKUP($A65,'Race 2-Men'!$G$32:$L$53,6,0)),100,VLOOKUP($A65,'Race 2-Men'!$G$32:$L$53,6,0)) -> 100 | F65: =IF(ISNA(VLOOKUP($A65,'Race 3-Men'!$G$40:$L$61,6,0)),100,VLOOKUP($A65,'Race 3-Men'!$G$40:$L$61,6,0)) -> 100 | G65: =IF(ISNA(VLOOKUP($A65,'Race 4-Men'!$G$35:$L$100,6,0)),100,VLOOKUP($A65,'Race 4-Men'!$G$35:$L$100,6,0)) -> 100 | H65: =SMALL(D65:G65,{1,2,3}) -> 100 | I65: 100 | J65: 100 | K65: 300 | L65: 34
A66: Lee Hembling | B66: WJ | C66: S | D66: =IF(ISNA(VLOOKUP($A66,'Race 1-Men'!$G$34:$L$53,6,0)),100,VLOOKUP($A66,'Race 1-Men'!$G$34:$L$53,6,0)) -> 100 | E66: =IF(ISNA(VLOOKUP($A66,'Race 2-Men'!$G$32:$L$53,6,0)),100,VLOOKUP($A66,'Race 2-Men'!$G$32:$L$53,6,0)) -> 100 | F66: =IF(ISNA(VLOOKUP($A66,'Race 3-Men'!$G$40:$L$61,6,0)),100,VLOOKUP($A66,'Race 3-Men'!$G$40:$L$61,6,0)) -> 100 | G66: =IF(ISNA(VLOOKUP($A66,'Race 4-Men'!$G$35:$L$100,6,0)),100,VLOOKUP($A66,'Race 4-Men'!$G$35:$L$100,6,0)) -> 100 | H66: =SMALL(D66:G66,{1,2,3}) -> 100 | I66: 100 | J66: 100 | K66: 300 | L66: 34
A67: Lee Maughan | B67: BS | C67: S | D67: =IF(ISNA(VLOOKUP($A67,'Race 1-Men'!$G$34:$L$53,6,0)),100,VLOOKUP($A67,'Race 1-Men'!$G$34:$L$53,6,0)) -> 100 | E67: =IF(ISNA(VLOOKUP($A67,'Race 2-Men'!$G$32:$L$53,6,0)),100,VLOOKUP($A67,'Race 2-Men'!$G$32:$L$53,6,0)) -> 100 | F67: =IF(ISNA(VLOOKUP($A67,'Race 3-Men'!$G$40:$L$61,6,0)),100,VLOOKUP($A67,'Race 3-Men'!$G$40:$L$61,6,0)) -> 100 | G67: =IF(ISNA(VLOOKUP($A67,'Race 4-Men'!$G$35:$L$100,6,0)),100,VLOOKUP($A67,'Race 4-Men'!$G$35:$L$100,6,0)) -> 100 | H67: =SMALL(D67:G67,{1,2,3}) -> 100 | I67: 100 | J67: 100 | K67: 300 | L67: 34
A68: Lewis Elmes | B68: SS | C68: S | D68: =IF(ISNA(VLOOKUP($A68,'Race 1-Men'!$G$34:$L$53,6,0)),100,VLOOKUP($A68,'Race 1-Men'!$G$34:$L$53,6,0)) -> 100 | E68: =IF(ISNA(VLOOKUP($A68,'Race 2-Men'!$G$32:$L$53,6,0)),100,VLOOKUP($A68,'Race 2-Men'!$G$32:$L$53,6,0)) -> 19 | F68: =IF(ISNA(VLOOKUP($A68,'Race 3-Men'!$G$40:$L$61,6,0)),100,VLOOKUP($A68,'Race 3-Men'!$G$40:$L$61,6,0)) -> 100 | G68: =IF(ISNA(VLOOKUP($A68,'Race 4-Men'!$G$35:$L$100,6,0)),100,VLOOKUP($A68,'Race 4-Men'!$G$35:$L$100,6,0)) -> 100 | H68: =SMALL(D68:G68,{1,2,3}) -> 19 | I68: 100 | J68: 100 | K68: =SUM(H68:J68) -> 219 | L68: =RANK(K68,$K$2:$K$118,1) -> 32
A69: Liam Struwe | B69: WJ | C69: S | D69: =IF(ISNA(VLOOKUP($A69,'Race 1-Men'!$G$34:$L$53,6,0)),100,VLOOKUP($A69,'Race 1-Men'!$G$34:$L$53,6,0)) -> 7 | E69: =IF(ISNA(VLOOKUP($A69,'Race 2-Men'!$G$32:$L$53,6,0)),100,VLOOKUP($A69,'Race 2-Men'!$G$32:$L$53,6,0)) -> 100 | F69: =IF(ISNA(VLOOKUP($A69,'Race 3-Men'!$G$40:$L$61,6,0)),100,VLOOKUP($A69,'Race 3-Men'!$G$40:$L$61,6,0)) -> 6 | G69: =IF(ISNA(VLOOKUP($A69,'Race 4-Men'!$G$35:$L$100,6,0)),100,VLOOKUP($A69,'Race 4-Men'!$G$35:$L$100,6,0)) -> 4 | H69: =SMALL(D69:G69,{1,2,3}) -> 4 | I69: 6 | J69: 7 | K69: 17 | L69: 4
A70: Luke Hardy | B70: HRC | C70: S | D70: =IF(ISNA(VLOOKUP($A70,'Race 1-Men'!$G$34:$L$53,6,0)),100,VLOOKUP($A70,'Race 1-Men'!$G$34:$L$53,6,0)) -> 100 | E70: =IF(ISNA(VLOOKUP($A70,'Race 2-Men'!$G$32:$L$53,6,0)),100,VLOOKUP($A70,'Race 2-Men'!$G$32:$L$53,6,0)) -> 100 | F70: =IF(ISNA(VLOOKUP($A70,'Race 3-Men'!$G$40:$L$61,6,0)),100,VLOOKUP($A70,'Race 3-Men'!$G$40:$L$61,6,0)) -> 100 | G70: =IF(ISNA(VLOOKUP($A70,'Race 4-Men'!$G$35:$L$100,6,0)),100,VLOOKUP($A70,'Race 4-Men'!$G$35:$L$100,6,0)) -> 100 | H70: =SMALL(D70:G70,{1,2,3}) -> 100 | I70: 100 | J70: 100 | K70: 300 | L70: 34
A71: Luke Healy | B71: HRC | C71: S | D71: =IF(ISNA(VLOOKUP($A71,'Race 1-Men'!$G$34:$L$53,6,0)),100,VLOOKUP($A71,'Race 1-Men'!$G$34:$L$53,6,0)) -> 100 | E71: =IF(ISNA(VLOOKUP($A71,'Race 2-Men'!$G$32:$L$53,6,0)),100,VLOOKUP($A71,'Race 2-Men'!$G$32:$L$53,6,0)) -> 100 | F71: =IF(ISNA(VLOOKUP($A71,'Race 3-Men'!$G$40:$L$61,6,0)),100,VLOOKUP($A71,'Race 3-Men'!$G$40:$L$61,6,0)) -> 100 | G71: =IF(ISNA(VLOOKUP($A71,'Race 4-Men'!$G$35:$L$100,6,0)),100,VLOOKUP($A71,'Race 4-Men'!$G$35:$L$100,6,0)) -> 100 | H71: =SMALL(D71:G71,{1,2,3}) -> 100 | I71: 100 | J71: 100 | K71: 300 | L71: 34
A72: Luke Howard | B72: HRC | C72: S | D72: =IF(ISNA(VLOOKUP($A72,'Race 1-Men'!$G$34:$L$53,6,0)),100,VLOOKUP($A72,'Race 1-Men'!$G$34:$L$53,6,0)) -> 100 | E72: =IF(ISNA(VLOOKUP($A72,'Race 2-Men'!$G$32:$L$53,6,0)),100,VLOOKUP($A72,'Race 2-Men'!$G$32:$L$53,6,0)) -> 100 | F72: =IF(ISNA(VLOOKUP($A72,'Race 3-Men'!$G$40:$L$61,6,0)),100,VLOOKUP($A72,'Race 3-Men'!$G$40:$L$61,6,0)) -> 100 | G72: =IF(ISNA(VLOOKUP($A72,'Race 4-Men'!$G$35:$L$100,6,0)),100,VLOOKUP($A72,'Race 4-Men'!$G$35:$L$100,6,0)) -> 100 | H72: =SMALL(D72:G72,{1,2,3}) -> 100 | I72: 100 | J72: 100 | K72: 300 | L72: 34
A73: Luke Shepherd | B73: BS | C73: S | D73: =IF(ISNA(VLOOKUP($A73,'Race 1-Men'!$G$34:$L$53,6,0)),100,VLOOKUP($A73,'Race 1-Men'!$G$34:$L$53,6,0)) -> 100 | E73: =IF(ISNA(VLOOKUP($A73,'Race 2-Men'!$G$32:$L$53,6,0)),100,VLOOKUP($A73,'Race 2-Men'!$G$32:$L$53,6,0)) -> 100 | F73: =IF(ISNA(VLOOKUP($A73,'Race 3-Men'!$G$40:$L$61,6,0)),100,VLOOKUP($A73,'Race 3-Men'!$G$40:$L$61,6,0)) -> 100 | G73: =IF(ISNA(VLOOKUP($A73,'Race 4-Men'!$G$35:$L$100,6,0)),100,VLOOKUP($A73,'Race 4-Men'!$G$35:$L$100,6,0)) -> 100 | H73: =SMALL(D73:G73,{1,2,3}) -> 100 | I73: 100 | J73: 100 | K73: 300 | L73: 34
A74: Mark Ford | B74: WJ | C74: S | D74: =IF(ISNA(VLOOKUP($A74,'Race 1-Men'!$G$34:$L$53,6,0)),100,VLOOKUP($A74,'Race 1-Men'!$G$34:$L$53,6,0)) -> 6 | E74: =IF(ISNA(VLOOKUP($A74,'Race 2-Men'!$G$32:$L$53,6,0)),100,VLOOKUP($A74,'Race 2-Men'!$G$32:$L$53,6,0)) -> 7 | F74: =IF(ISNA(VLOOKUP($A74,'Race 3-Men'!$G$40:$L$61,6,0)),100,VLOOKUP($A74,'Race 3-Men'!$G$40:$L$61,6,0)) -> 11 | G74: =IF(ISNA(VLOOKUP($A74,'Race 4-Men'!$G$35:$L$100,6,0)),100,VLOOKUP($A74,'Race 4-Men'!$G$35:$L$100,6,0)) -> 8 | H74: =SMALL(D74:G74,{1,2,3}) -> 6 | I74: 7 | J74: 8 | K74: 21 | L74: 6
A75: Mark Frow | B75: SS | C75: S | D75: =IF(ISNA(VLOOKUP($A75,'Race 1-Men'!$G$34:$L$53,6,0)),100,VLOOKUP($A75,'Race 1-Men'!$G$34:$L$53,6,0)) -> 100 | E75: =IF(ISNA(VLOOKUP($A75,'Race 2-Men'!$G$32:$L$53,6,0)),100,VLOOKUP($A75,'Race 2-Men'!$G$32:$L$53,6,0)) -> 100 | F75: =IF(ISNA(VLOOKUP($A75,'Race 3-Men'!$G$40:$L$61,6,0)),100,VLOOKUP($A75,'Race 3-Men'!$G$40:$L$61,6,0)) -> 100 | G75: =IF(ISNA(VLOOKUP($A75,'Race 4-Men'!$G$35:$L$100,6,0)),100,VLOOKUP($A75,'Race 4-Men'!$G$35:$L$100,6,0)) -> 100 | H75: =SMALL(D75:G75,{1,2,3}) -> 100 | I75: 100 | J75: 100 | K75: 300 | L75: 34
A76: Mark Lawrence | B76: BS | C76: S | D76: =IF(ISNA(VLOOKUP($A76,'Race 1-Men'!$G$34:$L$53,6,0)),100,VLOOKUP($A76,'Race 1-Men'!$G$34:$L$53,6,0)) -> 100 | E76: =IF(ISNA(VLOOKUP($A76,'Race 2-Men'!$G$32:$L$53,6,0)),100,VLOOKUP($A76,'Race 2-Men'!$G$32:$L$53,6,0)) -> 100 | F76: =IF(ISNA(VLOOKUP($A76,'Race 3-Men'!$G$40:$L$61,6,0)),100,VLOOKUP($A76,'Race 3-Men'!$G$40:$L$61,6,0)) -> 100 | G76: =IF(ISNA(VLOOKUP($A76,'Race 4-Men'!$G$35:$L$100,6,0)),100,VLOOKUP($A76,'Race 4-Men'!$G$35:$L$100,6,0)) -> 100 | H76: =SMALL(D76:G76,{1,2,3}) -> 100 | I76: 100 | J76: 100 | K76: 300 | L76: 34
A77: Mark Spiller | B77: BS | C77: S | D77: =IF(ISNA(VLOOKUP($A77,'Race 1-Men'!$G$34:$L$53,6,0)),100,VLOOKUP($A77,'Race 1-Men'!$G$34:$L$53,6,0)) -> 100 | E77: =IF(ISNA(VLOOKUP($A77,'Race 2-Men'!$G$32:$L$53,6,0)),100,VLOOKUP($A77,'Race 2-Men'!$G$32:$L$53,6,0)) -> 100 | F77: =IF(ISNA(VLOOKUP($A77,'Race 3-Men'!$G$40:$L$61,6,0)),100,VLOOKUP($A77,'Race 3-Men'!$G$40:$L$61,6,0)) -> 100 | G77: =IF(ISNA(VLOOKUP($A77,'Race 4-Men'!$G$35:$L$100,6,0)),100,VLOOKUP($A77,'Race 4-Men'!$G$35:$L$100,6,0)) -> 100 | H77: =SMALL(D77:G77,{1,2,3}) -> 100 | I77: 100 | J77: 100 | K77: 300 | L77: 34
A78: Martin Brooks | B78: BS | C78: S | D78: =IF(ISNA(VLOOKUP($A78,'Race 1-Men'!$G$34:$L$53,6,0)),100,VLOOKUP($A78,'Race 1-Men'!$G$34:$L$53,6,0)) -> 100 | E78: =IF(ISNA(VLOOKUP($A78,'Race 2-Men'!$G$32:$L$53,6,0)),100,VLOOKUP($A78,'Race 2-Men'!$G$32:$L$53,6,0)) -> 100 | F78: =IF(ISNA(VLOOKUP($A78,'Race 3-Men'!$G$40:$L$61,6,0)),100,VLOOKUP($A78,'Race 3-Men'!$G$40:$L$61,6,0)) -> 100 | G78: =IF(ISNA(VLOOKUP($A78,'Race 4-Men'!$G$35:$L$100,6,0)),100,VLOOKUP($A78,'Race 4-Men'!$G$35:$L$100,6,0)) -> 100 | H78: =SMALL(D78:G78,{1,2,3}) -> 100 | I78: 100 | J78: 100 | K78: 300 | L78: 34
A79: Martin Westley | B79: HRC | C79: S | D79: =IF(ISNA(VLOOKUP($A79,'Race 1-Men'!$G$34:$L$53,6,0)),100,VLOOKUP($A79,'Race 1-Men'!$G$34:$L$53,6,0)) -> 9 | E79: =IF(ISNA(VLOOKUP($A79,'Race 2-Men'!$G$32:$L$53,6,0)),100,VLOOKUP($A79,'Race 2-Men'!$G$32:$L$53,6,0)) -> 6 | F79: =IF(ISNA(VLOOKUP($A79,'Race 3-Men'!$G$40:$L$61,6,0)),100,VLOOKUP($A79,'Race 3-Men'!$G$40:$L$61,6,0)) -> 14 | G79: =IF(ISNA(VLOOKUP($A79,'Race 4-Men'!$G$35:$L$100,6,0)),100,VLOOKUP($A79,'Race 4-Men'!$G$35:$L$100,6,0)) -> 9 | H79: =SMALL(D79:G79,{1,2,3}) -> 6 | I79: 9 | J79: 9 | K79: 24 | L79: 7
A80: Martyn Coulter | B80: HRC | C80: S | D80: =IF(ISNA(VLOOKUP($A80,'Race 1-Men'!$G$34:$L$53,6,0)),100,VLOOKUP($A80,'Race 1-Men'!$G$34:$L$53,6,0)) -> 8 | E80: =IF(ISNA(VLOOKUP($A80,'Race 2-Men'!$G$32:$L$53,6,0)),100,VLOOKUP($A80,'Race 2-Men'!$G$32:$L$53,6,0)) -> 8 | F80: =IF(ISNA(VLOOKUP($A80,'Race 3-Men'!$G$40:$L$61,6,0)),100,VLOOKUP($A80,'Race 3-Men'!$G$40:$L$61,6,0)) -> 8 | G80: =IF(ISNA(VLOOKUP($A80,'Race 4-Men'!$G$35:$L$100,6,0)),100,VLOOKUP($A80,'Race 4-Men'!$G$35:$L$100,6,0)) -> 11 | H80: =SMALL(D80:G80,{1,2,3}) -> 8 | I80: 8 | J80: 8 | K80: 24 | L80: 7
A81: Martyn Langman | B81: HRC | C81: S | D81: =IF(ISNA(VLOOKUP($A81,'Race 1-Men'!$G$34:$L$53,6,0)),100,VLOOKUP($A81,'Race 1-Men'!$G$34:$L$53,6,0)) -> 100 | E81: =IF(ISNA(VLOOKUP($A81,'Race 2-Men'!$G$32:$L$53,6,0)),100,VLOOKUP($A81,'Race 2-Men'!$G$32:$L$53,6,0)) -> 100 | F81: =IF(ISNA(VLOOKUP($A81,'Race 3-Men'!$G$40:$L$61,6,0)),100,VLOOKUP($A81,'Race 3-Men'!$G$40:$L$61,6,0)) -> 100 | G81: =IF(ISNA(VLOOKUP($A81,'Race 4-Men'!$G$35:$L$100,6,0)),100,VLOOKUP($A81,'Race 4-Men'!$G$35:$L$100,6,0)) -> 100 | H81: =SMALL(D81:G81,{1,2,3}) -> 100 | I81: 100 | J81: 100 | K81: 300 | L81: 34
A82: Matt Brown | B82: WJ | C82: S | D82: =IF(ISNA(VLOOKUP($A82,'Race 1-Men'!$G$34:$L$53,6,0)),100,VLOOKUP($A82,'Race 1-Men'!$G$34:$L$53,6,0)) -> 3 | E82: =IF(ISNA(VLOOKUP($A82,'Race 2-Men'!$G$32:$L$53,6,0)),100,VLOOKUP($A82,'Race 2-Men'!$G$32:$L$53,6,0)) -> 3 | F82: =IF(ISNA(VLOOKUP($A82,'Race 3-Men'!$G$40:$L$61,6,0)),100,VLOOKUP($A82,'Race 3-Men'!$G$40:$L$61,6,0)) -> 5 | G82: =IF(ISNA(VLOOKUP($A82,'Race 4-Men'!$G$35:$L$100,6,0)),100,VLOOKUP($A82,'Race 4-Men'!$G$35:$L$100,6,0)) -> 2 | H82: =SMALL(D82:G82,{1,2,3}) -> 2 | I82: 3 | J82: 3 | K82: 8 | L82: 2
A83: Matt McRandal | B83: BS | C83: S | D83: =IF(ISNA(VLOOKUP($A83,'Race 1-Men'!$G$34:$L$53,6,0)),100,VLOOKUP($A83,'Race 1-Men'!$G$34:$L$53,6,0)) -> 5 | E83: =IF(ISNA(VLOOKUP($A83,'Race 2-Men'!$G$32:$L$53,6,0)),100,VLOOKUP($A83,'Race 2-Men'!$G$32:$L$53,6,0)) -> 100 | F83: =IF(ISNA(VLOOKUP($A83,'Race 3-Men'!$G$40:$L$61,6,0)),100,VLOOKUP($A83,'Race 3-Men'!$G$40:$L$61,6,0)) -> 100 | G83: =IF(ISNA(VLOOKUP($A83,'Race 4-Men'!$G$35:$L$100,6,0)),100,VLOOKUP($A83,'Race 4-Men'!$G$35:$L$100,6,0)) -> 100 | H83: =SMALL(D83:G83,{1,2,3}) -> 5 | I83: 100 | J83: 100 | K83: 205 | L83: 27
A84: Matthew Ironside | B84: BS | C84: S | D84: =IF(ISNA(VLOOKUP($A84,'Race 1-Men'!$G$34:$L$53,6,0)),100,VLOOKUP($A84,'Race 1-Men'!$G$34:$L$53,6,0)) -> 100 | E84: =IF(ISNA(VLOOKUP($A84,'Race 2-Men'!$G$32:$L$53,6,0)),100,VLOOKUP($A84,'Race 2-Men'!$G$32:$L$53,6,0)) -> 100 | F84: =IF(ISNA(VLOOKUP($A84,'Race 3-Men'!$G$40:$L$61,6,0)),100,VLOOKUP($A84,'Race 3-Men'!$G$40:$L$61,6,0)) -> 100 | G84: =IF(ISNA(VLOOKUP($A84,'Race 4-Men'!$G$35:$L$100,6,0)),100,VLOOKUP($A84,'Race 4-Men'!$G$35:$L$100,6,0)) -> 100 | H84: =SMALL(D84:G84,{1,2,3}) -> 100 | I84: 100 | J84: 100 | K84: 300 | L84: 34
A85: Matthew Stephens | B85: WJ | C85: S | D85: =IF(ISNA(VLOOKUP($A85,'Race 1-Men'!$G$34:$L$53,6,0)),100,VLOOKUP($A85,'Race 1-Men'!$G$34:$L$53,6,0)) -> 100 | E85: =IF(ISNA(VLOOKUP($A85,'Race 2-Men'!$G$32:$L$53,6,0)),100,VLOOKUP($A85,'Race 2-Men'!$G$32:$L$53,6,0)) -> 100 | F85: =IF(ISNA(VLOOKUP($A85,'Race 3-Men'!$G$40:$L$61,6,0)),100,VLOOKUP($A85,'Race 3-Men'!$G$40:$L$61,6,0)) -> 100 | G85: =IF(ISNA(VLOOKUP($A85,'Race 4-Men'!$G$35:$L$100,6,0)),100,VLOOKUP($A85,'Race 4-Men'!$G$35:$L$100,6,0)) -> 100 | H85: =SMALL(D85:G85,{1,2,3}) -> 100 | I85: 100 | J85: 100 | K85: 300 | L85: 34
A86: Michael Chinnery | B86: BS | C86: S | D86: =IF(ISNA(VLOOKUP($A86,'Race 1-Men'!$G$34:$L$53,6,0)),100,VLOOKUP($A86,'Race 1-Men'!$G$34:$L$53,6,0)) -> 100 | E86: =IF(ISNA(VLOOKUP($A86,'Race 2-Men'!$G$32:$L$53,6,0)),100,VLOOKUP($A86,'Race 2-Men'!$G$32:$L$53,6,0)) -> 100 | F86: =IF(ISNA(VLOOKUP($A86,'Race 3-Men'!$G$40:$L$61,6,0)),100,VLOOKUP($A86,'Race 3-Men'!$G$40:$L$61,6,0)) -> 100 | G86: =IF(ISNA(VLOOKUP($A86,'Race 4-Men'!$G$35:$L$100,6,0)),100,VLOOKUP($A86,'Race 4-Men'!$G$35:$L$100,6,0)) -> 100 | H86: =SMALL(D86:G86,{1,2,3}) -> 100 | I86: 100 | J86: 100 | K86: 300 | L86: 34
A87: Michael Waddington | B87: WJ | C87: S | D87: =IF(ISNA(VLOOKUP($A87,'Race 1-Men'!$G$34:$L$53,6,0)),100,VLOOKUP($A87,'Race 1-Men'!$G$34:$L$53,6,0)) -> 1 | E87: =IF(ISNA(VLOOKUP($A87,'Race 2-Men'!$G$32:$L$53,6,0)),100,VLOOKUP($A87,'Race 2-Men'!$G$32:$L$53,6,0)) -> 1 | F87: =IF(ISNA(VLOOKUP($A87,'Race 3-Men'!$G$40:$L$61,6,0)),100,VLOOKUP($A87,'Race 3-Men'!$G$40:$L$61,6,0)) -> 1 | G87: =IF(ISNA(VLOOKUP($A87,'Race 4-Men'!$G$35:$L$100,6,0)),100,VLOOKUP($A87,'Race 4-Men'!$G$35:$L$100,6,0)) -> 100 | H87: =SMALL(D87:G87,{1,2,3}) -> 1 | I87: 1 | J87: 1 | K87: 3 | L87: 1
A88: Oscar Bell | B88: WJ | C88: S | D88: =IF(ISNA(VLOOKUP($A88,'Race 1-Men'!$G$34:$L$53,6,0)),100,VLOOKUP($A88,'Race 1-Men'!$G$34:$L$53,6,0)) -> 100 | E88: =IF(ISNA(VLOOKUP($A88,'Race 2-Men'!$G$32:$L$53,6,0)),100,VLOOKUP($A88,'Race 2-Men'!$G$32:$L$53,6,0)) -> 100 | F88: =IF(ISNA(VLOOKUP($A88,'Race 3-Men'!$G$40:$L$61,6,0)),100,VLOOKUP($A88,'Race 3-Men'!$G$40:$L$61,6,0)) -> 100 | G88: =IF(ISNA(VLOOKUP($A88,'Race 4-Men'!$G$35:$L$100,6,0)),100,VLOOKUP($A88,'Race 4-Men'!$G$35:$L$100,6,0)) -> 1 | H88: =SMALL(D88:G88,{1,2,3}) -> 1 | I88: 100 | J88: 100 | K88: 201 | L88: 25
A89: Peter Cormack | B89: BS | C89: S | D89: =IF(ISNA(VLOOKUP($A89,'Race 1-Men'!$G$34:$L$53,6,0)),100,VLOOKUP($A89,'Race 1-Men'!$G$34:$L$53,6,0)) -> 100 | E89: =IF(ISNA(VLOOKUP($A89,'Race 2-Men'!$G$32:$L$53,6,0)),100,VLOOKUP($A89,'Race 2-Men'!$G$32:$L$53,6,0)) -> 100 | F89: =IF(ISNA(VLOOKUP($A89,'Race 3-Men'!$G$40:$L$61,6,0)),100,VLOOKUP($A89,'Race 3-Men'!$G$40:$L$61,6,0)) -> 100 | G89: =IF(ISNA(VLOOKUP($A89,'Race 4-Men'!$G$35:$L$100,6,0)),100,VLOOKUP($A89,'Race 4-Men'!$G$35:$L$100,6,0)) -> 100 | H89: =SMALL(D89:G89,{1,2,3}) -> 100 | I89: 100 | J89: 100 | K89: 300 | L89: 34
A90: Robert O'Hara | B90: WJ | C90: S | D90: =IF(ISNA(VLOOKUP($A90,'Race 1-Men'!$G$34:$L$53,6,0)),100,VLOOKUP($A90,'Race 1-Men'!$G$34:$L$53,6,0)) -> 100 | E90: =IF(ISNA(VLOOKUP($A90,'Race 2-Men'!$G$32:$L$53,6,0)),100,VLOOKUP($A90,'Race 2-Men'!$G$32:$L$53,6,0)) -> 100 | F90: =IF(ISNA(VLOOKUP($A90,'Race 3-Men'!$G$40:$L$61,6,0)),100,VLOOKUP($A90,'Race 3-Men'!$G$40:$L$61,6,0)) -> 100 | G90: =IF(ISNA(VLOOKUP($A90,'Race 4-Men'!$G$35:$L$100,6,0)),100,VLOOKUP($A90,'Race 4-Men'!$G$35:$L$100,6,0)) -> 100 | H90: =SMALL(D90:G90,{1,2,3}) -> 100 | I90: 100 | J90: 100 | K90: 300 | L90: 34
A91: Russell Cook | B91: WJ | C91: S | D91: =IF(ISNA(VLOOKUP($A91,'Race 1-Men'!$G$34:$L$53,6,0)),100,VLOOKUP($A91,'Race 1-Men'!$G$34:$L$53,6,0)) -> 19 | E91: =IF(ISNA(VLOOKUP($A91,'Race 2-Men'!$G$32:$L$53,6,0)),100,VLOOKUP($A91,'Race 2-Men'!$G$32:$L$53,6,0)) -> 12 | F91: =IF(ISNA(VLOOKUP($A91,'Race 3-Men'!$G$40:$L$61,6,0)),100,VLOOKUP($A91,'Race 3-Men'!$G$40:$L$61,6,0)) -> 17 | G91: =IF(ISNA(VLOOKUP($A91,'Race 4-Men'!$G$35:$L$100,6,0)),100,VLOOKUP($A91,'Race 4-Men'!$G$35:$L$100,6,0)) -> 21 | H91: =SMALL(D91:G91,{1,2,3}) -> 12 | I91: 17 | J91: 19 | K91: 48 | L91: 14
A92: Ryan Gow | B92: BS | C92: S | D92: =IF(ISNA(VLOOKUP($A92,'Race 1-Men'!$G$34:$L$53,6,0)),100,VLOOKUP($A92,'Race 1-Men'!$G$34:$L$53,6,0)) -> 100 | E92: =IF(ISNA(VLOOKUP($A92,'Race 2-Men'!$G$32:$L$53,6,0)),100,VLOOKUP($A92,'Race 2-Men'!$G$32:$L$53,6,0)) -> 100 | F92: =IF(ISNA(VLOOKUP($A92,'Race 3-Men'!$G$40:$L$61,6,0)),100,VLOOKUP($A92,'Race 3-Men'!$G$40:$L$61,6,0)) -> 100 | G92: =IF(ISNA(VLOOKUP($A92,'Race 4-Men'!$G$35:$L$100,6,0)),100,VLOOKUP($A92,'Race 4-Men'!$G$35:$L$100,6,0)) -> 100 | H92: =SMALL(D92:G92,{1,2,3}) -> 100 | I92: 100 | J92: 100 | K92: 300 | L92: 34
A93: Sam Nicholls | B93: HRC | C93: S | D93: =IF(ISNA(VLOOKUP($A93,'Race 1-Men'!$G$34:$L$53,6,0)),100,VLOOKUP($A93,'Race 1-Men'!$G$34:$L$53,6,0)) -> 100 | E93: =IF(ISNA(VLOOKUP($A93,'Race 2-Men'!$G$32:$L$53,6,0)),100,VLOOKUP($A93,'Race 2-Men'!$G$32:$L$53,6,0)) -> 100 | F93: =IF(ISNA(VLOOKUP($A93,'Race 3-Men'!$G$40:$L$61,6,0)),100,VLOOKUP($A93,'Race 3-Men'!$G$40:$L$61,6,0)) -> 100 | G93: =IF(ISNA(VLOOKUP($A93,'Race 4-Men'!$G$35:$L$100,6,0)),100,VLOOKUP($A93,'Race 4-Men'!$G$35:$L$100,6,0)) -> 100 | H93: =SMALL(D93:G93,{1,2,3}) -> 100 | I93: 100 | J93: 100 | K93: 300 | L93: 34
A94: Sam Snelling | B94: HRC | C94: S | D94: =IF(ISNA(VLOOKUP($A94,'Race 1-Men'!$G$34:$L$53,6,0)),100,VLOOKUP($A94,'Race 1-Men'!$G$34:$L$53,6,0)) -> 100 | E94: =IF(ISNA(VLOOKUP($A94,'Race 2-Men'!$G$32:$L$53,6,0)),100,VLOOKUP($A94,'Race 2-Men'!$G$32:$L$53,6,0)) -> 100 | F94: =IF(ISNA(VLOOKUP($A94,'Race 3-Men'!$G$40:$L$61,6,0)),100,VLOOKUP($A94,'Race 3-Men'!$G$40:$L$61,6,0)) -> 100 | G94: =IF(ISNA(VLOOKUP($A94,'Race 4-Men'!$G$35:$L$100,6,0)),100,VLOOKUP($A94,'Race 4-Men'!$G$35:$L$100,6,0)) -> 100 | H94: =SMALL(D94:G94,{1,2,3}) -> 100 | I94: 100 | J94: 100 | K94: 300 | L94: 34
A95: Samuel Pedley | B95: BS | C95: S | D95: =IF(ISNA(VLOOKUP($A95,'Race 1-Men'!$G$34:$L$53,6,0)),100,VLOOKUP($A95,'Race 1-Men'!$G$34:$L$53,6,0)) -> 100 | E95: =IF(ISNA(VLOOKUP($A95,'Race 2-Men'!$G$32:$L$53,6,0)),100,VLOOKUP($A95,'Race 2-Men'!$G$32:$L$53,6,0)) -> 100 | F95: =IF(ISNA(VLOOKUP($A95,'Race 3-Men'!$G$40:$L$61,6,0)),100,VLOOKUP($A95,'Race 3-Men'!$G$40:$L$61,6,0)) -> 2 | G95: =IF(ISNA(VLOOKUP($A95,'Race 4-Men'!$G$35:$L$100,6,0)),100,VLOOKUP($A95,'Race 4-Men'!$G$35:$L$100,6,0)) -> 100 | H95: =SMALL(D95:G95,{1,2,3}) -> 2 | I95: 100 | J95: 100 | K95: 202 | L95: 26
A96: Samuel Scheibel | B96: SS | C96: S | D96: =IF(ISNA(VLOOKUP($A96,'Race 1-Men'!$G$34:$L$53,6,0)),100,VLOOKUP($A96,'Race 1-Men'!$G$34:$L$53,6,0)) -> 100 | E96: =IF(ISNA(VLOOKUP($A96,'Race 2-Men'!$G$32:$L$53,6,0)),100,VLOOKUP($A96,'Race 2-Men'!$G$32:$L$53,6,0)) -> 100 | F96: =IF(ISNA(VLOOKUP($A96,'Race 3-Men'!$G$40:$L$61,6,0)),100,VLOOKUP($A96,'Race 3-Men'!$G$40:$L$61,6,0)) -> 100 | G96: =IF(ISNA(VLOOKUP($A96,'Race 4-Men'!$G$35:$L$100,6,0)),100,VLOOKUP($A96,'Race 4-Men'!$G$35:$L$100,6,0)) -> 100 | H96: =SMALL(D96:G96,{1,2,3}) -> 100 | I96: 100 | J96: 100 | K96: 300 | L96: 34
A97: Samuel Treadwell | B97: HRC | C97: S | D97: =IF(ISNA(VLOOKUP($A97,'Race 1-Men'!$G$34:$L$53,6,0)),100,VLOOKUP($A97,'Race 1-Men'!$G$34:$L$53,6,0)) -> 100 | E97: =IF(ISNA(VLOOKUP($A97,'Race 2-Men'!$G$32:$L$53,6,0)),100,VLOOKUP($A97,'Race 2-Men'!$G$32:$L$53,6,0)) -> 100 | F97: =IF(ISNA(VLOOKUP($A97,'Race 3-Men'!$G$40:$L$61,6,0)),100,VLOOKUP($A97,'Race 3-Men'!$G$40:$L$61,6,0)) -> 100 | G97: =IF(ISNA(VLOOKUP($A97,'Race 4-Men'!$G$35:$L$100,6,0)),100,VLOOKUP($A97,'Race 4-Men'!$G$35:$L$100,6,0)) -> 100 | H97: =SMALL(D97:G97,{1,2,3}) -> 100 | I97: 100 | J97: 100 | K97: 300 | L97: 34
A98: Scott Bird | B98: HRC | C98: S | D98: =IF(ISNA(VLOOKUP($A98,'Race 1-Men'!$G$34:$L$53,6,0)),100,VLOOKUP($A98,'Race 1-Men'!$G$34:$L$53,6,0)) -> 4 | E98: =IF(ISNA(VLOOKUP($A98,'Race 2-Men'!$G$32:$L$53,6,0)),100,VLOOKUP($A98,'Race 2-Men'!$G$32:$L$53,6,0)) -> 5 | F98: =IF(ISNA(VLOOKUP($A98,'Race 3-Men'!$G$40:$L$61,6,0)),100,VLOOKUP($A98,'Race 3-Men'!$G$40:$L$61,6,0)) -> 9 | G98: =IF(ISNA(VLOOKUP($A98,'Race 4-Men'!$G$35:$L$100,6,0)),100,VLOOKUP($A98,'Race 4-Men'!$G$35:$L$100,6,0)) -> 100 | H98: =SMALL(D98:G98,{1,2,3}) -> 4 | I98: 5 | J98: 9 | K98: 18 | L98: 5
A99: Simon Dent | B99: WJ | C99: S | D99: =IF(ISNA(VLOOKUP($A99,'Race 1-Men'!$G$34:$L$53,6,0)),100,VLOOKUP($A99,'Race 1-Men'!$G$34:$L$53,6,0)) -> 100 | E99: =IF(ISNA(VLOOKUP($A99,'Race 2-Men'!$G$32:$L$53,6,0)),100,VLOOKUP($A99,'Race 2-Men'!$G$32:$L$53,6,0)) -> 100 | F99: =IF(ISNA(VLOOKUP($A99,'Race 3-Men'!$G$40:$L$61,6,0)),100,VLOOKUP($A99,'Race 3-Men'!$G$40:$L$61,6,0)) -> 100 | G99: =IF(ISNA(VLOOKUP($A99,'Race 4-Men'!$G$35:$L$100,6,0)),100,VLOOKUP($A99,'Race 4-Men'!$G$35:$L$100,6,0)) -> 100 | H99: =SMALL(D99:G99,{1,2,3}) -> 100 | I99: 100 | J99: 100 | K99: 300 | L99: 34
A100: Simon Dewhurst | B100: BS | C100: S | D100: =IF(ISNA(VLOOKUP($A100,'Race 1-Men'!$G$34:$L$53,6,0)),100,VLOOKUP($A100,'Race 1-Men'!$G$34:$L$53,6,0)) -> 100 | E100: =IF(ISNA(VLOOKUP($A100,'Race 2-Men'!$G$32:$L$53,6,0)),100,VLOOKUP($A100,'Race 2-Men'!$G$32:$L$53,6,0)) -> 100 | F100: =IF(ISNA(VLOOKUP($A100,'Race 3-Men'!$G$40:$L$61,6,0)),100,VLOOKUP($A100,'Race 3-Men'!$G$40:$L$61,6,0)) -> 100 | G100: =IF(ISNA(VLOOKUP($A100,'Race 4-Men'!$G$35:$L$100,6,0)),100,VLOOKUP($A100,'Race 4-Men'!$G$35:$L$100,6,0)) -> 100 | H100: =SMALL(D100:G100,{1,2,3}) -> 100 | I100: 100 | J100: 100 | K100: 300 | L100: 34
A101: Simon Treadwell | B101: BS | C101: S | D101: =IF(ISNA(VLOOKUP($A101,'Race 1-Men'!$G$34:$L$53,6,0)),100,VLOOKUP($A101,'Race 1-Men'!$G$34:$L$53,6,0)) -> 100 | E101: =IF(ISNA(VLOOKUP($A101,'Race 2-Men'!$G$32:$L$53,6,0)),100,VLOOKUP($A101,'Race 2-Men'!$G$32:$L$53,6,0)) -> 100 | F101: =IF(ISNA(VLOOKUP($A101,'Race 3-Men'!$G$40:$L$61,6,0)),100,VLOOKUP($A101,'Race 3-Men'!$G$40:$L$61,6,0)) -> 100 | G101: =IF(ISNA(VLOOKUP($A101,'Race 4-Men'!$G$35:$L$100,6,0)),100,VLOOKUP($A101,'Race 4-Men'!$G$35:$L$100,6,0)) -> 100 | H101: =SMALL(D101:G101,{1,2,3}) -> 100 | I101: 100 | J101: 100 | K101: 300 | L101: 34
A102: Stephen Price | B102: BS | C102: S | D102: =IF(ISNA(VLOOKUP($A102,'Race 1-Men'!$G$34:$L$53,6,0)),100,VLOOKUP($A102,'Race 1-Men'!$G$34:$L$53,6,0)) -> 100 | E102: =IF(ISNA(VLOOKUP($A102,'Race 2-Men'!$G$32:$L$53,6,0)),100,VLOOKUP($A102,'Race 2-Men'!$G$32:$L$53,6,0)) -> 100 | F102: =IF(ISNA(VLOOKUP($A102,'Race 3-Men'!$G$40:$L$61,6,0)),100,VLOOKUP($A102,'Race 3-Men'!$G$40:$L$61,6,0)) -> 100 | G102: =IF(ISNA(VLOOKUP($A102,'Race 4-Men'!$G$35:$L$100,6,0)),100,VLOOKUP($A102,'Race 4-Men'!$G$35:$L$100,6,0)) -> 100 | H102: =SMALL(D102:G102,{1,2,3}) -> 100 | I102: 100 | J102: 100 | K102: 300 | L102: 34
A103: Stuart Glynn | B103: HRC | C103: S | D103: =IF(ISNA(VLOOKUP($A103,'Race 1-Men'!$G$34:$L$53,6,0)),100,VLOOKUP($A103,'Race 1-Men'!$G$34:$L$53,6,0)) -> 100 | E103: =IF(ISNA(VLOOKUP($A103,'Race 2-Men'!$G$32:$L$53,6,0)),100,VLOOKUP($A103,'Race 2-Men'!$G$32:$L$53,6,0)) -> 100 | F103: =IF(ISNA(VLOOKUP($A103,'Race 3-Men'!$G$40:$L$61,6,0)),100,VLOOKUP($A103,'Race 3-Men'!$G$40:$L$61,6,0)) -> 100 | G103: =IF(ISNA(VLOOKUP($A103,'Race 4-Men'!$G$35:$L$100,6,0)),100,VLOOKUP($A103,'Race 4-Men'!$G$35:$L$100,6,0)) -> 100 | H103: =SMALL(D103:G103,{1,2,3}) -> 100 | I103: 100 | J103: 100 | K103: 300 | L103: 34
A104: Thomas Coutts | B104: SS | C104: S | D104: =IF(ISNA(VLOOKUP($A104,'Race 1-Men'!$G$34:$L$53,6,0)),100,VLOOKUP($A104,'Race 1-Men'!$G$34:$L$53,6,0)) -> 100 | E104: =IF(ISNA(VLOOKUP($A104,'Race 2-Men'!$G$32:$L$53,6,0)),100,VLOOKUP($A104,'Race 2-Men'!$G$32:$L$53,6,0)) -> 100 | F104: =IF(ISNA(VLOOKUP($A104,'Race 3-Men'!$G$40:$L$61,6,0)),100,VLOOKUP($A104,'Race 3-Men'!$G$40:$L$61,6,0)) -> 100 | G104: =IF(ISNA(VLOOKUP($A104,'Race 4-Men'!$G$35:$L$100,6,0)),100,VLOOKUP($A104,'Race 4-Men'!$G$35:$L$100,6,0)) -> 100 | H104: =SMALL(D104:G104,{1,2,3}) -> 100 | I104: 100 | J104: 100 | K104: 300 | L104: 34
A105: Thomas Wilton | B105: BS | C105: S | D105: =IF(ISNA(VLOOKUP($A105,'Race 1-Men'!$G$34:$L$53,6,0)),100,VLOOKUP($A105,'Race 1-Men'!$G$34:$L$53,6,0)) -> 100 | E105: =IF(ISNA(VLOOKUP($A105,'Race 2-Men'!$G$32:$L$53,6,0)),100,VLOOKUP($A105,'Race 2-Men'!$G$32:$L$53,6,0)) -> 100 | F105: =IF(ISNA(VLOOKUP($A105,'Race 3-Men'!$G$40:$L$61,6,0)),100,VLOOKUP($A105,'Race 3-Men'!$G$40:$L$61,6,0)) -> 100 | G105: =IF(ISNA(VLOOKUP($A105,'Race 4-Men'!$G$35:$L$100,6,0)),100,VLOOKUP($A105,'Race 4-Men'!$G$35:$L$100,6,0)) -> 100 | H105: =SMALL(D105:G105,{1,2,3}) -> 100 | I105: 100 | J105: 100 | K105: 300 | L105: 34
A106: Timothy Brignall | B106: WJ | C106: S | D106: =IF(ISNA(VLOOKUP($A106,'Race 1-Men'!$G$34:$L$53,6,0)),100,VLOOKUP($A106,'Race 1-Men'!$G$34:$L$53,6,0)) -> 100 | E106: =IF(ISNA(VLOOKUP($A106,'Race 2-Men'!$G$32:$L$53,6,0)),100,VLOOKUP($A106,'Race 2-Men'!$G$32:$L$53,6,0)) -> 100 | F106: =IF(ISNA(VLOOKUP($A106,'Race 3-Men'!$G$40:$L$61,6,0)),100,VLOOKUP($A106,'Race 3-Men'!$G$40:$L$61,6,0)) -> 100 | G106: =IF(ISNA(VLOOKUP($A106,'Race 4-Men'!$G$35:$L$100,6,0)),100,VLOOKUP($A106,'Race 4-Men'!$G$35:$L$100,6,0)) -> 100 | H106: =SMALL(D106:G106,{1,2,3}) -> 100 | I106: 100 | J106: 100 | K106: 300 | L106: 34
A107: Timothy Wood | B107: HRC | C107: S | D107: =IF(ISNA(VLOOKUP($A107,'Race 1-Men'!$G$34:$L$53,6,0)),100,VLOOKUP($A107,'Race 1-Men'!$G$34:$L$53,6,0)) -> 100 | E107: =IF(ISNA(VLOOKUP($A107,'Race 2-Men'!$G$32:$L$53,6,0)),100,VLOOKUP($A107,'Race 2-Men'!$G$32:$L$53,6,0)) -> 16 | F107: =IF(ISNA(VLOOKUP($A107,'Race 3-Men'!$G$40:$L$61,6,0)),100,VLOOKUP($A107,'Race 3-Men'!$G$40:$L$61,6,0)) -> 20 | G107: =IF(ISNA(VLOOKUP($A107,'Race 4-Men'!$G$35:$L$100,6,0)),100,VLOOKUP($A107,'Race 4-Men'!$G$35:$L$100,6,0)) -> 18 | H107: =SMALL(D107:G107,{1,2,3}) -> 16 | I107: 18 | J107: 20 | K107: 54 | L107: 17
A108: Tom Porter | B108: WJ | C108: S | D108: =IF(ISNA(VLOOKUP($A108,'Race 1-Men'!$G$34:$L$53,6,0)),100,VLOOKUP($A108,'Race 1-Men'!$G$34:$L$53,6,0)) -> 2 | E108: =IF(ISNA(VLOOKUP($A108,'Race 2-Men'!$G$32:$L$53,6,0)),100,VLOOKUP($A108,'Race 2-Men'!$G$32:$L$53,6,0)) -> 4 | F108: =IF(ISNA(VLOOKUP($A108,'Race 3-Men'!$G$40:$L$61,6,0)),100,VLOOKUP($A108,'Race 3-Men'!$G$40:$L$61,6,0)) -> 4 | G108: =IF(ISNA(VLOOKUP($A108,'Race 4-Men'!$G$35:$L$100,6,0)),100,VLOOKUP($A108,'Race 4-Men'!$G$35:$L$100,6,0)) -> 3 | H108: =SMALL(D108:G108,{1,2,3}) -> 2 | I108: 3 | J108: 4 | K108: 9 | L108: 3
A109: Tony Russell | B109: HRC | C109: S | D109: =IF(ISNA(VLOOKUP($A109,'Race 1-Men'!$G$34:$L$53,6,0)),100,VLOOKUP($A109,'Race 1-Men'!$G$34:$L$53,6,0)) -> 100 | E109: =IF(ISNA(VLOOKUP($A109,'Race 2-Men'!$G$32:$L$53,6,0)),100,VLOOKUP($A109,'Race 2-Men'!$G$32:$L$53,6,0)) -> 100 | F109: =IF(ISNA(VLOOKUP($A109,'Race 3-Men'!$G$40:$L$61,6,0)),100,VLOOKUP($A109,'Race 3-Men'!$G$40:$L$61,6,0)) -> 100 | G109: =IF(ISNA(VLOOKUP($A109,'Race 4-Men'!$G$35:$L$100,6,0)),100,VLOOKUP($A109,'Race 4-Men'!$G$35:$L$100,6,0)) -> 100 | H109: =SMALL(D109:G109,{1,2,3}) -> 100 | I109: 100 | J109: 100 | K109: 300 | L109: 34
A110: Will Bell | B110: BS | C110: S | D110: =IF(ISNA(VLOOKUP($A110,'Race 1-Men'!$G$34:$L$53,6,0)),100,VLOOKUP($A110,'Race 1-Men'!$G$34:$L$53,6,0)) -> 100 | E110: =IF(ISNA(VLOOKUP($A110,'Race 2-Men'!$G$32:$L$53,6,0)),100,VLOOKUP($A110,'Race 2-Men'!$G$32:$L$53,6,0)) -> 100 | F110: =IF(ISNA(VLOOKUP($A110,'Race 3-Men'!$G$40:$L$61,6,0)),100,VLOOKUP($A110,'Race 3-Men'!$G$40:$L$61,6,0)) -> 100 | G110: =IF(ISNA(VLOOKUP($A110,'Race 4-Men'!$G$35:$L$100,6,0)),100,VLOOKUP($A110,'Race 4-Men'!$G$35:$L$100,6,0)) -> 100 | H110: =SMALL(D110:G110,{1,2,3}) -> 100 | I110: 100 | J110: 100 | K110: 300 | L110: 34
A111: Will Breese | B111: WJ | C111: S | D111: =IF(ISNA(VLOOKUP($A111,'Race 1-Men'!$G$34:$L$53,6,0)),100,VLOOKUP($A111,'Race 1-Men'!$G$34:$L$53,6,0)) -> 100 | E111: =IF(ISNA(VLOOKUP($A111,'Race 2-Men'!$G$32:$L$53,6,0)),100,VLOOKUP($A111,'Race 2-Men'!$G$32:$L$53,6,0)) -> 2 | F111: =IF(ISNA(VLOOKUP($A111,'Race 3-Men'!$G$40:$L$61,6,0)),100,VLOOKUP($A111,'Race 3-Men'!$G$40:$L$61,6,0)) -> 3 | G111: =IF(ISNA(VLOOKUP($A111,'Race 4-Men'!$G$35:$L$100,6,0)),100,VLOOKUP($A111,'Race 4-Men'!$G$35:$L$100,6,0)) -> 100 | H111: =SMALL(D111:G111,{1,2,3}) -> 2 | I111: 3 | J111: 100 | K111: 105 | L111: 19
A112: Will Morton | B112: BS | C112: S | D112: =IF(ISNA(VLOOKUP($A112,'Race 1-Men'!$G$34:$L$53,6,0)),100,VLOOKUP($A112,'Race 1-Men'!$G$34:$L$53,6,0)) -> 100 | E112: =IF(ISNA(VLOOKUP($A112,'Race 2-Men'!$G$32:$L$53,6,0)),100,VLOOKUP($A112,'Race 2-Men'!$G$32:$L$53,6,0)) -> 100 | F112: =IF(ISNA(VLOOKUP($A112,'Race 3-Men'!$G$40:$L$61,6,0)),100,VLOOKUP($A112,'Race 3-Men'!$G$40:$L$61,6,0)) -> 100 | G112: =IF(ISNA(VLOOKUP($A112,'Race 4-Men'!$G$35:$L$100,6,0)),100,VLOOKUP($A112,'Race 4-Men'!$G$35:$L$100,6,0)) -> 100 | H112: =SMALL(D112:G112,{1,2,3}) -> 100 | I112: 100 | J112: 100 | K112: 300 | L112: 34
A113: William Caunce | B113: WJ | C113: S | D113: =IF(ISNA(VLOOKUP($A113,'Race 1-Men'!$G$34:$L$53,6,0)),100,VLOOKUP($A113,'Race 1-Men'!$G$34:$L$53,6,0)) -> 11 | E113: =IF(ISNA(VLOOKUP($A113,'Race 2-Men'!$G$32:$L$53,6,0)),100,VLOOKUP($A113,'Race 2-Men'!$G$32:$L$53,6,0)) -> 100 | F113: =IF(ISNA(VLOOKUP($A113,'Race 3-Men'!$G$40:$L$61,6,0)),100,VLOOKUP($A113,'Race 3-Men'!$G$40:$L$61,6,0)) -> 100 | G113: =IF(ISNA(VLOOKUP($A113,'Race 4-Men'!$G$35:$L$100,6,0)),100,VLOOKUP($A113,'Race 4-Men'!$G$35:$L$100,6,0)) -> 6 | H113: =SMALL(D113:G113,{1,2,3}) -> 6 | I113: 11 | J113: 100 | K113: 117 | L113: 20
A114: William Price | B114: BS | C114: S | D114: =IF(ISNA(VLOOKUP($A114,'Race 1-Men'!$G$34:$L$53,6,0)),100,VLOOKUP($A114,'Race 1-Men'!$G$34:$L$53,6,0)) -> 100 | E114: =IF(ISNA(VLOOKUP($A114,'Race 2-Men'!$G$32:$L$53,6,0)),100,VLOOKUP($A114,'Race 2-Men'!$G$32:$L$53,6,0)) -> 100 | F114: =IF(ISNA(VLOOKUP($A114,'Race 3-Men'!$G$40:$L$61,6,0)),100,VLOOKUP($A114,'Race 3-Men'!$G$40:$L$61,6,0)) -> 100 | G114: =IF(ISNA(VLOOKUP($A114,'Race 4-Men'!$G$35:$L$100,6,0)),100,VLOOKUP($A114,'Race 4-Men'!$G$35:$L$100,6,0)) -> 100 | H114: =SMALL(D114:G114,{1,2,3}) -> 100 | I114: 100 | J114: 100 | K114: 300 | L114: 34
A115: Yaser Alsaghir | B115: HRC | C115: S | D115: =IF(ISNA(VLOOKUP($A115,'Race 1-Men'!$G$34:$L$53,6,0)),100,VLOOKUP($A115,'Race 1-Men'!$G$34:$L$53,6,0)) -> 100 | E115: =IF(ISNA(VLOOKUP($A115,'Race 2-Men'!$G$32:$L$53,6,0)),100,VLOOKUP($A115,'Race 2-Men'!$G$32:$L$53,6,0)) -> 100 | F115: =IF(ISNA(VLOOKUP($A115,'Race 3-Men'!$G$40:$L$61,6,0)),100,VLOOKUP($A115,'Race 3-Men'!$G$40:$L$61,6,0)) -> 100 | G115: =IF(ISNA(VLOOKUP($A115,'Race 4-Men'!$G$35:$L$100,6,0)),100,VLOOKUP($A115,'Race 4-Men'!$G$35:$L$100,6,0)) -> 100 | H115: =SMALL(D115:G115,{1,2,3}) -> 100 | I115: 100 | J115: 100 | K115: 300 | L115: 34
A116: Tom Quinn | B116: WJ | C116: S | D116: =IF(ISNA(VLOOKUP($A116,'Race 1-Men'!$G$34:$L$53,6,0)),100,VLOOKUP($A116,'Race 1-Men'!$G$34:$L$53,6,0)) -> 100 | E116: =IF(ISNA(VLOOKUP($A116,'Race 2-Men'!$G$32:$L$53,6,0)),100,VLOOKUP($A116,'Race 2-Men'!$G$32:$L$53,6,0)) -> 100 | F116: =IF(ISNA(VLOOKUP($A116,'Race 3-Men'!$G$40:$L$61,6,0)),100,VLOOKUP($A116,'Race 3-Men'!$G$40:$L$61,6,0)) -> 7 | G116: =IF(ISNA(VLOOKUP($A116,'Race 4-Men'!$G$35:$L$100,6,0)),100,VLOOKUP($A116,'Race 4-Men'!$G$35:$L$100,6,0)) -> 100 | H116: =SMALL(D116:G116,{1,2,3}) -> 7 | I116: 100 | J116: 100 | K116: 207 | L116: 29
A117: Stefan Gauntlett | B117: WJ | C117: S | D117: =IF(ISNA(VLOOKUP($A117,'Race 1-Men'!$G$34:$L$53,6,0)),100,VLOOKUP($A117,'Race 1-Men'!$G$34:$L$53,6,0)) -> 100 | E117: =IF(ISNA(VLOOKUP($A117,'Race 2-Men'!$G$32:$L$53,6,0)),100,VLOOKUP($A117,'Race 2-Men'!$G$32:$L$53,6,0)) -> 10 | F117: =IF(ISNA(VLOOKUP($A117,'Race 3-Men'!$G$40:$L$61,6,0)),100,VLOOKUP($A117,'Race 3-Men'!$G$40:$L$61,6,0)) -> 12 | G117: =IF(ISNA(VLOOKUP($A117,'Race 4-Men'!$G$35:$L$100,6,0)),100,VLOOKUP($A117,'Race 4-Men'!$G$35:$L$100,6,0)) -> 15 | H117: =SMALL(D117:G117,{1,2,3}) -> 10 | I117: 12 | J117: 15 | K117: 37 | L117: 10
A118: Chris Williams | B118: WJ | C118: S | D118: =IF(ISNA(VLOOKUP($A118,'Race 1-Men'!$G$34:$L$53,6,0)),100,VLOOKUP($A118,'Race 1-Men'!$G$34:$L$53,6,0)) -> 100 | E118: =IF(ISNA(VLOOKUP($A118,'Race 2-Men'!$G$32:$L$53,6,0)),100,VLOOKUP($A118,'Race 2-Men'!$G$32:$L$53,6,0)) -> 18 | F118: =IF(ISNA(VLOOKUP($A118,'Race 3-Men'!$G$40:$L$61,6,0)),100,VLOOKUP($A118,'Race 3-Men'!$G$40:$L$61,6,0)) -> 100 | G118: =IF(ISNA(VLOOKUP($A118,'Race 4-Men'!$G$35:$L$100,6,0)),100,VLOOKUP($A118,'Race 4-Men'!$G$35:$L$100,6,0)) -> 100 | H118: =SMALL(D118:G118,{1,2,3}) -> 18 | I118: 100 | J118: 100 | K118: 218 | L118: 31
A119: Adam Chapman | B119: BS | C119: V40 | D119: =IF(ISNA(VLOOKUP($A119,'Race 1-Men'!$N$33:$S$51,6,0)),100,VLOOKUP($A119,'Race 1-Men'!$N$33:$S$51,6,0)) -> 100 | E119: =IF(ISNA(VLOOKUP($A119,'Race 2-Men'!$N$32:$S$53,6,0)),100,VLOOKUP($A119,'Race 2-Men'!$N$32:$S$53,6,0)) -> 100 | F119: =IF(ISNA(VLOOKUP($A119,'Race 3-Men'!$N$40:$S$61,6,0)),100,VLOOKUP($A119,'Race 3-Men'!$N$40:$S$61,6,0)) -> 100 | G119: =IF(ISNA(VLOOKUP($A119,'Race 4-Men'!$N$35:$S$100,6,0)),100,VLOOKUP($A119,'Race 4-Men'!$N$35:$S$100,6,0)) -> 100 | H119: =SMALL(D119:G119,{1,2,3}) -> 100 | I119: 100 | J119: 100 | K119: 300 | L119: =RANK(K119,$K$119:$K$270,1) -> 39
A120: Adam Wallace | B120: WJ | C120: V40 | D120: =IF(ISNA(VLOOKUP($A120,'Race 1-Men'!$N$33:$S$51,6,0)),100,VLOOKUP($A120,'Race 1-Men'!$N$33:$S$51,6,0)) -> 100 | E120: =IF(ISNA(VLOOKUP($A120,'Race 2-Men'!$N$32:$S$53,6,0)),100,VLOOKUP($A120,'Race 2-Men'!$N$32:$S$53,6,0)) -> 100 | F120: =IF(ISNA(VLOOKUP($A120,'Race 3-Men'!$N$40:$S$61,6,0)),100,VLOOKUP($A120,'Race 3-Men'!$N$40:$S$61,6,0)) -> 100 | G120: =IF(ISNA(VLOOKUP($A120,'Race 4-Men'!$N$35:$S$100,6,0)),100,VLOOKUP($A120,'Race 4-Men'!$N$35:$S$100,6,0)) -> 100 | H120: =SMALL(D120:G120,{1,2,3}) -> 100 | I120: 100 | J120: 100 | K120: 300 | L120: =RANK(K120,$K$119:$K$270,1) -> 39
A121: Alan Gleaves | B121: SS | C121: V40 | D121: =IF(ISNA(VLOOKUP($A121,'Race 1-Men'!$N$33:$S$51,6,0)),100,VLOOKUP($A121,'Race 1-Men'!$N$33:$S$51,6,0)) -> 100 | E121: =IF(ISNA(VLOOKUP($A121,'Race 2-Men'!$N$32:$S$53,6,0)),100,VLOOKUP($A121,'Race 2-Men'!$N$32:$S$53,6,0)) -> 100 | F121: =IF(ISNA(VLOOKUP($A121,'Race 3-Men'!$N$40:$S$61,6,0)),100,VLOOKUP($A121,'Race 3-Men'!$N$40:$S$61,6,0)) -> 100 | G121: =IF(ISNA(VLOOKUP($A121,'Race 4-Men'!$N$35:$S$100,6,0)),100,VLOOKUP($A121,'Race 4-Men'!$N$35:$S$100,6,0)) -> 100 | H121: =SMALL(D121:G121,{1,2,3}) -> 100 | I121: 100 | J121: 100 | K121: 300 | L121: 39
A122: Alastair Humphrey | B122: BS | C122: V40 | D122: =IF(ISNA(VLOOKUP($A122,'Race 1-Men'!$N$33:$S$51,6,0)),100,VLOOKUP($A122,'Race 1-Men'!$N$33:$S$51,6,0)) -> 100 | E122: =IF(ISNA(VLOOKUP($A122,'Race 2-Men'!$N$32:$S$53,6,0)),100,VLOOKUP($A122,'Race 2-Men'!$N$32:$S$53,6,0)) -> 100 | F122: =IF(ISNA(VLOOKUP($A122,'Race 3-Men'!$N$40:$S$61,6,0)),100,VLOOKUP($A122,'Race 3-Men'!$N$40:$S$61,6,0)) -> 100 | G122: =IF(ISNA(VLOOKUP($A122,'Race 4-Men'!$N$35:$S$100,6,0)),100,VLOOKUP($A122,'Race 4-Men'!$N$35:$S$100,6,0)) -> 100 | H122: =SMALL(D122:G122,{1,2,3}) -> 100 | I122: 100 | J122: 100 | K122: 300 | L122: 39
A123: Alex Bibby | B123: SS | C123: V40 | D123: =IF(ISNA(VLOOKUP($A123,'Race 1-Men'!$N$33:$S$51,6,0)),100,VLOOKUP($A123,'Race 1-Men'!$N$33:$S$51,6,0)) -> 100 | E123: =IF(ISNA(VLOOKUP($A123,'Race 2-Men'!$N$32:$S$53,6,0)),100,VLOOKUP($A123,'Race 2-Men'!$N$32:$S$53,6,0)) -> 100 | F123: =IF(ISNA(VLOOKUP($A123,'Race 3-Men'!$N$40:$S$61,6,0)),100,VLOOKUP($A123,'Race 3-Men'!$N$40:$S$61,6,0)) -> 100 | G123: =IF(ISNA(VLOOKUP($A123,'Race 4-Men'!$N$35:$S$100,6,0)),100,VLOOKUP($A123,'Race 4-Men'!$N$35:$S$100,6,0)) -> 100 | H123: =SMALL(D123:G123,{1,2,3}) -> 100 | I123: 100 | J123: 100 | K123: 300 | L123: 39
A124: Alex Hardy | B124: WJ | C124: V40 | D124: =IF(ISNA(VLOOKUP($A124,'Race 1-Men'!$N$33:$S$51,6,0)),100,VLOOKUP($A124,'Race 1-Men'!$N$33:$S$51,6,0)) -> 100 | E124: =IF(ISNA(VLOOKUP($A124,'Race 2-Men'!$N$32:$S$53,6,0)),100,VLOOKUP($A124,'Race 2-Men'!$N$32:$S$53,6,0)) -> 100 | F124: =IF(ISNA(VLOOKUP($A124,'Race 3-Men'!$N$40:$S$61,6,0)),100,VLOOKUP($A124,'Race 3-Men'!$N$40:$S$61,6,0)) -> 100 | G124: =IF(ISNA(VLOOKUP($A124,'Race 4-Men'!$N$35:$S$100,6,0)),100,VLOOKUP($A124,'Race 4-Men'!$N$35:$S$100,6,0)) -> 100 | H124: =SMALL(D124:G124,{1,2,3}) -> 100 | I124: 100 | J124: 100 | K124: 300 | L124: 39
A125: Alistair Cooke | B125: SS | C125: V40 | D125: =IF(ISNA(VLOOKUP($A125,'Race 1-Men'!$N$33:$S$51,6,0)),100,VLOOKUP($A125,'Race 1-Men'!$N$33:$S$51,6,0)) -> 100 | E125: =IF(ISNA(VLOOKUP($A125,'Race 2-Men'!$N$32:$S$53,6,0)),100,VLOOKUP($A125,'Race 2-Men'!$N$32:$S$53,6,0)) -> 100 | F125: =IF(ISNA(VLOOKUP($A125,'Race 3-Men'!$N$40:$S$61,6,0)),100,VLOOKUP($A125,'Race 3-Men'!$N$40:$S$61,6,0)) -> 100 | G125: =IF(ISNA(VLOOKUP($A125,'Race 4-Men'!$N$35:$S$100,6,0)),100,VLOOKUP($A125,'Race 4-Men'!$N$35:$S$100,6,0)) -> 100 | H125: =SMALL(D125:G125,{1,2,3}) -> 100 | I125: 100 | J125: 100 | K125: 300 | L125: 39
A126: Andrew Armour | B126: SS | C126: V40 | D126: =IF(ISNA(VLOOKUP($A126,'Race 1-Men'!$N$33:$S$51,6,0)),100,VLOOKUP($A126,'Race 1-Men'!$N$33:$S$51,6,0)) -> 100 | E126: =IF(ISNA(VLOOKUP($A126,'Race 2-Men'!$N$32:$S$53,6,0)),100,VLOOKUP($A126,'Race 2-Men'!$N$32:$S$53,6,0)) -> 100 | F126: =IF(ISNA(VLOOKUP($A126,'Race 3-Men'!$N$40:$S$61,6,0)),100,VLOOKUP($A126,'Race 3-Men'!$N$40:$S$61,6,0)) -> 100 | G126: =IF(ISNA(VLOOKUP($A126,'Race 4-Men'!$N$35:$S$100,6,0)),100,VLOOKUP($A126,'Race 4-Men'!$N$35:$S$100,6,0)) -> 100 | H126: =SMALL(D126:G126,{1,2,3}) -> 100 | I126: 100 | J126: 100 | K126: 300 | L126: 39
A127: Andrew Biggs | B127: WJ | C127: V40 | D127: =IF(ISNA(VLOOKUP($A127,'Race 1-Men'!$N$33:$S$51,6,0)),100,VLOOKUP($A127,'Race 1-Men'!$N$33:$S$51,6,0)) -> 11 | E127: =IF(ISNA(VLOOKUP($A127,'Race 2-Men'!$N$32:$S$53,6,0)),100,VLOOKUP($A127,'Race 2-Men'!$N$32:$S$53,6,0)) -> 100 | F127: =IF(ISNA(VLOOKUP($A127,'Race 3-Men'!$N$40:$S$61,6,0)),100,VLOOKUP($A127,'Race 3-Men'!$N$40:$S$61,6,0)) -> 15 | G127: =IF(ISNA(VLOOKUP($A127,'Race 4-Men'!$N$35:$S$100,6,0)),100,VLOOKUP($A127,'Race 4-Men'!$N$35:$S$100,6,0)) -> 10 | H127: =SMALL(D127:G127,{1,2,3}) -> 10 | I127: 11 | J127: 15 | K127: 36 | L127: 10
A128: Andrew Mynott | B128: WJ | C128: V40 | D128: =IF(ISNA(VLOOKUP($A128,'Race 1-Men'!$N$33:$S$51,6,0)),100,VLOOKUP($A128,'Race 1-Men'!$N$33:$S$51,6,0)) -> 1 | E128: =IF(ISNA(VLOOKUP($A128,'Race 2-Men'!$N$32:$S$53,6,0)),100,VLOOKUP($A128,'Race 2-Men'!$N$32:$S$53,6,0)) -> 1 | F128: =IF(ISNA(VLOOKUP($A128,'Race 3-Men'!$N$40:$S$61,6,0)),100,VLOOKUP($A128,'Race 3-Men'!$N$40:$S$61,6,0)) -> 1 | G128: =IF(ISNA(VLOOKUP($A128,'Race 4-Men'!$N$35:$S$100,6,0)),100,VLOOKUP($A128,'Race 4-Men'!$N$35:$S$100,6,0)) -> 100 | H128: =SMALL(D128:G128,{1,2,3}) -> 1 | I128: 1 | J128: 1 | K128: 3 | L128: 1
A129: Andrew Page | B129: SS | C129: V40 | D129: =IF(ISNA(VLOOKUP($A129,'Race 1-Men'!$N$33:$S$51,6,0)),100,VLOOKUP($A129,'Race 1-Men'!$N$33:$S$51,6,0)) -> 100 | E129: =IF(ISNA(VLOOKUP($A129,'Race 2-Men'!$N$32:$S$53,6,0)),100,VLOOKUP($A129,'Race 2-Men'!$N$32:$S$53,6,0)) -> 100 | F129: =IF(ISNA(VLOOKUP($A129,'Race 3-Men'!$N$40:$S$61,6,0)),100,VLOOKUP($A129,'Race 3-Men'!$N$40:$S$61,6,0)) -> 100 | G129: =IF(ISNA(VLOOKUP($A129,'Race 4-Men'!$N$35:$S$100,6,0)),100,VLOOKUP($A129,'Race 4-Men'!$N$35:$S$100,6,0)) -> 100 | H129: =SMALL(D129:G129,{1,2,3}) -> 100 | I129: 100 | J129: 100 | K129: 300 | L129: 39
A130: Andrew Pooley | B130: BS | C130: V40 | D130: =IF(ISNA(VLOOKUP($A130,'Race 1-Men'!$N$33:$S$51,6,0)),100,VLOOKUP($A130,'Race 1-Men'!$N$33:$S$51,6,0)) -> 100 | E130: =IF(ISNA(VLOOKUP($A130,'Race 2-Men'!$N$32:$S$53,6,0)),100,VLOOKUP($A130,'Race 2-Men'!$N$32:$S$53,6,0)) -> 100 | F130: =IF(ISNA(VLOOKUP($A130,'Race 3-Men'!$N$40:$S$61,6,0)),100,VLOOKUP($A130,'Race 3-Men'!$N$40:$S$61,6,0)) -> 100 | G130: =IF(ISNA(VLOOKUP($A130,'Race 4-Men'!$N$35:$S$100,6,0)),100,VLOOKUP($A130,'Race 4-Men'!$N$35:$S$100,6,0)) -> 100 | H130: =SMALL(D130:G130,{1,2,3}) -> 100 | I130: 100 | J130: 100 | K130: 300 | L130: 39
A131: Andrew Terrell | B131: HRC | C131: V40 | D131: =IF(ISNA(VLOOKUP($A131,'Race 1-Men'!$N$33:$S$51,6,0)),100,VLOOKUP($A131,'Race 1-Men'!$N$33:$S$51,6,0)) -> 12 | E131: =IF(ISNA(VLOOKUP($A131,'Race 2-Men'!$N$32:$S$53,6,0)),100,VLOOKUP($A131,'Race 2-Men'!$N$32:$S$53,6,0)) -> 100 | F131: =IF(ISNA(VLOOKUP($A131,'Race 3-Men'!$N$40:$S$61,6,0)),100,VLOOKUP($A131,'Race 3-Men'!$N$40:$S$61,6,0)) -> 100 | G131: =IF(ISNA(VLOOKUP($A131,'Race 4-Men'!$N$35:$S$100,6,0)),100,VLOOKUP($A131,'Race 4-Men'!$N$35:$S$100,6,0)) -> 11 | H131: =SMALL(D131:G131,{1,2,3}) -> 11 | I131: 12 | J131: 100 | K131: 123 | L131: 19
A132: Andy Watkins | B132: SS | C132: V40 | D132: =IF(ISNA(VLOOKUP($A132,'Race 1-Men'!$N$33:$S$51,6,0)),100,VLOOKUP($A132,'Race 1-Men'!$N$33:$S$51,6,0)) -> 100 | E132: =IF(ISNA(VLOOKUP($A132,'Race 2-Men'!$N$32:$S$53,6,0)),100,VLOOKUP($A132,'Race 2-Men'!$N$32:$S$53,6,0)) -> 100 | F132: =IF(ISNA(VLOOKUP($A132,'Race 3-Men'!$N$40:$S$61,6,0)),100,VLOOKUP($A132,'Race 3-Men'!$N$40:$S$61,6,0)) -> 100 | G132: =IF(ISNA(VLOOKUP($A132,'Race 4-Men'!$N$35:$S$100,6,0)),100,VLOOKUP($A132,'Race 4-Men'!$N$35:$S$100,6,0)) -> 100 | H132: =SMALL(D132:G132,{1,2,3}) -> 100 | I132: 100 | J132: 100 | K132: =SUM(H132:J132) -> 300 | L132: 39
A133: Anthony Kirby | B133: BS | C133: V40 | D133: =IF(ISNA(VLOOKUP($A133,'Race 1-Men'!$N$33:$S$51,6,0)),100,VLOOKUP($A133,'Race 1-Men'!$N$33:$S$51,6,0)) -> 100 | E133: =IF(ISNA(VLOOKUP($A133,'Race 2-Men'!$N$32:$S$53,6,0)),100,VLOOKUP($A133,'Race 2-Men'!$N$32:$S$53,6,0)) -> 100 | F133: =IF(ISNA(VLOOKUP($A133,'Race 3-Men'!$N$40:$S$61,6,0)),100,VLOOKUP($A133,'Race 3-Men'!$N$40:$S$61,6,0)) -> 100 | G133: =IF(ISNA(VLOOKUP($A133,'Race 4-Men'!$N$35:$S$100,6,0)),100,VLOOKUP($A133,'Race 4-Men'!$N$35:$S$100,6,0)) -> 100 | H133: =SMALL(D133:G133,{1,2,3}) -> 100 | I133: 100 | J133: 100 | K133: 300 | L133: 39
A134: Archie Ruggles-Brise | B134: SS | C134: V40 | D134: =IF(ISNA(VLOOKUP($A134,'Race 1-Men'!$N$33:$S$51,6,0)),100,VLOOKUP($A134,'Race 1-Men'!$N$33:$S$51,6,0)) -> 100 | E134: =IF(ISNA(VLOOKUP($A134,'Race 2-Men'!$N$32:$S$53,6,0)),100,VLOOKUP($A134,'Race 2-Men'!$N$32:$S$53,6,0)) -> 100 | F134: =IF(ISNA(VLOOKUP($A134,'Race 3-Men'!$N$40:$S$61,6,0)),100,VLOOKUP($A134,'Race 3-Men'!$N$40:$S$61,6,0)) -> 100 | G134: =IF(ISNA(VLOOKUP($A134,'Race 4-Men'!$N$35:$S$100,6,0)),100,VLOOKUP($A134,'Race 4-Men'!$N$35:$S$100,6,0)) -> 100 | H134: =SMALL(D134:G134,{1,2,3}) -> 100 | I134: 100 | J134: 100 | K134: 300 | L134: 39
A135: Arnold Sienerth | B135: SS | C135: V40 | D135: =IF(ISNA(VLOOKUP($A135,'Race 1-Men'!$N$33:$S$51,6,0)),100,VLOOKUP($A135,'Race 1-Men'!$N$33:$S$51,6,0)) -> 100 | E135: =IF(ISNA(VLOOKUP($A135,'Race 2-Men'!$N$32:$S$53,6,0)),100,VLOOKUP($A135,'Race 2-Men'!$N$32:$S$53,6,0)) -> 100 | F135: =IF(ISNA(VLOOKUP($A135,'Race 3-Men'!$N$40:$S$61,6,0)),100,VLOOKUP($A135,'Race 3-Men'!$N$40:$S$61,6,0)) -> 100 | G135: =IF(ISNA(VLOOKUP($A135,'Race 4-Men'!$N$35:$S$100,6,0)),100,VLOOKUP($A135,'Race 4-Men'!$N$35:$S$100,6,0)) -> 100 | H135: =SMALL(D135:G135,{1,2,3}) -> 100 | I135: 100 | J135: 100 | K135: 300 | L135: 39
A136: Barry Taylor | B136: SS | C136: V40 | D136: =IF(ISNA(VLOOKUP($A136,'Race 1-Men'!$N$33:$S$51,6,0)),100,VLOOKUP($A136,'Race 1-Men'!$N$33:$S$51,6,0)) -> 100 | E136: =IF(ISNA(VLOOKUP($A136,'Race 2-Men'!$N$32:$S$53,6,0)),100,VLOOKUP($A136,'Race 2-Men'!$N$32:$S$53,6,0)) -> 100 | F136: =IF(ISNA(VLOOKUP($A136,'Race 3-Men'!$N$40:$S$61,6,0)),100,VLOOKUP($A136,'Race 3-Men'!$N$40:$S$61,6,0)) -> 100 | G136: =IF(ISNA(VLOOKUP($A136,'Race 4-Men'!$N$35:$S$100,6,0)),100,VLOOKUP($A136,'Race 4-Men'!$N$35:$S$100,6,0)) -> 100 | H136: =SMALL(D136:G136,{1,2,3}) -> 100 | I136: 100 | J136: 100 | K136: 300 | L136: 39
A137: Ben Dean | B137: BS | C137: V40 | D137: =IF(ISNA(VLOOKUP($A137,'Race 1-Men'!$N$33:$S$51,6,0)),100,VLOOKUP($A137,'Race 1-Men'!$N$33:$S$51,6,0)) -> 100 | E137: =IF(ISNA(VLOOKUP($A137,'Race 2-Men'!$N$32:$S$53,6,0)),100,VLOOKUP($A137,'Race 2-Men'!$N$32:$S$53,6,0)) -> 100 | F137: =IF(ISNA(VLOOKUP($A137,'Race 3-Men'!$N$40:$S$61,6,0)),100,VLOOKUP($A137,'Race 3-Men'!$N$40:$S$61,6,0)) -> 100 | G137: =IF(ISNA(VLOOKUP($A137,'Race 4-Men'!$N$35:$S$100,6,0)),100,VLOOKUP($A137,'Race 4-Men'!$N$35:$S$100,6,0)) -> 100 | H137: =SMALL(D137:G137,{1,2,3}) -> 100 | I137: 100 | J137: 100 | K137: 300 | L137: 39
A138: Ben Fowler | B138: HRC | C138: V40 | D138: =IF(ISNA(VLOOKUP($A138,'Race 1-Men'!$N$33:$S$51,6,0)),100,VLOOKUP($A138,'Race 1-Men'!$N$33:$S$51,6,0)) -> 100 | E138: =IF(ISNA(VLOOKUP($A138,'Race 2-Men'!$N$32:$S$53,6,0)),100,VLOOKUP($A138,'Race 2-Men'!$N$32:$S$53,6,0)) -> 100 | F138: =IF(ISNA(VLOOKUP($A138,'Race 3-Men'!$N$40:$S$61,6,0)),100,VLOOKUP($A138,'Race 3-Men'!$N$40:$S$61,6,0)) -> 100 | G138: =IF(ISNA(VLOOKUP($A138,'Race 4-Men'!$N$35:$S$100,6,0)),100,VLOOKUP($A138,'Race 4-Men'!$N$35:$S$100,6,0)) -> 100 | H138: =SMALL(D138:G138,{1,2,3}) -> 100 | I138: 100 | J138: 100 | K138: 300 | L138: 39
A139: Ben Pickford | B139: BS | C139: V40 | D139: =IF(ISNA(VLOOKUP($A139,'Race 1-Men'!$N$33:$S$51,6,0)),100,VLOOKUP($A139,'Race 1-Men'!$N$33:$S$51,6,0)) -> 6 | E139: =IF(ISNA(VLOOKUP($A139,'Race 2-Men'!$N$32:$S$53,6,0)),100,VLOOKUP($A139,'Race 2-Men'!$N$32:$S$53,6,0)) -> 100 | F139: =IF(ISNA(VLOOKUP($A139,'Race 3-Men'!$N$40:$S$61,6,0)),100,VLOOKUP($A139,'Race 3-Men'!$N$40:$S$61,6,0)) -> 100 | G139: =IF(ISNA(VLOOKUP($A139,'Race 4-Men'!$N$35:$S$100,6,0)),100,VLOOKUP($A139,'Race 4-Men'!$N$35:$S$100,6,0)) -> 100 | H139: =SMALL(D139:G139,{1,2,3}) -> 6 | I139: 100 | J139: 100 | K139: 206 | L139: 26
A140: Calum Ewing | B140: SS | C140: V40 | D140: =IF(ISNA(VLOOKUP($A140,'Race 1-Men'!$N$33:$S$51,6,0)),100,VLOOKUP($A140,'Race 1-Men'!$N$33:$S$51,6,0)) -> 100 | E140: =IF(ISNA(VLOOKUP($A140,'Race 2-Men'!$N$32:$S$53,6,0)),100,VLOOKUP($A140,'Race 2-Men'!$N$32:$S$53,6,0)) -> 100 | F140: =IF(ISNA(VLOOKUP($A140,'Race 3-Men'!$N$40:$S$61,6,0)),100,VLOOKUP($A140,'Race 3-Men'!$N$40:$S$61,6,0)) -> 100 | G140: =IF(ISNA(VLOOKUP($A140,'Race 4-Men'!$N$35:$S$100,6,0)),100,VLOOKUP($A140,'Race 4-Men'!$N$35:$S$100,6,0)) -> 100 | H140: =SMALL(D140:G140,{1,2,3}) -> 100 | I140: 100 | J140: 100 | K140: 300 | L140: 39
A141: Chris Arnell | B141: HRC | C141: V40 | D141: =IF(ISNA(VLOOKUP($A141,'Race 1-Men'!$N$33:$S$51,6,0)),100,VLOOKUP($A141,'Race 1-Men'!$N$33:$S$51,6,0)) -> 13 | E141: =IF(ISNA(VLOOKUP($A141,'Race 2-Men'!$N$32:$S$53,6,0)),100,VLOOKUP($A141,'Race 2-Men'!$N$32:$S$53,6,0)) -> 100 | F141: =IF(ISNA(VLOOKUP($A141,'Race 3-Men'!$N$40:$S$61,6,0)),100,VLOOKUP($A141,'Race 3-Men'!$N$40:$S$61,6,0)) -> 100 | G141: =IF(ISNA(VLOOKUP($A141,'Race 4-Men'!$N$35:$S$100,6,0)),100,VLOOKUP($A141,'Race 4-Men'!$N$35:$S$100,6,0)) -> 15 | H141: =SMALL(D141:G141,{1,2,3}) -> 13 | I141: 15 | J141: 100 | K141: 128 | L141: 20
A142: Christopher Donnelly | B142: HRC | C142: V40 | D142: =IF(ISNA(VLOOKUP($A142,'Race 1-Men'!$N$33:$S$51,6,0)),100,VLOOKUP($A142,'Race 1-Men'!$N$33:$S$51,6,0)) -> 100 | E142: =IF(ISNA(VLOOKUP($A142,'Race 2-Men'!$N$32:$S$53,6,0)),100,VLOOKUP($A142,'Race 2-Men'!$N$32:$S$53,6,0)) -> 100 | F142: =IF(ISNA(VLOOKUP($A142,'Race 3-Men'!$N$40:$S$61,6,0)),100,VLOOKUP($A142,'Race 3-Men'!$N$40:$S$61,6,0)) -> 100 | G142: =IF(ISNA(VLOOKUP($A142,'Race 4-Men'!$N$35:$S$100,6,0)),100,VLOOKUP($A142,'Race 4-Men'!$N$35:$S$100,6,0)) -> 100 | H142: =SMALL(D142:G142,{1,2,3}) -> 100 | I142: 100 | J142: 100 | K142: 300 | L142: 39
A143: Christopher Ganney | B143: WJ | C143: V40 | D143: =IF(ISNA(VLOOKUP($A143,'Race 1-Men'!$N$33:$S$51,6,0)),100,VLOOKUP($A143,'Race 1-Men'!$N$33:$S$51,6,0)) -> 100 | E143: =IF(ISNA(VLOOKUP($A143,'Race 2-Men'!$N$32:$S$53,6,0)),100,VLOOKUP($A143,'Race 2-Men'!$N$32:$S$53,6,0)) -> 100 | F143: =IF(ISNA(VLOOKUP($A143,'Race 3-Men'!$N$40:$S$61,6,0)),100,VLOOKUP($A143,'Race 3-Men'!$N$40:$S$61,6,0)) -> 100 | G143: =IF(ISNA(VLOOKUP($A143,'Race 4-Men'!$N$35:$S$100,6,0)),100,VLOOKUP($A143,'Race 4-Men'!$N$35:$S$100,6,0)) -> 100 | H143: =SMALL(D143:G143,{1,2,3}) -> 100 | I143: 100 | J143: 100 | K143: 300 | L143: 39
A144: Colin Baker | B144: HRC | C144: V40 | D144: =IF(ISNA(VLOOKUP($A144,'Race 1-Men'!$N$33:$S$51,6,0)),100,VLOOKUP($A144,'Race 1-Men'!$N$33:$S$51,6,0)) -> 100 | E144: =IF(ISNA(VLOOKUP($A144,'Race 2-Men'!$N$32:$S$53,6,0)),100,VLOOKUP($A144,'Race 2-Men'!$N$32:$S$53,6,0)) -> 100 | F144: =IF(ISNA(VLOOKUP($A144,'Race 3-Men'!$N$40:$S$61,6,0)),100,VLOOKUP($A144,'Race 3-Men'!$N$40:$S$61,6,0)) -> 8 | G144: =IF(ISNA(VLOOKUP($A144,'Race 4-Men'!$N$35:$S$100,6,0)),100,VLOOKUP($A144,'Race 4-Men'!$N$35:$S$100,6,0)) -> 7 | H144: =SMALL(D144:G144,{1,2,3}) -> 7 | I144: 8 | J144: 100 | K144: 115 | L144: 16
A145: Dan Winter | B145: HRC | C145: V40 | D145: =IF(ISNA(VLOOKUP($A145,'Race 1-Men'!$N$33:$S$51,6,0)),100,VLOOKUP($A145,'Race 1-Men'!$N$33:$S$51,6,0)) -> 100 | E145: =IF(ISNA(VLOOKUP($A145,'Race 2-Men'!$N$32:$S$53,6,0)),100,VLOOKUP($A145,'Race 2-Men'!$N$32:$S$53,6,0)) -> 100 | F145: =IF(ISNA(VLOOKUP($A145,'Race 3-Men'!$N$40:$S$61,6,0)),100,VLOOKUP($A145,'Race 3-Men'!$N$40:$S$61,6,0)) -> 100 | G145: =IF(ISNA(VLOOKUP($A145,'Race 4-Men'!$N$35:$S$100,6,0)),100,VLOOKUP($A145,'Race 4-Men'!$N$35:$S$100,6,0)) -> 100 | H145: =SMALL(D145:G145,{1,2,3}) -> 100 | I145: 100 | J145: 100 | K145: 300 | L145: 39
A146: Daniel Beazley | B146: BS | C146: V40 | D146: =IF(ISNA(VLOOKUP($A146,'Race 1-Men'!$N$33:$S$51,6,0)),100,VLOOKUP($A146,'Race 1-Men'!$N$33:$S$51,6,0)) -> 100 | E146: =IF(ISNA(VLOOKUP($A146,'Race 2-Men'!$N$32:$S$53,6,0)),100,VLOOKUP($A146,'Race 2-Men'!$N$32:$S$53,6,0)) -> 100 | F146: =IF(ISNA(VLOOKUP($A146,'Race 3-Men'!$N$40:$S$61,6,0)),100,VLOOKUP($A146,'Race 3-Men'!$N$40:$S$61,6,0)) -> 100 | G146: =IF(ISNA(VLOOKUP($A146,'Race 4-Men'!$N$35:$S$100,6,0)),100,VLOOKUP($A146,'Race 4-Men'!$N$35:$S$100,6,0)) -> 100 | H146: =SMALL(D146:G146,{1,2,3}) -> 100 | I146: 100 | J146: 100 | K146: 300 | L146: 39
A147: Daniel Brayshaw | B147: BS | C147: V40 | D147: =IF(ISNA(VLOOKUP($A147,'Race 1-Men'!$N$33:$S$51,6,0)),100,VLOOKUP($A147,'Race 1-Men'!$N$33:$S$51,6,0)) -> 100 | E147: =IF(ISNA(VLOOKUP($A147,'Race 2-Men'!$N$32:$S$53,6,0)),100,VLOOKUP($A147,'Race 2-Men'!$N$32:$S$53,6,0)) -> 100 | F147: =IF(ISNA(VLOOKUP($A147,'Race 3-Men'!$N$40:$S$61,6,0)),100,VLOOKUP($A147,'Race 3-Men'!$N$40:$S$61,6,0)) -> 100 | G147: =IF(ISNA(VLOOKUP($A147,'Race 4-Men'!$N$35:$S$100,6,0)),100,VLOOKUP($A147,'Race 4-Men'!$N$35:$S$100,6,0)) -> 100 | H147: =SMALL(D147:G147,{1,2,3}) -> 100 | I147: 100 | J147: 100 | K147: 300 | L147: 39
A148: Daniel Hume | B148: BS | C148: V40 | D148: =IF(ISNA(VLOOKUP($A148,'Race 1-Men'!$N$33:$S$51,6,0)),100,VLOOKUP($A148,'Race 1-Men'!$N$33:$S$51,6,0)) -> 100 | E148: =IF(ISNA(VLOOKUP($A148,'Race 2-Men'!$N$32:$S$53,6,0)),100,VLOOKUP($A148,'Race 2-Men'!$N$32:$S$53,6,0)) -> 100 | F148: =IF(ISNA(VLOOKUP($A148,'Race 3-Men'!$N$40:$S$61,6,0)),100,VLOOKUP($A148,'Race 3-Men'!$N$40:$S$61,6,0)) -> 100 | G148: =IF(ISNA(VLOOKUP($A148,'Race 4-Men'!$N$35:$S$100,6,0)),100,VLOOKUP($A148,'Race 4-Men'!$N$35:$S$100,6,0)) -> 100 | H148: =SMALL(D148:G148,{1,2,3}) -> 100 | I148: 100 | J148: 100 | K148: 300 | L148: 39
A149: Daniel Vaughan | B149: SS | C149: V40 | D149: =IF(ISNA(VLOOKUP($A149,'Race 1-Men'!$N$33:$S$51,6,0)),100,VLOOKUP($A149,'Race 1-Men'!$N$33:$S$51,6,0)) -> 100 | E149: =IF(ISNA(VLOOKUP($A149,'Race 2-Men'!$N$32:$S$53,6,0)),100,VLOOKUP($A149,'Race 2-Men'!$N$32:$S$53,6,0)) -> 100 | F149: =IF(ISNA(VLOOKUP($A149,'Race 3-Men'!$N$40:$S$61,6,0)),100,VLOOKUP($A149,'Race 3-Men'!$N$40:$S$61,6,0)) -> 100 | G149: =IF(ISNA(VLOOKUP($A149,'Race 4-Men'!$N$35:$S$100,6,0)),100,VLOOKUP($A149,'Race 4-Men'!$N$35:$S$100,6,0)) -> 100 | H149: =SMALL(D149:G149,{1,2,3}) -> 100 | I149: 100 | J149: 100 | K149: 300 | L149: 39
A150: Darren Barnes | B150: SS | C150: V40 | D150: =IF(ISNA(VLOOKUP($A150,'Race 1-Men'!$N$33:$S$51,6,0)),100,VLOOKUP($A150,'Race 1-Men'!$N$33:$S$51,6,0)) -> 100 | E150: =IF(ISNA(VLOOKUP($A150,'Race 2-Men'!$N$32:$S$53,6,0)),100,VLOOKUP($A150,'Race 2-Men'!$N$32:$S$53,6,0)) -> 100 | F150: =IF(ISNA(VLOOKUP($A150,'Race 3-Men'!$N$40:$S$61,6,0)),100,VLOOKUP($A150,'Race 3-Men'!$N$40:$S$61,6,0)) -> 100 | G150: =IF(ISNA(VLOOKUP($A150,'Race 4-Men'!$N$35:$S$100,6,0)),100,VLOOKUP($A150,'Race 4-Men'!$N$35:$S$100,6,0)) -> 100 | H150: =SMALL(D150:G150,{1,2,3}) -> 100 | I150: 100 | J150: 100 | K150: 300 | L150: 39
A151: Dave Smith | B151: HRC | C151: V40 | D151: =IF(ISNA(VLOOKUP($A151,'Race 1-Men'!$N$33:$S$51,6,0)),100,VLOOKUP($A151,'Race 1-Men'!$N$33:$S$51,6,0)) -> 100 | E151: =IF(ISNA(VLOOKUP($A151,'Race 2-Men'!$N$32:$S$53,6,0)),100,VLOOKUP($A151,'Race 2-Men'!$N$32:$S$53,6,0)) -> 100 | F151: =IF(ISNA(VLOOKUP($A151,'Race 3-Men'!$N$40:$S$61,6,0)),100,VLOOKUP($A151,'Race 3-Men'!$N$40:$S$61,6,0)) -> 100 | G151: =IF(ISNA(VLOOKUP($A151,'Race 4-Men'!$N$35:$S$100,6,0)),100,VLOOKUP($A151,'Race 4-Men'!$N$35:$S$100,6,0)) -> 100 | H151: =SMALL(D151:G151,{1,2,3}) -> 100 | I151: 100 | J151: 100 | K151: 300 | L151: 39
A152: David Bulmer | B152: SS | C152: V40 | D152: =IF(ISNA(VLOOKUP($A152,'Race 1-Men'!$N$33:$S$51,6,0)),100,VLOOKUP($A152,'Race 1-Men'!$N$33:$S$51,6,0)) -> 100 | E152: =IF(ISNA(VLOOKUP($A152,'Race 2-Men'!$N$32:$S$53,6,0)),100,VLOOKUP($A152,'Race 2-Men'!$N$32:$S$53,6,0)) -> 100 | F152: =IF(ISNA(VLOOKUP($A152,'Race 3-Men'!$N$40:$S$61,6,0)),100,VLOOKUP($A152,'Race 3-Men'!$N$40:$S$61,6,0)) -> 100 | G152: =IF(ISNA(VLOOKUP($A152,'Race 4-Men'!$N$35:$S$100,6,0)),100,VLOOKUP($A152,'Race 4-Men'!$N$35:$S$100,6,0)) -> 100 | H152: =SMALL(D152:G152,{1,2,3}) -> 100 | I152: 100 | J152: 100 | K152: 300 | L152: 39
A153: David Goosetree | B153: HRC | C153: V40 | D153: =IF(ISNA(VLOOKUP($A153,'Race 1-Men'!$N$33:$S$51,6,0)),100,VLOOKUP($A153,'Race 1-Men'!$N$33:$S$51,6,0)) -> 100 | E153: =IF(ISNA(VLOOKUP($A153,'Race 2-Men'!$N$32:$S$53,6,0)),100,VLOOKUP($A153,'Race 2-Men'!$N$32:$S$53,6,0)) -> 100 | F153: =IF(ISNA(VLOOKUP($A153,'Race 3-Men'!$N$40:$S$61,6,0)),100,VLOOKUP($A153,'Race 3-Men'!$N$40:$S$61,6,0)) -> 100 | G153: =IF(ISNA(VLOOKUP($A153,'Race 4-Men'!$N$35:$S$100,6,0)),100,VLOOKUP($A153,'Race 4-Men'!$N$35:$S$100,6,0)) -> 100 | H153: =SMALL(D153:G153,{1,2,3}) -> 100 | I153: 100 | J153: 100 | K153: 300 | L153: 39
A154: David Raimondo | B154: SS | C154: V40 | D154: =IF(ISNA(VLOOKUP($A154,'Race 1-Men'!$N$33:$S$51,6,0)),100,VLOOKUP($A154,'Race 1-Men'!$N$33:$S$51,6,0)) -> 14 | E154: =IF(ISNA(VLOOKUP($A154,'Race 2-Men'!$N$32:$S$53,6,0)),100,VLOOKUP($A154,'Race 2-Men'!$N$32:$S$53,6,0)) -> 7 | F154: =IF(ISNA(VLOOKUP($A154,'Race 3-Men'!$N$40:$S$61,6,0)),100,VLOOKUP($A154,'Race 3-Men'!$N$40:$S$61,6,0)) -> 100 | G154: =IF(ISNA(VLOOKUP($A154,'Race 4-Men'!$N$35:$S$100,6,0)),100,VLOOKUP($A154,'Race 4-Men'!$N$35:$S$100,6,0)) -> 100 | H154: =SMALL(D154:G154,{1,2,3}) -> 7 | I154: 14 | J154: 100 | K154: 121 | L154: 18
A155: David Sinnet | B155: SS | C155: V40 | D155: =IF(ISNA(VLOOKUP($A155,'Race 1-Men'!$N$33:$S$51,6,0)),100,VLOOKUP($A155,'Race 1-Men'!$N$33:$S$51,6,0)) -> 100 | E155: =IF(ISNA(VLOOKUP($A155,'Race 2-Men'!$N$32:$S$53,6,0)),100,VLOOKUP($A155,'Race 2-Men'!$N$32:$S$53,6,0)) -> 100 | F155: =IF(ISNA(VLOOKUP($A155,'Race 3-Men'!$N$40:$S$61,6,0)),100,VLOOKUP($A155,'Race 3-Men'!$N$40:$S$61,6,0)) -> 100 | G155: =IF(ISNA(VLOOKUP($A155,'Race 4-Men'!$N$35:$S$100,6,0)),100,VLOOKUP($A155,'Race 4-Men'!$N$35:$S$100,6,0)) -> 100 | H155: =SMALL(D155:G155,{1,2,3}) -> 100 | I155: 100 | J155: 100 | K155: 300 | L155: 39
A156: Edward Benyon | B156: SS | C156: V40 | D156: =IF(ISNA(VLOOKUP($A156,'Race 1-Men'!$N$33:$S$51,6,0)),100,VLOOKUP($A156,'Race 1-Men'!$N$33:$S$51,6,0)) -> 100 | E156: =IF(ISNA(VLOOKUP($A156,'Race 2-Men'!$N$32:$S$53,6,0)),100,VLOOKUP($A156,'Race 2-Men'!$N$32:$S$53,6,0)) -> 100 | F156: =IF(ISNA(VLOOKUP($A156,'Race 3-Men'!$N$40:$S$61,6,0)),100,VLOOKUP($A156,'Race 3-Men'!$N$40:$S$61,6,0)) -> 100 | G156: =IF(ISNA(VLOOKUP($A156,'Race 4-Men'!$N$35:$S$100,6,0)),100,VLOOKUP($A156,'Race 4-Men'!$N$35:$S$100,6,0)) -> 100 | H156: =SMALL(D156:G156,{1,2,3}) -> 100 | I156: 100 | J156: 100 | K156: 300 | L156: 39
A157: Etienne Faure | B157: BS | C157: V40 | D157: =IF(ISNA(VLOOKUP($A157,'Race 1-Men'!$N$33:$S$51,6,0)),100,VLOOKUP($A157,'Race 1-Men'!$N$33:$S$51,6,0)) -> 100 | E157: =IF(ISNA(VLOOKUP($A157,'Race 2-Men'!$N$32:$S$53,6,0)),100,VLOOKUP($A157,'Race 2-Men'!$N$32:$S$53,6,0)) -> 100 | F157: =IF(ISNA(VLOOKUP($A157,'Race 3-Men'!$N$40:$S$61,6,0)),100,VLOOKUP($A157,'Race 3-Men'!$N$40:$S$61,6,0)) -> 100 | G157: =IF(ISNA(VLOOKUP($A157,'Race 4-Men'!$N$35:$S$100,6,0)),100,VLOOKUP($A157,'Race 4-Men'!$N$35:$S$100,6,0)) -> 13 | H157: =SMALL(D157:G157,{1,2,3}) -> 13 | I157: 100 | J157: 100 | K157: 213 | L157: 29
A158: Glen Wilson | B158: HRC | C158: V40 | D158: =IF(ISNA(VLOOKUP($A158,'Race 1-Men'!$N$33:$S$51,6,0)),100,VLOOKUP($A158,'Race 1-Men'!$N$33:$S$51,6,0)) -> 100 | E158: =IF(ISNA(VLOOKUP($A158,'Race 2-Men'!$N$32:$S$53,6,0)),100,VLOOKUP($A158,'Race 2-Men'!$N$32:$S$53,6,0)) -> 100 | F158: =IF(ISNA(VLOOKUP($A158,'Race 3-Men'!$N$40:$S$61,6,0)),100,VLOOKUP($A158,'Race 3-Men'!$N$40:$S$61,6,0)) -> 100 | G158: =IF(ISNA(VLOOKUP($A158,'Race 4-Men'!$N$35:$S$100,6,0)),100,VLOOKUP($A158,'Race 4-Men'!$N$35:$S$100,6,0)) -> 100 | H158: =SMALL(D158:G158,{1,2,3}) -> 100 | I158: 100 | J158: 100 | K158: 300 | L158: 39
A159: Iain Bulloch | B159: HRC | C159: V40 | D159: =IF(ISNA(VLOOKUP($A159,'Race 1-Men'!$N$33:$S$51,6,0)),100,VLOOKUP($A159,'Race 1-Men'!$N$33:$S$51,6,0)) -> 100 | E159: =IF(ISNA(VLOOKUP($A159,'Race 2-Men'!$N$32:$S$53,6,0)),100,VLOOKUP($A159,'Race 2-Men'!$N$32:$S$53,6,0)) -> 100 | F159: =IF(ISNA(VLOOKUP($A159,'Race 3-Men'!$N$40:$S$61,6,0)),100,VLOOKUP($A159,'Race 3-Men'!$N$40:$S$61,6,0)) -> 100 | G159: =IF(ISNA(VLOOKUP($A159,'Race 4-Men'!$N$35:$S$100,6,0)),100,VLOOKUP($A159,'Race 4-Men'!$N$35:$S$100,6,0)) -> 100 | H159: =SMALL(D159:G159,{1,2,3}) -> 100 | I159: 100 | J159: 100 | K159: 300 | L159: 39
A160: Iain Henley | B160: SS | C160: V40 | D160: =IF(ISNA(VLOOKUP($A160,'Race 1-Men'!$N$33:$S$51,6,0)),100,VLOOKUP($A160,'Race 1-Men'!$N$33:$S$51,6,0)) -> 100 | E160: =IF(ISNA(VLOOKUP($A160,'Race 2-Men'!$N$32:$S$53,6,0)),100,VLOOKUP($A160,'Race 2-Men'!$N$32:$S$53,6,0)) -> 4 | F160: =IF(ISNA(VLOOKUP($A160,'Race 3-Men'!$N$40:$S$61,6,0)),100,VLOOKUP($A160,'Race 3-Men'!$N$40:$S$61,6,0)) -> 5 | G160: =IF(ISNA(VLOOKUP($A160,'Race 4-Men'!$N$35:$S$100,6,0)),100,VLOOKUP($A160,'Race 4-Men'!$N$35:$S$100,6,0)) -> 100 | H160: =SMALL(D160:G160,{1,2,3}) -> 4 | I160: 5 | J160: 100 | K160: 109 | L160: 15
A161: Ian Griffiths | B161: BS | C161: V40 | D161: =IF(ISNA(VLOOKUP($A161,'Race 1-Men'!$N$33:$S$51,6,0)),100,VLOOKUP($A161,'Race 1-Men'!$N$33:$S$51,6,0)) -> 100 | E161: =IF(ISNA(VLOOKUP($A161,'Race 2-Men'!$N$32:$S$53,6,0)),100,VLOOKUP($A161,'Race 2-Men'!$N$32:$S$53,6,0)) -> 100 | F161: =IF(ISNA(VLOOKUP($A161,'Race 3-Men'!$N$40:$S$61,6,0)),100,VLOOKUP($A161,'Race 3-Men'!$N$40:$S$61,6,0)) -> 100 | G161: =IF(ISNA(VLOOKUP($A161,'Race 4-Men'!$N$35:$S$100,6,0)),100,VLOOKUP($A161,'Race 4-Men'!$N$35:$S$100,6,0)) -> 100 | H161: =SMALL(D161:G161,{1,2,3}) -> 100 | I161: 100 | J161: 100 | K161: 300 | L161: 39
A162: Jack Oliver | B162: WJ | C162: V40 | D162: =IF(ISNA(VLOOKUP($A162,'Race 1-Men'!$N$33:$S$51,6,0)),100,VLOOKUP($A162,'Race 1-Men'!$N$33:$S$51,6,0)) -> 100 | E162: =IF(ISNA(VLOOKUP($A162,'Race 2-Men'!$N$32:$S$53,6,0)),100,VLOOKUP($A162,'Race 2-Men'!$N$32:$S$53,6,0)) -> 100 | F162: =IF(ISNA(VLOOKUP($A162,'Race 3-Men'!$N$40:$S$61,6,0)),100,VLOOKUP($A162,'Race 3-Men'!$N$40:$S$61,6,0)) -> 100 | G162: =IF(ISNA(VLOOKUP($A162,'Race 4-Men'!$N$35:$S$100,6,0)),100,VLOOKUP($A162,'Race 4-Men'!$N$35:$S$100,6,0)) -> 100 | H162: =SMALL(D162:G162,{1,2,3}) -> 100 | I162: 100 | J162: 100 | K162: 300 | L162: 39
A163: James Delve | B163: BS | C163: V40 | D163: =IF(ISNA(VLOOKUP($A163,'Race 1-Men'!$N$33:$S$51,6,0)),100,VLOOKUP($A163,'Race 1-Men'!$N$33:$S$51,6,0)) -> 8 | E163: =IF(ISNA(VLOOKUP($A163,'Race 2-Men'!$N$32:$S$53,6,0)),100,VLOOKUP($A163,'Race 2-Men'!$N$32:$S$53,6,0)) -> 17 | F163: =IF(ISNA(VLOOKUP($A163,'Race 3-Men'!$N$40:$S$61,6,0)),100,VLOOKUP($A163,'Race 3-Men'!$N$40:$S$61,6,0)) -> 14 | G163: =IF(ISNA(VLOOKUP($A163,'Race 4-Men'!$N$35:$S$100,6,0)),100,VLOOKUP($A163,'Race 4-Men'!$N$35:$S$100,6,0)) -> 9 | H163: =SMALL(D163:G163,{1,2,3}) -> 8 | I163: 9 | J163: 14 | K163: 31 | L163: 9
A164: James Dowsett | B164: HRC | C164: V40 | D164: =IF(ISNA(VLOOKUP($A164,'Race 1-Men'!$N$33:$S$51,6,0)),100,VLOOKUP($A164,'Race 1-Men'!$N$33:$S$51,6,0)) -> 100 | E164: =IF(ISNA(VLOOKUP($A164,'Race 2-Men'!$N$32:$S$53,6,0)),100,VLOOKUP($A164,'Race 2-Men'!$N$32:$S$53,6,0)) -> 18 | F164: =IF(ISNA(VLOOKUP($A164,'Race 3-Men'!$N$40:$S$61,6,0)),100,VLOOKUP($A164,'Race 3-Men'!$N$40:$S$61,6,0)) -> 13 | G164: =IF(ISNA(VLOOKUP($A164,'Race 4-Men'!$N$35:$S$100,6,0)),100,VLOOKUP($A164,'Race 4-Men'!$N$35:$S$100,6,0)) -> 12 | H164: =SMALL(D164:G164,{1,2,3}) -> 12 | I164: 13 | J164: 18 | K164: 43 | L164: 12
A165: James Northrop | B165: HRC | C165: V40 | D165: =IF(ISNA(VLOOKUP($A165,'Race 1-Men'!$N$33:$S$51,6,0)),100,VLOOKUP($A165,'Race 1-Men'!$N$33:$S$51,6,0)) -> 100 | E165: =IF(ISNA(VLOOKUP($A165,'Race 2-Men'!$N$32:$S$53,6,0)),100,VLOOKUP($A165,'Race 2-Men'!$N$32:$S$53,6,0)) -> 100 | F165: =IF(ISNA(VLOOKUP($A165,'Race 3-Men'!$N$40:$S$61,6,0)),100,VLOOKUP($A165,'Race 3-Men'!$N$40:$S$61,6,0)) -> 100 | G165: =IF(ISNA(VLOOKUP($A165,'Race 4-Men'!$N$35:$S$100,6,0)),100,VLOOKUP($A165,'Race 4-Men'!$N$35:$S$100,6,0)) -> 100 | H165: =SMALL(D165:G165,{1,2,3}) -> 100 | I165: 100 | J165: 100 | K165: 300 | L165: 39
A166: James Reed | B166: WJ | C166: V40 | D166: =IF(ISNA(VLOOKUP($A166,'Race 1-Men'!$N$33:$S$51,6,0)),100,VLOOKUP($A166,'Race 1-Men'!$N$33:$S$51,6,0)) -> 100 | E166: =IF(ISNA(VLOOKUP($A166,'Race 2-Men'!$N$32:$S$53,6,0)),100,VLOOKUP($A166,'Race 2-Men'!$N$32:$S$53,6,0)) -> 100 | F166: =IF(ISNA(VLOOKUP($A166,'Race 3-Men'!$N$40:$S$61,6,0)),100,VLOOKUP($A166,'Race 3-Men'!$N$40:$S$61,6,0)) -> 100 | G166: =IF(ISNA(VLOOKUP($A166,'Race 4-Men'!$N$35:$S$100,6,0)),100,VLOOKUP($A166,'Race 4-Men'!$N$35:$S$100,6,0)) -> 100 | H166: =SMALL(D166:G166,{1,2,3}) -> 100 | I166: 100 | J166: 100 | K166: 300 | L166: 39
A167: Jamie Higgs | B167: WJ | C167: V40 | D167: =IF(ISNA(VLOOKUP($A167,'Race 1-Men'!$N$33:$S$51,6,0)),100,VLOOKUP($A167,'Race 1-Men'!$N$33:$S$51,6,0)) -> 7 | E167: =IF(ISNA(VLOOKUP($A167,'Race 2-Men'!$N$32:$S$53,6,0)),100,VLOOKUP($A167,'Race 2-Men'!$N$32:$S$53,6,0)) -> 9 | F167: =IF(ISNA(VLOOKUP($A167,'Race 3-Men'!$N$40:$S$61,6,0)),100,VLOOKUP($A167,'Race 3-Men'!$N$40:$S$61,6,0)) -> 9 | G167: =IF(ISNA(VLOOKUP($A167,'Race 4-Men'!$N$35:$S$100,6,0)),100,VLOOKUP($A167,'Race 4-Men'!$N$35:$S$100,6,0)) -> 6 | H167: =SMALL(D167:G167,{1,2,3}) -> 6 | I167: 7 | J167: 9 | K167: 22 | L167: 6
A168: Jamie Olsen Ferreira | B168: HRC | C168: V40 | D168: =IF(ISNA(VLOOKUP($A168,'Race 1-Men'!$N$33:$S$51,6,0)),100,VLOOKUP($A168,'Race 1-Men'!$N$33:$S$51,6,0)) -> 100 | E168: =IF(ISNA(VLOOKUP($A168,'Race 2-Men'!$N$32:$S$53,6,0)),100,VLOOKUP($A168,'Race 2-Men'!$N$32:$S$53,6,0)) -> 100 | F168: =IF(ISNA(VLOOKUP($A168,'Race 3-Men'!$N$40:$S$61,6,0)),100,VLOOKUP($A168,'Race 3-Men'!$N$40:$S$61,6,0)) -> 20 | G168: =IF(ISNA(VLOOKUP($A168,'Race 4-Men'!$N$35:$S$100,6,0)),100,VLOOKUP($A168,'Race 4-Men'!$N$35:$S$100,6,0)) -> 18 | H168: =SMALL(D168:G168,{1,2,3}) -> 18 | I168: 20 | J168: 100 | K168: 138 | L168: 23
A169: Jamie Smith | B169: BS | C169: V40 | D169: =IF(ISNA(VLOOKUP($A169,'Race 1-Men'!$N$33:$S$51,6,0)),100,VLOOKUP($A169,'Race 1-Men'!$N$33:$S$51,6,0)) -> 15 | E169: =IF(ISNA(VLOOKUP($A169,'Race 2-Men'!$N$32:$S$53,6,0)),100,VLOOKUP($A169,'Race 2-Men'!$N$32:$S$53,6,0)) -> 100 | F169: =IF(ISNA(VLOOKUP($A169,'Race 3-Men'!$N$40:$S$61,6,0)),100,VLOOKUP($A169,'Race 3-Men'!$N$40:$S$61,6,0)) -> 19 | G169: =IF(ISNA(VLOOKUP($A169,'Race 4-Men'!$N$35:$S$100,6,0)),100,VLOOKUP($A169,'Race 4-Men'!$N$35:$S$100,6,0)) -> 17 | H169: =SMALL(D169:G169,{1,2,3}) -> 15 | I169: 17 | J169: 19 | K169: 51 | L169: 13
A170: Jason Champion | B170: WJ | C170: V40 | D170: =IF(ISNA(VLOOKUP($A170,'Race 1-Men'!$N$33:$S$51,6,0)),100,VLOOKUP($A170,'Race 1-Men'!$N$33:$S$51,6,0)) -> 100 | E170: =IF(ISNA(VLOOKUP($A170,'Race 2-Men'!$N$32:$S$53,6,0)),100,VLOOKUP($A170,'Race 2-Men'!$N$32:$S$53,6,0)) -> 100 | F170: =IF(ISNA(VLOOKUP($A170,'Race 3-Men'!$N$40:$S$61,6,0)),100,VLOOKUP($A170,'Race 3-Men'!$N$40:$S$61,6,0)) -> 100 | G170: =IF(ISNA(VLOOKUP($A170,'Race 4-Men'!$N$35:$S$100,6,0)),100,VLOOKUP($A170,'Race 4-Men'!$N$35:$S$100,6,0)) -> 100 | H170: =SMALL(D170:G170,{1,2,3}) -> 100 | I170: 100 | J170: 100 | K170: 300 | L170: 39
A171: Jeff Mace | B171: HRC | C171: V40 | D171: =IF(ISNA(VLOOKUP($A171,'Race 1-Men'!$N$33:$S$51,6,0)),100,VLOOKUP($A171,'Race 1-Men'!$N$33:$S$51,6,0)) -> 100 | E171: =IF(ISNA(VLOOKUP($A171,'Race 2-Men'!$N$32:$S$53,6,0)),100,VLOOKUP($A171,'Race 2-Men'!$N$32:$S$53,6,0)) -> 100 | F171: =IF(ISNA(VLOOKUP($A171,'Race 3-Men'!$N$40:$S$61,6,0)),100,VLOOKUP($A171,'Race 3-Men'!$N$40:$S$61,6,0)) -> 100 | G171: =IF(ISNA(VLOOKUP($A171,'Race 4-Men'!$N$35:$S$100,6,0)),100,VLOOKUP($A171,'Race 4-Men'!$N$35:$S$100,6,0)) -> 100 | H171: =SMALL(D171:G171,{1,2,3}) -> 100 | I171: 100 | J171: 100 | K171: 300 | L171: 39
A172: Jess Melville | B172: BS | C172: V40 | D172: =IF(ISNA(VLOOKUP($A172,'Race 1-Men'!$N$33:$S$51,6,0)),100,VLOOKUP($A172,'Race 1-Men'!$N$33:$S$51,6,0)) -> 100 | E172: =IF(ISNA(VLOOKUP($A172,'Race 2-Men'!$N$32:$S$53,6,0)),100,VLOOKUP($A172,'Race 2-Men'!$N$32:$S$53,6,0)) -> 100 | F172: =IF(ISNA(VLOOKUP($A172,'Race 3-Men'!$N$40:$S$61,6,0)),100,VLOOKUP($A172,'Race 3-Men'!$N$40:$S$61,6,0)) -> 100 | G172: =IF(ISNA(VLOOKUP($A172,'Race 4-Men'!$N$35:$S$100,6,0)),100,VLOOKUP($A172,'Race 4-Men'!$N$35:$S$100,6,0)) -> 100 | H172: =SMALL(D172:G172,{1,2,3}) -> 100 | I172: 100 | J172: 100 | K172: 300 | L172: 39
A173: John Edwards | B173: HRC | C173: V40 | D173: =IF(ISNA(VLOOKUP($A173,'Race 1-Men'!$N$33:$S$51,6,0)),100,VLOOKUP($A173,'Race 1-Men'!$N$33:$S$51,6,0)) -> 100 | E173: =IF(ISNA(VLOOKUP($A173,'Race 2-Men'!$N$32:$S$53,6,0)),100,VLOOKUP($A173,'Race 2-Men'!$N$32:$S$53,6,0)) -> 100 | F173: =IF(ISNA(VLOOKUP($A173,'Race 3-Men'!$N$40:$S$61,6,0)),100,VLOOKUP($A173,'Race 3-Men'!$N$40:$S$61,6,0)) -> 100 | G173: =IF(ISNA(VLOOKUP($A173,'Race 4-Men'!$N$35:$S$100,6,0)),100,VLOOKUP($A173,'Race 4-Men'!$N$35:$S$100,6,0)) -> 100 | H173: =SMALL(D173:G173,{1,2,3}) -> 100 | I173: 100 | J173: 100 | K173: 300 | L173: 39
A174: John Heanley | B174: SS | C174: V40 | D174: =IF(ISNA(VLOOKUP($A174,'Race 1-Men'!$N$33:$S$51,6,0)),100,VLOOKUP($A174,'Race 1-Men'!$N$33:$S$51,6,0)) -> 100 | E174: =IF(ISNA(VLOOKUP($A174,'Race 2-Men'!$N$32:$S$53,6,0)),100,VLOOKUP($A174,'Race 2-Men'!$N$32:$S$53,6,0)) -> 100 | F174: =IF(ISNA(VLOOKUP($A174,'Race 3-Men'!$N$40:$S$61,6,0)),100,VLOOKUP($A174,'Race 3-Men'!$N$40:$S$61,6,0)) -> 100 | G174: =IF(ISNA(VLOOKUP($A174,'Race 4-Men'!$N$35:$S$100,6,0)),100,VLOOKUP($A174,'Race 4-Men'!$N$35:$S$100,6,0)) -> 100 | H174: =SMALL(D174:G174,{1,2,3}) -> 100 | I174: 100 | J174: 100 | K174: 300 | L174: 39
A175: John McCarthy | B175: HRC | C175: V40 | D175: =IF(ISNA(VLOOKUP($A175,'Race 1-Men'!$N$33:$S$51,6,0)),100,VLOOKUP($A175,'Race 1-Men'!$N$33:$S$51,6,0)) -> 100 | E175: =IF(ISNA(VLOOKUP($A175,'Race 2-Men'!$N$32:$S$53,6,0)),100,VLOOKUP($A175,'Race 2-Men'!$N$32:$S$53,6,0)) -> 100 | F175: =IF(ISNA(VLOOKUP($A175,'Race 3-Men'!$N$40:$S$61,6,0)),100,VLOOKUP($A175,'Race 3-Men'!$N$40:$S$61,6,0)) -> 100 | G175: =IF(ISNA(VLOOKUP($A175,'Race 4-Men'!$N$35:$S$100,6,0)),100,VLOOKUP($A175,'Race 4-Men'!$N$35:$S$100,6,0)) -> 100 | H175: =SMALL(D175:G175,{1,2,3}) -> 100 | I175: 100 | J175: 100 | K175: 300 | L175: 39
A176: John Wright | B176: BS | C176: V40 | D176: =IF(ISNA(VLOOKUP($A176,'Race 1-Men'!$N$33:$S$51,6,0)),100,VLOOKUP($A176,'Race 1-Men'!$N$33:$S$51,6,0)) -> 100 | E176: =IF(ISNA(VLOOKUP($A176,'Race 2-Men'!$N$32:$S$53,6,0)),100,VLOOKUP($A176,'Race 2-Men'!$N$32:$S$53,6,0)) -> 100 | F176: =IF(ISNA(VLOOKUP($A176,'Race 3-Men'!$N$40:$S$61,6,0)),100,VLOOKUP($A176,'Race 3-Men'!$N$40:$S$61,6,0)) -> 100 | G176: =IF(ISNA(VLOOKUP($A176,'Race 4-Men'!$N$35:$S$100,6,0)),100,VLOOKUP($A176,'Race 4-Men'!$N$35:$S$100,6,0)) -> 100 | H176: =SMALL(D176:G176,{1,2,3}) -> 100 | I176: 100 | J176: 100 | K176: 300 | L176: 39
A177: Jon Steadman | B177: HRC | C177: V40 | D177: =IF(ISNA(VLOOKUP($A177,'Race 1-Men'!$N$33:$S$51,6,0)),100,VLOOKUP($A177,'Race 1-Men'!$N$33:$S$51,6,0)) -> 100 | E177: =IF(ISNA(VLOOKUP($A177,'Race 2-Men'!$N$32:$S$53,6,0)),100,VLOOKUP($A177,'Race 2-Men'!$N$32:$S$53,6,0)) -> 100 | F177: =IF(ISNA(VLOOKUP($A177,'Race 3-Men'!$N$40:$S$61,6,0)),100,VLOOKUP($A177,'Race 3-Men'!$N$40:$S$61,6,0)) -> 100 | G177: =IF(ISNA(VLOOKUP($A177,'Race 4-Men'!$N$35:$S$100,6,0)),100,VLOOKUP($A177,'Race 4-Men'!$N$35:$S$100,6,0)) -> 14 | H177: =SMALL(D177:G177,{1,2,3}) -> 14 | I177: 100 | J177: 100 | K177: 214 | L177: 31
A178: Jon Williams | B178: WJ | C178: V40 | D178: =IF(ISNA(VLOOKUP($A178,'Race 1-Men'!$N$33:$S$51,6,0)),100,VLOOKUP($A178,'Race 1-Men'!$N$33:$S$51,6,0)) -> 100 | E178: =IF(ISNA(VLOOKUP($A178,'Race 2-Men'!$N$32:$S$53,6,0)),100,VLOOKUP($A178,'Race 2-Men'!$N$32:$S$53,6,0)) -> 6 | F178: =IF(ISNA(VLOOKUP($A178,'Race 3-Men'!$N$40:$S$61,6,0)),100,VLOOKUP($A178,'Race 3-Men'!$N$40:$S$61,6,0)) -> 6 | G178: =IF(ISNA(VLOOKUP($A178,'Race 4-Men'!$N$35:$S$100,6,0)),100,VLOOKUP($A178,'Race 4-Men'!$N$35:$S$100,6,0)) -> 5 | H178: =SMALL(D178:G178,{1,2,3}) -> 5 | I178: 6 | J178: 6 | K178: 17 | L178: 5
A179: Jonathan Bristowe | B179: HRC | C179: V40 | D179: =IF(ISNA(VLOOKUP($A179,'Race 1-Men'!$N$33:$S$51,6,0)),100,VLOOKUP($A179,'Race 1-Men'!$N$33:$S$51,6,0)) -> 100 | E179: =IF(ISNA(VLOOKUP($A179,'Race 2-Men'!$N$32:$S$53,6,0)),100,VLOOKUP($A179,'Race 2-Men'!$N$32:$S$53,6,0)) -> 100 | F179: =IF(ISNA(VLOOKUP($A179,'Race 3-Men'!$N$40:$S$61,6,0)),100,VLOOKUP($A179,'Race 3-Men'!$N$40:$S$61,6,0)) -> 100 | G179: =IF(ISNA(VLOOKUP($A179,'Race 4-Men'!$N$35:$S$100,6,0)),100,VLOOKUP($A179,'Race 4-Men'!$N$35:$S$100,6,0)) -> 100 | H179: =SMALL(D179:G179,{1,2,3}) -> 100 | I179: 100 | J179: 100 | K179: 300 | L179: 39
A180: Jonathan Hall | B180: WJ | C180: V40 | D180: =IF(ISNA(VLOOKUP($A180,'Race 1-Men'!$N$33:$S$51,6,0)),100,VLOOKUP($A180,'Race 1-Men'!$N$33:$S$51,6,0)) -> 100 | E180: =IF(ISNA(VLOOKUP($A180,'Race 2-Men'!$N$32:$S$53,6,0)),100,VLOOKUP($A180,'Race 2-Men'!$N$32:$S$53,6,0)) -> 100 | F180: =IF(ISNA(VLOOKUP($A180,'Race 3-Men'!$N$40:$S$61,6,0)),100,VLOOKUP($A180,'Race 3-Men'!$N$40:$S$61,6,0)) -> 100 | G180: =IF(ISNA(VLOOKUP($A180,'Race 4-Men'!$N$35:$S$100,6,0)),100,VLOOKUP($A180,'Race 4-Men'!$N$35:$S$100,6,0)) -> 100 | H180: =SMALL(D180:G180,{1,2,3}) -> 100 | I180: 100 | J180: 100 | K180: 300 | L180: 39
A181: Justin Attelsey | B181: SS | C181: V40 | D181: =IF(ISNA(VLOOKUP($A181,'Race 1-Men'!$N$33:$S$51,6,0)),100,VLOOKUP($A181,'Race 1-Men'!$N$33:$S$51,6,0)) -> 100 | E181: =IF(ISNA(VLOOKUP($A181,'Race 2-Men'!$N$32:$S$53,6,0)),100,VLOOKUP($A181,'Race 2-Men'!$N$32:$S$53,6,0)) -> 100 | F181: =IF(ISNA(VLOOKUP($A181,'Race 3-Men'!$N$40:$S$61,6,0)),100,VLOOKUP($A181,'Race 3-Men'!$N$40:$S$61,6,0)) -> 100 | G181: =IF(ISNA(VLOOKUP($A181,'Race 4-Men'!$N$35:$S$100,6,0)),100,VLOOKUP($A181,'Race 4-Men'!$N$35:$S$100,6,0)) -> 100 | H181: =SMALL(D181:G181,{1,2,3}) -> 100 | I181: 100 | J181: 100 | K181: 300 | L181: 39
A182: Keir Mann | B182: BS | C182: V40 | D182: =IF(ISNA(VLOOKUP($A182,'Race 1-Men'!$N$33:$S$51,6,0)),100,VLOOKUP($A182,'Race 1-Men'!$N$33:$S$51,6,0)) -> 100 | E182: =IF(ISNA(VLOOKUP($A182,'Race 2-Men'!$N$32:$S$53,6,0)),100,VLOOKUP($A182,'Race 2-Men'!$N$32:$S$53,6,0)) -> 100 | F182: =IF(ISNA(VLOOKUP($A182,'Race 3-Men'!$N$40:$S$61,6,0)),100,VLOOKUP($A182,'Race 3-Men'!$N$40:$S$61,6,0)) -> 100 | G182: =IF(ISNA(VLOOKUP($A182,'Race 4-Men'!$N$35:$S$100,6,0)),100,VLOOKUP($A182,'Race 4-Men'!$N$35:$S$100,6,0)) -> 100 | H182: =SMALL(D182:G182,{1,2,3}) -> 100 | I182: 100 | J182: 100 | K182: 300 | L182: 39
A183: Kevin Francis | B183: WJ | C183: V40 | D183: =IF(ISNA(VLOOKUP($A183,'Race 1-Men'!$N$33:$S$51,6,0)),100,VLOOKUP($A183,'Race 1-Men'!$N$33:$S$51,6,0)) -> 2 | E183: =IF(ISNA(VLOOKUP($A183,'Race 2-Men'!$N$32:$S$53,6,0)),100,VLOOKUP($A183,'Race 2-Men'!$N$32:$S$53,6,0)) -> 2 | F183: =IF(ISNA(VLOOKUP($A183,'Race 3-Men'!$N$40:$S$61,6,0)),100,VLOOKUP($A183,'Race 3-Men'!$N$40:$S$61,6,0)) -> 2 | G183: =IF(ISNA(VLOOKUP($A183,'Race 4-Men'!$N$35:$S$100,6,0)),100,VLOOKUP($A183,'Race 4-Men'!$N$35:$S$100,6,0)) -> 1 | H183: =SMALL(D183:G183,{1,2,3}) -> 1 | I183: 2 | J183: 2 | K183: 5 | L183: 2
A184: Kevin Mully | B184: BS | C184: V40 | D184: =IF(ISNA(VLOOKUP($A184,'Race 1-Men'!$N$33:$S$51,6,0)),100,VLOOKUP($A184,'Race 1-Men'!$N$33:$S$51,6,0)) -> 100 | E184: =IF(ISNA(VLOOKUP($A184,'Race 2-Men'!$N$32:$S$53,6,0)),100,VLOOKUP($A184,'Race 2-Men'!$N$32:$S$53,6,0)) -> 100 | F184: =IF(ISNA(VLOOKUP($A184,'Race 3-Men'!$N$40:$S$61,6,0)),100,VLOOKUP($A184,'Race 3-Men'!$N$40:$S$61,6,0)) -> 100 | G184: =IF(ISNA(VLOOKUP($A184,'Race 4-Men'!$N$35:$S$100,6,0)),100,VLOOKUP($A184,'Race 4-Men'!$N$35:$S$100,6,0)) -> 3 | H184: =SMALL(D184:G184,{1,2,3}) -> 3 | I184: 100 | J184: 100 | K184: 203 | L184: =RANK(K184,$K$119:$K$270,1) -> 25
A185: Kevin Peacock | B185: HRC | C185: V40 | D185: =IF(ISNA(VLOOKUP($A185,'Race 1-Men'!$N$33:$S$51,6,0)),100,VLOOKUP($A185,'Race 1-Men'!$N$33:$S$51,6,0)) -> 100 | E185: =IF(ISNA(VLOOKUP($A185,'Race 2-Men'!$N$32:$S$53,6,0)),100,VLOOKUP($A185,'Race 2-Men'!$N$32:$S$53,6,0)) -> 100 | F185: =IF(ISNA(VLOOKUP($A185,'Race 3-Men'!$N$40:$S$61,6,0)),100,VLOOKUP($A185,'Race 3-Men'!$N$40:$S$61,6,0)) -> 100 | G185: =IF(ISNA(VLOOKUP($A185,'Race 4-Men'!$N$35:$S$100,6,0)),100,VLOOKUP($A185,'Race 4-Men'!$N$35:$S$100,6,0)) -> 100 | H185: =SMALL(D185:G185,{1,2,3}) -> 100 | I185: 100 | J185: 100 | K185: 300 | L185: 39
A186: Kirk Crudgington | B186: HRC | C186: V40 | D186: =IF(ISNA(VLOOKUP($A186,'Race 1-Men'!$N$33:$S$51,6,0)),100,VLOOKUP($A186,'Race 1-Men'!$N$33:$S$51,6,0)) -> 100 | E186: =IF(ISNA(VLOOKUP($A186,'Race 2-Men'!$N$32:$S$53,6,0)),100,VLOOKUP($A186,'Race 2-Men'!$N$32:$S$53,6,0)) -> 100 | F186: =IF(ISNA(VLOOKUP($A186,'Race 3-Men'!$N$40:$S$61,6,0)),100,VLOOKUP($A186,'Race 3-Men'!$N$40:$S$61,6,0)) -> 100 | G186: =IF(ISNA(VLOOKUP($A186,'Race 4-Men'!$N$35:$S$100,6,0)),100,VLOOKUP($A186,'Race 4-Men'!$N$35:$S$100,6,0)) -> 100 | H186: =SMALL(D186:G186,{1,2,3}) -> 100 | I186: 100 | J186: 100 | K186: 300 | L186: 39
A187: Laurence Foote | B187: BS | C187: V40 | D187: =IF(ISNA(VLOOKUP($A187,'Race 1-Men'!$N$33:$S$51,6,0)),100,VLOOKUP($A187,'Race 1-Men'!$N$33:$S$51,6,0)) -> 100 | E187: =IF(ISNA(VLOOKUP($A187,'Race 2-Men'!$N$32:$S$53,6,0)),100,VLOOKUP($A187,'Race 2-Men'!$N$32:$S$53,6,0)) -> 100 | F187: =IF(ISNA(VLOOKUP($A187,'Race 3-Men'!$N$40:$S$61,6,0)),100,VLOOKUP($A187,'Race 3-Men'!$N$40:$S$61,6,0)) -> 100 | G187: =IF(ISNA(VLOOKUP($A187,'Race 4-Men'!$N$35:$S$100,6,0)),100,VLOOKUP($A187,'Race 4-Men'!$N$35:$S$100,6,0)) -> 100 | H187: =SMALL(D187:G187,{1,2,3}) -> 100 | I187: 100 | J187: 100 | K187: 300 | L187: 39
A188: Lee Gamble | B188: SS | C188: V40 | D188: =IF(ISNA(VLOOKUP($A188,'Race 1-Men'!$N$33:$S$51,6,0)),100,VLOOKUP($A188,'Race 1-Men'!$N$33:$S$51,6,0)) -> 100 | E188: =IF(ISNA(VLOOKUP($A188,'Race 2-Men'!$N$32:$S$53,6,0)),100,VLOOKUP($A188,'Race 2-Men'!$N$32:$S$53,6,0)) -> 100 | F188: =IF(ISNA(VLOOKUP($A188,'Race 3-Men'!$N$40:$S$61,6,0)),100,VLOOKUP($A188,'Race 3-Men'!$N$40:$S$61,6,0)) -> 100 | G188: =IF(ISNA(VLOOKUP($A188,'Race 4-Men'!$N$35:$S$100,6,0)),100,VLOOKUP($A188,'Race 4-Men'!$N$35:$S$100,6,0)) -> 100 | H188: =SMALL(D188:G188,{1,2,3}) -> 100 | I188: 100 | J188: 100 | K188: 300 | L188: 39
A189: Lee Kirby | B189: BS | C189: V40 | D189: =IF(ISNA(VLOOKUP($A189,'Race 1-Men'!$N$33:$S$51,6,0)),100,VLOOKUP($A189,'Race 1-Men'!$N$33:$S$51,6,0)) -> 100 | E189: =IF(ISNA(VLOOKUP($A189,'Race 2-Men'!$N$32:$S$53,6,0)),100,VLOOKUP($A189,'Race 2-Men'!$N$32:$S$53,6,0)) -> 100 | F189: =IF(ISNA(VLOOKUP($A189,'Race 3-Men'!$N$40:$S$61,6,0)),100,VLOOKUP($A189,'Race 3-Men'!$N$40:$S$61,6,0)) -> 100 | G189: =IF(ISNA(VLOOKUP($A189,'Race 4-Men'!$N$35:$S$100,6,0)),100,VLOOKUP($A189,'Race 4-Men'!$N$35:$S$100,6,0)) -> 100 | H189: =SMALL(D189:G189,{1,2,3}) -> 100 | I189: 100 | J189: 100 | K189: 300 | L189: 39
A190: Lee Rhodes | B190: BS | C190: V40 | D190: =IF(ISNA(VLOOKUP($A190,'Race 1-Men'!$N$33:$S$51,6,0)),100,VLOOKUP($A190,'Race 1-Men'!$N$33:$S$51,6,0)) -> 100 | E190: =IF(ISNA(VLOOKUP($A190,'Race 2-Men'!$N$32:$S$53,6,0)),100,VLOOKUP($A190,'Race 2-Men'!$N$32:$S$53,6,0)) -> 100 | F190: =IF(ISNA(VLOOKUP($A190,'Race 3-Men'!$N$40:$S$61,6,0)),100,VLOOKUP($A190,'Race 3-Men'!$N$40:$S$61,6,0)) -> 100 | G190: =IF(ISNA(VLOOKUP($A190,'Race 4-Men'!$N$35:$S$100,6,0)),100,VLOOKUP($A190,'Race 4-Men'!$N$35:$S$100,6,0)) -> 100 | H190: =SMALL(D190:G190,{1,2,3}) -> 100 | I190: 100 | J190: 100 | K190: 300 | L190: 39
A191: Lee Vass | B191: BS | C191: V40 | D191: =IF(ISNA(VLOOKUP($A191,'Race 1-Men'!$N$33:$S$51,6,0)),100,VLOOKUP($A191,'Race 1-Men'!$N$33:$S$51,6,0)) -> 100 | E191: =IF(ISNA(VLOOKUP($A191,'Race 2-Men'!$N$32:$S$53,6,0)),100,VLOOKUP($A191,'Race 2-Men'!$N$32:$S$53,6,0)) -> 100 | F191: =IF(ISNA(VLOOKUP($A191,'Race 3-Men'!$N$40:$S$61,6,0)),100,VLOOKUP($A191,'Race 3-Men'!$N$40:$S$61,6,0)) -> 100 | G191: =IF(ISNA(VLOOKUP($A191,'Race 4-Men'!$N$35:$S$100,6,0)),100,VLOOKUP($A191,'Race 4-Men'!$N$35:$S$100,6,0)) -> 100 | H191: =SMALL(D191:G191,{1,2,3}) -> 100 | I191: 100 | J191: 100 | K191: 300 | L191: 39
A192: Lee Webber | B192: HRC | C192: V40 | D192: =IF(ISNA(VLOOKUP($A192,'Race 1-Men'!$N$33:$S$51,6,0)),100,VLOOKUP($A192,'Race 1-Men'!$N$33:$S$51,6,0)) -> 9 | E192: =IF(ISNA(VLOOKUP($A192,'Race 2-Men'!$N$32:$S$53,6,0)),100,VLOOKUP($A192,'Race 2-Men'!$N$32:$S$53,6,0)) -> 21 | F192: =IF(ISNA(VLOOKUP($A192,'Race 3-Men'!$N$40:$S$61,6,0)),100,VLOOKUP($A192,'Race 3-Men'!$N$40:$S$61,6,0)) -> 11 | G192: =IF(ISNA(VLOOKUP($A192,'Race 4-Men'!$N$35:$S$100,6,0)),100,VLOOKUP($A192,'Race 4-Men'!$N$35:$S$100,6,0)) -> 8 | H192: =SMALL(D192:G192,{1,2,3}) -> 8 | I192: 9 | J192: 11 | K192: 28 | L192: 8
A193: Leigh Brown | B193: HRC | C193: V40 | D193: =IF(ISNA(VLOOKUP($A193,'Race 1-Men'!$N$33:$S$51,6,0)),100,VLOOKUP($A193,'Race 1-Men'!$N$33:$S$51,6,0)) -> 100 | E193: =IF(ISNA(VLOOKUP($A193,'Race 2-Men'!$N$32:$S$53,6,0)),100,VLOOKUP($A193,'Race 2-Men'!$N$32:$S$53,6,0)) -> 100 | F193: =IF(ISNA(VLOOKUP($A193,'Race 3-Men'!$N$40:$S$61,6,0)),100,VLOOKUP($A193,'Race 3-Men'!$N$40:$S$61,6,0)) -> 100 | G193: =IF(ISNA(VLOOKUP($A193,'Race 4-Men'!$N$35:$S$100,6,0)),100,VLOOKUP($A193,'Race 4-Men'!$N$35:$S$100,6,0)) -> 100 | H193: =SMALL(D193:G193,{1,2,3}) -> 100 | I193: 100 | J193: 100 | K193: 300 | L193: 39
A194: Liam Dillon | B194: BS | C194: V40 | D194: =IF(ISNA(VLOOKUP($A194,'Race 1-Men'!$N$33:$S$51,6,0)),100,VLOOKUP($A194,'Race 1-Men'!$N$33:$S$51,6,0)) -> 100 | E194: =IF(ISNA(VLOOKUP($A194,'Race 2-Men'!$N$32:$S$53,6,0)),100,VLOOKUP($A194,'Race 2-Men'!$N$32:$S$53,6,0)) -> 100 | F194: =IF(ISNA(VLOOKUP($A194,'Race 3-Men'!$N$40:$S$61,6,0)),100,VLOOKUP($A194,'Race 3-Men'!$N$40:$S$61,6,0)) -> 100 | G194: =IF(ISNA(VLOOKUP($A194,'Race 4-Men'!$N$35:$S$100,6,0)),100,VLOOKUP($A194,'Race 4-Men'!$N$35:$S$100,6,0)) -> 100 | H194: =SMALL(D194:G194,{1,2,3}) -> 100 | I194: 100 | J194: 100 | K194: 300 | L194: 39
A195: Liam Sheils | B195: BS | C195: V40 | D195: =IF(ISNA(VLOOKUP($A195,'Race 1-Men'!$N$33:$S$51,6,0)),100,VLOOKUP($A195,'Race 1-Men'!$N$33:$S$51,6,0)) -> 100 | E195: =IF(ISNA(VLOOKUP($A195,'Race 2-Men'!$N$32:$S$53,6,0)),100,VLOOKUP($A195,'Race 2-Men'!$N$32:$S$53,6,0)) -> 100 | F195: =IF(ISNA(VLOOKUP($A195,'Race 3-Men'!$N$40:$S$61,6,0)),100,VLOOKUP($A195,'Race 3-Men'!$N$40:$S$61,6,0)) -> 100 | G195: =IF(ISNA(VLOOKUP($A195,'Race 4-Men'!$N$35:$S$100,6,0)),100,VLOOKUP($A195,'Race 4-Men'!$N$35:$S$100,6,0)) -> 100 | H195: =SMALL(D195:G195,{1,2,3}) -> 100 | I195: 100 | J195: 100 | K195: 300 | L195: 39
A196: Marc Witham | B196: HRC | C196: V40 | D196: =IF(ISNA(VLOOKUP($A196,'Race 1-Men'!$N$33:$S$51,6,0)),100,VLOOKUP($A196,'Race 1-Men'!$N$33:$S$51,6,0)) -> 100 | E196: =IF(ISNA(VLOOKUP($A196,'Race 2-Men'!$N$32:$S$53,6,0)),100,VLOOKUP($A196,'Race 2-Men'!$N$32:$S$53,6,0)) -> 100 | F196: =IF(ISNA(VLOOKUP($A196,'Race 3-Men'!$N$40:$S$61,6,0)),100,VLOOKUP($A196,'Race 3-Men'!$N$40:$S$61,6,0)) -> 100 | G196: =IF(ISNA(VLOOKUP($A196,'Race 4-Men'!$N$35:$S$100,6,0)),100,VLOOKUP($A196,'Race 4-Men'!$N$35:$S$100,6,0)) -> 100 | H196: =SMALL(D196:G196,{1,2,3}) -> 100 | I196: 100 | J196: 100 | K196: =SUM(H196:J196) -> 300 | L196: 39
A197: Mark Anderton | B197: SS | C197: V40 | D197: =IF(ISNA(VLOOKUP($A197,'Race 1-Men'!$N$33:$S$51,6,0)),100,VLOOKUP($A197,'Race 1-Men'!$N$33:$S$51,6,0)) -> 100 | E197: =IF(ISNA(VLOOKUP($A197,'Race 2-Men'!$N$32:$S$53,6,0)),100,VLOOKUP($A197,'Race 2-Men'!$N$32:$S$53,6,0)) -> 100 | F197: =IF(ISNA(VLOOKUP($A197,'Race 3-Men'!$N$40:$S$61,6,0)),100,VLOOKUP($A197,'Race 3-Men'!$N$40:$S$61,6,0)) -> 100 | G197: =IF(ISNA(VLOOKUP($A197,'Race 4-Men'!$N$35:$S$100,6,0)),100,VLOOKUP($A197,'Race 4-Men'!$N$35:$S$100,6,0)) -> 100 | H197: =SMALL(D197:G197,{1,2,3}) -> 100 | I197: 100 | J197: 100 | K197: 300 | L197: 39
A198: Mark Coutts | B198: SS | C198: V40 | D198: =IF(ISNA(VLOOKUP($A198,'Race 1-Men'!$N$33:$S$51,6,0)),100,VLOOKUP($A198,'Race 1-Men'!$N$33:$S$51,6,0)) -> 100 | E198: =IF(ISNA(VLOOKUP($A198,'Race 2-Men'!$N$32:$S$53,6,0)),100,VLOOKUP($A198,'Race 2-Men'!$N$32:$S$53,6,0)) -> 100 | F198: =IF(ISNA(VLOOKUP($A198,'Race 3-Men'!$N$40:$S$61,6,0)),100,VLOOKUP($A198,'Race 3-Men'!$N$40:$S$61,6,0)) -> 100 | G198: =IF(ISNA(VLOOKUP($A198,'Race 4-Men'!$N$35:$S$100,6,0)),100,VLOOKUP($A198,'Race 4-Men'!$N$35:$S$100,6,0)) -> 100 | H198: =SMALL(D198:G198,{1,2,3}) -> 100 | I198: 100 | J198: 100 | K198: 300 | L198: 39
A199: Mark Palmer | B199: BS | C199: V40 | D199: =IF(ISNA(VLOOKUP($A199,'Race 1-Men'!$N$33:$S$51,6,0)),100,VLOOKUP($A199,'Race 1-Men'!$N$33:$S$51,6,0)) -> 100 | E199: =IF(ISNA(VLOOKUP($A199,'Race 2-Men'!$N$32:$S$53,6,0)),100,VLOOKUP($A199,'Race 2-Men'!$N$32:$S$53,6,0)) -> 100 | F199: =IF(ISNA(VLOOKUP($A199,'Race 3-Men'!$N$40:$S$61,6,0)),100,VLOOKUP($A199,'Race 3-Men'!$N$40:$S$61,6,0)) -> 100 | G199: =IF(ISNA(VLOOKUP($A199,'Race 4-Men'!$N$35:$S$100,6,0)),100,VLOOKUP($A199,'Race 4-Men'!$N$35:$S$100,6,0)) -> 100 | H199: =SMALL(D199:G199,{1,2,3}) -> 100 | I199: 100 | J199: 100 | K199: 300 | L199: 39
A200: Mark Unwin | B200: HRC | C200: V40 | D200: =IF(ISNA(VLOOKUP($A200,'Race 1-Men'!$N$33:$S$51,6,0)),100,VLOOKUP($A200,'Race 1-Men'!$N$33:$S$51,6,0)) -> 16 | E200: =IF(ISNA(VLOOKUP($A200,'Race 2-Men'!$N$32:$S$53,6,0)),100,VLOOKUP($A200,'Race 2-Men'!$N$32:$S$53,6,0)) -> 100 | F200: =IF(ISNA(VLOOKUP($A200,'Race 3-Men'!$N$40:$S$61,6,0)),100,VLOOKUP($A200,'Race 3-Men'!$N$40:$S$61,6,0)) -> 100 | G200: =IF(ISNA(VLOOKUP($A200,'Race 4-Men'!$N$35:$S$100,6,0)),100,VLOOKUP($A200,'Race 4-Men'!$N$35:$S$100,6,0)) -> 100 | H200: =SMALL(D200:G200,{1,2,3}) -> 16 | I200: 100 | J200: 100 | K200: 216 | L200: 34
... 300 more rows

Sheet Ladies Individual Series
A1: Name | B1: Club | C1: Age Category | D1: Race 1 Age Category Result | E1: Race 2 Age Category Result | F1: Race 3 Age Category Result | G1: Race 4 Age Category Result | H1: Best 1 | I1: Best 2 | J1: Best 3 | K1: Total Series Score | L1: Rank
A2: Anne-Claire Definod | B2: BS | D2: =IF(ISNA(VLOOKUP($A2,'Race 1-Ladies'!$G$24:$L$53,6,0)),100,VLOOKUP($A2,'Race 1-Ladies'!$G$24:$L$53,6,0)) -> 100 | E2: =IF(ISNA(VLOOKUP($A2,'Race 2-Ladies'!$G$23:$L$53,6,0)),100,VLOOKUP($A2,'Race 2-Ladies'!$G$23:$L$53,6,0)) -> 100 | F2: =IF(ISNA(VLOOKUP($A2,'Race 3-Ladies'!$G$27:$L$61,6,0)),100,VLOOKUP($A2,'Race 3-Ladies'!$G$27:$L$61,6,0)) -> 100 | G2: =IF(ISNA(VLOOKUP($A2,'Race 4-Ladies'!$G$30:$L$100,6,0)),100,VLOOKUP($A2,'Race 4-Ladies'!$G$30:$L$100,6,0)) -> 100 | H2: =SMALL(D2:G2,{1,2,3}) -> 100 | I2: 100 | J2: 100 | K2: =SUM(H2:J2) -> 300 | L2: =RANK(K2,$K$2:$K$68,1) -> 14
A3: Jasmine Crawford | B3: BS | D3: =IF(ISNA(VLOOKUP($A3,'Race 1-Ladies'!$G$24:$L$53,6,0)),100,VLOOKUP($A3,'Race 1-Ladies'!$G$24:$L$53,6,0)) -> 100 | E3: =IF(ISNA(VLOOKUP($A3,'Race 2-Ladies'!$G$23:$L$53,6,0)),100,VLOOKUP($A3,'Race 2-Ladies'!$G$23:$L$53,6,0)) -> 100 | F3: =IF(ISNA(VLOOKUP($A3,'Race 3-Ladies'!$G$27:$L$61,6,0)),100,VLOOKUP($A3,'Race 3-Ladies'!$G$27:$L$61,6,0)) -> 100 | G3: =IF(ISNA(VLOOKUP($A3,'Race 4-Ladies'!$G$30:$L$100,6,0)),100,VLOOKUP($A3,'Race 4-Ladies'!$G$30:$L$100,6,0)) -> 100 | H3: =SMALL(D3:G3,{1,2,3}) -> 100 | I3: 100 | J3: 100 | K3: =SUM(H3:J3) -> 300 | L3: =RANK(K3,$K$2:$K$68,1) -> 14
A4: Joanna Keable | B4: BS | D4: =IF(ISNA(VLOOKUP($A4,'Race 1-Ladies'!$G$24:$L$53,6,0)),100,VLOOKUP($A4,'Race 1-Ladies'!$G$24:$L$53,6,0)) -> 100 | E4: =IF(ISNA(VLOOKUP($A4,'Race 2-Ladies'!$G$23:$L$53,6,0)),100,VLOOKUP($A4,'Race 2-Ladies'!$G$23:$L$53,6,0)) -> 100 | F4: =IF(ISNA(VLOOKUP($A4,'Race 3-Ladies'!$G$27:$L$61,6,0)),100,VLOOKUP($A4,'Race 3-Ladies'!$G$27:$L$61,6,0)) -> 100 | G4: =IF(ISNA(VLOOKUP($A4,'Race 4-Ladies'!$G$30:$L$100,6,0)),100,VLOOKUP($A4,'Race 4-Ladies'!$G$30:$L$100,6,0)) -> 100 | H4: =SMALL(D4:G4,{1,2,3}) -> 100 | I4: 100 | J4: 100 | K4: 300 | L4: 14
A5: Laura Hollis | B5: BS | D5: =IF(ISNA(VLOOKUP($A5,'Race 1-Ladies'!$G$24:$L$53,6,0)),100,VLOOKUP($A5,'Race 1-Ladies'!$G$24:$L$53,6,0)) -> 100 | E5: =IF(ISNA(VLOOKUP($A5,'Race 2-Ladies'!$G$23:$L$53,6,0)),100,VLOOKUP($A5,'Race 2-Ladies'!$G$23:$L$53,6,0)) -> 100 | F5: =IF(ISNA(VLOOKUP($A5,'Race 3-Ladies'!$G$27:$L$61,6,0)),100,VLOOKUP($A5,'Race 3-Ladies'!$G$27:$L$61,6,0)) -> 100 | G5: =IF(ISNA(VLOOKUP($A5,'Race 4-Ladies'!$G$30:$L$100,6,0)),100,VLOOKUP($A5,'Race 4-Ladies'!$G$30:$L$100,6,0)) -> 100 | H5: =SMALL(D5:G5,{1,2,3}) -> 100 | I5: 100 | J5: 100 | K5: 300 | L5: 14
A6: Michelle Cook | B6: BS | D6: =IF(ISNA(VLOOKUP($A6,'Race 1-Ladies'!$G$24:$L$53,6,0)),100,VLOOKUP($A6,'Race 1-Ladies'!$G$24:$L$53,6,0)) -> 100 | E6: =IF(ISNA(VLOOKUP($A6,'Race 2-Ladies'!$G$23:$L$53,6,0)),100,VLOOKUP($A6,'Race 2-Ladies'!$G$23:$L$53,6,0)) -> 100 | F6: =IF(ISNA(VLOOKUP($A6,'Race 3-Ladies'!$G$27:$L$61,6,0)),100,VLOOKUP($A6,'Race 3-Ladies'!$G$27:$L$61,6,0)) -> 100 | G6: =IF(ISNA(VLOOKUP($A6,'Race 4-Ladies'!$G$30:$L$100,6,0)),100,VLOOKUP($A6,'Race 4-Ladies'!$G$30:$L$100,6,0)) -> 100 | H6: =SMALL(D6:G6,{1,2,3}) -> 100 | I6: 100 | J6: 100 | K6: 300 | L6: 14
A7: Nikki Frostick | B7: BS | D7: =IF(ISNA(VLOOKUP($A7,'Race 1-Ladies'!$G$24:$L$53,6,0)),100,VLOOKUP($A7,'Race 1-Ladies'!$G$24:$L$53,6,0)) -> 100 | E7: =IF(ISNA(VLOOKUP($A7,'Race 2-Ladies'!$G$23:$L$53,6,0)),100,VLOOKUP($A7,'Race 2-Ladies'!$G$23:$L$53,6,0)) -> 100 | F7: =IF(ISNA(VLOOKUP($A7,'Race 3-Ladies'!$G$27:$L$61,6,0)),100,VLOOKUP($A7,'Race 3-Ladies'!$G$27:$L$61,6,0)) -> 100 | G7: =IF(ISNA(VLOOKUP($A7,'Race 4-Ladies'!$G$30:$L$100,6,0)),100,VLOOKUP($A7,'Race 4-Ladies'!$G$30:$L$100,6,0)) -> 100 | H7: =SMALL(D7:G7,{1,2,3}) -> 100 | I7: 100 | J7: 100 | K7: 300 | L7: 14
A8: Sophie Paterson | B8: BS | D8: =IF(ISNA(VLOOKUP($A8,'Race 1-Ladies'!$G$24:$L$53,6,0)),100,VLOOKUP($A8,'Race 1-Ladies'!$G$24:$L$53,6,0)) -> 100 | E8: =IF(ISNA(VLOOKUP($A8,'Race 2-Ladies'!$G$23:$L$53,6,0)),100,VLOOKUP($A8,'Race 2-Ladies'!$G$23:$L$53,6,0)) -> 100 | F8: =IF(ISNA(VLOOKUP($A8,'Race 3-Ladies'!$G$27:$L$61,6,0)),100,VLOOKUP($A8,'Race 3-Ladies'!$G$27:$L$61,6,0)) -> 100 | G8: =IF(ISNA(VLOOKUP($A8,'Race 4-Ladies'!$G$30:$L$100,6,0)),100,VLOOKUP($A8,'Race 4-Ladies'!$G$30:$L$100,6,0)) -> 100 | H8: =SMALL(D8:G8,{1,2,3}) -> 100 | I8: 100 | J8: 100 | K8: 300 | L8: 14
A9: Abby Canfield | B9: BS | C9: S | D9: =IF(ISNA(VLOOKUP($A9,'Race 1-Ladies'!$G$24:$L$53,6,0)),100,VLOOKUP($A9,'Race 1-Ladies'!$G$24:$L$53,6,0)) -> 100 | E9: =IF(ISNA(VLOOKUP($A9,'Race 2-Ladies'!$G$23:$L$53,6,0)),100,VLOOKUP($A9,'Race 2-Ladies'!$G$23:$L$53,6,0)) -> 100 | F9: =IF(ISNA(VLOOKUP($A9,'Race 3-Ladies'!$G$27:$L$61,6,0)),100,VLOOKUP($A9,'Race 3-Ladies'!$G$27:$L$61,6,0)) -> 100 | G9: =IF(ISNA(VLOOKUP($A9,'Race 4-Ladies'!$G$30:$L$100,6,0)),100,VLOOKUP($A9,'Race 4-Ladies'!$G$30:$L$100,6,0)) -> 100 | H9: =SMALL(D9:G9,{1,2,3}) -> 100 | I9: 100 | J9: 100 | K9: 300 | L9: 14
A10: Abigail White | B10: BS | C10: S | D10: =IF(ISNA(VLOOKUP($A10,'Race 1-Ladies'!$G$24:$L$53,6,0)),100,VLOOKUP($A10,'Race 1-Ladies'!$G$24:$L$53,6,0)) -> 100 | E10: =IF(ISNA(VLOOKUP($A10,'Race 2-Ladies'!$G$23:$L$53,6,0)),100,VLOOKUP($A10,'Race 2-Ladies'!$G$23:$L$53,6,0)) -> 100 | F10: =IF(ISNA(VLOOKUP($A10,'Race 3-Ladies'!$G$27:$L$61,6,0)),100,VLOOKUP($A10,'Race 3-Ladies'!$G$27:$L$61,6,0)) -> 100 | G10: =IF(ISNA(VLOOKUP($A10,'Race 4-Ladies'!$G$30:$L$100,6,0)),100,VLOOKUP($A10,'Race 4-Ladies'!$G$30:$L$100,6,0)) -> 100 | H10: =SMALL(D10:G10,{1,2,3}) -> 100 | I10: 100 | J10: 100 | K10: 300 | L10: 14
A11: Alex Soady | B11: HRC | C11: S | D11: =IF(ISNA(VLOOKUP($A11,'Race 1-Ladies'!$G$24:$L$53,6,0)),100,VLOOKUP($A11,'Race 1-Ladies'!$G$24:$L$53,6,0)) -> 100 | E11: =IF(ISNA(VLOOKUP($A11,'Race 2-Ladies'!$G$23:$L$53,6,0)),100,VLOOKUP($A11,'Race 2-Ladies'!$G$23:$L$53,6,0)) -> 100 | F11: =IF(ISNA(VLOOKUP($A11,'Race 3-Ladies'!$G$27:$L$61,6,0)),100,VLOOKUP($A11,'Race 3-Ladies'!$G$27:$L$61,6,0)) -> 100 | G11: =IF(ISNA(VLOOKUP($A11,'Race 4-Ladies'!$G$30:$L$100,6,0)),100,VLOOKUP($A11,'Race 4-Ladies'!$G$30:$L$100,6,0)) -> 100 | H11: =SMALL(D11:G11,{1,2,3}) -> 100 | I11: 100 | J11: 100 | K11: 300 | L11: 14
A12: Alison Chadwick | B12: BS | C12: S | D12: =IF(ISNA(VLOOKUP($A12,'Race 1-Ladies'!$G$24:$L$53,6,0)),100,VLOOKUP($A12,'Race 1-Ladies'!$G$24:$L$53,6,0)) -> 100 | E12: =IF(ISNA(VLOOKUP($A12,'Race 2-Ladies'!$G$23:$L$53,6,0)),100,VLOOKUP($A12,'Race 2-Ladies'!$G$23:$L$53,6,0)) -> 100 | F12: =IF(ISNA(VLOOKUP($A12,'Race 3-Ladies'!$G$27:$L$61,6,0)),100,VLOOKUP($A12,'Race 3-Ladies'!$G$27:$L$61,6,0)) -> 100 | G12: =IF(ISNA(VLOOKUP($A12,'Race 4-Ladies'!$G$30:$L$100,6,0)),100,VLOOKUP($A12,'Race 4-Ladies'!$G$30:$L$100,6,0)) -> 100 | H12: =SMALL(D12:G12,{1,2,3}) -> 100 | I12: 100 | J12: 100 | K12: 300 | L12: 14
A13: Amber Ingle | B13: HRC | C13: S | D13: =IF(ISNA(VLOOKUP($A13,'Race 1-Ladies'!$G$24:$L$53,6,0)),100,VLOOKUP($A13,'Race 1-Ladies'!$G$24:$L$53,6,0)) -> 100 | E13: =IF(ISNA(VLOOKUP($A13,'Race 2-Ladies'!$G$23:$L$53,6,0)),100,VLOOKUP($A13,'Race 2-Ladies'!$G$23:$L$53,6,0)) -> 100 | F13: =IF(ISNA(VLOOKUP($A13,'Race 3-Ladies'!$G$27:$L$61,6,0)),100,VLOOKUP($A13,'Race 3-Ladies'!$G$27:$L$61,6,0)) -> 100 | G13: =IF(ISNA(VLOOKUP($A13,'Race 4-Ladies'!$G$30:$L$100,6,0)),100,VLOOKUP($A13,'Race 4-Ladies'!$G$30:$L$100,6,0)) -> 100 | H13: =SMALL(D13:G13,{1,2,3}) -> 100 | I13: 100 | J13: 100 | K13: 300 | L13: 14
A14: Anna Kotowska | B14: SS | C14: S | D14: =IF(ISNA(VLOOKUP($A14,'Race 1-Ladies'!$G$24:$L$53,6,0)),100,VLOOKUP($A14,'Race 1-Ladies'!$G$24:$L$53,6,0)) -> 100 | E14: =IF(ISNA(VLOOKUP($A14,'Race 2-Ladies'!$G$23:$L$53,6,0)),100,VLOOKUP($A14,'Race 2-Ladies'!$G$23:$L$53,6,0)) -> 100 | F14: =IF(ISNA(VLOOKUP($A14,'Race 3-Ladies'!$G$27:$L$61,6,0)),100,VLOOKUP($A14,'Race 3-Ladies'!$G$27:$L$61,6,0)) -> 100 | G14: =IF(ISNA(VLOOKUP($A14,'Race 4-Ladies'!$G$30:$L$100,6,0)),100,VLOOKUP($A14,'Race 4-Ladies'!$G$30:$L$100,6,0)) -> 100 | H14: =SMALL(D14:G14,{1,2,3}) -> 100 | I14: 100 | J14: 100 | K14: 300 | L14: 14
A15: Annabel Moeser | B15: HRC | C15: S | D15: =IF(ISNA(VLOOKUP($A15,'Race 1-Ladies'!$G$24:$L$53,6,0)),100,VLOOKUP($A15,'Race 1-Ladies'!$G$24:$L$53,6,0)) -> 100 | E15: =IF(ISNA(VLOOKUP($A15,'Race 2-Ladies'!$G$23:$L$53,6,0)),100,VLOOKUP($A15,'Race 2-Ladies'!$G$23:$L$53,6,0)) -> 100 | F15: =IF(ISNA(VLOOKUP($A15,'Race 3-Ladies'!$G$27:$L$61,6,0)),100,VLOOKUP($A15,'Race 3-Ladies'!$G$27:$L$61,6,0)) -> 100 | G15: =IF(ISNA(VLOOKUP($A15,'Race 4-Ladies'!$G$30:$L$100,6,0)),100,VLOOKUP($A15,'Race 4-Ladies'!$G$30:$L$100,6,0)) -> 100 | H15: =SMALL(D15:G15,{1,2,3}) -> 100 | I15: 100 | J15: 100 | K15: 300 | L15: 14
A16: Bekah Cranch | B16: BS | C16: S | D16: =IF(ISNA(VLOOKUP($A16,'Race 1-Ladies'!$G$24:$L$53,6,0)),100,VLOOKUP($A16,'Race 1-Ladies'!$G$24:$L$53,6,0)) -> 100 | E16: =IF(ISNA(VLOOKUP($A16,'Race 2-Ladies'!$G$23:$L$53,6,0)),100,VLOOKUP($A16,'Race 2-Ladies'!$G$23:$L$53,6,0)) -> 100 | F16: =IF(ISNA(VLOOKUP($A16,'Race 3-Ladies'!$G$27:$L$61,6,0)),100,VLOOKUP($A16,'Race 3-Ladies'!$G$27:$L$61,6,0)) -> 100 | G16: =IF(ISNA(VLOOKUP($A16,'Race 4-Ladies'!$G$30:$L$100,6,0)),100,VLOOKUP($A16,'Race 4-Ladies'!$G$30:$L$100,6,0)) -> 100 | H16: =SMALL(D16:G16,{1,2,3}) -> 100 | I16: 100 | J16: 100 | K16: 300 | L16: 14
A17: Charlotte Hoole | B17: BS | C17: S | D17: =IF(ISNA(VLOOKUP($A17,'Race 1-Ladies'!$G$24:$L$53,6,0)),100,VLOOKUP($A17,'Race 1-Ladies'!$G$24:$L$53,6,0)) -> 100 | E17: =IF(ISNA(VLOOKUP($A17,'Race 2-Ladies'!$G$23:$L$53,6,0)),100,VLOOKUP($A17,'Race 2-Ladies'!$G$23:$L$53,6,0)) -> 100 | F17: =IF(ISNA(VLOOKUP($A17,'Race 3-Ladies'!$G$27:$L$61,6,0)),100,VLOOKUP($A17,'Race 3-Ladies'!$G$27:$L$61,6,0)) -> 100 | G17: =IF(ISNA(VLOOKUP($A17,'Race 4-Ladies'!$G$30:$L$100,6,0)),100,VLOOKUP($A17,'Race 4-Ladies'!$G$30:$L$100,6,0)) -> 100 | H17: =SMALL(D17:G17,{1,2,3}) -> 100 | I17: 100 | J17: 100 | K17: 300 | L17: 14
A18: Chloe Turner | B18: WJ | C18: S | D18: =IF(ISNA(VLOOKUP($A18,'Race 1-Ladies'!$G$24:$L$53,6,0)),100,VLOOKUP($A18,'Race 1-Ladies'!$G$24:$L$53,6,0)) -> 100 | E18: =IF(ISNA(VLOOKUP($A18,'Race 2-Ladies'!$G$23:$L$53,6,0)),100,VLOOKUP($A18,'Race 2-Ladies'!$G$23:$L$53,6,0)) -> 100 | F18: =IF(ISNA(VLOOKUP($A18,'Race 3-Ladies'!$G$27:$L$61,6,0)),100,VLOOKUP($A18,'Race 3-Ladies'!$G$27:$L$61,6,0)) -> 100 | G18: =IF(ISNA(VLOOKUP($A18,'Race 4-Ladies'!$G$30:$L$100,6,0)),100,VLOOKUP($A18,'Race 4-Ladies'!$G$30:$L$100,6,0)) -> 100 | H18: =SMALL(D18:G18,{1,2,3}) -> 100 | I18: 100 | J18: 100 | K18: 300 | L18: 14
A19: Claire Nicholson | B19: BS | C19: S | D19: =IF(ISNA(VLOOKUP($A19,'Race 1-Ladies'!$G$24:$L$53,6,0)),100,VLOOKUP($A19,'Race 1-Ladies'!$G$24:$L$53,6,0)) -> 100 | E19: =IF(ISNA(VLOOKUP($A19,'Race 2-Ladies'!$G$23:$L$53,6,0)),100,VLOOKUP($A19,'Race 2-Ladies'!$G$23:$L$53,6,0)) -> 100 | F19: =IF(ISNA(VLOOKUP($A19,'Race 3-Ladies'!$G$27:$L$61,6,0)),100,VLOOKUP($A19,'Race 3-Ladies'!$G$27:$L$61,6,0)) -> 100 | G19: =IF(ISNA(VLOOKUP($A19,'Race 4-Ladies'!$G$30:$L$100,6,0)),100,VLOOKUP($A19,'Race 4-Ladies'!$G$30:$L$100,6,0)) -> 100 | H19: =SMALL(D19:G19,{1,2,3}) -> 100 | I19: 100 | J19: 100 | K19: 300 | L19: 14
A20: Claire Sage | B20: HRC | C20: S | D20: =IF(ISNA(VLOOKUP($A20,'Race 1-Ladies'!$G$24:$L$53,6,0)),100,VLOOKUP($A20,'Race 1-Ladies'!$G$24:$L$53,6,0)) -> 100 | E20: =IF(ISNA(VLOOKUP($A20,'Race 2-Ladies'!$G$23:$L$53,6,0)),100,VLOOKUP($A20,'Race 2-Ladies'!$G$23:$L$53,6,0)) -> 100 | F20: =IF(ISNA(VLOOKUP($A20,'Race 3-Ladies'!$G$27:$L$61,6,0)),100,VLOOKUP($A20,'Race 3-Ladies'!$G$27:$L$61,6,0)) -> 100 | G20: =IF(ISNA(VLOOKUP($A20,'Race 4-Ladies'!$G$30:$L$100,6,0)),100,VLOOKUP($A20,'Race 4-Ladies'!$G$30:$L$100,6,0)) -> 100 | H20: =SMALL(D20:G20,{1,2,3}) -> 100 | I20: 100 | J20: 100 | K20: 300 | L20: 14
A21: Coral White | B21: SS | C21: S | D21: =IF(ISNA(VLOOKUP($A21,'Race 1-Ladies'!$G$24:$L$53,6,0)),100,VLOOKUP($A21,'Race 1-Ladies'!$G$24:$L$53,6,0)) -> 100 | E21: =IF(ISNA(VLOOKUP($A21,'Race 2-Ladies'!$G$23:$L$53,6,0)),100,VLOOKUP($A21,'Race 2-Ladies'!$G$23:$L$53,6,0)) -> 100 | F21: =IF(ISNA(VLOOKUP($A21,'Race 3-Ladies'!$G$27:$L$61,6,0)),100,VLOOKUP($A21,'Race 3-Ladies'!$G$27:$L$61,6,0)) -> 100 | G21: =IF(ISNA(VLOOKUP($A21,'Race 4-Ladies'!$G$30:$L$100,6,0)),100,VLOOKUP($A21,'Race 4-Ladies'!$G$30:$L$100,6,0)) -> 100 | H21: =SMALL(D21:G21,{1,2,3}) -> 100 | I21: 100 | J21: 100 | K21: 300 | L21: 14
A22: Eilidh Malcolm | B22: BS | C22: S | D22: =IF(ISNA(VLOOKUP($A22,'Race 1-Ladies'!$G$24:$L$53,6,0)),100,VLOOKUP($A22,'Race 1-Ladies'!$G$24:$L$53,6,0)) -> 100 | E22: =IF(ISNA(VLOOKUP($A22,'Race 2-Ladies'!$G$23:$L$53,6,0)),100,VLOOKUP($A22,'Race 2-Ladies'!$G$23:$L$53,6,0)) -> 100 | F22: =IF(ISNA(VLOOKUP($A22,'Race 3-Ladies'!$G$27:$L$61,6,0)),100,VLOOKUP($A22,'Race 3-Ladies'!$G$27:$L$61,6,0)) -> 4 | G22: =IF(ISNA(VLOOKUP($A22,'Race 4-Ladies'!$G$30:$L$100,6,0)),100,VLOOKUP($A22,'Race 4-Ladies'!$G$30:$L$100,6,0)) -> 5 | H22: =SMALL(D22:G22,{1,2,3}) -> 4 | I22: 5 | J22: 100 | K22: 109 | L22: 6
A23: Eleanor Mason | B23: BS | C23: S | D23: =IF(ISNA(VLOOKUP($A23,'Race 1-Ladies'!$G$24:$L$53,6,0)),100,VLOOKUP($A23,'Race 1-Ladies'!$G$24:$L$53,6,0)) -> 100 | E23: =IF(ISNA(VLOOKUP($A23,'Race 2-Ladies'!$G$23:$L$53,6,0)),100,VLOOKUP($A23,'Race 2-Ladies'!$G$23:$L$53,6,0)) -> 100 | F23: =IF(ISNA(VLOOKUP($A23,'Race 3-Ladies'!$G$27:$L$61,6,0)),100,VLOOKUP($A23,'Race 3-Ladies'!$G$27:$L$61,6,0)) -> 100 | G23: =IF(ISNA(VLOOKUP($A23,'Race 4-Ladies'!$G$30:$L$100,6,0)),100,VLOOKUP($A23,'Race 4-Ladies'!$G$30:$L$100,6,0)) -> 100 | H23: =SMALL(D23:G23,{1,2,3}) -> 100 | I23: 100 | J23: 100 | K23: 300 | L23: 14
A24: Eleanor Wells | B24: BS | C24: S | D24: =IF(ISNA(VLOOKUP($A24,'Race 1-Ladies'!$G$24:$L$53,6,0)),100,VLOOKUP($A24,'Race 1-Ladies'!$G$24:$L$53,6,0)) -> 100 | E24: =IF(ISNA(VLOOKUP($A24,'Race 2-Ladies'!$G$23:$L$53,6,0)),100,VLOOKUP($A24,'Race 2-Ladies'!$G$23:$L$53,6,0)) -> 100 | F24: =IF(ISNA(VLOOKUP($A24,'Race 3-Ladies'!$G$27:$L$61,6,0)),100,VLOOKUP($A24,'Race 3-Ladies'!$G$27:$L$61,6,0)) -> 100 | G24: =IF(ISNA(VLOOKUP($A24,'Race 4-Ladies'!$G$30:$L$100,6,0)),100,VLOOKUP($A24,'Race 4-Ladies'!$G$30:$L$100,6,0)) -> 100 | H24: =SMALL(D24:G24,{1,2,3}) -> 100 | I24: 100 | J24: 100 | K24: 300 | L24: 14
A25: Elizabeth Roberts | B25: HRC | C25: S | D25: =IF(ISNA(VLOOKUP($A25,'Race 1-Ladies'!$G$24:$L$53,6,0)),100,VLOOKUP($A25,'Race 1-Ladies'!$G$24:$L$53,6,0)) -> 5 | E25: =IF(ISNA(VLOOKUP($A25,'Race 2-Ladies'!$G$23:$L$53,6,0)),100,VLOOKUP($A25,'Race 2-Ladies'!$G$23:$L$53,6,0)) -> 100 | F25: =IF(ISNA(VLOOKUP($A25,'Race 3-Ladies'!$G$27:$L$61,6,0)),100,VLOOKUP($A25,'Race 3-Ladies'!$G$27:$L$61,6,0)) -> 8 | G25: =IF(ISNA(VLOOKUP($A25,'Race 4-Ladies'!$G$30:$L$100,6,0)),100,VLOOKUP($A25,'Race 4-Ladies'!$G$30:$L$100,6,0)) -> 100 | H25: =SMALL(D25:G25,{1,2,3}) -> 5 | I25: 8 | J25: 100 | K25: 113 | L25: 7
A26: Elle Curran | B26: HRC | C26: S | D26: =IF(ISNA(VLOOKUP($A26,'Race 1-Ladies'!$G$24:$L$53,6,0)),100,VLOOKUP($A26,'Race 1-Ladies'!$G$24:$L$53,6,0)) -> 100 | E26: =IF(ISNA(VLOOKUP($A26,'Race 2-Ladies'!$G$23:$L$53,6,0)),100,VLOOKUP($A26,'Race 2-Ladies'!$G$23:$L$53,6,0)) -> 100 | F26: =IF(ISNA(VLOOKUP($A26,'Race 3-Ladies'!$G$27:$L$61,6,0)),100,VLOOKUP($A26,'Race 3-Ladies'!$G$27:$L$61,6,0)) -> 100 | G26: =IF(ISNA(VLOOKUP($A26,'Race 4-Ladies'!$G$30:$L$100,6,0)),100,VLOOKUP($A26,'Race 4-Ladies'!$G$30:$L$100,6,0)) -> 100 | H26: =SMALL(D26:G26,{1,2,3}) -> 100 | I26: 100 | J26: 100 | K26: 300 | L26: 14
A27: Ellie Williams | B27: HRC | C27: S | D27: =IF(ISNA(VLOOKUP($A27,'Race 1-Ladies'!$G$24:$L$53,6,0)),100,VLOOKUP($A27,'Race 1-Ladies'!$G$24:$L$53,6,0)) -> 100 | E27: =IF(ISNA(VLOOKUP($A27,'Race 2-Ladies'!$G$23:$L$53,6,0)),100,VLOOKUP($A27,'Race 2-Ladies'!$G$23:$L$53,6,0)) -> 100 | F27: =IF(ISNA(VLOOKUP($A27,'Race 3-Ladies'!$G$27:$L$61,6,0)),100,VLOOKUP($A27,'Race 3-Ladies'!$G$27:$L$61,6,0)) -> 100 | G27: =IF(ISNA(VLOOKUP($A27,'Race 4-Ladies'!$G$30:$L$100,6,0)),100,VLOOKUP($A27,'Race 4-Ladies'!$G$30:$L$100,6,0)) -> 100 | H27: =SMALL(D27:G27,{1,2,3}) -> 100 | I27: 100 | J27: 100 | K27: 300 | L27: 14
A28: Emily Clancey | B28: BS | C28: S | D28: =IF(ISNA(VLOOKUP($A28,'Race 1-Ladies'!$G$24:$L$53,6,0)),100,VLOOKUP($A28,'Race 1-Ladies'!$G$24:$L$53,6,0)) -> 100 | E28: =IF(ISNA(VLOOKUP($A28,'Race 2-Ladies'!$G$23:$L$53,6,0)),100,VLOOKUP($A28,'Race 2-Ladies'!$G$23:$L$53,6,0)) -> 3 | F28: =IF(ISNA(VLOOKUP($A28,'Race 3-Ladies'!$G$27:$L$61,6,0)),100,VLOOKUP($A28,'Race 3-Ladies'!$G$27:$L$61,6,0)) -> 2 | G28: =IF(ISNA(VLOOKUP($A28,'Race 4-Ladies'!$G$30:$L$100,6,0)),100,VLOOKUP($A28,'Race 4-Ladies'!$G$30:$L$100,6,0)) -> 100 | H28: =SMALL(D28:G28,{1,2,3}) -> 2 | I28: 3 | J28: 100 | K28: 105 | L28: 5
A29: Emily Warrington | B29: BS | C29: S | D29: =IF(ISNA(VLOOKUP($A29,'Race 1-Ladies'!$G$24:$L$53,6,0)),100,VLOOKUP($A29,'Race 1-Ladies'!$G$24:$L$53,6,0)) -> 100 | E29: =IF(ISNA(VLOOKUP($A29,'Race 2-Ladies'!$G$23:$L$53,6,0)),100,VLOOKUP($A29,'Race 2-Ladies'!$G$23:$L$53,6,0)) -> 100 | F29: =IF(ISNA(VLOOKUP($A29,'Race 3-Ladies'!$G$27:$L$61,6,0)),100,VLOOKUP($A29,'Race 3-Ladies'!$G$27:$L$61,6,0)) -> 100 | G29: =IF(ISNA(VLOOKUP($A29,'Race 4-Ladies'!$G$30:$L$100,6,0)),100,VLOOKUP($A29,'Race 4-Ladies'!$G$30:$L$100,6,0)) -> 100 | H29: =SMALL(D29:G29,{1,2,3}) -> 100 | I29: 100 | J29: 100 | K29: 300 | L29: 14
A30: Eve Warrington | B30: BS | C30: S | D30: =IF(ISNA(VLOOKUP($A30,'Race 1-Ladies'!$G$24:$L$53,6,0)),100,VLOOKUP($A30,'Race 1-Ladies'!$G$24:$L$53,6,0)) -> 100 | E30: =IF(ISNA(VLOOKUP($A30,'Race 2-Ladies'!$G$23:$L$53,6,0)),100,VLOOKUP($A30,'Race 2-Ladies'!$G$23:$L$53,6,0)) -> 100 | F30: =IF(ISNA(VLOOKUP($A30,'Race 3-Ladies'!$G$27:$L$61,6,0)),100,VLOOKUP($A30,'Race 3-Ladies'!$G$27:$L$61,6,0)) -> 100 | G30: =IF(ISNA(VLOOKUP($A30,'Race 4-Ladies'!$G$30:$L$100,6,0)),100,VLOOKUP($A30,'Race 4-Ladies'!$G$30:$L$100,6,0)) -> 100 | H30: =SMALL(D30:G30,{1,2,3}) -> 100 | I30: 100 | J30: 100 | K30: 300 | L30: 14
A31: Fay Humphries | B31: BS | C31: S | D31: =IF(ISNA(VLOOKUP($A31,'Race 1-Ladies'!$G$24:$L$53,6,0)),100,VLOOKUP($A31,'Race 1-Ladies'!$G$24:$L$53,6,0)) -> 100 | E31: =IF(ISNA(VLOOKUP($A31,'Race 2-Ladies'!$G$23:$L$53,6,0)),100,VLOOKUP($A31,'Race 2-Ladies'!$G$23:$L$53,6,0)) -> 100 | F31: =IF(ISNA(VLOOKUP($A31,'Race 3-Ladies'!$G$27:$L$61,6,0)),100,VLOOKUP($A31,'Race 3-Ladies'!$G$27:$L$61,6,0)) -> 100 | G31: =IF(ISNA(VLOOKUP($A31,'Race 4-Ladies'!$G$30:$L$100,6,0)),100,VLOOKUP($A31,'Race 4-Ladies'!$G$30:$L$100,6,0)) -> 100 | H31: =SMALL(D31:G31,{1,2,3}) -> 100 | I31: 100 | J31: 100 | K31: 300 | L31: 14
A32: Fiona Smith | B32: WJ | C32: S | D32: =IF(ISNA(VLOOKUP($A32,'Race 1-Ladies'!$G$24:$L$53,6,0)),100,VLOOKUP($A32,'Race 1-Ladies'!$G$24:$L$53,6,0)) -> 3 | E32: =IF(ISNA(VLOOKUP($A32,'Race 2-Ladies'!$G$23:$L$53,6,0)),100,VLOOKUP($A32,'Race 2-Ladies'!$G$23:$L$53,6,0)) -> 6 | F32: =IF(ISNA(VLOOKUP($A32,'Race 3-Ladies'!$G$27:$L$61,6,0)),100,VLOOKUP($A32,'Race 3-Ladies'!$G$27:$L$61,6,0)) -> 6 | G32: =IF(ISNA(VLOOKUP($A32,'Race 4-Ladies'!$G$30:$L$100,6,0)),100,VLOOKUP($A32,'Race 4-Ladies'!$G$30:$L$100,6,0)) -> 6 | H32: =SMALL(D32:G32,{1,2,3}) -> 3 | I32: 6 | J32: 6 | K32: 15 | L32: 3
A33: Fliss Tournant | B33: SS | C33: S | D33: =IF(ISNA(VLOOKUP($A33,'Race 1-Ladies'!$G$24:$L$53,6,0)),100,VLOOKUP($A33,'Race 1-Ladies'!$G$24:$L$53,6,0)) -> 2 | E33: =IF(ISNA(VLOOKUP($A33,'Race 2-Ladies'!$G$23:$L$53,6,0)),100,VLOOKUP($A33,'Race 2-Ladies'!$G$23:$L$53,6,0)) -> 2 | F33: =IF(ISNA(VLOOKUP($A33,'Race 3-Ladies'!$G$27:$L$61,6,0)),100,VLOOKUP($A33,'Race 3-Ladies'!$G$27:$L$61,6,0)) -> 1 | G33: =IF(ISNA(VLOOKUP($A33,'Race 4-Ladies'!$G$30:$L$100,6,0)),100,VLOOKUP($A33,'Race 4-Ladies'!$G$30:$L$100,6,0)) -> 2 | H33: =SMALL(D33:G33,{1,2,3}) -> 1 | I33: 2 | J33: 2 | K33: 5 | L33: 2
A34: Flo Greatrix | B34: SS | C34: S | D34: =IF(ISNA(VLOOKUP($A34,'Race 1-Ladies'!$G$24:$L$53,6,0)),100,VLOOKUP($A34,'Race 1-Ladies'!$G$24:$L$53,6,0)) -> 100 | E34: =IF(ISNA(VLOOKUP($A34,'Race 2-Ladies'!$G$23:$L$53,6,0)),100,VLOOKUP($A34,'Race 2-Ladies'!$G$23:$L$53,6,0)) -> 5 | F34: =IF(ISNA(VLOOKUP($A34,'Race 3-Ladies'!$G$27:$L$61,6,0)),100,VLOOKUP($A34,'Race 3-Ladies'!$G$27:$L$61,6,0)) -> 100 | G34: =IF(ISNA(VLOOKUP($A34,'Race 4-Ladies'!$G$30:$L$100,6,0)),100,VLOOKUP($A34,'Race 4-Ladies'!$G$30:$L$100,6,0)) -> 100 | H34: =SMALL(D34:G34,{1,2,3}) -> 5 | I34: 100 | J34: 100 | K34: 205 | L34: 12
A35: Freya Anglin-Liiv | B35: HRC | C35: S | D35: =IF(ISNA(VLOOKUP($A35,'Race 1-Ladies'!$G$24:$L$53,6,0)),100,VLOOKUP($A35,'Race 1-Ladies'!$G$24:$L$53,6,0)) -> 100 | E35: =IF(ISNA(VLOOKUP($A35,'Race 2-Ladies'!$G$23:$L$53,6,0)),100,VLOOKUP($A35,'Race 2-Ladies'!$G$23:$L$53,6,0)) -> 100 | F35: =IF(ISNA(VLOOKUP($A35,'Race 3-Ladies'!$G$27:$L$61,6,0)),100,VLOOKUP($A35,'Race 3-Ladies'!$G$27:$L$61,6,0)) -> 100 | G35: =IF(ISNA(VLOOKUP($A35,'Race 4-Ladies'!$G$30:$L$100,6,0)),100,VLOOKUP($A35,'Race 4-Ladies'!$G$30:$L$100,6,0)) -> 100 | H35: =SMALL(D35:G35,{1,2,3}) -> 100 | I35: 100 | J35: 100 | K35: 300 | L35: 14
A36: Gemma Curran | B36: HRC | C36: S | D36: =IF(ISNA(VLOOKUP($A36,'Race 1-Ladies'!$G$24:$L$53,6,0)),100,VLOOKUP($A36,'Race 1-Ladies'!$G$24:$L$53,6,0)) -> 100 | E36: =IF(ISNA(VLOOKUP($A36,'Race 2-Ladies'!$G$23:$L$53,6,0)),100,VLOOKUP($A36,'Race 2-Ladies'!$G$23:$L$53,6,0)) -> 100 | F36: =IF(ISNA(VLOOKUP($A36,'Race 3-Ladies'!$G$27:$L$61,6,0)),100,VLOOKUP($A36,'Race 3-Ladies'!$G$27:$L$61,6,0)) -> 100 | G36: =IF(ISNA(VLOOKUP($A36,'Race 4-Ladies'!$G$30:$L$100,6,0)),100,VLOOKUP($A36,'Race 4-Ladies'!$G$30:$L$100,6,0)) -> 100 | H36: =SMALL(D36:G36,{1,2,3}) -> 100 | I36: 100 | J36: 100 | K36: 300 | L36: 14
A37: Georgie Hoole | B37: BS | C37: S | D37: =IF(ISNA(VLOOKUP($A37,'Race 1-Ladies'!$G$24:$L$53,6,0)),100,VLOOKUP($A37,'Race 1-Ladies'!$G$24:$L$53,6,0)) -> 100 | E37: =IF(ISNA(VLOOKUP($A37,'Race 2-Ladies'!$G$23:$L$53,6,0)),100,VLOOKUP($A37,'Race 2-Ladies'!$G$23:$L$53,6,0)) -> 100 | F37: =IF(ISNA(VLOOKUP($A37,'Race 3-Ladies'!$G$27:$L$61,6,0)),100,VLOOKUP($A37,'Race 3-Ladies'!$G$27:$L$61,6,0)) -> 100 | G37: =IF(ISNA(VLOOKUP($A37,'Race 4-Ladies'!$G$30:$L$100,6,0)),100,VLOOKUP($A37,'Race 4-Ladies'!$G$30:$L$100,6,0)) -> 100 | H37: =SMALL(D37:G37,{1,2,3}) -> 100 | I37: 100 | J37: 100 | K37: 300 | L37: 14
A38: Grace Malcolm | B38: BS | C38: S | D38: =IF(ISNA(VLOOKUP($A38,'Race 1-Ladies'!$G$24:$L$53,6,0)),100,VLOOKUP($A38,'Race 1-Ladies'!$G$24:$L$53,6,0)) -> 100 | E38: =IF(ISNA(VLOOKUP($A38,'Race 2-Ladies'!$G$23:$L$53,6,0)),100,VLOOKUP($A38,'Race 2-Ladies'!$G$23:$L$53,6,0)) -> 100 | F38: =IF(ISNA(VLOOKUP($A38,'Race 3-Ladies'!$G$27:$L$61,6,0)),100,VLOOKUP($A38,'Race 3-Ladies'!$G$27:$L$61,6,0)) -> 3 | G38: =IF(ISNA(VLOOKUP($A38,'Race 4-Ladies'!$G$30:$L$100,6,0)),100,VLOOKUP($A38,'Race 4-Ladies'!$G$30:$L$100,6,0)) -> 100 | H38: =SMALL(D38:G38,{1,2,3}) -> 3 | I38: 100 | J38: 100 | K38: 203 | L38: 9
A39: Gulsun Shevket | B39: HRC | C39: S | D39: =IF(ISNA(VLOOKUP($A39,'Race 1-Ladies'!$G$24:$L$53,6,0)),100,VLOOKUP($A39,'Race 1-Ladies'!$G$24:$L$53,6,0)) -> 100 | E39: =IF(ISNA(VLOOKUP($A39,'Race 2-Ladies'!$G$23:$L$53,6,0)),100,VLOOKUP($A39,'Race 2-Ladies'!$G$23:$L$53,6,0)) -> 100 | F39: =IF(ISNA(VLOOKUP($A39,'Race 3-Ladies'!$G$27:$L$61,6,0)),100,VLOOKUP($A39,'Race 3-Ladies'!$G$27:$L$61,6,0)) -> 100 | G39: =IF(ISNA(VLOOKUP($A39,'Race 4-Ladies'!$G$30:$L$100,6,0)),100,VLOOKUP($A39,'Race 4-Ladies'!$G$30:$L$100,6,0)) -> 100 | H39: =SMALL(D39:G39,{1,2,3}) -> 100 | I39: 100 | J39: 100 | K39: 300 | L39: 14
A40: Hannah Hartnett | B40: WJ | C40: S | D40: =IF(ISNA(VLOOKUP($A40,'Race 1-Ladies'!$G$24:$L$53,6,0)),100,VLOOKUP($A40,'Race 1-Ladies'!$G$24:$L$53,6,0)) -> 100 | E40: =IF(ISNA(VLOOKUP($A40,'Race 2-Ladies'!$G$23:$L$53,6,0)),100,VLOOKUP($A40,'Race 2-Ladies'!$G$23:$L$53,6,0)) -> 100 | F40: =IF(ISNA(VLOOKUP($A40,'Race 3-Ladies'!$G$27:$L$61,6,0)),100,VLOOKUP($A40,'Race 3-Ladies'!$G$27:$L$61,6,0)) -> 100 | G40: =IF(ISNA(VLOOKUP($A40,'Race 4-Ladies'!$G$30:$L$100,6,0)),100,VLOOKUP($A40,'Race 4-Ladies'!$G$30:$L$100,6,0)) -> 100 | H40: =SMALL(D40:G40,{1,2,3}) -> 100 | I40: 100 | J40: 100 | K40: 300 | L40: 14
A41: Harriet Kealy | B41: WJ | C41: S | D41: =IF(ISNA(VLOOKUP($A41,'Race 1-Ladies'!$G$24:$L$53,6,0)),100,VLOOKUP($A41,'Race 1-Ladies'!$G$24:$L$53,6,0)) -> 100 | E41: =IF(ISNA(VLOOKUP($A41,'Race 2-Ladies'!$G$23:$L$53,6,0)),100,VLOOKUP($A41,'Race 2-Ladies'!$G$23:$L$53,6,0)) -> 100 | F41: =IF(ISNA(VLOOKUP($A41,'Race 3-Ladies'!$G$27:$L$61,6,0)),100,VLOOKUP($A41,'Race 3-Ladies'!$G$27:$L$61,6,0)) -> 100 | G41: =IF(ISNA(VLOOKUP($A41,'Race 4-Ladies'!$G$30:$L$100,6,0)),100,VLOOKUP($A41,'Race 4-Ladies'!$G$30:$L$100,6,0)) -> 3 | H41: =SMALL(D41:G41,{1,2,3}) -> 3 | I41: 100 | J41: 100 | K41: 203 | L41: 9
A42: Harriett Martin | B42: HRC | C42: S | D42: =IF(ISNA(VLOOKUP($A42,'Race 1-Ladies'!$G$24:$L$53,6,0)),100,VLOOKUP($A42,'Race 1-Ladies'!$G$24:$L$53,6,0)) -> 100 | E42: =IF(ISNA(VLOOKUP($A42,'Race 2-Ladies'!$G$23:$L$53,6,0)),100,VLOOKUP($A42,'Race 2-Ladies'!$G$23:$L$53,6,0)) -> 100 | F42: =IF(ISNA(VLOOKUP($A42,'Race 3-Ladies'!$G$27:$L$61,6,0)),100,VLOOKUP($A42,'Race 3-Ladies'!$G$27:$L$61,6,0)) -> 100 | G42: =IF(ISNA(VLOOKUP($A42,'Race 4-Ladies'!$G$30:$L$100,6,0)),100,VLOOKUP($A42,'Race 4-Ladies'!$G$30:$L$100,6,0)) -> 100 | H42: =SMALL(D42:G42,{1,2,3}) -> 100 | I42: 100 | J42: 100 | K42: 300 | L42: 14
A43: Helen Barrell | B43: HRC | C43: S | D43: =IF(ISNA(VLOOKUP($A43,'Race 1-Ladies'!$G$24:$L$53,6,0)),100,VLOOKUP($A43,'Race 1-Ladies'!$G$24:$L$53,6,0)) -> 100 | E43: =IF(ISNA(VLOOKUP($A43,'Race 2-Ladies'!$G$23:$L$53,6,0)),100,VLOOKUP($A43,'Race 2-Ladies'!$G$23:$L$53,6,0)) -> 100 | F43: =IF(ISNA(VLOOKUP($A43,'Race 3-Ladies'!$G$27:$L$61,6,0)),100,VLOOKUP($A43,'Race 3-Ladies'!$G$27:$L$61,6,0)) -> 100 | G43: =IF(ISNA(VLOOKUP($A43,'Race 4-Ladies'!$G$30:$L$100,6,0)),100,VLOOKUP($A43,'Race 4-Ladies'!$G$30:$L$100,6,0)) -> 100 | H43: =SMALL(D43:G43,{1,2,3}) -> 100 | I43: 100 | J43: 100 | K43: 300 | L43: 14
A44: Helena May | B44: HRC | C44: S | D44: =IF(ISNA(VLOOKUP($A44,'Race 1-Ladies'!$G$24:$L$53,6,0)),100,VLOOKUP($A44,'Race 1-Ladies'!$G$24:$L$53,6,0)) -> 100 | E44: =IF(ISNA(VLOOKUP($A44,'Race 2-Ladies'!$G$23:$L$53,6,0)),100,VLOOKUP($A44,'Race 2-Ladies'!$G$23:$L$53,6,0)) -> 100 | F44: =IF(ISNA(VLOOKUP($A44,'Race 3-Ladies'!$G$27:$L$61,6,0)),100,VLOOKUP($A44,'Race 3-Ladies'!$G$27:$L$61,6,0)) -> 100 | G44: =IF(ISNA(VLOOKUP($A44,'Race 4-Ladies'!$G$30:$L$100,6,0)),100,VLOOKUP($A44,'Race 4-Ladies'!$G$30:$L$100,6,0)) -> 100 | H44: =SMALL(D44:G44,{1,2,3}) -> 100 | I44: 100 | J44: 100 | K44: 300 | L44: 14
A45: Holly Nairn | B45: HRC | C45: S | D45: =IF(ISNA(VLOOKUP($A45,'Race 1-Ladies'!$G$24:$L$53,6,0)),100,VLOOKUP($A45,'Race 1-Ladies'!$G$24:$L$53,6,0)) -> 100 | E45: =IF(ISNA(VLOOKUP($A45,'Race 2-Ladies'!$G$23:$L$53,6,0)),100,VLOOKUP($A45,'Race 2-Ladies'!$G$23:$L$53,6,0)) -> 100 | F45: =IF(ISNA(VLOOKUP($A45,'Race 3-Ladies'!$G$27:$L$61,6,0)),100,VLOOKUP($A45,'Race 3-Ladies'!$G$27:$L$61,6,0)) -> 100 | G45: =IF(ISNA(VLOOKUP($A45,'Race 4-Ladies'!$G$30:$L$100,6,0)),100,VLOOKUP($A45,'Race 4-Ladies'!$G$30:$L$100,6,0)) -> 100 | H45: =SMALL(D45:G45,{1,2,3}) -> 100 | I45: 100 | J45: 100 | K45: 300 | L45: 14
A46: Imogen Drake | B46: BS | C46: S | D46: =IF(ISNA(VLOOKUP($A46,'Race 1-Ladies'!$G$24:$L$53,6,0)),100,VLOOKUP($A46,'Race 1-Ladies'!$G$24:$L$53,6,0)) -> 100 | E46: =IF(ISNA(VLOOKUP($A46,'Race 2-Ladies'!$G$23:$L$53,6,0)),100,VLOOKUP($A46,'Race 2-Ladies'!$G$23:$L$53,6,0)) -> 100 | F46: =IF(ISNA(VLOOKUP($A46,'Race 3-Ladies'!$G$27:$L$61,6,0)),100,VLOOKUP($A46,'Race 3-Ladies'!$G$27:$L$61,6,0)) -> 100 | G46: =IF(ISNA(VLOOKUP($A46,'Race 4-Ladies'!$G$30:$L$100,6,0)),100,VLOOKUP($A46,'Race 4-Ladies'!$G$30:$L$100,6,0)) -> 100 | H46: =SMALL(D46:G46,{1,2,3}) -> 100 | I46: 100 | J46: 100 | K46: 300 | L46: 14
A47: Jennifer Evans | B47: WJ | C47: S | D47: =IF(ISNA(VLOOKUP($A47,'Race 1-Ladies'!$G$24:$L$53,6,0)),100,VLOOKUP($A47,'Race 1-Ladies'!$G$24:$L$53,6,0)) -> 100 | E47: =IF(ISNA(VLOOKUP($A47,'Race 2-Ladies'!$G$23:$L$53,6,0)),100,VLOOKUP($A47,'Race 2-Ladies'!$G$23:$L$53,6,0)) -> 7 | F47: =IF(ISNA(VLOOKUP($A47,'Race 3-Ladies'!$G$27:$L$61,6,0)),100,VLOOKUP($A47,'Race 3-Ladies'!$G$27:$L$61,6,0)) -> 100 | G47: =IF(ISNA(VLOOKUP($A47,'Race 4-Ladies'!$G$30:$L$100,6,0)),100,VLOOKUP($A47,'Race 4-Ladies'!$G$30:$L$100,6,0)) -> 7 | H47: =SMALL(D47:G47,{1,2,3}) -> 7 | I47: 7 | J47: 100 | K47: 114 | L47: 8
A48: Jessica Carter | B48: HRC | C48: S | D48: =IF(ISNA(VLOOKUP($A48,'Race 1-Ladies'!$G$24:$L$53,6,0)),100,VLOOKUP($A48,'Race 1-Ladies'!$G$24:$L$53,6,0)) -> 100 | E48: =IF(ISNA(VLOOKUP($A48,'Race 2-Ladies'!$G$23:$L$53,6,0)),100,VLOOKUP($A48,'Race 2-Ladies'!$G$23:$L$53,6,0)) -> 100 | F48: =IF(ISNA(VLOOKUP($A48,'Race 3-Ladies'!$G$27:$L$61,6,0)),100,VLOOKUP($A48,'Race 3-Ladies'!$G$27:$L$61,6,0)) -> 100 | G48: =IF(ISNA(VLOOKUP($A48,'Race 4-Ladies'!$G$30:$L$100,6,0)),100,VLOOKUP($A48,'Race 4-Ladies'!$G$30:$L$100,6,0)) -> 100 | H48: =SMALL(D48:G48,{1,2,3}) -> 100 | I48: 100 | J48: 100 | K48: 300 | L48: 14
A49: Kate Waite | B49: SS | C49: S | D49: =IF(ISNA(VLOOKUP($A49,'Race 1-Ladies'!$G$24:$L$53,6,0)),100,VLOOKUP($A49,'Race 1-Ladies'!$G$24:$L$53,6,0)) -> 100 | E49: =IF(ISNA(VLOOKUP($A49,'Race 2-Ladies'!$G$23:$L$53,6,0)),100,VLOOKUP($A49,'Race 2-Ladies'!$G$23:$L$53,6,0)) -> 100 | F49: =IF(ISNA(VLOOKUP($A49,'Race 3-Ladies'!$G$27:$L$61,6,0)),100,VLOOKUP($A49,'Race 3-Ladies'!$G$27:$L$61,6,0)) -> 100 | G49: =IF(ISNA(VLOOKUP($A49,'Race 4-Ladies'!$G$30:$L$100,6,0)),100,VLOOKUP($A49,'Race 4-Ladies'!$G$30:$L$100,6,0)) -> 100 | H49: =SMALL(D49:G49,{1,2,3}) -> 100 | I49: 100 | J49: 100 | K49: 300 | L49: 14
A50: Lucy Barnes | B50: HRC | C50: S | D50: =IF(ISNA(VLOOKUP($A50,'Race 1-Ladies'!$G$24:$L$53,6,0)),100,VLOOKUP($A50,'Race 1-Ladies'!$G$24:$L$53,6,0)) -> 1 | E50: =IF(ISNA(VLOOKUP($A50,'Race 2-Ladies'!$G$23:$L$53,6,0)),100,VLOOKUP($A50,'Race 2-Ladies'!$G$23:$L$53,6,0)) -> 1 | F50: =IF(ISNA(VLOOKUP($A50,'Race 3-Ladies'!$G$27:$L$61,6,0)),100,VLOOKUP($A50,'Race 3-Ladies'!$G$27:$L$61,6,0)) -> 100 | G50: =IF(ISNA(VLOOKUP($A50,'Race 4-Ladies'!$G$30:$L$100,6,0)),100,VLOOKUP($A50,'Race 4-Ladies'!$G$30:$L$100,6,0)) -> 1 | H50: =SMALL(D50:G50,{1,2,3}) -> 1 | I50: 1 | J50: 1 | K50: 3 | L50: 1
A51: Lucy Coston | B51: SS | C51: S | D51: =IF(ISNA(VLOOKUP($A51,'Race 1-Ladies'!$G$24:$L$53,6,0)),100,VLOOKUP($A51,'Race 1-Ladies'!$G$24:$L$53,6,0)) -> 100 | E51: =IF(ISNA(VLOOKUP($A51,'Race 2-Ladies'!$G$23:$L$53,6,0)),100,VLOOKUP($A51,'Race 2-Ladies'!$G$23:$L$53,6,0)) -> 100 | F51: =IF(ISNA(VLOOKUP($A51,'Race 3-Ladies'!$G$27:$L$61,6,0)),100,VLOOKUP($A51,'Race 3-Ladies'!$G$27:$L$61,6,0)) -> 100 | G51: =IF(ISNA(VLOOKUP($A51,'Race 4-Ladies'!$G$30:$L$100,6,0)),100,VLOOKUP($A51,'Race 4-Ladies'!$G$30:$L$100,6,0)) -> 100 | H51: =SMALL(D51:G51,{1,2,3}) -> 100 | I51: 100 | J51: 100 | K51: 300 | L51: 14
A52: Mairi Malcolm | B52: BS | C52: S | D52: =IF(ISNA(VLOOKUP($A52,'Race 1-Ladies'!$G$24:$L$53,6,0)),100,VLOOKUP($A52,'Race 1-Ladies'!$G$24:$L$53,6,0)) -> 100 | E52: =IF(ISNA(VLOOKUP($A52,'Race 2-Ladies'!$G$23:$L$53,6,0)),100,VLOOKUP($A52,'Race 2-Ladies'!$G$23:$L$53,6,0)) -> 100 | F52: =IF(ISNA(VLOOKUP($A52,'Race 3-Ladies'!$G$27:$L$61,6,0)),100,VLOOKUP($A52,'Race 3-Ladies'!$G$27:$L$61,6,0)) -> 100 | G52: =IF(ISNA(VLOOKUP($A52,'Race 4-Ladies'!$G$30:$L$100,6,0)),100,VLOOKUP($A52,'Race 4-Ladies'!$G$30:$L$100,6,0)) -> 100 | H52: =SMALL(D52:G52,{1,2,3}) -> 100 | I52: 100 | J52: 100 | K52: 300 | L52: 14
A53: Marie Heenan | B53: WJ | C53: S | D53: =IF(ISNA(VLOOKUP($A53,'Race 1-Ladies'!$G$24:$L$53,6,0)),100,VLOOKUP($A53,'Race 1-Ladies'!$G$24:$L$53,6,0)) -> 100 | E53: =IF(ISNA(VLOOKUP($A53,'Race 2-Ladies'!$G$23:$L$53,6,0)),100,VLOOKUP($A53,'Race 2-Ladies'!$G$23:$L$53,6,0)) -> 100 | F53: =IF(ISNA(VLOOKUP($A53,'Race 3-Ladies'!$G$27:$L$61,6,0)),100,VLOOKUP($A53,'Race 3-Ladies'!$G$27:$L$61,6,0)) -> 100 | G53: =IF(ISNA(VLOOKUP($A53,'Race 4-Ladies'!$G$30:$L$100,6,0)),100,VLOOKUP($A53,'Race 4-Ladies'!$G$30:$L$100,6,0)) -> 100 | H53: =SMALL(D53:G53,{1,2,3}) -> 100 | I53: 100 | J53: 100 | K53: 300 | L53: 14
A54: Martha Flind | B54: SS | C54: S | D54: =IF(ISNA(VLOOKUP($A54,'Race 1-Ladies'!$G$24:$L$53,6,0)),100,VLOOKUP($A54,'Race 1-Ladies'!$G$24:$L$53,6,0)) -> 4 | E54: =IF(ISNA(VLOOKUP($A54,'Race 2-Ladies'!$G$23:$L$53,6,0)),100,VLOOKUP($A54,'Race 2-Ladies'!$G$23:$L$53,6,0)) -> 100 | F54: =IF(ISNA(VLOOKUP($A54,'Race 3-Ladies'!$G$27:$L$61,6,0)),100,VLOOKUP($A54,'Race 3-Ladies'!$G$27:$L$61,6,0)) -> 100 | G54: =IF(ISNA(VLOOKUP($A54,'Race 4-Ladies'!$G$30:$L$100,6,0)),100,VLOOKUP($A54,'Race 4-Ladies'!$G$30:$L$100,6,0)) -> 100 | H54: =SMALL(D54:G54,{1,2,3}) -> 4 | I54: 100 | J54: 100 | K54: 204 | L54: 11
A55: Mia Davey | B55: WJ | C55: S | D55: =IF(ISNA(VLOOKUP($A55,'Race 1-Ladies'!$G$24:$L$53,6,0)),100,VLOOKUP($A55,'Race 1-Ladies'!$G$24:$L$53,6,0)) -> 100 | E55: =IF(ISNA(VLOOKUP($A55,'Race 2-Ladies'!$G$23:$L$53,6,0)),100,VLOOKUP($A55,'Race 2-Ladies'!$G$23:$L$53,6,0)) -> 100 | F55: =IF(ISNA(VLOOKUP($A55,'Race 3-Ladies'!$G$27:$L$61,6,0)),100,VLOOKUP($A55,'Race 3-Ladies'!$G$27:$L$61,6,0)) -> 100 | G55: =IF(ISNA(VLOOKUP($A55,'Race 4-Ladies'!$G$30:$L$100,6,0)),100,VLOOKUP($A55,'Race 4-Ladies'!$G$30:$L$100,6,0)) -> 100 | H55: =SMALL(D55:G55,{1,2,3}) -> 100 | I55: 100 | J55: 100 | K55: 300 | L55: 14
A56: Millie McGovern | B56: HRC | C56: S | D56: =IF(ISNA(VLOOKUP($A56,'Race 1-Ladies'!$G$24:$L$53,6,0)),100,VLOOKUP($A56,'Race 1-Ladies'!$G$24:$L$53,6,0)) -> 100 | E56: =IF(ISNA(VLOOKUP($A56,'Race 2-Ladies'!$G$23:$L$53,6,0)),100,VLOOKUP($A56,'Race 2-Ladies'!$G$23:$L$53,6,0)) -> 100 | F56: =IF(ISNA(VLOOKUP($A56,'Race 3-Ladies'!$G$27:$L$61,6,0)),100,VLOOKUP($A56,'Race 3-Ladies'!$G$27:$L$61,6,0)) -> 100 | G56: =IF(ISNA(VLOOKUP($A56,'Race 4-Ladies'!$G$30:$L$100,6,0)),100,VLOOKUP($A56,'Race 4-Ladies'!$G$30:$L$100,6,0)) -> 100 | H56: =SMALL(D56:G56,{1,2,3}) -> 100 | I56: 100 | J56: 100 | K56: 300 | L56: 14
A57: Olivia Beresford | B57: BS | C57: S | D57: =IF(ISNA(VLOOKUP($A57,'Race 1-Ladies'!$G$24:$L$53,6,0)),100,VLOOKUP($A57,'Race 1-Ladies'!$G$24:$L$53,6,0)) -> 100 | E57: =IF(ISNA(VLOOKUP($A57,'Race 2-Ladies'!$G$23:$L$53,6,0)),100,VLOOKUP($A57,'Race 2-Ladies'!$G$23:$L$53,6,0)) -> 100 | F57: =IF(ISNA(VLOOKUP($A57,'Race 3-Ladies'!$G$27:$L$61,6,0)),100,VLOOKUP($A57,'Race 3-Ladies'!$G$27:$L$61,6,0)) -> 100 | G57: =IF(ISNA(VLOOKUP($A57,'Race 4-Ladies'!$G$30:$L$100,6,0)),100,VLOOKUP($A57,'Race 4-Ladies'!$G$30:$L$100,6,0)) -> 100 | H57: =SMALL(D57:G57,{1,2,3}) -> 100 | I57: 100 | J57: 100 | K57: 300 | L57: 14
A58: Paige Bircham | B58: HRC | C58: S | D58: =IF(ISNA(VLOOKUP($A58,'Race 1-Ladies'!$G$24:$L$53,6,0)),100,VLOOKUP($A58,'Race 1-Ladies'!$G$24:$L$53,6,0)) -> 100 | E58: =IF(ISNA(VLOOKUP($A58,'Race 2-Ladies'!$G$23:$L$53,6,0)),100,VLOOKUP($A58,'Race 2-Ladies'!$G$23:$L$53,6,0)) -> 4 | F58: =IF(ISNA(VLOOKUP($A58,'Race 3-Ladies'!$G$27:$L$61,6,0)),100,VLOOKUP($A58,'Race 3-Ladies'!$G$27:$L$61,6,0)) -> 7 | G58: =IF(ISNA(VLOOKUP($A58,'Race 4-Ladies'!$G$30:$L$100,6,0)),100,VLOOKUP($A58,'Race 4-Ladies'!$G$30:$L$100,6,0)) -> 4 | H58: =SMALL(D58:G58,{1,2,3}) -> 4 | I58: 4 | J58: 7 | K58: 15 | L58: 3
A59: Penelope Roux | B59: BS | C59: S | D59: =IF(ISNA(VLOOKUP($A59,'Race 1-Ladies'!$G$24:$L$53,6,0)),100,VLOOKUP($A59,'Race 1-Ladies'!$G$24:$L$53,6,0)) -> 100 | E59: =IF(ISNA(VLOOKUP($A59,'Race 2-Ladies'!$G$23:$L$53,6,0)),100,VLOOKUP($A59,'Race 2-Ladies'!$G$23:$L$53,6,0)) -> 100 | F59: =IF(ISNA(VLOOKUP($A59,'Race 3-Ladies'!$G$27:$L$61,6,0)),100,VLOOKUP($A59,'Race 3-Ladies'!$G$27:$L$61,6,0)) -> 100 | G59: =IF(ISNA(VLOOKUP($A59,'Race 4-Ladies'!$G$30:$L$100,6,0)),100,VLOOKUP($A59,'Race 4-Ladies'!$G$30:$L$100,6,0)) -> 100 | H59: =SMALL(D59:G59,{1,2,3}) -> 100 | I59: 100 | J59: 100 | K59: 300 | L59: 14
A60: Phily Watson | B60: SS | C60: S | D60: =IF(ISNA(VLOOKUP($A60,'Race 1-Ladies'!$G$24:$L$53,6,0)),100,VLOOKUP($A60,'Race 1-Ladies'!$G$24:$L$53,6,0)) -> 100 | E60: =IF(ISNA(VLOOKUP($A60,'Race 2-Ladies'!$G$23:$L$53,6,0)),100,VLOOKUP($A60,'Race 2-Ladies'!$G$23:$L$53,6,0)) -> 100 | F60: =IF(ISNA(VLOOKUP($A60,'Race 3-Ladies'!$G$27:$L$61,6,0)),100,VLOOKUP($A60,'Race 3-Ladies'!$G$27:$L$61,6,0)) -> 100 | G60: =IF(ISNA(VLOOKUP($A60,'Race 4-Ladies'!$G$30:$L$100,6,0)),100,VLOOKUP($A60,'Race 4-Ladies'!$G$30:$L$100,6,0)) -> 100 | H60: =SMALL(D60:G60,{1,2,3}) -> 100 | I60: 100 | J60: 100 | K60: 300 | L60: 14
A61: Rachel Lewis | B61: HRC | C61: S | D61: =IF(ISNA(VLOOKUP($A61,'Race 1-Ladies'!$G$24:$L$53,6,0)),100,VLOOKUP($A61,'Race 1-Ladies'!$G$24:$L$53,6,0)) -> 100 | E61: =IF(ISNA(VLOOKUP($A61,'Race 2-Ladies'!$G$23:$L$53,6,0)),100,VLOOKUP($A61,'Race 2-Ladies'!$G$23:$L$53,6,0)) -> 100 | F61: =IF(ISNA(VLOOKUP($A61,'Race 3-Ladies'!$G$27:$L$61,6,0)),100,VLOOKUP($A61,'Race 3-Ladies'!$G$27:$L$61,6,0)) -> 100 | G61: =IF(ISNA(VLOOKUP($A61,'Race 4-Ladies'!$G$30:$L$100,6,0)),100,VLOOKUP($A61,'Race 4-Ladies'!$G$30:$L$100,6,0)) -> 100 | H61: =SMALL(D61:G61,{1,2,3}) -> 100 | I61: 100 | J61: 100 | K61: 300 | L61: 14
A62: Rebecca Dolan | B62: BS | C62: S | D62: =IF(ISNA(VLOOKUP($A62,'Race 1-Ladies'!$G$24:$L$53,6,0)),100,VLOOKUP($A62,'Race 1-Ladies'!$G$24:$L$53,6,0)) -> 100 | E62: =IF(ISNA(VLOOKUP($A62,'Race 2-Ladies'!$G$23:$L$53,6,0)),100,VLOOKUP($A62,'Race 2-Ladies'!$G$23:$L$53,6,0)) -> 100 | F62: =IF(ISNA(VLOOKUP($A62,'Race 3-Ladies'!$G$27:$L$61,6,0)),100,VLOOKUP($A62,'Race 3-Ladies'!$G$27:$L$61,6,0)) -> 100 | G62: =IF(ISNA(VLOOKUP($A62,'Race 4-Ladies'!$G$30:$L$100,6,0)),100,VLOOKUP($A62,'Race 4-Ladies'!$G$30:$L$100,6,0)) -> 100 | H62: =SMALL(D62:G62,{1,2,3}) -> 100 | I62: 100 | J62: 100 | K62: 300 | L62: 14
A63: Rebecca Walker | B63: HRC | C63: S | D63: =IF(ISNA(VLOOKUP($A63,'Race 1-Ladies'!$G$24:$L$53,6,0)),100,VLOOKUP($A63,'Race 1-Ladies'!$G$24:$L$53,6,0)) -> 100 | E63: =IF(ISNA(VLOOKUP($A63,'Race 2-Ladies'!$G$23:$L$53,6,0)),100,VLOOKUP($A63,'Race 2-Ladies'!$G$23:$L$53,6,0)) -> 100 | F63: =IF(ISNA(VLOOKUP($A63,'Race 3-Ladies'!$G$27:$L$61,6,0)),100,VLOOKUP($A63,'Race 3-Ladies'!$G$27:$L$61,6,0)) -> 100 | G63: =IF(ISNA(VLOOKUP($A63,'Race 4-Ladies'!$G$30:$L$100,6,0)),100,VLOOKUP($A63,'Race 4-Ladies'!$G$30:$L$100,6,0)) -> 100 | H63: =SMALL(D63:G63,{1,2,3}) -> 100 | I63: 100 | J63: 100 | K63: 300 | L63: 14
A64: Salli White | B64: SS | C64: S | D64: =IF(ISNA(VLOOKUP($A64,'Race 1-Ladies'!$G$24:$L$53,6,0)),100,VLOOKUP($A64,'Race 1-Ladies'!$G$24:$L$53,6,0)) -> 100 | E64: =IF(ISNA(VLOOKUP($A64,'Race 2-Ladies'!$G$23:$L$53,6,0)),100,VLOOKUP($A64,'Race 2-Ladies'!$G$23:$L$53,6,0)) -> 100 | F64: =IF(ISNA(VLOOKUP($A64,'Race 3-Ladies'!$G$27:$L$61,6,0)),100,VLOOKUP($A64,'Race 3-Ladies'!$G$27:$L$61,6,0)) -> 100 | G64: =IF(ISNA(VLOOKUP($A64,'Race 4-Ladies'!$G$30:$L$100,6,0)),100,VLOOKUP($A64,'Race 4-Ladies'!$G$30:$L$100,6,0)) -> 100 | H64: =SMALL(D64:G64,{1,2,3}) -> 100 | I64: 100 | J64: 100 | K64: 300 | L64: 14
A65: Sara Larsen Armstrong | B65: SS | C65: S | D65: =IF(ISNA(VLOOKUP($A65,'Race 1-Ladies'!$G$24:$L$53,6,0)),100,VLOOKUP($A65,'Race 1-Ladies'!$G$24:$L$53,6,0)) -> 100 | E65: =IF(ISNA(VLOOKUP($A65,'Race 2-Ladies'!$G$23:$L$53,6,0)),100,VLOOKUP($A65,'Race 2-Ladies'!$G$23:$L$53,6,0)) -> 100 | F65: =IF(ISNA(VLOOKUP($A65,'Race 3-Ladies'!$G$27:$L$61,6,0)),100,VLOOKUP($A65,'Race 3-Ladies'!$G$27:$L$61,6,0)) -> 5 | G65: =IF(ISNA(VLOOKUP($A65,'Race 4-Ladies'!$G$30:$L$100,6,0)),100,VLOOKUP($A65,'Race 4-Ladies'!$G$30:$L$100,6,0)) -> 100 | H65: =SMALL(D65:G65,{1,2,3}) -> 5 | I65: 100 | J65: 100 | K65: 205 | L65: 12
A66: Sarah Carman | B66: HRC | C66: S | D66: =IF(ISNA(VLOOKUP($A66,'Race 1-Ladies'!$G$24:$L$53,6,0)),100,VLOOKUP($A66,'Race 1-Ladies'!$G$24:$L$53,6,0)) -> 100 | E66: =IF(ISNA(VLOOKUP($A66,'Race 2-Ladies'!$G$23:$L$53,6,0)),100,VLOOKUP($A66,'Race 2-Ladies'!$G$23:$L$53,6,0)) -> 100 | F66: =IF(ISNA(VLOOKUP($A66,'Race 3-Ladies'!$G$27:$L$61,6,0)),100,VLOOKUP($A66,'Race 3-Ladies'!$G$27:$L$61,6,0)) -> 100 | G66: =IF(ISNA(VLOOKUP($A66,'Race 4-Ladies'!$G$30:$L$100,6,0)),100,VLOOKUP($A66,'Race 4-Ladies'!$G$30:$L$100,6,0)) -> 100 | H66: =SMALL(D66:G66,{1,2,3}) -> 100 | I66: 100 | J66: 100 | K66: 300 | L66: =RANK(K66,$K$2:$K$68,1) -> 14
A67: Sarah Ede | B67: HRC | C67: S | D67: =IF(ISNA(VLOOKUP($A67,'Race 1-Ladies'!$G$24:$L$53,6,0)),100,VLOOKUP($A67,'Race 1-Ladies'!$G$24:$L$53,6,0)) -> 100 | E67: =IF(ISNA(VLOOKUP($A67,'Race 2-Ladies'!$G$23:$L$53,6,0)),100,VLOOKUP($A67,'Race 2-Ladies'!$G$23:$L$53,6,0)) -> 100 | F67: =IF(ISNA(VLOOKUP($A67,'Race 3-Ladies'!$G$27:$L$61,6,0)),100,VLOOKUP($A67,'Race 3-Ladies'!$G$27:$L$61,6,0)) -> 100 | G67: =IF(ISNA(VLOOKUP($A67,'Race 4-Ladies'!$G$30:$L$100,6,0)),100,VLOOKUP($A67,'Race 4-Ladies'!$G$30:$L$100,6,0)) -> 100 | H67: =SMALL(D67:G67,{1,2,3}) -> 100 | I67: 100 | J67: 100 | K67: =SUM(H67:J67) -> 300 | L67: 14
A68: Susan Fraser | B68: WJ | C68: S | D68: =IF(ISNA(VLOOKUP($A68,'Race 1-Ladies'!$G$24:$L$53,6,0)),100,VLOOKUP($A68,'Race 1-Ladies'!$G$24:$L$53,6,0)) -> 100 | E68: =IF(ISNA(VLOOKUP($A68,'Race 2-Ladies'!$G$23:$L$53,6,0)),100,VLOOKUP($A68,'Race 2-Ladies'!$G$23:$L$53,6,0)) -> 100 | F68: =IF(ISNA(VLOOKUP($A68,'Race 3-Ladies'!$G$27:$L$61,6,0)),100,VLOOKUP($A68,'Race 3-Ladies'!$G$27:$L$61,6,0)) -> 100 | G68: =IF(ISNA(VLOOKUP($A68,'Race 4-Ladies'!$G$30:$L$100,6,0)),100,VLOOKUP($A68,'Race 4-Ladies'!$G$30:$L$100,6,0)) -> 100 | H68: =SMALL(D68:G68,{1,2,3}) -> 100 | I68: 100 | J68: 100 | K68: 300 | L68: =RANK(K68,$K$2:$K$68,1) -> 14
A69: Alina Tarca | B69: WJ | C69: V35 | D69: =IF(ISNA(VLOOKUP($A69,'Race 1-Ladies'!$N$24:$S$53,6,0)),100,VLOOKUP($A69,'Race 1-Ladies'!$N$24:$S$53,6,0)) -> 100 | E69: =IF(ISNA(VLOOKUP($A69,'Race 2-Ladies'!$N$23:$S$53,6,0)),100,VLOOKUP($A69,'Race 2-Ladies'!$N$23:$S$53,6,0)) -> 100 | F69: =IF(ISNA(VLOOKUP($A69,'Race 3-Ladies'!$N$27:$S$61,6,0)),100,VLOOKUP($A69,'Race 3-Ladies'!$N$27:$S$61,6,0)) -> 100 | G69: =IF(ISNA(VLOOKUP($A69,'Race 4-Ladies'!$N$27:$S$100,6,0)),100,VLOOKUP($A69,'Race 4-Ladies'!$N$30:$S$100,6,0)) -> 100 | H69: =SMALL(D69:G69,{1,2,3}) -> 100 | I69: 100 | J69: 100 | K69: 300 | L69: =RANK(K69,$K$69:$K$172,1) -> 30
A70: Amanda Martin-Hose | B70: HRC | C70: V35 | D70: =IF(ISNA(VLOOKUP($A70,'Race 1-Ladies'!$N$24:$S$53,6,0)),100,VLOOKUP($A70,'Race 1-Ladies'!$N$24:$S$53,6,0)) -> 100 | E70: =IF(ISNA(VLOOKUP($A70,'Race 2-Ladies'!$N$23:$S$53,6,0)),100,VLOOKUP($A70,'Race 2-Ladies'!$N$23:$S$53,6,0)) -> 100 | F70: =IF(ISNA(VLOOKUP($A70,'Race 3-Ladies'!$N$27:$S$61,6,0)),100,VLOOKUP($A70,'Race 3-Ladies'!$N$27:$S$61,6,0)) -> 100 | G70: =IF(ISNA(VLOOKUP($A70,'Race 4-Ladies'!$N$27:$S$100,6,0)),100,VLOOKUP($A70,'Race 4-Ladies'!$N$30:$S$100,6,0)) -> 100 | H70: =SMALL(D70:G70,{1,2,3}) -> 100 | I70: 100 | J70: 100 | K70: 300 | L70: =RANK(K70,$K$69:$K$172,1) -> 30
A71: Amy Thomas | B71: SS | C71: V35 | D71: =IF(ISNA(VLOOKUP($A71,'Race 1-Ladies'!$N$24:$S$53,6,0)),100,VLOOKUP($A71,'Race 1-Ladies'!$N$24:$S$53,6,0)) -> 100 | E71: =IF(ISNA(VLOOKUP($A71,'Race 2-Ladies'!$N$23:$S$53,6,0)),100,VLOOKUP($A71,'Race 2-Ladies'!$N$23:$S$53,6,0)) -> 100 | F71: =IF(ISNA(VLOOKUP($A71,'Race 3-Ladies'!$N$27:$S$61,6,0)),100,VLOOKUP($A71,'Race 3-Ladies'!$N$27:$S$61,6,0)) -> 100 | G71: =IF(ISNA(VLOOKUP($A71,'Race 4-Ladies'!$N$27:$S$100,6,0)),100,VLOOKUP($A71,'Race 4-Ladies'!$N$30:$S$100,6,0)) -> 100 | H71: =SMALL(D71:G71,{1,2,3}) -> 100 | I71: 100 | J71: 100 | K71: 300 | L71: 30
A72: Anique Liiv | B72: HRC | C72: V35 | D72: =IF(ISNA(VLOOKUP($A72,'Race 1-Ladies'!$N$24:$S$53,6,0)),100,VLOOKUP($A72,'Race 1-Ladies'!$N$24:$S$53,6,0)) -> 100 | E72: =IF(ISNA(VLOOKUP($A72,'Race 2-Ladies'!$N$23:$S$53,6,0)),100,VLOOKUP($A72,'Race 2-Ladies'!$N$23:$S$53,6,0)) -> 100 | F72: =IF(ISNA(VLOOKUP($A72,'Race 3-Ladies'!$N$27:$S$61,6,0)),100,VLOOKUP($A72,'Race 3-Ladies'!$N$27:$S$61,6,0)) -> 100 | G72: =IF(ISNA(VLOOKUP($A72,'Race 4-Ladies'!$N$27:$S$100,6,0)),100,VLOOKUP($A72,'Race 4-Ladies'!$N$30:$S$100,6,0)) -> 100 | H72: =SMALL(D72:G72,{1,2,3}) -> 100 | I72: 100 | J72: 100 | K72: 300 | L72: 30
A73: Anna Cooper | B73: SS | C73: V35 | D73: =IF(ISNA(VLOOKUP($A73,'Race 1-Ladies'!$N$24:$S$53,6,0)),100,VLOOKUP($A73,'Race 1-Ladies'!$N$24:$S$53,6,0)) -> 100 | E73: =IF(ISNA(VLOOKUP($A73,'Race 2-Ladies'!$N$23:$S$53,6,0)),100,VLOOKUP($A73,'Race 2-Ladies'!$N$23:$S$53,6,0)) -> 100 | F73: =IF(ISNA(VLOOKUP($A73,'Race 3-Ladies'!$N$27:$S$61,6,0)),100,VLOOKUP($A73,'Race 3-Ladies'!$N$27:$S$61,6,0)) -> 100 | G73: =IF(ISNA(VLOOKUP($A73,'Race 4-Ladies'!$N$27:$S$100,6,0)),100,VLOOKUP($A73,'Race 4-Ladies'!$N$30:$S$100,6,0)) -> 100 | H73: =SMALL(D73:G73,{1,2,3}) -> 100 | I73: 100 | J73: 100 | K73: 300 | L73: 30
A74: Anna Robey | B74: HRC | C74: V35 | D74: =IF(ISNA(VLOOKUP($A74,'Race 1-Ladies'!$N$24:$S$53,6,0)),100,VLOOKUP($A74,'Race 1-Ladies'!$N$24:$S$53,6,0)) -> 6 | E74: =IF(ISNA(VLOOKUP($A74,'Race 2-Ladies'!$N$23:$S$53,6,0)),100,VLOOKUP($A74,'Race 2-Ladies'!$N$23:$S$53,6,0)) -> 12 | F74: =IF(ISNA(VLOOKUP($A74,'Race 3-Ladies'!$N$27:$S$61,6,0)),100,VLOOKUP($A74,'Race 3-Ladies'!$N$27:$S$61,6,0)) -> 100 | G74: =IF(ISNA(VLOOKUP($A74,'Race 4-Ladies'!$N$27:$S$100,6,0)),100,VLOOKUP($A74,'Race 4-Ladies'!$N$30:$S$100,6,0)) -> 100 | H74: =SMALL(D74:G74,{1,2,3}) -> 6 | I74: 12 | J74: 100 | K74: 118 | L74: 14
A75: Anne Dawson | B75: SS | C75: V35 | D75: =IF(ISNA(VLOOKUP($A75,'Race 1-Ladies'!$N$24:$S$53,6,0)),100,VLOOKUP($A75,'Race 1-Ladies'!$N$24:$S$53,6,0)) -> 100 | E75: =IF(ISNA(VLOOKUP($A75,'Race 2-Ladies'!$N$23:$S$53,6,0)),100,VLOOKUP($A75,'Race 2-Ladies'!$N$23:$S$53,6,0)) -> 100 | F75: =IF(ISNA(VLOOKUP($A75,'Race 3-Ladies'!$N$27:$S$61,6,0)),100,VLOOKUP($A75,'Race 3-Ladies'!$N$27:$S$61,6,0)) -> 7 | G75: =IF(ISNA(VLOOKUP($A75,'Race 4-Ladies'!$N$27:$S$100,6,0)),100,VLOOKUP($A75,'Race 4-Ladies'!$N$30:$S$100,6,0)) -> 100 | H75: =SMALL(D75:G75,{1,2,3}) -> 7 | I75: 100 | J75: 100 | K75: 207 | L75: 20
A76: Asta Neely | B76: WJ | C76: V35 | D76: =IF(ISNA(VLOOKUP($A76,'Race 1-Ladies'!$N$24:$S$53,6,0)),100,VLOOKUP($A76,'Race 1-Ladies'!$N$24:$S$53,6,0)) -> 100 | E76: =IF(ISNA(VLOOKUP($A76,'Race 2-Ladies'!$N$23:$S$53,6,0)),100,VLOOKUP($A76,'Race 2-Ladies'!$N$23:$S$53,6,0)) -> 100 | F76: =IF(ISNA(VLOOKUP($A76,'Race 3-Ladies'!$N$27:$S$61,6,0)),100,VLOOKUP($A76,'Race 3-Ladies'!$N$27:$S$61,6,0)) -> 100 | G76: =IF(ISNA(VLOOKUP($A76,'Race 4-Ladies'!$N$27:$S$100,6,0)),100,VLOOKUP($A76,'Race 4-Ladies'!$N$30:$S$100,6,0)) -> 100 | H76: =SMALL(D76:G76,{1,2,3}) -> 100 | I76: 100 | J76: 100 | K76: 300 | L76: 30
A77: Briony Hudson | B77: BS | C77: V35 | D77: =IF(ISNA(VLOOKUP($A77,'Race 1-Ladies'!$N$24:$S$53,6,0)),100,VLOOKUP($A77,'Race 1-Ladies'!$N$24:$S$53,6,0)) -> 100 | E77: =IF(ISNA(VLOOKUP($A77,'Race 2-Ladies'!$N$23:$S$53,6,0)),100,VLOOKUP($A77,'Race 2-Ladies'!$N$23:$S$53,6,0)) -> 9 | F77: =IF(ISNA(VLOOKUP($A77,'Race 3-Ladies'!$N$27:$S$61,6,0)),100,VLOOKUP($A77,'Race 3-Ladies'!$N$27:$S$61,6,0)) -> 9 | G77: =IF(ISNA(VLOOKUP($A77,'Race 4-Ladies'!$N$27:$S$100,6,0)),100,VLOOKUP($A77,'Race 4-Ladies'!$N$30:$S$100,6,0)) -> 100 | H77: =SMALL(D77:G77,{1,2,3}) -> 9 | I77: 9 | J77: 100 | K77: =SUM(H77:J77) -> 118 | L77: 14
A78: Carla Hockley | B78: HRC | C78: V35 | D78: =IF(ISNA(VLOOKUP($A78,'Race 1-Ladies'!$N$24:$S$53,6,0)),100,VLOOKUP($A78,'Race 1-Ladies'!$N$24:$S$53,6,0)) -> 100 | E78: =IF(ISNA(VLOOKUP($A78,'Race 2-Ladies'!$N$23:$S$53,6,0)),100,VLOOKUP($A78,'Race 2-Ladies'!$N$23:$S$53,6,0)) -> 100 | F78: =IF(ISNA(VLOOKUP($A78,'Race 3-Ladies'!$N$27:$S$61,6,0)),100,VLOOKUP($A78,'Race 3-Ladies'!$N$27:$S$61,6,0)) -> 100 | G78: =IF(ISNA(VLOOKUP($A78,'Race 4-Ladies'!$N$27:$S$100,6,0)),100,VLOOKUP($A78,'Race 4-Ladies'!$N$30:$S$100,6,0)) -> 100 | H78: =SMALL(D78:G78,{1,2,3}) -> 100 | I78: 100 | J78: 100 | K78: 300 | L78: 30
A79: Catherine Gage | B79: BS | C79: V35 | D79: =IF(ISNA(VLOOKUP($A79,'Race 1-Ladies'!$N$24:$S$53,6,0)),100,VLOOKUP($A79,'Race 1-Ladies'!$N$24:$S$53,6,0)) -> 100 | E79: =IF(ISNA(VLOOKUP($A79,'Race 2-Ladies'!$N$23:$S$53,6,0)),100,VLOOKUP($A79,'Race 2-Ladies'!$N$23:$S$53,6,0)) -> 100 | F79: =IF(ISNA(VLOOKUP($A79,'Race 3-Ladies'!$N$27:$S$61,6,0)),100,VLOOKUP($A79,'Race 3-Ladies'!$N$27:$S$61,6,0)) -> 100 | G79: =IF(ISNA(VLOOKUP($A79,'Race 4-Ladies'!$N$27:$S$100,6,0)),100,VLOOKUP($A79,'Race 4-Ladies'!$N$30:$S$100,6,0)) -> 100 | H79: =SMALL(D79:G79,{1,2,3}) -> 100 | I79: 100 | J79: 100 | K79: 300 | L79: 30
A80: Catherine Ridge | B80: HRC | C80: V35 | D80: =IF(ISNA(VLOOKUP($A80,'Race 1-Ladies'!$N$24:$S$53,6,0)),100,VLOOKUP($A80,'Race 1-Ladies'!$N$24:$S$53,6,0)) -> 100 | E80: =IF(ISNA(VLOOKUP($A80,'Race 2-Ladies'!$N$23:$S$53,6,0)),100,VLOOKUP($A80,'Race 2-Ladies'!$N$23:$S$53,6,0)) -> 100 | F80: =IF(ISNA(VLOOKUP($A80,'Race 3-Ladies'!$N$27:$S$61,6,0)),100,VLOOKUP($A80,'Race 3-Ladies'!$N$27:$S$61,6,0)) -> 6 | G80: =IF(ISNA(VLOOKUP($A80,'Race 4-Ladies'!$N$27:$S$100,6,0)),100,VLOOKUP($A80,'Race 4-Ladies'!$N$30:$S$100,6,0)) -> 6 | H80: =SMALL(D80:G80,{1,2,3}) -> 6 | I80: 6 | J80: 100 | K80: 112 | L80: 13
A81: Charleen Tillotson | B81: HRC | C81: V35 | D81: =IF(ISNA(VLOOKUP($A81,'Race 1-Ladies'!$N$24:$S$53,6,0)),100,VLOOKUP($A81,'Race 1-Ladies'!$N$24:$S$53,6,0)) -> 100 | E81: =IF(ISNA(VLOOKUP($A81,'Race 2-Ladies'!$N$23:$S$53,6,0)),100,VLOOKUP($A81,'Race 2-Ladies'!$N$23:$S$53,6,0)) -> 100 | F81: =IF(ISNA(VLOOKUP($A81,'Race 3-Ladies'!$N$27:$S$61,6,0)),100,VLOOKUP($A81,'Race 3-Ladies'!$N$27:$S$61,6,0)) -> 100 | G81: =IF(ISNA(VLOOKUP($A81,'Race 4-Ladies'!$N$27:$S$100,6,0)),100,VLOOKUP($A81,'Race 4-Ladies'!$N$30:$S$100,6,0)) -> 100 | H81: =SMALL(D81:G81,{1,2,3}) -> 100 | I81: 100 | J81: 100 | K81: 300 | L81: 30
A82: Charlotte Hussey | B82: BS | C82: V35 | D82: =IF(ISNA(VLOOKUP($A82,'Race 1-Ladies'!$N$24:$S$53,6,0)),100,VLOOKUP($A82,'Race 1-Ladies'!$N$24:$S$53,6,0)) -> 100 | E82: =IF(ISNA(VLOOKUP($A82,'Race 2-Ladies'!$N$23:$S$53,6,0)),100,VLOOKUP($A82,'Race 2-Ladies'!$N$23:$S$53,6,0)) -> 100 | F82: =IF(ISNA(VLOOKUP($A82,'Race 3-Ladies'!$N$27:$S$61,6,0)),100,VLOOKUP($A82,'Race 3-Ladies'!$N$27:$S$61,6,0)) -> 100 | G82: =IF(ISNA(VLOOKUP($A82,'Race 4-Ladies'!$N$27:$S$100,6,0)),100,VLOOKUP($A82,'Race 4-Ladies'!$N$30:$S$100,6,0)) -> 100 | H82: =SMALL(D82:G82,{1,2,3}) -> 100 | I82: 100 | J82: 100 | K82: 300 | L82: 30
A83: Charlotte Teall | B83: SS | C83: V35 | D83: =IF(ISNA(VLOOKUP($A83,'Race 1-Ladies'!$N$24:$S$53,6,0)),100,VLOOKUP($A83,'Race 1-Ladies'!$N$24:$S$53,6,0)) -> 100 | E83: =IF(ISNA(VLOOKUP($A83,'Race 2-Ladies'!$N$23:$S$53,6,0)),100,VLOOKUP($A83,'Race 2-Ladies'!$N$23:$S$53,6,0)) -> 16 | F83: =IF(ISNA(VLOOKUP($A83,'Race 3-Ladies'!$N$27:$S$61,6,0)),100,VLOOKUP($A83,'Race 3-Ladies'!$N$27:$S$61,6,0)) -> 100 | G83: =IF(ISNA(VLOOKUP($A83,'Race 4-Ladies'!$N$27:$S$100,6,0)),100,VLOOKUP($A83,'Race 4-Ladies'!$N$30:$S$100,6,0)) -> 12 | H83: =SMALL(D83:G83,{1,2,3}) -> 12 | I83: 16 | J83: 100 | K83: 128 | L83: 16
A84: Charu Dayama | B84: BS | C84: V35 | D84: =IF(ISNA(VLOOKUP($A84,'Race 1-Ladies'!$N$24:$S$53,6,0)),100,VLOOKUP($A84,'Race 1-Ladies'!$N$24:$S$53,6,0)) -> 100 | E84: =IF(ISNA(VLOOKUP($A84,'Race 2-Ladies'!$N$23:$S$53,6,0)),100,VLOOKUP($A84,'Race 2-Ladies'!$N$23:$S$53,6,0)) -> 100 | F84: =IF(ISNA(VLOOKUP($A84,'Race 3-Ladies'!$N$27:$S$61,6,0)),100,VLOOKUP($A84,'Race 3-Ladies'!$N$27:$S$61,6,0)) -> 100 | G84: =IF(ISNA(VLOOKUP($A84,'Race 4-Ladies'!$N$27:$S$100,6,0)),100,VLOOKUP($A84,'Race 4-Ladies'!$N$30:$S$100,6,0)) -> 100 | H84: =SMALL(D84:G84,{1,2,3}) -> 100 | I84: 100 | J84: 100 | K84: 300 | L84: 30
A85: Chloe Boyce | B85: BS | C85: V35 | D85: =IF(ISNA(VLOOKUP($A85,'Race 1-Ladies'!$N$24:$S$53,6,0)),100,VLOOKUP($A85,'Race 1-Ladies'!$N$24:$S$53,6,0)) -> 100 | E85: =IF(ISNA(VLOOKUP($A85,'Race 2-Ladies'!$N$23:$S$53,6,0)),100,VLOOKUP($A85,'Race 2-Ladies'!$N$23:$S$53,6,0)) -> 100 | F85: =IF(ISNA(VLOOKUP($A85,'Race 3-Ladies'!$N$27:$S$61,6,0)),100,VLOOKUP($A85,'Race 3-Ladies'!$N$27:$S$61,6,0)) -> 100 | G85: =IF(ISNA(VLOOKUP($A85,'Race 4-Ladies'!$N$27:$S$100,6,0)),100,VLOOKUP($A85,'Race 4-Ladies'!$N$30:$S$100,6,0)) -> 100 | H85: =SMALL(D85:G85,{1,2,3}) -> 100 | I85: 100 | J85: 100 | K85: 300 | L85: 30
A86: Cindy Drinnan | B86: SS | C86: V35 | D86: =IF(ISNA(VLOOKUP($A86,'Race 1-Ladies'!$N$24:$S$53,6,0)),100,VLOOKUP($A86,'Race 1-Ladies'!$N$24:$S$53,6,0)) -> 100 | E86: =IF(ISNA(VLOOKUP($A86,'Race 2-Ladies'!$N$23:$S$53,6,0)),100,VLOOKUP($A86,'Race 2-Ladies'!$N$23:$S$53,6,0)) -> 100 | F86: =IF(ISNA(VLOOKUP($A86,'Race 3-Ladies'!$N$27:$S$61,6,0)),100,VLOOKUP($A86,'Race 3-Ladies'!$N$27:$S$61,6,0)) -> 100 | G86: =IF(ISNA(VLOOKUP($A86,'Race 4-Ladies'!$N$27:$S$100,6,0)),100,VLOOKUP($A86,'Race 4-Ladies'!$N$30:$S$100,6,0)) -> 100 | H86: =SMALL(D86:G86,{1,2,3}) -> 100 | I86: 100 | J86: 100 | K86: 300 | L86: 30
A87: Claire Clark | B87: HRC | C87: V35 | D87: =IF(ISNA(VLOOKUP($A87,'Race 1-Ladies'!$N$24:$S$53,6,0)),100,VLOOKUP($A87,'Race 1-Ladies'!$N$24:$S$53,6,0)) -> 100 | E87: =IF(ISNA(VLOOKUP($A87,'Race 2-Ladies'!$N$23:$S$53,6,0)),100,VLOOKUP($A87,'Race 2-Ladies'!$N$23:$S$53,6,0)) -> 100 | F87: =IF(ISNA(VLOOKUP($A87,'Race 3-Ladies'!$N$27:$S$61,6,0)),100,VLOOKUP($A87,'Race 3-Ladies'!$N$27:$S$61,6,0)) -> 100 | G87: =IF(ISNA(VLOOKUP($A87,'Race 4-Ladies'!$N$27:$S$100,6,0)),100,VLOOKUP($A87,'Race 4-Ladies'!$N$30:$S$100,6,0)) -> 100 | H87: =SMALL(D87:G87,{1,2,3}) -> 100 | I87: 100 | J87: 100 | K87: 300 | L87: 30
A88: Claire Hardy | B88: WJ | C88: V35 | D88: =IF(ISNA(VLOOKUP($A88,'Race 1-Ladies'!$N$24:$S$53,6,0)),100,VLOOKUP($A88,'Race 1-Ladies'!$N$24:$S$53,6,0)) -> 100 | E88: =IF(ISNA(VLOOKUP($A88,'Race 2-Ladies'!$N$23:$S$53,6,0)),100,VLOOKUP($A88,'Race 2-Ladies'!$N$23:$S$53,6,0)) -> 100 | F88: =IF(ISNA(VLOOKUP($A88,'Race 3-Ladies'!$N$27:$S$61,6,0)),100,VLOOKUP($A88,'Race 3-Ladies'!$N$27:$S$61,6,0)) -> 100 | G88: =IF(ISNA(VLOOKUP($A88,'Race 4-Ladies'!$N$27:$S$100,6,0)),100,VLOOKUP($A88,'Race 4-Ladies'!$N$30:$S$100,6,0)) -> 100 | H88: =SMALL(D88:G88,{1,2,3}) -> 100 | I88: 100 | J88: 100 | K88: 300 | L88: 30
A89: Claire Morris | B89: HRC | C89: V35 | D89: =IF(ISNA(VLOOKUP($A89,'Race 1-Ladies'!$N$24:$S$53,6,0)),100,VLOOKUP($A89,'Race 1-Ladies'!$N$24:$S$53,6,0)) -> 100 | E89: =IF(ISNA(VLOOKUP($A89,'Race 2-Ladies'!$N$23:$S$53,6,0)),100,VLOOKUP($A89,'Race 2-Ladies'!$N$23:$S$53,6,0)) -> 100 | F89: =IF(ISNA(VLOOKUP($A89,'Race 3-Ladies'!$N$27:$S$61,6,0)),100,VLOOKUP($A89,'Race 3-Ladies'!$N$27:$S$61,6,0)) -> 100 | G89: =IF(ISNA(VLOOKUP($A89,'Race 4-Ladies'!$N$27:$S$100,6,0)),100,VLOOKUP($A89,'Race 4-Ladies'!$N$30:$S$100,6,0)) -> 13 | H89: =SMALL(D89:G89,{1,2,3}) -> 13 | I89: 100 | J89: 100 | K89: 213 | L89: 25
A90: Claire Steel | B90: SS | C90: V35 | D90: =IF(ISNA(VLOOKUP($A90,'Race 1-Ladies'!$N$24:$S$53,6,0)),100,VLOOKUP($A90,'Race 1-Ladies'!$N$24:$S$53,6,0)) -> 100 | E90: =IF(ISNA(VLOOKUP($A90,'Race 2-Ladies'!$N$23:$S$53,6,0)),100,VLOOKUP($A90,'Race 2-Ladies'!$N$23:$S$53,6,0)) -> 100 | F90: =IF(ISNA(VLOOKUP($A90,'Race 3-Ladies'!$N$27:$S$61,6,0)),100,VLOOKUP($A90,'Race 3-Ladies'!$N$27:$S$61,6,0)) -> 100 | G90: =IF(ISNA(VLOOKUP($A90,'Race 4-Ladies'!$N$27:$S$100,6,0)),100,VLOOKUP($A90,'Race 4-Ladies'!$N$30:$S$100,6,0)) -> 100 | H90: =SMALL(D90:G90,{1,2,3}) -> 100 | I90: 100 | J90: 100 | K90: 300 | L90: 30
A91: Clare Gallagher | B91: BS | C91: V35 | D91: =IF(ISNA(VLOOKUP($A91,'Race 1-Ladies'!$N$24:$S$53,6,0)),100,VLOOKUP($A91,'Race 1-Ladies'!$N$24:$S$53,6,0)) -> 100 | E91: =IF(ISNA(VLOOKUP($A91,'Race 2-Ladies'!$N$23:$S$53,6,0)),100,VLOOKUP($A91,'Race 2-Ladies'!$N$23:$S$53,6,0)) -> 19 | F91: =IF(ISNA(VLOOKUP($A91,'Race 3-Ladies'!$N$27:$S$61,6,0)),100,VLOOKUP($A91,'Race 3-Ladies'!$N$27:$S$61,6,0)) -> 100 | G91: =IF(ISNA(VLOOKUP($A91,'Race 4-Ladies'!$N$27:$S$100,6,0)),100,VLOOKUP($A91,'Race 4-Ladies'!$N$30:$S$100,6,0)) -> 100 | H91: =SMALL(D91:G91,{1,2,3}) -> 19 | I91: 100 | J91: 100 | K91: 219 | L91: 28
A92: Clare Masterson | B92: BS | C92: V35 | D92: =IF(ISNA(VLOOKUP($A92,'Race 1-Ladies'!$N$24:$S$53,6,0)),100,VLOOKUP($A92,'Race 1-Ladies'!$N$24:$S$53,6,0)) -> 100 | E92: =IF(ISNA(VLOOKUP($A92,'Race 2-Ladies'!$N$23:$S$53,6,0)),100,VLOOKUP($A92,'Race 2-Ladies'!$N$23:$S$53,6,0)) -> 100 | F92: =IF(ISNA(VLOOKUP($A92,'Race 3-Ladies'!$N$27:$S$61,6,0)),100,VLOOKUP($A92,'Race 3-Ladies'!$N$27:$S$61,6,0)) -> 100 | G92: =IF(ISNA(VLOOKUP($A92,'Race 4-Ladies'!$N$27:$S$100,6,0)),100,VLOOKUP($A92,'Race 4-Ladies'!$N$30:$S$100,6,0)) -> 100 | H92: =SMALL(D92:G92,{1,2,3}) -> 100 | I92: 100 | J92: 100 | K92: 300 | L92: 30
A93: Dawn Ruff | B93: SS | C93: V35 | D93: =IF(ISNA(VLOOKUP($A93,'Race 1-Ladies'!$N$24:$S$53,6,0)),100,VLOOKUP($A93,'Race 1-Ladies'!$N$24:$S$53,6,0)) -> 100 | E93: =IF(ISNA(VLOOKUP($A93,'Race 2-Ladies'!$N$23:$S$53,6,0)),100,VLOOKUP($A93,'Race 2-Ladies'!$N$23:$S$53,6,0)) -> 100 | F93: =IF(ISNA(VLOOKUP($A93,'Race 3-Ladies'!$N$27:$S$61,6,0)),100,VLOOKUP($A93,'Race 3-Ladies'!$N$27:$S$61,6,0)) -> 100 | G93: =IF(ISNA(VLOOKUP($A93,'Race 4-Ladies'!$N$27:$S$100,6,0)),100,VLOOKUP($A93,'Race 4-Ladies'!$N$30:$S$100,6,0)) -> 100 | H93: =SMALL(D93:G93,{1,2,3}) -> 100 | I93: 100 | J93: 100 | K93: 300 | L93: 30
A94: Debbie Hayden | B94: HRC | C94: V35 | D94: =IF(ISNA(VLOOKUP($A94,'Race 1-Ladies'!$N$24:$S$53,6,0)),100,VLOOKUP($A94,'Race 1-Ladies'!$N$24:$S$53,6,0)) -> 100 | E94: =IF(ISNA(VLOOKUP($A94,'Race 2-Ladies'!$N$23:$S$53,6,0)),100,VLOOKUP($A94,'Race 2-Ladies'!$N$23:$S$53,6,0)) -> 100 | F94: =IF(ISNA(VLOOKUP($A94,'Race 3-Ladies'!$N$27:$S$61,6,0)),100,VLOOKUP($A94,'Race 3-Ladies'!$N$27:$S$61,6,0)) -> 100 | G94: =IF(ISNA(VLOOKUP($A94,'Race 4-Ladies'!$N$27:$S$100,6,0)),100,VLOOKUP($A94,'Race 4-Ladies'!$N$30:$S$100,6,0)) -> 100 | H94: =SMALL(D94:G94,{1,2,3}) -> 100 | I94: 100 | J94: 100 | K94: 300 | L94: 30
A95: Elizabeth Bellinger | B95: BS | C95: V35 | D95: =IF(ISNA(VLOOKUP($A95,'Race 1-Ladies'!$N$24:$S$53,6,0)),100,VLOOKUP($A95,'Race 1-Ladies'!$N$24:$S$53,6,0)) -> 100 | E95: =IF(ISNA(VLOOKUP($A95,'Race 2-Ladies'!$N$23:$S$53,6,0)),100,VLOOKUP($A95,'Race 2-Ladies'!$N$23:$S$53,6,0)) -> 3 | F95: =IF(ISNA(VLOOKUP($A95,'Race 3-Ladies'!$N$27:$S$61,6,0)),100,VLOOKUP($A95,'Race 3-Ladies'!$N$27:$S$61,6,0)) -> 2 | G95: =IF(ISNA(VLOOKUP($A95,'Race 4-Ladies'!$N$27:$S$100,6,0)),100,VLOOKUP($A95,'Race 4-Ladies'!$N$30:$S$100,6,0)) -> 100 | H95: =SMALL(D95:G95,{1,2,3}) -> 2 | I95: 3 | J95: 100 | K95: 105 | L95: 11
A96: Ellen Brooks | B96: BS | C96: V35 | D96: =IF(ISNA(VLOOKUP($A96,'Race 1-Ladies'!$N$24:$S$53,6,0)),100,VLOOKUP($A96,'Race 1-Ladies'!$N$24:$S$53,6,0)) -> 100 | E96: =IF(ISNA(VLOOKUP($A96,'Race 2-Ladies'!$N$23:$S$53,6,0)),100,VLOOKUP($A96,'Race 2-Ladies'!$N$23:$S$53,6,0)) -> 15 | F96: =IF(ISNA(VLOOKUP($A96,'Race 3-Ladies'!$N$27:$S$61,6,0)),100,VLOOKUP($A96,'Race 3-Ladies'!$N$27:$S$61,6,0)) -> 13 | G96: =IF(ISNA(VLOOKUP($A96,'Race 4-Ladies'!$N$27:$S$100,6,0)),100,VLOOKUP($A96,'Race 4-Ladies'!$N$30:$S$100,6,0)) -> 100 | H96: =SMALL(D96:G96,{1,2,3}) -> 13 | I96: 15 | J96: 100 | K96: 128 | L96: 16
A97: Ellie Burt | B97: WJ | C97: V35 | D97: =IF(ISNA(VLOOKUP($A97,'Race 1-Ladies'!$N$24:$S$53,6,0)),100,VLOOKUP($A97,'Race 1-Ladies'!$N$24:$S$53,6,0)) -> 100 | E97: =IF(ISNA(VLOOKUP($A97,'Race 2-Ladies'!$N$23:$S$53,6,0)),100,VLOOKUP($A97,'Race 2-Ladies'!$N$23:$S$53,6,0)) -> 100 | F97: =IF(ISNA(VLOOKUP($A97,'Race 3-Ladies'!$N$27:$S$61,6,0)),100,VLOOKUP($A97,'Race 3-Ladies'!$N$27:$S$61,6,0)) -> 100 | G97: =IF(ISNA(VLOOKUP($A97,'Race 4-Ladies'!$N$27:$S$100,6,0)),100,VLOOKUP($A97,'Race 4-Ladies'!$N$30:$S$100,6,0)) -> 100 | H97: =SMALL(D97:G97,{1,2,3}) -> 100 | I97: 100 | J97: 100 | K97: 300 | L97: 30
A98: Emily Reid | B98: WJ | C98: V35 | D98: =IF(ISNA(VLOOKUP($A98,'Race 1-Ladies'!$N$24:$S$53,6,0)),100,VLOOKUP($A98,'Race 1-Ladies'!$N$24:$S$53,6,0)) -> 100 | E98: =IF(ISNA(VLOOKUP($A98,'Race 2-Ladies'!$N$23:$S$53,6,0)),100,VLOOKUP($A98,'Race 2-Ladies'!$N$23:$S$53,6,0)) -> 100 | F98: =IF(ISNA(VLOOKUP($A98,'Race 3-Ladies'!$N$27:$S$61,6,0)),100,VLOOKUP($A98,'Race 3-Ladies'!$N$27:$S$61,6,0)) -> 100 | G98: =IF(ISNA(VLOOKUP($A98,'Race 4-Ladies'!$N$27:$S$100,6,0)),100,VLOOKUP($A98,'Race 4-Ladies'!$N$30:$S$100,6,0)) -> 7 | H98: =SMALL(D98:G98,{1,2,3}) -> 7 | I98: 100 | J98: 100 | K98: 207 | L98: 20
A99: Emma Barnes | B99: BS | C99: V35 | D99: =IF(ISNA(VLOOKUP($A99,'Race 1-Ladies'!$N$24:$S$53,6,0)),100,VLOOKUP($A99,'Race 1-Ladies'!$N$24:$S$53,6,0)) -> 100 | E99: =IF(ISNA(VLOOKUP($A99,'Race 2-Ladies'!$N$23:$S$53,6,0)),100,VLOOKUP($A99,'Race 2-Ladies'!$N$23:$S$53,6,0)) -> 100 | F99: =IF(ISNA(VLOOKUP($A99,'Race 3-Ladies'!$N$27:$S$61,6,0)),100,VLOOKUP($A99,'Race 3-Ladies'!$N$27:$S$61,6,0)) -> 100 | G99: =IF(ISNA(VLOOKUP($A99,'Race 4-Ladies'!$N$27:$S$100,6,0)),100,VLOOKUP($A99,'Race 4-Ladies'!$N$30:$S$100,6,0)) -> 100 | H99: =SMALL(D99:G99,{1,2,3}) -> 100 | I99: 100 | J99: 100 | K99: 300 | L99: 30
A100: Emma Mulley | B100: WJ | C100: V35 | D100: =IF(ISNA(VLOOKUP($A100,'Race 1-Ladies'!$N$24:$S$53,6,0)),100,VLOOKUP($A100,'Race 1-Ladies'!$N$24:$S$53,6,0)) -> 100 | E100: =IF(ISNA(VLOOKUP($A100,'Race 2-Ladies'!$N$23:$S$53,6,0)),100,VLOOKUP($A100,'Race 2-Ladies'!$N$23:$S$53,6,0)) -> 100 | F100: =IF(ISNA(VLOOKUP($A100,'Race 3-Ladies'!$N$27:$S$61,6,0)),100,VLOOKUP($A100,'Race 3-Ladies'!$N$27:$S$61,6,0)) -> 100 | G100: =IF(ISNA(VLOOKUP($A100,'Race 4-Ladies'!$N$27:$S$100,6,0)),100,VLOOKUP($A100,'Race 4-Ladies'!$N$30:$S$100,6,0)) -> 100 | H100: =SMALL(D100:G100,{1,2,3}) -> 100 | I100: 100 | J100: 100 | K100: 300 | L100: 30
A101: Emma Raymen | B101: WJ | C101: V35 | D101: =IF(ISNA(VLOOKUP($A101,'Race 1-Ladies'!$N$24:$S$53,6,0)),100,VLOOKUP($A101,'Race 1-Ladies'!$N$24:$S$53,6,0)) -> 100 | E101: =IF(ISNA(VLOOKUP($A101,'Race 2-Ladies'!$N$23:$S$53,6,0)),100,VLOOKUP($A101,'Race 2-Ladies'!$N$23:$S$53,6,0)) -> 100 | F101: =IF(ISNA(VLOOKUP($A101,'Race 3-Ladies'!$N$27:$S$61,6,0)),100,VLOOKUP($A101,'Race 3-Ladies'!$N$27:$S$61,6,0)) -> 100 | G101: =IF(ISNA(VLOOKUP($A101,'Race 4-Ladies'!$N$27:$S$100,6,0)),100,VLOOKUP($A101,'Race 4-Ladies'!$N$30:$S$100,6,0)) -> 100 | H101: =SMALL(D101:G101,{1,2,3}) -> 100 | I101: 100 | J101: 100 | K101: 300 | L101: 30
A102: Eva Lenicka | B102: HRC | C102: V35 | D102: =IF(ISNA(VLOOKUP($A102,'Race 1-Ladies'!$N$24:$S$53,6,0)),100,VLOOKUP($A102,'Race 1-Ladies'!$N$24:$S$53,6,0)) -> 100 | E102: =IF(ISNA(VLOOKUP($A102,'Race 2-Ladies'!$N$23:$S$53,6,0)),100,VLOOKUP($A102,'Race 2-Ladies'!$N$23:$S$53,6,0)) -> 100 | F102: =IF(ISNA(VLOOKUP($A102,'Race 3-Ladies'!$N$27:$S$61,6,0)),100,VLOOKUP($A102,'Race 3-Ladies'!$N$27:$S$61,6,0)) -> 100 | G102: =IF(ISNA(VLOOKUP($A102,'Race 4-Ladies'!$N$27:$S$100,6,0)),100,VLOOKUP($A102,'Race 4-Ladies'!$N$30:$S$100,6,0)) -> 100 | H102: =SMALL(D102:G102,{1,2,3}) -> 100 | I102: 100 | J102: 100 | K102: 300 | L102: 30
A103: Fieke Blackwell | B103: HRC | C103: V35 | D103: =IF(ISNA(VLOOKUP($A103,'Race 1-Ladies'!$N$24:$S$53,6,0)),100,VLOOKUP($A103,'Race 1-Ladies'!$N$24:$S$53,6,0)) -> 2 | E103: =IF(ISNA(VLOOKUP($A103,'Race 2-Ladies'!$N$23:$S$53,6,0)),100,VLOOKUP($A103,'Race 2-Ladies'!$N$23:$S$53,6,0)) -> 4 | F103: =IF(ISNA(VLOOKUP($A103,'Race 3-Ladies'!$N$27:$S$61,6,0)),100,VLOOKUP($A103,'Race 3-Ladies'!$N$27:$S$61,6,0)) -> 3 | G103: =IF(ISNA(VLOOKUP($A103,'Race 4-Ladies'!$N$27:$S$100,6,0)),100,VLOOKUP($A103,'Race 4-Ladies'!$N$30:$S$100,6,0)) -> 4 | H103: =SMALL(D103:G103,{1,2,3}) -> 2 | I103: 3 | J103: 4 | K103: 9 | L103: 2
A104: Fionnuala Quinn | B104: HRC | C104: V35 | D104: =IF(ISNA(VLOOKUP($A104,'Race 1-Ladies'!$N$24:$S$53,6,0)),100,VLOOKUP($A104,'Race 1-Ladies'!$N$24:$S$53,6,0)) -> 100 | E104: =IF(ISNA(VLOOKUP($A104,'Race 2-Ladies'!$N$23:$S$53,6,0)),100,VLOOKUP($A104,'Race 2-Ladies'!$N$23:$S$53,6,0)) -> 100 | F104: =IF(ISNA(VLOOKUP($A104,'Race 3-Ladies'!$N$27:$S$61,6,0)),100,VLOOKUP($A104,'Race 3-Ladies'!$N$27:$S$61,6,0)) -> 100 | G104: =IF(ISNA(VLOOKUP($A104,'Race 4-Ladies'!$N$27:$S$100,6,0)),100,VLOOKUP($A104,'Race 4-Ladies'!$N$30:$S$100,6,0)) -> 100 | H104: =SMALL(D104:G104,{1,2,3}) -> 100 | I104: 100 | J104: 100 | K104: 300 | L104: 30
A105: Frances Iwaschkin | B105: BS | C105: V35 | D105: =IF(ISNA(VLOOKUP($A105,'Race 1-Ladies'!$N$24:$S$53,6,0)),100,VLOOKUP($A105,'Race 1-Ladies'!$N$24:$S$53,6,0)) -> 100 | E105: =IF(ISNA(VLOOKUP($A105,'Race 2-Ladies'!$N$23:$S$53,6,0)),100,VLOOKUP($A105,'Race 2-Ladies'!$N$23:$S$53,6,0)) -> 100 | F105: =IF(ISNA(VLOOKUP($A105,'Race 3-Ladies'!$N$27:$S$61,6,0)),100,VLOOKUP($A105,'Race 3-Ladies'!$N$27:$S$61,6,0)) -> 100 | G105: =IF(ISNA(VLOOKUP($A105,'Race 4-Ladies'!$N$27:$S$100,6,0)),100,VLOOKUP($A105,'Race 4-Ladies'!$N$30:$S$100,6,0)) -> 100 | H105: =SMALL(D105:G105,{1,2,3}) -> 100 | I105: 100 | J105: 100 | K105: 300 | L105: 30
A106: Gemma Charville | B106: WJ | C106: V35 | D106: =IF(ISNA(VLOOKUP($A106,'Race 1-Ladies'!$N$24:$S$53,6,0)),100,VLOOKUP($A106,'Race 1-Ladies'!$N$24:$S$53,6,0)) -> 100 | E106: =IF(ISNA(VLOOKUP($A106,'Race 2-Ladies'!$N$23:$S$53,6,0)),100,VLOOKUP($A106,'Race 2-Ladies'!$N$23:$S$53,6,0)) -> 100 | F106: =IF(ISNA(VLOOKUP($A106,'Race 3-Ladies'!$N$27:$S$61,6,0)),100,VLOOKUP($A106,'Race 3-Ladies'!$N$27:$S$61,6,0)) -> 100 | G106: =IF(ISNA(VLOOKUP($A106,'Race 4-Ladies'!$N$27:$S$100,6,0)),100,VLOOKUP($A106,'Race 4-Ladies'!$N$30:$S$100,6,0)) -> 100 | H106: =SMALL(D106:G106,{1,2,3}) -> 100 | I106: 100 | J106: 100 | K106: 300 | L106: 30
A107: Hayley Miller | B107: BS | C107: V35 | D107: =IF(ISNA(VLOOKUP($A107,'Race 1-Ladies'!$N$24:$S$53,6,0)),100,VLOOKUP($A107,'Race 1-Ladies'!$N$24:$S$53,6,0)) -> 100 | E107: =IF(ISNA(VLOOKUP($A107,'Race 2-Ladies'!$N$23:$S$53,6,0)),100,VLOOKUP($A107,'Race 2-Ladies'!$N$23:$S$53,6,0)) -> 100 | F107: =IF(ISNA(VLOOKUP($A107,'Race 3-Ladies'!$N$27:$S$61,6,0)),100,VLOOKUP($A107,'Race 3-Ladies'!$N$27:$S$61,6,0)) -> 100 | G107: =IF(ISNA(VLOOKUP($A107,'Race 4-Ladies'!$N$27:$S$100,6,0)),100,VLOOKUP($A107,'Race 4-Ladies'!$N$30:$S$100,6,0)) -> 100 | H107: =SMALL(D107:G107,{1,2,3}) -> 100 | I107: 100 | J107: 100 | K107: 300 | L107: 30
A108: Heidi Fox | B108: HRC | C108: V35 | D108: =IF(ISNA(VLOOKUP($A108,'Race 1-Ladies'!$N$24:$S$53,6,0)),100,VLOOKUP($A108,'Race 1-Ladies'!$N$24:$S$53,6,0)) -> 100 | E108: =IF(ISNA(VLOOKUP($A108,'Race 2-Ladies'!$N$23:$S$53,6,0)),100,VLOOKUP($A108,'Race 2-Ladies'!$N$23:$S$53,6,0)) -> 100 | F108: =IF(ISNA(VLOOKUP($A108,'Race 3-Ladies'!$N$27:$S$61,6,0)),100,VLOOKUP($A108,'Race 3-Ladies'!$N$27:$S$61,6,0)) -> 100 | G108: =IF(ISNA(VLOOKUP($A108,'Race 4-Ladies'!$N$27:$S$100,6,0)),100,VLOOKUP($A108,'Race 4-Ladies'!$N$30:$S$100,6,0)) -> 100 | H108: =SMALL(D108:G108,{1,2,3}) -> 100 | I108: 100 | J108: 100 | K108: 300 | L108: 30
A109: Inese Stan | B109: BS | C109: V35 | D109: =IF(ISNA(VLOOKUP($A109,'Race 1-Ladies'!$N$24:$S$53,6,0)),100,VLOOKUP($A109,'Race 1-Ladies'!$N$24:$S$53,6,0)) -> 100 | E109: =IF(ISNA(VLOOKUP($A109,'Race 2-Ladies'!$N$23:$S$53,6,0)),100,VLOOKUP($A109,'Race 2-Ladies'!$N$23:$S$53,6,0)) -> 100 | F109: =IF(ISNA(VLOOKUP($A109,'Race 3-Ladies'!$N$27:$S$61,6,0)),100,VLOOKUP($A109,'Race 3-Ladies'!$N$27:$S$61,6,0)) -> 100 | G109: =IF(ISNA(VLOOKUP($A109,'Race 4-Ladies'!$N$27:$S$100,6,0)),100,VLOOKUP($A109,'Race 4-Ladies'!$N$30:$S$100,6,0)) -> 100 | H109: =SMALL(D109:G109,{1,2,3}) -> 100 | I109: 100 | J109: 100 | K109: 300 | L109: 30
A110: Janna Jenkins | B110: BS | C110: V35 | D110: =IF(ISNA(VLOOKUP($A110,'Race 1-Ladies'!$N$24:$S$53,6,0)),100,VLOOKUP($A110,'Race 1-Ladies'!$N$24:$S$53,6,0)) -> 100 | E110: =IF(ISNA(VLOOKUP($A110,'Race 2-Ladies'!$N$23:$S$53,6,0)),100,VLOOKUP($A110,'Race 2-Ladies'!$N$23:$S$53,6,0)) -> 8 | F110: =IF(ISNA(VLOOKUP($A110,'Race 3-Ladies'!$N$27:$S$61,6,0)),100,VLOOKUP($A110,'Race 3-Ladies'!$N$27:$S$61,6,0)) -> 100 | G110: =IF(ISNA(VLOOKUP($A110,'Race 4-Ladies'!$N$27:$S$100,6,0)),100,VLOOKUP($A110,'Race 4-Ladies'!$N$30:$S$100,6,0)) -> 100 | H110: =SMALL(D110:G110,{1,2,3}) -> 8 | I110: 100 | J110: 100 | K110: 208 | L110: 22
A111: Jemina Punni | B111: WJ | C111: V35 | D111: =IF(ISNA(VLOOKUP($A111,'Race 1-Ladies'!$N$24:$S$53,6,0)),100,VLOOKUP($A111,'Race 1-Ladies'!$N$24:$S$53,6,0)) -> 100 | E111: =IF(ISNA(VLOOKUP($A111,'Race 2-Ladies'!$N$23:$S$53,6,0)),100,VLOOKUP($A111,'Race 2-Ladies'!$N$23:$S$53,6,0)) -> 100 | F111: =IF(ISNA(VLOOKUP($A111,'Race 3-Ladies'!$N$27:$S$61,6,0)),100,VLOOKUP($A111,'Race 3-Ladies'!$N$27:$S$61,6,0)) -> 100 | G111: =IF(ISNA(VLOOKUP($A111,'Race 4-Ladies'!$N$27:$S$100,6,0)),100,VLOOKUP($A111,'Race 4-Ladies'!$N$30:$S$100,6,0)) -> 11 | H111: =SMALL(D111:G111,{1,2,3}) -> 11 | I111: 100 | J111: 100 | K111: 211 | L111: 24
A112: Jennifer Murray | B112: SS | C112: V35 | D112: =IF(ISNA(VLOOKUP($A112,'Race 1-Ladies'!$N$24:$S$53,6,0)),100,VLOOKUP($A112,'Race 1-Ladies'!$N$24:$S$53,6,0)) -> 100 | E112: =IF(ISNA(VLOOKUP($A112,'Race 2-Ladies'!$N$23:$S$53,6,0)),100,VLOOKUP($A112,'Race 2-Ladies'!$N$23:$S$53,6,0)) -> 100 | F112: =IF(ISNA(VLOOKUP($A112,'Race 3-Ladies'!$N$27:$S$61,6,0)),100,VLOOKUP($A112,'Race 3-Ladies'!$N$27:$S$61,6,0)) -> 100 | G112: =IF(ISNA(VLOOKUP($A112,'Race 4-Ladies'!$N$27:$S$100,6,0)),100,VLOOKUP($A112,'Race 4-Ladies'!$N$30:$S$100,6,0)) -> 100 | H112: =SMALL(D112:G112,{1,2,3}) -> 100 | I112: 100 | J112: 100 | K112: 300 | L112: 30
A113: Jenny Latham | B113: BS | C113: V35 | D113: =IF(ISNA(VLOOKUP($A113,'Race 1-Ladies'!$N$24:$S$53,6,0)),100,VLOOKUP($A113,'Race 1-Ladies'!$N$24:$S$53,6,0)) -> 100 | E113: =IF(ISNA(VLOOKUP($A113,'Race 2-Ladies'!$N$23:$S$53,6,0)),100,VLOOKUP($A113,'Race 2-Ladies'!$N$23:$S$53,6,0)) -> 100 | F113: =IF(ISNA(VLOOKUP($A113,'Race 3-Ladies'!$N$27:$S$61,6,0)),100,VLOOKUP($A113,'Race 3-Ladies'!$N$27:$S$61,6,0)) -> 100 | G113: =IF(ISNA(VLOOKUP($A113,'Race 4-Ladies'!$N$27:$S$100,6,0)),100,VLOOKUP($A113,'Race 4-Ladies'!$N$30:$S$100,6,0)) -> 100 | H113: =SMALL(D113:G113,{1,2,3}) -> 100 | I113: 100 | J113: 100 | K113: 300 | L113: 30
A114: Jessica Baxter | B114: WJ | C114: V35 | D114: =IF(ISNA(VLOOKUP($A114,'Race 1-Ladies'!$N$24:$S$53,6,0)),100,VLOOKUP($A114,'Race 1-Ladies'!$N$24:$S$53,6,0)) -> 100 | E114: =IF(ISNA(VLOOKUP($A114,'Race 2-Ladies'!$N$23:$S$53,6,0)),100,VLOOKUP($A114,'Race 2-Ladies'!$N$23:$S$53,6,0)) -> 100 | F114: =IF(ISNA(VLOOKUP($A114,'Race 3-Ladies'!$N$27:$S$61,6,0)),100,VLOOKUP($A114,'Race 3-Ladies'!$N$27:$S$61,6,0)) -> 100 | G114: =IF(ISNA(VLOOKUP($A114,'Race 4-Ladies'!$N$27:$S$100,6,0)),100,VLOOKUP($A114,'Race 4-Ladies'!$N$30:$S$100,6,0)) -> 100 | H114: =SMALL(D114:G114,{1,2,3}) -> 100 | I114: 100 | J114: 100 | K114: 300 | L114: 30
A115: Joanna Jurd | B115: BS | C115: V35 | D115: =IF(ISNA(VLOOKUP($A115,'Race 1-Ladies'!$N$24:$S$53,6,0)),100,VLOOKUP($A115,'Race 1-Ladies'!$N$24:$S$53,6,0)) -> 4 | E115: =IF(ISNA(VLOOKUP($A115,'Race 2-Ladies'!$N$23:$S$53,6,0)),100,VLOOKUP($A115,'Race 2-Ladies'!$N$23:$S$53,6,0)) -> 100 | F115: =IF(ISNA(VLOOKUP($A115,'Race 3-Ladies'!$N$27:$S$61,6,0)),100,VLOOKUP($A115,'Race 3-Ladies'!$N$27:$S$61,6,0)) -> 5 | G115: =IF(ISNA(VLOOKUP($A115,'Race 4-Ladies'!$N$27:$S$100,6,0)),100,VLOOKUP($A115,'Race 4-Ladies'!$N$30:$S$100,6,0)) -> 100 | H115: =SMALL(D115:G115,{1,2,3}) -> 4 | I115: 5 | J115: 100 | K115: 109 | L115: 12
A116: Joy Hale | B116: HRC | C116: V35 | D116: =IF(ISNA(VLOOKUP($A116,'Race 1-Ladies'!$N$24:$S$53,6,0)),100,VLOOKUP($A116,'Race 1-Ladies'!$N$24:$S$53,6,0)) -> 100 | E116: =IF(ISNA(VLOOKUP($A116,'Race 2-Ladies'!$N$23:$S$53,6,0)),100,VLOOKUP($A116,'Race 2-Ladies'!$N$23:$S$53,6,0)) -> 20 | F116: =IF(ISNA(VLOOKUP($A116,'Race 3-Ladies'!$N$27:$S$61,6,0)),100,VLOOKUP($A116,'Race 3-Ladies'!$N$27:$S$61,6,0)) -> 100 | G116: =IF(ISNA(VLOOKUP($A116,'Race 4-Ladies'!$N$27:$S$100,6,0)),100,VLOOKUP($A116,'Race 4-Ladies'!$N$30:$S$100,6,0)) -> 100 | H116: =SMALL(D116:G116,{1,2,3}) -> 20 | I116: 100 | J116: 100 | K116: 220 | L116: 29
A117: Julia Gardiner | B117: HRC | C117: V35 | D117: =IF(ISNA(VLOOKUP($A117,'Race 1-Ladies'!$N$24:$S$53,6,0)),100,VLOOKUP($A117,'Race 1-Ladies'!$N$24:$S$53,6,0)) -> 100 | E117: =IF(ISNA(VLOOKUP($A117,'Race 2-Ladies'!$N$23:$S$53,6,0)),100,VLOOKUP($A117,'Race 2-Ladies'!$N$23:$S$53,6,0)) -> 100 | F117: =IF(ISNA(VLOOKUP($A117,'Race 3-Ladies'!$N$27:$S$61,6,0)),100,VLOOKUP($A117,'Race 3-Ladies'!$N$27:$S$61,6,0)) -> 100 | G117: =IF(ISNA(VLOOKUP($A117,'Race 4-Ladies'!$N$27:$S$100,6,0)),100,VLOOKUP($A117,'Race 4-Ladies'!$N$30:$S$100,6,0)) -> 100 | H117: =SMALL(D117:G117,{1,2,3}) -> 100 | I117: 100 | J117: 100 | K117: 300 | L117: 30
A118: Katrina Dobson | B118: WJ | C118: V35 | D118: =IF(ISNA(VLOOKUP($A118,'Race 1-Ladies'!$N$24:$S$53,6,0)),100,VLOOKUP($A118,'Race 1-Ladies'!$N$24:$S$53,6,0)) -> 3 | E118: =IF(ISNA(VLOOKUP($A118,'Race 2-Ladies'!$N$23:$S$53,6,0)),100,VLOOKUP($A118,'Race 2-Ladies'!$N$23:$S$53,6,0)) -> 5 | F118: =IF(ISNA(VLOOKUP($A118,'Race 3-Ladies'!$N$27:$S$61,6,0)),100,VLOOKUP($A118,'Race 3-Ladies'!$N$27:$S$61,6,0)) -> 4 | G118: =IF(ISNA(VLOOKUP($A118,'Race 4-Ladies'!$N$27:$S$100,6,0)),100,VLOOKUP($A118,'Race 4-Ladies'!$N$30:$S$100,6,0)) -> 3 | H118: =SMALL(D118:G118,{1,2,3}) -> 3 | I118: 3 | J118: 4 | K118: 10 | L118: 3
A119: Katy Woodward | B119: WJ | C119: V35 | D119: =IF(ISNA(VLOOKUP($A119,'Race 1-Ladies'!$N$24:$S$53,6,0)),100,VLOOKUP($A119,'Race 1-Ladies'!$N$24:$S$53,6,0)) -> 1 | E119: =IF(ISNA(VLOOKUP($A119,'Race 2-Ladies'!$N$23:$S$53,6,0)),100,VLOOKUP($A119,'Race 2-Ladies'!$N$23:$S$53,6,0)) -> 1 | F119: =IF(ISNA(VLOOKUP($A119,'Race 3-Ladies'!$N$27:$S$61,6,0)),100,VLOOKUP($A119,'Race 3-Ladies'!$N$27:$S$61,6,0)) -> 1 | G119: =IF(ISNA(VLOOKUP($A119,'Race 4-Ladies'!$N$27:$S$100,6,0)),100,VLOOKUP($A119,'Race 4-Ladies'!$N$30:$S$100,6,0)) -> 1 | H119: =SMALL(D119:G119,{1,2,3}) -> 1 | I119: 1 | J119: 1 | K119: 3 | L119: 1
A120: Keren Greenall | B120: HRC | C120: V35 | D120: =IF(ISNA(VLOOKUP($A120,'Race 1-Ladies'!$N$24:$S$53,6,0)),100,VLOOKUP($A120,'Race 1-Ladies'!$N$24:$S$53,6,0)) -> 100 | E120: =IF(ISNA(VLOOKUP($A120,'Race 2-Ladies'!$N$23:$S$53,6,0)),100,VLOOKUP($A120,'Race 2-Ladies'!$N$23:$S$53,6,0)) -> 100 | F120: =IF(ISNA(VLOOKUP($A120,'Race 3-Ladies'!$N$27:$S$61,6,0)),100,VLOOKUP($A120,'Race 3-Ladies'!$N$27:$S$61,6,0)) -> 100 | G120: =IF(ISNA(VLOOKUP($A120,'Race 4-Ladies'!$N$27:$S$100,6,0)),100,VLOOKUP($A120,'Race 4-Ladies'!$N$30:$S$100,6,0)) -> 16 | H120: =SMALL(D120:G120,{1,2,3}) -> 16 | I120: 100 | J120: 100 | K120: 216 | L120: 27
A121: Kirsty Reid | B121: BS | C121: V35 | D121: =IF(ISNA(VLOOKUP($A121,'Race 1-Ladies'!$N$24:$S$53,6,0)),100,VLOOKUP($A121,'Race 1-Ladies'!$N$24:$S$53,6,0)) -> 100 | E121: =IF(ISNA(VLOOKUP($A121,'Race 2-Ladies'!$N$23:$S$53,6,0)),100,VLOOKUP($A121,'Race 2-Ladies'!$N$23:$S$53,6,0)) -> 100 | F121: =IF(ISNA(VLOOKUP($A121,'Race 3-Ladies'!$N$27:$S$61,6,0)),100,VLOOKUP($A121,'Race 3-Ladies'!$N$27:$S$61,6,0)) -> 100 | G121: =IF(ISNA(VLOOKUP($A121,'Race 4-Ladies'!$N$27:$S$100,6,0)),100,VLOOKUP($A121,'Race 4-Ladies'!$N$30:$S$100,6,0)) -> 100 | H121: =SMALL(D121:G121,{1,2,3}) -> 100 | I121: 100 | J121: 100 | K121: 300 | L121: 30
A122: Lindsay Seth | B122: SS | C122: V35 | D122: =IF(ISNA(VLOOKUP($A122,'Race 1-Ladies'!$N$24:$S$53,6,0)),100,VLOOKUP($A122,'Race 1-Ladies'!$N$24:$S$53,6,0)) -> 100 | E122: =IF(ISNA(VLOOKUP($A122,'Race 2-Ladies'!$N$23:$S$53,6,0)),100,VLOOKUP($A122,'Race 2-Ladies'!$N$23:$S$53,6,0)) -> 100 | F122: =IF(ISNA(VLOOKUP($A122,'Race 3-Ladies'!$N$27:$S$61,6,0)),100,VLOOKUP($A122,'Race 3-Ladies'!$N$27:$S$61,6,0)) -> 100 | G122: =IF(ISNA(VLOOKUP($A122,'Race 4-Ladies'!$N$27:$S$100,6,0)),100,VLOOKUP($A122,'Race 4-Ladies'!$N$30:$S$100,6,0)) -> 100 | H122: =SMALL(D122:G122,{1,2,3}) -> 100 | I122: 100 | J122: 100 | K122: 300 | L122: 30
A123: Lorna Crump | B123: HRC | C123: V35 | D123: =IF(ISNA(VLOOKUP($A123,'Race 1-Ladies'!$N$24:$S$53,6,0)),100,VLOOKUP($A123,'Race 1-Ladies'!$N$24:$S$53,6,0)) -> 100 | E123: =IF(ISNA(VLOOKUP($A123,'Race 2-Ladies'!$N$23:$S$53,6,0)),100,VLOOKUP($A123,'Race 2-Ladies'!$N$23:$S$53,6,0)) -> 100 | F123: =IF(ISNA(VLOOKUP($A123,'Race 3-Ladies'!$N$27:$S$61,6,0)),100,VLOOKUP($A123,'Race 3-Ladies'!$N$27:$S$61,6,0)) -> 100 | G123: =IF(ISNA(VLOOKUP($A123,'Race 4-Ladies'!$N$27:$S$100,6,0)),100,VLOOKUP($A123,'Race 4-Ladies'!$N$30:$S$100,6,0)) -> 100 | H123: =SMALL(D123:G123,{1,2,3}) -> 100 | I123: 100 | J123: 100 | K123: 300 | L123: 30
A124: Lorraine Berry | B124: HRC | C124: V35 | D124: =IF(ISNA(VLOOKUP($A124,'Race 1-Ladies'!$N$24:$S$53,6,0)),100,VLOOKUP($A124,'Race 1-Ladies'!$N$24:$S$53,6,0)) -> 100 | E124: =IF(ISNA(VLOOKUP($A124,'Race 2-Ladies'!$N$23:$S$53,6,0)),100,VLOOKUP($A124,'Race 2-Ladies'!$N$23:$S$53,6,0)) -> 100 | F124: =IF(ISNA(VLOOKUP($A124,'Race 3-Ladies'!$N$27:$S$61,6,0)),100,VLOOKUP($A124,'Race 3-Ladies'!$N$27:$S$61,6,0)) -> 100 | G124: =IF(ISNA(VLOOKUP($A124,'Race 4-Ladies'!$N$27:$S$100,6,0)),100,VLOOKUP($A124,'Race 4-Ladies'!$N$30:$S$100,6,0)) -> 100 | H124: =SMALL(D124:G124,{1,2,3}) -> 100 | I124: 100 | J124: 100 | K124: 300 | L124: 30
A125: Louise Cootes | B125: HRC | C125: V35 | D125: =IF(ISNA(VLOOKUP($A125,'Race 1-Ladies'!$N$24:$S$53,6,0)),100,VLOOKUP($A125,'Race 1-Ladies'!$N$24:$S$53,6,0)) -> 5 | E125: =IF(ISNA(VLOOKUP($A125,'Race 2-Ladies'!$N$23:$S$53,6,0)),100,VLOOKUP($A125,'Race 2-Ladies'!$N$23:$S$53,6,0)) -> 7 | F125: =IF(ISNA(VLOOKUP($A125,'Race 3-Ladies'!$N$27:$S$61,6,0)),100,VLOOKUP($A125,'Race 3-Ladies'!$N$27:$S$61,6,0)) -> 8 | G125: =IF(ISNA(VLOOKUP($A125,'Race 4-Ladies'!$N$27:$S$100,6,0)),100,VLOOKUP($A125,'Race 4-Ladies'!$N$30:$S$100,6,0)) -> 8 | H125: =SMALL(D125:G125,{1,2,3}) -> 5 | I125: 7 | J125: 8 | K125: 20 | L125: 4
A126: Louise Kedge | B126: HRC | C126: V35 | D126: =IF(ISNA(VLOOKUP($A126,'Race 1-Ladies'!$N$24:$S$53,6,0)),100,VLOOKUP($A126,'Race 1-Ladies'!$N$24:$S$53,6,0)) -> 100 | E126: =IF(ISNA(VLOOKUP($A126,'Race 2-Ladies'!$N$23:$S$53,6,0)),100,VLOOKUP($A126,'Race 2-Ladies'!$N$23:$S$53,6,0)) -> 100 | F126: =IF(ISNA(VLOOKUP($A126,'Race 3-Ladies'!$N$27:$S$61,6,0)),100,VLOOKUP($A126,'Race 3-Ladies'!$N$27:$S$61,6,0)) -> 100 | G126: =IF(ISNA(VLOOKUP($A126,'Race 4-Ladies'!$N$27:$S$100,6,0)),100,VLOOKUP($A126,'Race 4-Ladies'!$N$30:$S$100,6,0)) -> 100 | H126: =SMALL(D126:G126,{1,2,3}) -> 100 | I126: 100 | J126: 100 | K126: 300 | L126: 30
A127: Lucie Heanley | B127: SS | C127: V35 | D127: =IF(ISNA(VLOOKUP($A127,'Race 1-Ladies'!$N$24:$S$53,6,0)),100,VLOOKUP($A127,'Race 1-Ladies'!$N$24:$S$53,6,0)) -> 100 | E127: =IF(ISNA(VLOOKUP($A127,'Race 2-Ladies'!$N$23:$S$53,6,0)),100,VLOOKUP($A127,'Race 2-Ladies'!$N$23:$S$53,6,0)) -> 6 | F127: =IF(ISNA(VLOOKUP($A127,'Race 3-Ladies'!$N$27:$S$61,6,0)),100,VLOOKUP($A127,'Race 3-Ladies'!$N$27:$S$61,6,0)) -> 100 | G127: =IF(ISNA(VLOOKUP($A127,'Race 4-Ladies'!$N$27:$S$100,6,0)),100,VLOOKUP($A127,'Race 4-Ladies'!$N$30:$S$100,6,0)) -> 100 | H127: =SMALL(D127:G127,{1,2,3}) -> 6 | I127: 100 | J127: 100 | K127: 206 | L127: 19
A128: Lucy Elizabeth Jones | B128: WJ | C128: V35 | D128: =IF(ISNA(VLOOKUP($A128,'Race 1-Ladies'!$N$24:$S$53,6,0)),100,VLOOKUP($A128,'Race 1-Ladies'!$N$24:$S$53,6,0)) -> 100 | E128: =IF(ISNA(VLOOKUP($A128,'Race 2-Ladies'!$N$23:$S$53,6,0)),100,VLOOKUP($A128,'Race 2-Ladies'!$N$23:$S$53,6,0)) -> 100 | F128: =IF(ISNA(VLOOKUP($A128,'Race 3-Ladies'!$N$27:$S$61,6,0)),100,VLOOKUP($A128,'Race 3-Ladies'!$N$27:$S$61,6,0)) -> 100 | G128: =IF(ISNA(VLOOKUP($A128,'Race 4-Ladies'!$N$27:$S$100,6,0)),100,VLOOKUP($A128,'Race 4-Ladies'!$N$30:$S$100,6,0)) -> 100 | H128: =SMALL(D128:G128,{1,2,3}) -> 100 | I128: 100 | J128: 100 | K128: 300 | L128: 30
A129: Lucy Northedge | B129: BS | C129: V35 | D129: =IF(ISNA(VLOOKUP($A129,'Race 1-Ladies'!$N$24:$S$53,6,0)),100,VLOOKUP($A129,'Race 1-Ladies'!$N$24:$S$53,6,0)) -> 100 | E129: =IF(ISNA(VLOOKUP($A129,'Race 2-Ladies'!$N$23:$S$53,6,0)),100,VLOOKUP($A129,'Race 2-Ladies'!$N$23:$S$53,6,0)) -> 100 | F129: =IF(ISNA(VLOOKUP($A129,'Race 3-Ladies'!$N$27:$S$61,6,0)),100,VLOOKUP($A129,'Race 3-Ladies'!$N$27:$S$61,6,0)) -> 100 | G129: =IF(ISNA(VLOOKUP($A129,'Race 4-Ladies'!$N$27:$S$100,6,0)),100,VLOOKUP($A129,'Race 4-Ladies'!$N$30:$S$100,6,0)) -> 100 | H129: =SMALL(D129:G129,{1,2,3}) -> 100 | I129: 100 | J129: 100 | K129: 300 | L129: 30
A130: Lucy Robinson | B130: BS | C130: V35 | D130: =IF(ISNA(VLOOKUP($A130,'Race 1-Ladies'!$N$24:$S$53,6,0)),100,VLOOKUP($A130,'Race 1-Ladies'!$N$24:$S$53,6,0)) -> 100 | E130: =IF(ISNA(VLOOKUP($A130,'Race 2-Ladies'!$N$23:$S$53,6,0)),100,VLOOKUP($A130,'Race 2-Ladies'!$N$23:$S$53,6,0)) -> 100 | F130: =IF(ISNA(VLOOKUP($A130,'Race 3-Ladies'!$N$27:$S$61,6,0)),100,VLOOKUP($A130,'Race 3-Ladies'!$N$27:$S$61,6,0)) -> 100 | G130: =IF(ISNA(VLOOKUP($A130,'Race 4-Ladies'!$N$27:$S$100,6,0)),100,VLOOKUP($A130,'Race 4-Ladies'!$N$30:$S$100,6,0)) -> 100 | H130: =SMALL(D130:G130,{1,2,3}) -> 100 | I130: 100 | J130: 100 | K130: 300 | L130: 30
A131: Mairead Wright | B131: BS | C131: V35 | D131: =IF(ISNA(VLOOKUP($A131,'Race 1-Ladies'!$N$24:$S$53,6,0)),100,VLOOKUP($A131,'Race 1-Ladies'!$N$24:$S$53,6,0)) -> 100 | E131: =IF(ISNA(VLOOKUP($A131,'Race 2-Ladies'!$N$23:$S$53,6,0)),100,VLOOKUP($A131,'Race 2-Ladies'!$N$23:$S$53,6,0)) -> 100 | F131: =IF(ISNA(VLOOKUP($A131,'Race 3-Ladies'!$N$27:$S$61,6,0)),100,VLOOKUP($A131,'Race 3-Ladies'!$N$27:$S$61,6,0)) -> 100 | G131: =IF(ISNA(VLOOKUP($A131,'Race 4-Ladies'!$N$27:$S$100,6,0)),100,VLOOKUP($A131,'Race 4-Ladies'!$N$30:$S$100,6,0)) -> 100 | H131: =SMALL(D131:G131,{1,2,3}) -> 100 | I131: 100 | J131: 100 | K131: 300 | L131: 30
A132: Martine Beard | B132: HRC | C132: V35 | D132: =IF(ISNA(VLOOKUP($A132,'Race 1-Ladies'!$N$24:$S$53,6,0)),100,VLOOKUP($A132,'Race 1-Ladies'!$N$24:$S$53,6,0)) -> 100 | E132: =IF(ISNA(VLOOKUP($A132,'Race 2-Ladies'!$N$23:$S$53,6,0)),100,VLOOKUP($A132,'Race 2-Ladies'!$N$23:$S$53,6,0)) -> 100 | F132: =IF(ISNA(VLOOKUP($A132,'Race 3-Ladies'!$N$27:$S$61,6,0)),100,VLOOKUP($A132,'Race 3-Ladies'!$N$27:$S$61,6,0)) -> 100 | G132: =IF(ISNA(VLOOKUP($A132,'Race 4-Ladies'!$N$27:$S$100,6,0)),100,VLOOKUP($A132,'Race 4-Ladies'!$N$30:$S$100,6,0)) -> 100 | H132: =SMALL(D132:G132,{1,2,3}) -> 100 | I132: 100 | J132: 100 | K132: =SUM(H132:J132) -> 300 | L132: 30
A133: Meryl Herniman | B133: BS | C133: V35 | D133: =IF(ISNA(VLOOKUP($A133,'Race 1-Ladies'!$N$24:$S$53,6,0)),100,VLOOKUP($A133,'Race 1-Ladies'!$N$24:$S$53,6,0)) -> 100 | E133: =IF(ISNA(VLOOKUP($A133,'Race 2-Ladies'!$N$23:$S$53,6,0)),100,VLOOKUP($A133,'Race 2-Ladies'!$N$23:$S$53,6,0)) -> 100 | F133: =IF(ISNA(VLOOKUP($A133,'Race 3-Ladies'!$N$27:$S$61,6,0)),100,VLOOKUP($A133,'Race 3-Ladies'!$N$27:$S$61,6,0)) -> 100 | G133: =IF(ISNA(VLOOKUP($A133,'Race 4-Ladies'!$N$27:$S$100,6,0)),100,VLOOKUP($A133,'Race 4-Ladies'!$N$30:$S$100,6,0)) -> 100 | H133: =SMALL(D133:G133,{1,2,3}) -> 100 | I133: 100 | J133: 100 | K133: 300 | L133: 30
A134: Michelle Hyde | B134: HRC | C134: V35 | D134: =IF(ISNA(VLOOKUP($A134,'Race 1-Ladies'!$N$24:$S$53,6,0)),100,VLOOKUP($A134,'Race 1-Ladies'!$N$24:$S$53,6,0)) -> 100 | E134: =IF(ISNA(VLOOKUP($A134,'Race 2-Ladies'!$N$23:$S$53,6,0)),100,VLOOKUP($A134,'Race 2-Ladies'!$N$23:$S$53,6,0)) -> 11 | F134: =IF(ISNA(VLOOKUP($A134,'Race 3-Ladies'!$N$27:$S$61,6,0)),100,VLOOKUP($A134,'Race 3-Ladies'!$N$27:$S$61,6,0)) -> 11 | G134: =IF(ISNA(VLOOKUP($A134,'Race 4-Ladies'!$N$27:$S$100,6,0)),100,VLOOKUP($A134,'Race 4-Ladies'!$N$30:$S$100,6,0)) -> 14 | H134: =SMALL(D134:G134,{1,2,3}) -> 11 | I134: 11 | J134: 14 | K134: 36 | L134: =RANK(K134,$K$69:$K$172,1) -> 7
A135: Michelle Sheridan | B135: HRC | C135: V35 | D135: =IF(ISNA(VLOOKUP($A135,'Race 1-Ladies'!$N$24:$S$53,6,0)),100,VLOOKUP($A135,'Race 1-Ladies'!$N$24:$S$53,6,0)) -> 100 | E135: =IF(ISNA(VLOOKUP($A135,'Race 2-Ladies'!$N$23:$S$53,6,0)),100,VLOOKUP($A135,'Race 2-Ladies'!$N$23:$S$53,6,0)) -> 10 | F135: =IF(ISNA(VLOOKUP($A135,'Race 3-Ladies'!$N$27:$S$61,6,0)),100,VLOOKUP($A135,'Race 3-Ladies'!$N$27:$S$61,6,0)) -> 10 | G135: =IF(ISNA(VLOOKUP($A135,'Race 4-Ladies'!$N$27:$S$100,6,0)),100,VLOOKUP($A135,'Race 4-Ladies'!$N$30:$S$100,6,0)) -> 9 | H135: =SMALL(D135:G135,{1,2,3}) -> 9 | I135: 10 | J135: 10 | K135: 29 | L135: 5
A136: Mili Mladenovic | B136: WJ | C136: V35 | D136: =IF(ISNA(VLOOKUP($A136,'Race 1-Ladies'!$N$24:$S$53,6,0)),100,VLOOKUP($A136,'Race 1-Ladies'!$N$24:$S$53,6,0)) -> 100 | E136: =IF(ISNA(VLOOKUP($A136,'Race 2-Ladies'!$N$23:$S$53,6,0)),100,VLOOKUP($A136,'Race 2-Ladies'!$N$23:$S$53,6,0)) -> 100 | F136: =IF(ISNA(VLOOKUP($A136,'Race 3-Ladies'!$N$27:$S$61,6,0)),100,VLOOKUP($A136,'Race 3-Ladies'!$N$27:$S$61,6,0)) -> 100 | G136: =IF(ISNA(VLOOKUP($A136,'Race 4-Ladies'!$N$27:$S$100,6,0)),100,VLOOKUP($A136,'Race 4-Ladies'!$N$30:$S$100,6,0)) -> 100 | H136: =SMALL(D136:G136,{1,2,3}) -> 100 | I136: 100 | J136: 100 | K136: 300 | L136: 30
A137: Mrinalini Kar | B137: BS | C137: V35 | D137: =IF(ISNA(VLOOKUP($A137,'Race 1-Ladies'!$N$24:$S$53,6,0)),100,VLOOKUP($A137,'Race 1-Ladies'!$N$24:$S$53,6,0)) -> 100 | E137: =IF(ISNA(VLOOKUP($A137,'Race 2-Ladies'!$N$23:$S$53,6,0)),100,VLOOKUP($A137,'Race 2-Ladies'!$N$23:$S$53,6,0)) -> 100 | F137: =IF(ISNA(VLOOKUP($A137,'Race 3-Ladies'!$N$27:$S$61,6,0)),100,VLOOKUP($A137,'Race 3-Ladies'!$N$27:$S$61,6,0)) -> 100 | G137: =IF(ISNA(VLOOKUP($A137,'Race 4-Ladies'!$N$27:$S$100,6,0)),100,VLOOKUP($A137,'Race 4-Ladies'!$N$30:$S$100,6,0)) -> 100 | H137: =SMALL(D137:G137,{1,2,3}) -> 100 | I137: 100 | J137: 100 | K137: 300 | L137: 30
A138: Natalie Gilder | B138: SS | C138: V35 | D138: =IF(ISNA(VLOOKUP($A138,'Race 1-Ladies'!$N$24:$S$53,6,0)),100,VLOOKUP($A138,'Race 1-Ladies'!$N$24:$S$53,6,0)) -> 100 | E138: =IF(ISNA(VLOOKUP($A138,'Race 2-Ladies'!$N$23:$S$53,6,0)),100,VLOOKUP($A138,'Race 2-Ladies'!$N$23:$S$53,6,0)) -> 100 | F138: =IF(ISNA(VLOOKUP($A138,'Race 3-Ladies'!$N$27:$S$61,6,0)),100,VLOOKUP($A138,'Race 3-Ladies'!$N$27:$S$61,6,0)) -> 100 | G138: =IF(ISNA(VLOOKUP($A138,'Race 4-Ladies'!$N$27:$S$100,6,0)),100,VLOOKUP($A138,'Race 4-Ladies'!$N$30:$S$100,6,0)) -> 100 | H138: =SMALL(D138:G138,{1,2,3}) -> 100 | I138: 100 | J138: 100 | K138: 300 | L138: 30
A139: Natasha Spiller | B139: BS | C139: V35 | D139: =IF(ISNA(VLOOKUP($A139,'Race 1-Ladies'!$N$24:$S$53,6,0)),100,VLOOKUP($A139,'Race 1-Ladies'!$N$24:$S$53,6,0)) -> 100 | E139: =IF(ISNA(VLOOKUP($A139,'Race 2-Ladies'!$N$23:$S$53,6,0)),100,VLOOKUP($A139,'Race 2-Ladies'!$N$23:$S$53,6,0)) -> 100 | F139: =IF(ISNA(VLOOKUP($A139,'Race 3-Ladies'!$N$27:$S$61,6,0)),100,VLOOKUP($A139,'Race 3-Ladies'!$N$27:$S$61,6,0)) -> 100 | G139: =IF(ISNA(VLOOKUP($A139,'Race 4-Ladies'!$N$27:$S$100,6,0)),100,VLOOKUP($A139,'Race 4-Ladies'!$N$30:$S$100,6,0)) -> 100 | H139: =SMALL(D139:G139,{1,2,3}) -> 100 | I139: 100 | J139: 100 | K139: 300 | L139: 30
A140: Neema Sheby | B140: BS | C140: V35 | D140: =IF(ISNA(VLOOKUP($A140,'Race 1-Ladies'!$N$24:$S$53,6,0)),100,VLOOKUP($A140,'Race 1-Ladies'!$N$24:$S$53,6,0)) -> 100 | E140: =IF(ISNA(VLOOKUP($A140,'Race 2-Ladies'!$N$23:$S$53,6,0)),100,VLOOKUP($A140,'Race 2-Ladies'!$N$23:$S$53,6,0)) -> 100 | F140: =IF(ISNA(VLOOKUP($A140,'Race 3-Ladies'!$N$27:$S$61,6,0)),100,VLOOKUP($A140,'Race 3-Ladies'!$N$27:$S$61,6,0)) -> 100 | G140: =IF(ISNA(VLOOKUP($A140,'Race 4-Ladies'!$N$27:$S$100,6,0)),100,VLOOKUP($A140,'Race 4-Ladies'!$N$30:$S$100,6,0)) -> 100 | H140: =SMALL(D140:G140,{1,2,3}) -> 100 | I140: 100 | J140: 100 | K140: 300 | L140: 30
A141: Nick Smith | B141: BS | C141: V35 | D141: =IF(ISNA(VLOOKUP($A141,'Race 1-Ladies'!$N$24:$S$53,6,0)),100,VLOOKUP($A141,'Race 1-Ladies'!$N$24:$S$53,6,0)) -> 100 | E141: =IF(ISNA(VLOOKUP($A141,'Race 2-Ladies'!$N$23:$S$53,6,0)),100,VLOOKUP($A141,'Race 2-Ladies'!$N$23:$S$53,6,0)) -> 100 | F141: =IF(ISNA(VLOOKUP($A141,'Race 3-Ladies'!$N$27:$S$61,6,0)),100,VLOOKUP($A141,'Race 3-Ladies'!$N$27:$S$61,6,0)) -> 100 | G141: =IF(ISNA(VLOOKUP($A141,'Race 4-Ladies'!$N$27:$S$100,6,0)),100,VLOOKUP($A141,'Race 4-Ladies'!$N$30:$S$100,6,0)) -> 100 | H141: =SMALL(D141:G141,{1,2,3}) -> 100 | I141: 100 | J141: 100 | K141: 300 | L141: 30
A142: Nicola Cockerell | B142: BS | C142: V35 | D142: =IF(ISNA(VLOOKUP($A142,'Race 1-Ladies'!$N$24:$S$53,6,0)),100,VLOOKUP($A142,'Race 1-Ladies'!$N$24:$S$53,6,0)) -> 100 | E142: =IF(ISNA(VLOOKUP($A142,'Race 2-Ladies'!$N$23:$S$53,6,0)),100,VLOOKUP($A142,'Race 2-Ladies'!$N$23:$S$53,6,0)) -> 100 | F142: =IF(ISNA(VLOOKUP($A142,'Race 3-Ladies'!$N$27:$S$61,6,0)),100,VLOOKUP($A142,'Race 3-Ladies'!$N$27:$S$61,6,0)) -> 100 | G142: =IF(ISNA(VLOOKUP($A142,'Race 4-Ladies'!$N$27:$S$100,6,0)),100,VLOOKUP($A142,'Race 4-Ladies'!$N$30:$S$100,6,0)) -> 100 | H142: =SMALL(D142:G142,{1,2,3}) -> 100 | I142: 100 | J142: 100 | K142: 300 | L142: 30
A143: Nicola Quantrell | B143: WJ | C143: V35 | D143: =IF(ISNA(VLOOKUP($A143,'Race 1-Ladies'!$N$24:$S$53,6,0)),100,VLOOKUP($A143,'Race 1-Ladies'!$N$24:$S$53,6,0)) -> 100 | E143: =IF(ISNA(VLOOKUP($A143,'Race 2-Ladies'!$N$23:$S$53,6,0)),100,VLOOKUP($A143,'Race 2-Ladies'!$N$23:$S$53,6,0)) -> 100 | F143: =IF(ISNA(VLOOKUP($A143,'Race 3-Ladies'!$N$27:$S$61,6,0)),100,VLOOKUP($A143,'Race 3-Ladies'!$N$27:$S$61,6,0)) -> 100 | G143: =IF(ISNA(VLOOKUP($A143,'Race 4-Ladies'!$N$27:$S$100,6,0)),100,VLOOKUP($A143,'Race 4-Ladies'!$N$30:$S$100,6,0)) -> 100 | H143: =SMALL(D143:G143,{1,2,3}) -> 100 | I143: 100 | J143: 100 | K143: 300 | L143: 30
A144: Nicola Smith | B144: HRC | C144: V35 | D144: =IF(ISNA(VLOOKUP($A144,'Race 1-Ladies'!$N$24:$S$53,6,0)),100,VLOOKUP($A144,'Race 1-Ladies'!$N$24:$S$53,6,0)) -> 100 | E144: =IF(ISNA(VLOOKUP($A144,'Race 2-Ladies'!$N$23:$S$53,6,0)),100,VLOOKUP($A144,'Race 2-Ladies'!$N$23:$S$53,6,0)) -> 100 | F144: =IF(ISNA(VLOOKUP($A144,'Race 3-Ladies'!$N$27:$S$61,6,0)),100,VLOOKUP($A144,'Race 3-Ladies'!$N$27:$S$61,6,0)) -> 100 | G144: =IF(ISNA(VLOOKUP($A144,'Race 4-Ladies'!$N$27:$S$100,6,0)),100,VLOOKUP($A144,'Race 4-Ladies'!$N$30:$S$100,6,0)) -> 100 | H144: =SMALL(D144:G144,{1,2,3}) -> 100 | I144: 100 | J144: 100 | K144: 300 | L144: 30
A145: Odette Galea-Highstead | B145: HRC | C145: V35 | D145: =IF(ISNA(VLOOKUP($A145,'Race 1-Ladies'!$N$24:$S$53,6,0)),100,VLOOKUP($A145,'Race 1-Ladies'!$N$24:$S$53,6,0)) -> 100 | E145: =IF(ISNA(VLOOKUP($A145,'Race 2-Ladies'!$N$23:$S$53,6,0)),100,VLOOKUP($A145,'Race 2-Ladies'!$N$23:$S$53,6,0)) -> 100 | F145: =IF(ISNA(VLOOKUP($A145,'Race 3-Ladies'!$N$27:$S$61,6,0)),100,VLOOKUP($A145,'Race 3-Ladies'!$N$27:$S$61,6,0)) -> 100 | G145: =IF(ISNA(VLOOKUP($A145,'Race 4-Ladies'!$N$27:$S$100,6,0)),100,VLOOKUP($A145,'Race 4-Ladies'!$N$30:$S$100,6,0)) -> 100 | H145: =SMALL(D145:G145,{1,2,3}) -> 100 | I145: 100 | J145: 100 | K145: 300 | L145: 30
A146: Paula Gollop | B146: WJ | C146: V35 | D146: =IF(ISNA(VLOOKUP($A146,'Race 1-Ladies'!$N$24:$S$53,6,0)),100,VLOOKUP($A146,'Race 1-Ladies'!$N$24:$S$53,6,0)) -> 10 | E146: =IF(ISNA(VLOOKUP($A146,'Race 2-Ladies'!$N$23:$S$53,6,0)),100,VLOOKUP($A146,'Race 2-Ladies'!$N$23:$S$53,6,0)) -> 100 | F146: =IF(ISNA(VLOOKUP($A146,'Race 3-Ladies'!$N$27:$S$61,6,0)),100,VLOOKUP($A146,'Race 3-Ladies'!$N$27:$S$61,6,0)) -> 100 | G146: =IF(ISNA(VLOOKUP($A146,'Race 4-Ladies'!$N$27:$S$100,6,0)),100,VLOOKUP($A146,'Race 4-Ladies'!$N$30:$S$100,6,0)) -> 100 | H146: =SMALL(D146:G146,{1,2,3}) -> 10 | I146: 100 | J146: 100 | K146: 210 | L146: 23
A147: Rachael Pearson | B147: SS | C147: V35 | D147: =IF(ISNA(VLOOKUP($A147,'Race 1-Ladies'!$N$24:$S$53,6,0)),100,VLOOKUP($A147,'Race 1-Ladies'!$N$24:$S$53,6,0)) -> 100 | E147: =IF(ISNA(VLOOKUP($A147,'Race 2-Ladies'!$N$23:$S$53,6,0)),100,VLOOKUP($A147,'Race 2-Ladies'!$N$23:$S$53,6,0)) -> 100 | F147: =IF(ISNA(VLOOKUP($A147,'Race 3-Ladies'!$N$27:$S$61,6,0)),100,VLOOKUP($A147,'Race 3-Ladies'!$N$27:$S$61,6,0)) -> 100 | G147: =IF(ISNA(VLOOKUP($A147,'Race 4-Ladies'!$N$27:$S$100,6,0)),100,VLOOKUP($A147,'Race 4-Ladies'!$N$30:$S$100,6,0)) -> 100 | H147: =SMALL(D147:G147,{1,2,3}) -> 100 | I147: 100 | J147: 100 | K147: 300 | L147: 30
A148: Rachel Symonds | B148: WJ | C148: V35 | D148: =IF(ISNA(VLOOKUP($A148,'Race 1-Ladies'!$N$24:$S$53,6,0)),100,VLOOKUP($A148,'Race 1-Ladies'!$N$24:$S$53,6,0)) -> 100 | E148: =IF(ISNA(VLOOKUP($A148,'Race 2-Ladies'!$N$23:$S$53,6,0)),100,VLOOKUP($A148,'Race 2-Ladies'!$N$23:$S$53,6,0)) -> 100 | F148: =IF(ISNA(VLOOKUP($A148,'Race 3-Ladies'!$N$27:$S$61,6,0)),100,VLOOKUP($A148,'Race 3-Ladies'!$N$27:$S$61,6,0)) -> 100 | G148: =IF(ISNA(VLOOKUP($A148,'Race 4-Ladies'!$N$27:$S$100,6,0)),100,VLOOKUP($A148,'Race 4-Ladies'!$N$30:$S$100,6,0)) -> 100 | H148: =SMALL(D148:G148,{1,2,3}) -> 100 | I148: 100 | J148: 100 | K148: 300 | L148: 30
A149: Rebecca Cole | B149: BS | C149: V35 | D149: =IF(ISNA(VLOOKUP($A149,'Race 1-Ladies'!$N$24:$S$53,6,0)),100,VLOOKUP($A149,'Race 1-Ladies'!$N$24:$S$53,6,0)) -> 100 | E149: =IF(ISNA(VLOOKUP($A149,'Race 2-Ladies'!$N$23:$S$53,6,0)),100,VLOOKUP($A149,'Race 2-Ladies'!$N$23:$S$53,6,0)) -> 100 | F149: =IF(ISNA(VLOOKUP($A149,'Race 3-Ladies'!$N$27:$S$61,6,0)),100,VLOOKUP($A149,'Race 3-Ladies'!$N$27:$S$61,6,0)) -> 100 | G149: =IF(ISNA(VLOOKUP($A149,'Race 4-Ladies'!$N$27:$S$100,6,0)),100,VLOOKUP($A149,'Race 4-Ladies'!$N$30:$S$100,6,0)) -> 100 | H149: =SMALL(D149:G149,{1,2,3}) -> 100 | I149: 100 | J149: 100 | K149: 300 | L149: 30
A150: Rebecca Thorp | B150: BS | C150: V35 | D150: =IF(ISNA(VLOOKUP($A150,'Race 1-Ladies'!$N$24:$S$53,6,0)),100,VLOOKUP($A150,'Race 1-Ladies'!$N$24:$S$53,6,0)) -> 100 | E150: =IF(ISNA(VLOOKUP($A150,'Race 2-Ladies'!$N$23:$S$53,6,0)),100,VLOOKUP($A150,'Race 2-Ladies'!$N$23:$S$53,6,0)) -> 100 | F150: =IF(ISNA(VLOOKUP($A150,'Race 3-Ladies'!$N$27:$S$61,6,0)),100,VLOOKUP($A150,'Race 3-Ladies'!$N$27:$S$61,6,0)) -> 100 | G150: =IF(ISNA(VLOOKUP($A150,'Race 4-Ladies'!$N$27:$S$100,6,0)),100,VLOOKUP($A150,'Race 4-Ladies'!$N$30:$S$100,6,0)) -> 100 | H150: =SMALL(D150:G150,{1,2,3}) -> 100 | I150: 100 | J150: 100 | K150: 300 | L150: 30
A151: Rebecca White | B151: SS | C151: V35 | D151: =IF(ISNA(VLOOKUP($A151,'Race 1-Ladies'!$N$24:$S$53,6,0)),100,VLOOKUP($A151,'Race 1-Ladies'!$N$24:$S$53,6,0)) -> 100 | E151: =IF(ISNA(VLOOKUP($A151,'Race 2-Ladies'!$N$23:$S$53,6,0)),100,VLOOKUP($A151,'Race 2-Ladies'!$N$23:$S$53,6,0)) -> 100 | F151: =IF(ISNA(VLOOKUP($A151,'Race 3-Ladies'!$N$27:$S$61,6,0)),100,VLOOKUP($A151,'Race 3-Ladies'!$N$27:$S$61,6,0)) -> 100 | G151: =IF(ISNA(VLOOKUP($A151,'Race 4-Ladies'!$N$27:$S$100,6,0)),100,VLOOKUP($A151,'Race 4-Ladies'!$N$30:$S$100,6,0)) -> 100 | H151: =SMALL(D151:G151,{1,2,3}) -> 100 | I151: 100 | J151: 100 | K151: 300 | L151: 30
A152: Sandra Webber | B152: HRC | C152: V35 | D152: =IF(ISNA(VLOOKUP($A152,'Race 1-Ladies'!$N$24:$S$53,6,0)),100,VLOOKUP($A152,'Race 1-Ladies'!$N$24:$S$53,6,0)) -> 100 | E152: =IF(ISNA(VLOOKUP($A152,'Race 2-Ladies'!$N$23:$S$53,6,0)),100,VLOOKUP($A152,'Race 2-Ladies'!$N$23:$S$53,6,0)) -> 100 | F152: =IF(ISNA(VLOOKUP($A152,'Race 3-Ladies'!$N$27:$S$61,6,0)),100,VLOOKUP($A152,'Race 3-Ladies'!$N$27:$S$61,6,0)) -> 100 | G152: =IF(ISNA(VLOOKUP($A152,'Race 4-Ladies'!$N$27:$S$100,6,0)),100,VLOOKUP($A152,'Race 4-Ladies'!$N$30:$S$100,6,0)) -> 100 | H152: =SMALL(D152:G152,{1,2,3}) -> 100 | I152: 100 | J152: 100 | K152: 300 | L152: 30
A153: Sarah Berry | B153: WJ | C153: V35 | D153: =IF(ISNA(VLOOKUP($A153,'Race 1-Ladies'!$N$24:$S$53,6,0)),100,VLOOKUP($A153,'Race 1-Ladies'!$N$24:$S$53,6,0)) -> 100 | E153: =IF(ISNA(VLOOKUP($A153,'Race 2-Ladies'!$N$23:$S$53,6,0)),100,VLOOKUP($A153,'Race 2-Ladies'!$N$23:$S$53,6,0)) -> 100 | F153: =IF(ISNA(VLOOKUP($A153,'Race 3-Ladies'!$N$27:$S$61,6,0)),100,VLOOKUP($A153,'Race 3-Ladies'!$N$27:$S$61,6,0)) -> 100 | G153: =IF(ISNA(VLOOKUP($A153,'Race 4-Ladies'!$N$27:$S$100,6,0)),100,VLOOKUP($A153,'Race 4-Ladies'!$N$30:$S$100,6,0)) -> 100 | H153: =SMALL(D153:G153,{1,2,3}) -> 100 | I153: 100 | J153: 100 | K153: 300 | L153: 30
A154: sarah crooks | B154: BS | C154: V35 | D154: =IF(ISNA(VLOOKUP($A154,'Race 1-Ladies'!$N$24:$S$53,6,0)),100,VLOOKUP($A154,'Race 1-Ladies'!$N$24:$S$53,6,0)) -> 100 | E154: =IF(ISNA(VLOOKUP($A154,'Race 2-Ladies'!$N$23:$S$53,6,0)),100,VLOOKUP($A154,'Race 2-Ladies'!$N$23:$S$53,6,0)) -> 100 | F154: =IF(ISNA(VLOOKUP($A154,'Race 3-Ladies'!$N$27:$S$61,6,0)),100,VLOOKUP($A154,'Race 3-Ladies'!$N$27:$S$61,6,0)) -> 100 | G154: =IF(ISNA(VLOOKUP($A154,'Race 4-Ladies'!$N$27:$S$100,6,0)),100,VLOOKUP($A154,'Race 4-Ladies'!$N$30:$S$100,6,0)) -> 100 | H154: =SMALL(D154:G154,{1,2,3}) -> 100 | I154: 100 | J154: 100 | K154: 300 | L154: 30
A155: Sarah Hopewell | B155: WJ | C155: V35 | D155: =IF(ISNA(VLOOKUP($A155,'Race 1-Ladies'!$N$24:$S$53,6,0)),100,VLOOKUP($A155,'Race 1-Ladies'!$N$24:$S$53,6,0)) -> 100 | E155: =IF(ISNA(VLOOKUP($A155,'Race 2-Ladies'!$N$23:$S$53,6,0)),100,VLOOKUP($A155,'Race 2-Ladies'!$N$23:$S$53,6,0)) -> 100 | F155: =IF(ISNA(VLOOKUP($A155,'Race 3-Ladies'!$N$27:$S$61,6,0)),100,VLOOKUP($A155,'Race 3-Ladies'!$N$27:$S$61,6,0)) -> 100 | G155: =IF(ISNA(VLOOKUP($A155,'Race 4-Ladies'!$N$27:$S$100,6,0)),100,VLOOKUP($A155,'Race 4-Ladies'!$N$30:$S$100,6,0)) -> 5 | H155: =SMALL(D155:G155,{1,2,3}) -> 5 | I155: 100 | J155: 100 | K155: 205 | L155: 18
A156: Sarah Mackay | B156: BS | C156: V35 | D156: =IF(ISNA(VLOOKUP($A156,'Race 1-Ladies'!$N$24:$S$53,6,0)),100,VLOOKUP($A156,'Race 1-Ladies'!$N$24:$S$53,6,0)) -> 100 | E156: =IF(ISNA(VLOOKUP($A156,'Race 2-Ladies'!$N$23:$S$53,6,0)),100,VLOOKUP($A156,'Race 2-Ladies'!$N$23:$S$53,6,0)) -> 14 | F156: =IF(ISNA(VLOOKUP($A156,'Race 3-Ladies'!$N$27:$S$61,6,0)),100,VLOOKUP($A156,'Race 3-Ladies'!$N$27:$S$61,6,0)) -> 100 | G156: =IF(ISNA(VLOOKUP($A156,'Race 4-Ladies'!$N$27:$S$100,6,0)),100,VLOOKUP($A156,'Race 4-Ladies'!$N$30:$S$100,6,0)) -> 100 | H156: =SMALL(D156:G156,{1,2,3}) -> 14 | I156: 100 | J156: 100 | K156: 214 | L156: 26
A157: Sarah Shucksmith | B157: SS | C157: V35 | D157: =IF(ISNA(VLOOKUP($A157,'Race 1-Ladies'!$N$24:$S$53,6,0)),100,VLOOKUP($A157,'Race 1-Ladies'!$N$24:$S$53,6,0)) -> 100 | E157: =IF(ISNA(VLOOKUP($A157,'Race 2-Ladies'!$N$23:$S$53,6,0)),100,VLOOKUP($A157,'Race 2-Ladies'!$N$23:$S$53,6,0)) -> 100 | F157: =IF(ISNA(VLOOKUP($A157,'Race 3-Ladies'!$N$27:$S$61,6,0)),100,VLOOKUP($A157,'Race 3-Ladies'!$N$27:$S$61,6,0)) -> 100 | G157: =IF(ISNA(VLOOKUP($A157,'Race 4-Ladies'!$N$27:$S$100,6,0)),100,VLOOKUP($A157,'Race 4-Ladies'!$N$30:$S$100,6,0)) -> 100 | H157: =SMALL(D157:G157,{1,2,3}) -> 100 | I157: 100 | J157: 100 | K157: 300 | L157: 30
A158: Selina Morgan | B158: HRC | C158: V35 | D158: =IF(ISNA(VLOOKUP($A158,'Race 1-Ladies'!$N$24:$S$53,6,0)),100,VLOOKUP($A158,'Race 1-Ladies'!$N$24:$S$53,6,0)) -> 9 | E158: =IF(ISNA(VLOOKUP($A158,'Race 2-Ladies'!$N$23:$S$53,6,0)),100,VLOOKUP($A158,'Race 2-Ladies'!$N$23:$S$53,6,0)) -> 17 | F158: =IF(ISNA(VLOOKUP($A158,'Race 3-Ladies'!$N$27:$S$61,6,0)),100,VLOOKUP($A158,'Race 3-Ladies'!$N$27:$S$61,6,0)) -> 100 | G158: =IF(ISNA(VLOOKUP($A158,'Race 4-Ladies'!$N$27:$S$100,6,0)),100,VLOOKUP($A158,'Race 4-Ladies'!$N$30:$S$100,6,0)) -> 15 | H158: =SMALL(D158:G158,{1,2,3}) -> 9 | I158: 15 | J158: 17 | K158: 41 | L158: 9
A159: Serena Beresford | B159: BS | C159: V35 | D159: =IF(ISNA(VLOOKUP($A159,'Race 1-Ladies'!$N$24:$S$53,6,0)),100,VLOOKUP($A159,'Race 1-Ladies'!$N$24:$S$53,6,0)) -> 7 | E159: =IF(ISNA(VLOOKUP($A159,'Race 2-Ladies'!$N$23:$S$53,6,0)),100,VLOOKUP($A159,'Race 2-Ladies'!$N$23:$S$53,6,0)) -> 18 | F159: =IF(ISNA(VLOOKUP($A159,'Race 3-Ladies'!$N$27:$S$61,6,0)),100,VLOOKUP($A159,'Race 3-Ladies'!$N$27:$S$61,6,0)) -> 12 | G159: =IF(ISNA(VLOOKUP($A159,'Race 4-Ladies'!$N$27:$S$100,6,0)),100,VLOOKUP($A159,'Race 4-Ladies'!$N$30:$S$100,6,0)) -> 100 | H159: =SMALL(D159:G159,{1,2,3}) -> 7 | I159: 12 | J159: 18 | K159: 37 | L159: 8
A160: Shelley Menell | B160: SS | C160: V35 | D160: =IF(ISNA(VLOOKUP($A160,'Race 1-Ladies'!$N$24:$S$53,6,0)),100,VLOOKUP($A160,'Race 1-Ladies'!$N$24:$S$53,6,0)) -> 100 | E160: =IF(ISNA(VLOOKUP($A160,'Race 2-Ladies'!$N$23:$S$53,6,0)),100,VLOOKUP($A160,'Race 2-Ladies'!$N$23:$S$53,6,0)) -> 100 | F160: =IF(ISNA(VLOOKUP($A160,'Race 3-Ladies'!$N$27:$S$61,6,0)),100,VLOOKUP($A160,'Race 3-Ladies'!$N$27:$S$61,6,0)) -> 100 | G160: =IF(ISNA(VLOOKUP($A160,'Race 4-Ladies'!$N$27:$S$100,6,0)),100,VLOOKUP($A160,'Race 4-Ladies'!$N$30:$S$100,6,0)) -> 100 | H160: =SMALL(D160:G160,{1,2,3}) -> 100 | I160: 100 | J160: 100 | K160: 300 | L160: 30
A161: Sophie Evans | B161: BS | C161: V35 | D161: =IF(ISNA(VLOOKUP($A161,'Race 1-Ladies'!$N$24:$S$53,6,0)),100,VLOOKUP($A161,'Race 1-Ladies'!$N$24:$S$53,6,0)) -> 100 | E161: =IF(ISNA(VLOOKUP($A161,'Race 2-Ladies'!$N$23:$S$53,6,0)),100,VLOOKUP($A161,'Race 2-Ladies'!$N$23:$S$53,6,0)) -> 100 | F161: =IF(ISNA(VLOOKUP($A161,'Race 3-Ladies'!$N$27:$S$61,6,0)),100,VLOOKUP($A161,'Race 3-Ladies'!$N$27:$S$61,6,0)) -> 100 | G161: =IF(ISNA(VLOOKUP($A161,'Race 4-Ladies'!$N$27:$S$100,6,0)),100,VLOOKUP($A161,'Race 4-Ladies'!$N$30:$S$100,6,0)) -> 100 | H161: =SMALL(D161:G161,{1,2,3}) -> 100 | I161: 100 | J161: 100 | K161: 300 | L161: 30
A162: Stacey Smith | B162: BS | C162: V35 | D162: =IF(ISNA(VLOOKUP($A162,'Race 1-Ladies'!$N$24:$S$53,6,0)),100,VLOOKUP($A162,'Race 1-Ladies'!$N$24:$S$53,6,0)) -> 100 | E162: =IF(ISNA(VLOOKUP($A162,'Race 2-Ladies'!$N$23:$S$53,6,0)),100,VLOOKUP($A162,'Race 2-Ladies'!$N$23:$S$53,6,0)) -> 100 | F162: =IF(ISNA(VLOOKUP($A162,'Race 3-Ladies'!$N$27:$S$61,6,0)),100,VLOOKUP($A162,'Race 3-Ladies'!$N$27:$S$61,6,0)) -> 100 | G162: =IF(ISNA(VLOOKUP($A162,'Race 4-Ladies'!$N$27:$S$100,6,0)),100,VLOOKUP($A162,'Race 4-Ladies'!$N$30:$S$100,6,0)) -> 100 | H162: =SMALL(D162:G162,{1,2,3}) -> 100 | I162: 100 | J162: 100 | K162: 300 | L162: 30
A163: Sue Hamilton | B163: SS | C163: V35 | D163: =IF(ISNA(VLOOKUP($A163,'Race 1-Ladies'!$N$24:$S$53,6,0)),100,VLOOKUP($A163,'Race 1-Ladies'!$N$24:$S$53,6,0)) -> 100 | E163: =IF(ISNA(VLOOKUP($A163,'Race 2-Ladies'!$N$23:$S$53,6,0)),100,VLOOKUP($A163,'Race 2-Ladies'!$N$23:$S$53,6,0)) -> 100 | F163: =IF(ISNA(VLOOKUP($A163,'Race 3-Ladies'!$N$27:$S$61,6,0)),100,VLOOKUP($A163,'Race 3-Ladies'!$N$27:$S$61,6,0)) -> 100 | G163: =IF(ISNA(VLOOKUP($A163,'Race 4-Ladies'!$N$27:$S$100,6,0)),100,VLOOKUP($A163,'Race 4-Ladies'!$N$30:$S$100,6,0)) -> 100 | H163: =SMALL(D163:G163,{1,2,3}) -> 100 | I163: 100 | J163: 100 | K163: 300 | L163: 30
A164: Susan Anderson | B164: BS | C164: V35 | D164: =IF(ISNA(VLOOKUP($A164,'Race 1-Ladies'!$N$24:$S$53,6,0)),100,VLOOKUP($A164,'Race 1-Ladies'!$N$24:$S$53,6,0)) -> 100 | E164: =IF(ISNA(VLOOKUP($A164,'Race 2-Ladies'!$N$23:$S$53,6,0)),100,VLOOKUP($A164,'Race 2-Ladies'!$N$23:$S$53,6,0)) -> 100 | F164: =IF(ISNA(VLOOKUP($A164,'Race 3-Ladies'!$N$27:$S$61,6,0)),100,VLOOKUP($A164,'Race 3-Ladies'!$N$27:$S$61,6,0)) -> 100 | G164: =IF(ISNA(VLOOKUP($A164,'Race 4-Ladies'!$N$27:$S$100,6,0)),100,VLOOKUP($A164,'Race 4-Ladies'!$N$30:$S$100,6,0)) -> 100 | H164: =SMALL(D164:G164,{1,2,3}) -> 100 | I164: 100 | J164: 100 | K164: 300 | L164: 30
A165: Susan Judge | B165: BS | C165: V35 | D165: =IF(ISNA(VLOOKUP($A165,'Race 1-Ladies'!$N$24:$S$53,6,0)),100,VLOOKUP($A165,'Race 1-Ladies'!$N$24:$S$53,6,0)) -> 100 | E165: =IF(ISNA(VLOOKUP($A165,'Race 2-Ladies'!$N$23:$S$53,6,0)),100,VLOOKUP($A165,'Race 2-Ladies'!$N$23:$S$53,6,0)) -> 100 | F165: =IF(ISNA(VLOOKUP($A165,'Race 3-Ladies'!$N$27:$S$61,6,0)),100,VLOOKUP($A165,'Race 3-Ladies'!$N$27:$S$61,6,0)) -> 100 | G165: =IF(ISNA(VLOOKUP($A165,'Race 4-Ladies'!$N$27:$S$100,6,0)),100,VLOOKUP($A165,'Race 4-Ladies'!$N$30:$S$100,6,0)) -> 100 | H165: =SMALL(D165:G165,{1,2,3}) -> 100 | I165: 100 | J165: 100 | K165: 300 | L165: 30
A166: Terri Wiley | B166: HRC | C166: V35 | D166: =IF(ISNA(VLOOKUP($A166,'Race 1-Ladies'!$N$24:$S$53,6,0)),100,VLOOKUP($A166,'Race 1-Ladies'!$N$24:$S$53,6,0)) -> 100 | E166: =IF(ISNA(VLOOKUP($A166,'Race 2-Ladies'!$N$23:$S$53,6,0)),100,VLOOKUP($A166,'Race 2-Ladies'!$N$23:$S$53,6,0)) -> 2 | F166: =IF(ISNA(VLOOKUP($A166,'Race 3-Ladies'!$N$27:$S$61,6,0)),100,VLOOKUP($A166,'Race 3-Ladies'!$N$27:$S$61,6,0)) -> 100 | G166: =IF(ISNA(VLOOKUP($A166,'Race 4-Ladies'!$N$27:$S$100,6,0)),100,VLOOKUP($A166,'Race 4-Ladies'!$N$30:$S$100,6,0)) -> 2 | H166: =SMALL(D166:G166,{1,2,3}) -> 2 | I166: 2 | J166: 100 | K166: 104 | L166: 10
A167: Tina Clark | B167: WJ | C167: V35 | D167: =IF(ISNA(VLOOKUP($A167,'Race 1-Ladies'!$N$24:$S$53,6,0)),100,VLOOKUP($A167,'Race 1-Ladies'!$N$24:$S$53,6,0)) -> 100 | E167: =IF(ISNA(VLOOKUP($A167,'Race 2-Ladies'!$N$23:$S$53,6,0)),100,VLOOKUP($A167,'Race 2-Ladies'!$N$23:$S$53,6,0)) -> 100 | F167: =IF(ISNA(VLOOKUP($A167,'Race 3-Ladies'!$N$27:$S$61,6,0)),100,VLOOKUP($A167,'Race 3-Ladies'!$N$27:$S$61,6,0)) -> 100 | G167: =IF(ISNA(VLOOKUP($A167,'Race 4-Ladies'!$N$27:$S$100,6,0)),100,VLOOKUP($A167,'Race 4-Ladies'!$N$30:$S$100,6,0)) -> 100 | H167: =SMALL(D167:G167,{1,2,3}) -> 100 | I167: 100 | J167: 100 | K167: 300 | L167: 30
A168: Tracey Cruz | B168: HRC | C168: V35 | D168: =IF(ISNA(VLOOKUP($A168,'Race 1-Ladies'!$N$24:$S$53,6,0)),100,VLOOKUP($A168,'Race 1-Ladies'!$N$24:$S$53,6,0)) -> 100 | E168: =IF(ISNA(VLOOKUP($A168,'Race 2-Ladies'!$N$23:$S$53,6,0)),100,VLOOKUP($A168,'Race 2-Ladies'!$N$23:$S$53,6,0)) -> 100 | F168: =IF(ISNA(VLOOKUP($A168,'Race 3-Ladies'!$N$27:$S$61,6,0)),100,VLOOKUP($A168,'Race 3-Ladies'!$N$27:$S$61,6,0)) -> 100 | G168: =IF(ISNA(VLOOKUP($A168,'Race 4-Ladies'!$N$27:$S$100,6,0)),100,VLOOKUP($A168,'Race 4-Ladies'!$N$30:$S$100,6,0)) -> 100 | H168: =SMALL(D168:G168,{1,2,3}) -> 100 | I168: 100 | J168: 100 | K168: 300 | L168: 30
A169: Tracy Stratford | B169: HRC | C169: V35 | D169: =IF(ISNA(VLOOKUP($A169,'Race 1-Ladies'!$N$24:$S$53,6,0)),100,VLOOKUP($A169,'Race 1-Ladies'!$N$24:$S$53,6,0)) -> 8 | E169: =IF(ISNA(VLOOKUP($A169,'Race 2-Ladies'!$N$23:$S$53,6,0)),100,VLOOKUP($A169,'Race 2-Ladies'!$N$23:$S$53,6,0)) -> 13 | F169: =IF(ISNA(VLOOKUP($A169,'Race 3-Ladies'!$N$27:$S$61,6,0)),100,VLOOKUP($A169,'Race 3-Ladies'!$N$27:$S$61,6,0)) -> 100 | G169: =IF(ISNA(VLOOKUP($A169,'Race 4-Ladies'!$N$27:$S$100,6,0)),100,VLOOKUP($A169,'Race 4-Ladies'!$N$30:$S$100,6,0)) -> 10 | H169: =SMALL(D169:G169,{1,2,3}) -> 8 | I169: 10 | J169: 13 | K169: 31 | L169: 6
A170: Valerie Foreman | B170: SS | C170: V35 | D170: =IF(ISNA(VLOOKUP($A170,'Race 1-Ladies'!$N$24:$S$53,6,0)),100,VLOOKUP($A170,'Race 1-Ladies'!$N$24:$S$53,6,0)) -> 100 | E170: =IF(ISNA(VLOOKUP($A170,'Race 2-Ladies'!$N$23:$S$53,6,0)),100,VLOOKUP($A170,'Race 2-Ladies'!$N$23:$S$53,6,0)) -> 100 | F170: =IF(ISNA(VLOOKUP($A170,'Race 3-Ladies'!$N$27:$S$61,6,0)),100,VLOOKUP($A170,'Race 3-Ladies'!$N$27:$S$61,6,0)) -> 100 | G170: =IF(ISNA(VLOOKUP($A170,'Race 4-Ladies'!$N$27:$S$100,6,0)),100,VLOOKUP($A170,'Race 4-Ladies'!$N$30:$S$100,6,0)) -> 100 | H170: =SMALL(D170:G170,{1,2,3}) -> 100 | I170: 100 | J170: 100 | K170: 300 | L170: 30
A171: Victoria Jory | B171: HRC | C171: V35 | D171: =IF(ISNA(VLOOKUP($A171,'Race 1-Ladies'!$N$24:$S$53,6,0)),100,VLOOKUP($A171,'Race 1-Ladies'!$N$24:$S$53,6,0)) -> 100 | E171: =IF(ISNA(VLOOKUP($A171,'Race 2-Ladies'!$N$23:$S$53,6,0)),100,VLOOKUP($A171,'Race 2-Ladies'!$N$23:$S$53,6,0)) -> 100 | F171: =IF(ISNA(VLOOKUP($A171,'Race 3-Ladies'!$N$27:$S$61,6,0)),100,VLOOKUP($A171,'Race 3-Ladies'!$N$27:$S$61,6,0)) -> 100 | G171: =IF(ISNA(VLOOKUP($A171,'Race 4-Ladies'!$N$27:$S$100,6,0)),100,VLOOKUP($A171,'Race 4-Ladies'!$N$30:$S$100,6,0)) -> 100 | H171: =SMALL(D171:G171,{1,2,3}) -> 100 | I171: 100 | J171: 100 | K171: 300 | L171: 30
A172: Victoria Maddox | B172: BS | C172: V35 | D172: =IF(ISNA(VLOOKUP($A172,'Race 1-Ladies'!$N$24:$S$53,6,0)),100,VLOOKUP($A172,'Race 1-Ladies'!$N$24:$S$53,6,0)) -> 100 | E172: =IF(ISNA(VLOOKUP($A172,'Race 2-Ladies'!$N$23:$S$53,6,0)),100,VLOOKUP($A172,'Race 2-Ladies'!$N$23:$S$53,6,0)) -> 100 | F172: =IF(ISNA(VLOOKUP($A172,'Race 3-Ladies'!$N$27:$S$61,6,0)),100,VLOOKUP($A172,'Race 3-Ladies'!$N$27:$S$61,6,0)) -> 100 | G172: =IF(ISNA(VLOOKUP($A172,'Race 4-Ladies'!$N$27:$S$100,6,0)),100,VLOOKUP($A172,'Race 4-Ladies'!$N$30:$S$100,6,0)) -> 100 | H172: =SMALL(D172:G172,{1,2,3}) -> 100 | I172: 100 | J172: 100 | K172: 300 | L172: 30
A173: Alison Malcolm | B173: BS | C173: V45 | D173: =IF(ISNA(VLOOKUP($A173,'Race 1-Ladies'!$U$24:$Z$53,6,0)),100,VLOOKUP($A173,'Race 1-Ladies'!$U$24:$Z$53,6,0)) -> 100 | E173: =IF(ISNA(VLOOKUP($A173,'Race 2-Ladies'!$U$23:$Z$53,6,0)),100,VLOOKUP($A173,'Race 2-Ladies'!$U$23:$Z$53,6,0)) -> 18 | F173: =IF(ISNA(VLOOKUP($A173,'Race 3-Ladies'!$U$27:$Z$61,6,0)),100,VLOOKUP($A173,'Race 3-Ladies'!$U$27:$Z$61,6,0)) -> 19 | G173: =IF(ISNA(VLOOKUP($A173,'Race 4-Ladies'!$U$30:$Z$100,6,0)),100,VLOOKUP($A173,'Race 4-Ladies'!$U$30:$Z$100,6,0)) -> 100 | H173: =SMALL(D173:G173,{1,2,3}) -> 18 | I173: 19 | J173: 100 | K173: 137 | L173: =RANK(K173,$K$173:$K$311,1) -> 21
A174: Alison Street | B174: BS | C174: V45 | D174: =IF(ISNA(VLOOKUP($A174,'Race 1-Ladies'!$U$24:$Z$53,6,0)),100,VLOOKUP($A174,'Race 1-Ladies'!$U$24:$Z$53,6,0)) -> 100 | E174: =IF(ISNA(VLOOKUP($A174,'Race 2-Ladies'!$U$23:$Z$53,6,0)),100,VLOOKUP($A174,'Race 2-Ladies'!$U$23:$Z$53,6,0)) -> 100 | F174: =IF(ISNA(VLOOKUP($A174,'Race 3-Ladies'!$U$27:$Z$61,6,0)),100,VLOOKUP($A174,'Race 3-Ladies'!$U$27:$Z$61,6,0)) -> 100 | G174: =IF(ISNA(VLOOKUP($A174,'Race 4-Ladies'!$U$30:$Z$100,6,0)),100,VLOOKUP($A174,'Race 4-Ladies'!$U$30:$Z$100,6,0)) -> 100 | H174: =SMALL(D174:G174,{1,2,3}) -> 100 | I174: 100 | J174: 100 | K174: 300 | L174: =RANK(K174,$K$174:$K$311,1) -> 38
A175: Amanda Bavin | B175: BS | C175: V45 | D175: =IF(ISNA(VLOOKUP($A175,'Race 1-Ladies'!$U$24:$Z$53,6,0)),100,VLOOKUP($A175,'Race 1-Ladies'!$U$24:$Z$53,6,0)) -> 100 | E175: =IF(ISNA(VLOOKUP($A175,'Race 2-Ladies'!$U$23:$Z$53,6,0)),100,VLOOKUP($A175,'Race 2-Ladies'!$U$23:$Z$53,6,0)) -> 100 | F175: =IF(ISNA(VLOOKUP($A175,'Race 3-Ladies'!$U$27:$Z$61,6,0)),100,VLOOKUP($A175,'Race 3-Ladies'!$U$27:$Z$61,6,0)) -> 100 | G175: =IF(ISNA(VLOOKUP($A175,'Race 4-Ladies'!$U$30:$Z$100,6,0)),100,VLOOKUP($A175,'Race 4-Ladies'!$U$30:$Z$100,6,0)) -> 100 | H175: =SMALL(D175:G175,{1,2,3}) -> 100 | I175: 100 | J175: 100 | K175: 300 | L175: =RANK(K175,$K$174:$K$311,1) -> 38
A176: Amanda Edwards | B176: BS | C176: V45 | D176: =IF(ISNA(VLOOKUP($A176,'Race 1-Ladies'!$U$24:$Z$53,6,0)),100,VLOOKUP($A176,'Race 1-Ladies'!$U$24:$Z$53,6,0)) -> 100 | E176: =IF(ISNA(VLOOKUP($A176,'Race 2-Ladies'!$U$23:$Z$53,6,0)),100,VLOOKUP($A176,'Race 2-Ladies'!$U$23:$Z$53,6,0)) -> 100 | F176: =IF(ISNA(VLOOKUP($A176,'Race 3-Ladies'!$U$27:$Z$61,6,0)),100,VLOOKUP($A176,'Race 3-Ladies'!$U$27:$Z$61,6,0)) -> 100 | G176: =IF(ISNA(VLOOKUP($A176,'Race 4-Ladies'!$U$30:$Z$100,6,0)),100,VLOOKUP($A176,'Race 4-Ladies'!$U$30:$Z$100,6,0)) -> 100 | H176: =SMALL(D176:G176,{1,2,3}) -> 100 | I176: 100 | J176: 100 | K176: 300 | L176: 38
A177: Amanda Richard | B177: WJ | C177: V45 | D177: =IF(ISNA(VLOOKUP($A177,'Race 1-Ladies'!$U$24:$Z$53,6,0)),100,VLOOKUP($A177,'Race 1-Ladies'!$U$24:$Z$53,6,0)) -> 100 | E177: =IF(ISNA(VLOOKUP($A177,'Race 2-Ladies'!$U$23:$Z$53,6,0)),100,VLOOKUP($A177,'Race 2-Ladies'!$U$23:$Z$53,6,0)) -> 100 | F177: =IF(ISNA(VLOOKUP($A177,'Race 3-Ladies'!$U$27:$Z$61,6,0)),100,VLOOKUP($A177,'Race 3-Ladies'!$U$27:$Z$61,6,0)) -> 100 | G177: =IF(ISNA(VLOOKUP($A177,'Race 4-Ladies'!$U$30:$Z$100,6,0)),100,VLOOKUP($A177,'Race 4-Ladies'!$U$30:$Z$100,6,0)) -> 100 | H177: =SMALL(D177:G177,{1,2,3}) -> 100 | I177: 100 | J177: 100 | K177: 300 | L177: 38
A178: Andrea Thorpe | B178: BS | C178: V45 | D178: =IF(ISNA(VLOOKUP($A178,'Race 1-Ladies'!$U$24:$Z$53,6,0)),100,VLOOKUP($A178,'Race 1-Ladies'!$U$24:$Z$53,6,0)) -> 100 | E178: =IF(ISNA(VLOOKUP($A178,'Race 2-Ladies'!$U$23:$Z$53,6,0)),100,VLOOKUP($A178,'Race 2-Ladies'!$U$23:$Z$53,6,0)) -> 100 | F178: =IF(ISNA(VLOOKUP($A178,'Race 3-Ladies'!$U$27:$Z$61,6,0)),100,VLOOKUP($A178,'Race 3-Ladies'!$U$27:$Z$61,6,0)) -> 100 | G178: =IF(ISNA(VLOOKUP($A178,'Race 4-Ladies'!$U$30:$Z$100,6,0)),100,VLOOKUP($A178,'Race 4-Ladies'!$U$30:$Z$100,6,0)) -> 100 | H178: =SMALL(D178:G178,{1,2,3}) -> 100 | I178: 100 | J178: 100 | K178: 300 | L178: 38
A179: Ani Brix | B179: WJ | C179: V45 | D179: =IF(ISNA(VLOOKUP($A179,'Race 1-Ladies'!$U$24:$Z$53,6,0)),100,VLOOKUP($A179,'Race 1-Ladies'!$U$24:$Z$53,6,0)) -> 100 | E179: =IF(ISNA(VLOOKUP($A179,'Race 2-Ladies'!$U$23:$Z$53,6,0)),100,VLOOKUP($A179,'Race 2-Ladies'!$U$23:$Z$53,6,0)) -> 100 | F179: =IF(ISNA(VLOOKUP($A179,'Race 3-Ladies'!$U$27:$Z$61,6,0)),100,VLOOKUP($A179,'Race 3-Ladies'!$U$27:$Z$61,6,0)) -> 100 | G179: =IF(ISNA(VLOOKUP($A179,'Race 4-Ladies'!$U$30:$Z$100,6,0)),100,VLOOKUP($A179,'Race 4-Ladies'!$U$30:$Z$100,6,0)) -> 100 | H179: =SMALL(D179:G179,{1,2,3}) -> 100 | I179: 100 | J179: 100 | K179: 300 | L179: 38
A180: Annie Reville | B180: WJ | C180: V45 | D180: =IF(ISNA(VLOOKUP($A180,'Race 1-Ladies'!$U$24:$Z$53,6,0)),100,VLOOKUP($A180,'Race 1-Ladies'!$U$24:$Z$53,6,0)) -> 100 | E180: =IF(ISNA(VLOOKUP($A180,'Race 2-Ladies'!$U$23:$Z$53,6,0)),100,VLOOKUP($A180,'Race 2-Ladies'!$U$23:$Z$53,6,0)) -> 100 | F180: =IF(ISNA(VLOOKUP($A180,'Race 3-Ladies'!$U$27:$Z$61,6,0)),100,VLOOKUP($A180,'Race 3-Ladies'!$U$27:$Z$61,6,0)) -> 100 | G180: =IF(ISNA(VLOOKUP($A180,'Race 4-Ladies'!$U$30:$Z$100,6,0)),100,VLOOKUP($A180,'Race 4-Ladies'!$U$30:$Z$100,6,0)) -> 6 | H180: =SMALL(D180:G180,{1,2,3}) -> 6 | I180: 100 | J180: 100 | K180: 206 | L180: 23
A181: Anthea Francis | B181: WJ | C181: V45 | D181: =IF(ISNA(VLOOKUP($A181,'Race 1-Ladies'!$U$24:$Z$53,6,0)),100,VLOOKUP($A181,'Race 1-Ladies'!$U$24:$Z$53,6,0)) -> 6 | E181: =IF(ISNA(VLOOKUP($A181,'Race 2-Ladies'!$U$23:$Z$53,6,0)),100,VLOOKUP($A181,'Race 2-Ladies'!$U$23:$Z$53,6,0)) -> 3 | F181: =IF(ISNA(VLOOKUP($A181,'Race 3-Ladies'!$U$27:$Z$61,6,0)),100,VLOOKUP($A181,'Race 3-Ladies'!$U$27:$Z$61,6,0)) -> 5 | G181: =IF(ISNA(VLOOKUP($A181,'Race 4-Ladies'!$U$30:$Z$100,6,0)),100,VLOOKUP($A181,'Race 4-Ladies'!$U$30:$Z$100,6,0)) -> 5 | H181: =SMALL(D181:G181,{1,2,3}) -> 3 | I181: 5 | J181: 5 | K181: 13 | L181: 3
A182: Antonella Crudgington | B182: HRC | C182: V45 | D182: =IF(ISNA(VLOOKUP($A182,'Race 1-Ladies'!$U$24:$Z$53,6,0)),100,VLOOKUP($A182,'Race 1-Ladies'!$U$24:$Z$53,6,0)) -> 100 | E182: =IF(ISNA(VLOOKUP($A182,'Race 2-Ladies'!$U$23:$Z$53,6,0)),100,VLOOKUP($A182,'Race 2-Ladies'!$U$23:$Z$53,6,0)) -> 100 | F182: =IF(ISNA(VLOOKUP($A182,'Race 3-Ladies'!$U$27:$Z$61,6,0)),100,VLOOKUP($A182,'Race 3-Ladies'!$U$27:$Z$61,6,0)) -> 100 | G182: =IF(ISNA(VLOOKUP($A182,'Race 4-Ladies'!$U$30:$Z$100,6,0)),100,VLOOKUP($A182,'Race 4-Ladies'!$U$30:$Z$100,6,0)) -> 100 | H182: =SMALL(D182:G182,{1,2,3}) -> 100 | I182: 100 | J182: 100 | K182: 300 | L182: 38
A183: Beverley McLees | B183: WJ | C183: V45 | D183: =IF(ISNA(VLOOKUP($A183,'Race 1-Ladies'!$U$24:$Z$53,6,0)),100,VLOOKUP($A183,'Race 1-Ladies'!$U$24:$Z$53,6,0)) -> 4 | E183: =IF(ISNA(VLOOKUP($A183,'Race 2-Ladies'!$U$23:$Z$53,6,0)),100,VLOOKUP($A183,'Race 2-Ladies'!$U$23:$Z$53,6,0)) -> 100 | F183: =IF(ISNA(VLOOKUP($A183,'Race 3-Ladies'!$U$27:$Z$61,6,0)),100,VLOOKUP($A183,'Race 3-Ladies'!$U$27:$Z$61,6,0)) -> 100 | G183: =IF(ISNA(VLOOKUP($A183,'Race 4-Ladies'!$U$30:$Z$100,6,0)),100,VLOOKUP($A183,'Race 4-Ladies'!$U$30:$Z$100,6,0)) -> 100 | H183: =SMALL(D183:G183,{1,2,3}) -> 4 | I183: 100 | J183: 100 | K183: 204 | L183: 22
A184: Cara Donker | B184: SS | C184: V45 | D184: =IF(ISNA(VLOOKUP($A184,'Race 1-Ladies'!$U$24:$Z$53,6,0)),100,VLOOKUP($A184,'Race 1-Ladies'!$U$24:$Z$53,6,0)) -> 100 | E184: =IF(ISNA(VLOOKUP($A184,'Race 2-Ladies'!$U$23:$Z$53,6,0)),100,VLOOKUP($A184,'Race 2-Ladies'!$U$23:$Z$53,6,0)) -> 100 | F184: =IF(ISNA(VLOOKUP($A184,'Race 3-Ladies'!$U$27:$Z$61,6,0)),100,VLOOKUP($A184,'Race 3-Ladies'!$U$27:$Z$61,6,0)) -> 100 | G184: =IF(ISNA(VLOOKUP($A184,'Race 4-Ladies'!$U$30:$Z$100,6,0)),100,VLOOKUP($A184,'Race 4-Ladies'!$U$30:$Z$100,6,0)) -> 100 | H184: =SMALL(D184:G184,{1,2,3}) -> 100 | I184: 100 | J184: 100 | K184: 300 | L184: 38
A185: Catherine Howard | B185: BS | C185: V45 | D185: =IF(ISNA(VLOOKUP($A185,'Race 1-Ladies'!$U$24:$Z$53,6,0)),100,VLOOKUP($A185,'Race 1-Ladies'!$U$24:$Z$53,6,0)) -> 100 | E185: =IF(ISNA(VLOOKUP($A185,'Race 2-Ladies'!$U$23:$Z$53,6,0)),100,VLOOKUP($A185,'Race 2-Ladies'!$U$23:$Z$53,6,0)) -> 100 | F185: =IF(ISNA(VLOOKUP($A185,'Race 3-Ladies'!$U$27:$Z$61,6,0)),100,VLOOKUP($A185,'Race 3-Ladies'!$U$27:$Z$61,6,0)) -> 100 | G185: =IF(ISNA(VLOOKUP($A185,'Race 4-Ladies'!$U$30:$Z$100,6,0)),100,VLOOKUP($A185,'Race 4-Ladies'!$U$30:$Z$100,6,0)) -> 100 | H185: =SMALL(D185:G185,{1,2,3}) -> 100 | I185: 100 | J185: 100 | K185: 300 | L185: 38
A186: Charlotte Diggins | B186: SS | C186: V45 | D186: =IF(ISNA(VLOOKUP($A186,'Race 1-Ladies'!$U$24:$Z$53,6,0)),100,VLOOKUP($A186,'Race 1-Ladies'!$U$24:$Z$53,6,0)) -> 10 | E186: =IF(ISNA(VLOOKUP($A186,'Race 2-Ladies'!$U$23:$Z$53,6,0)),100,VLOOKUP($A186,'Race 2-Ladies'!$U$23:$Z$53,6,0)) -> 7 | F186: =IF(ISNA(VLOOKUP($A186,'Race 3-Ladies'!$U$27:$Z$61,6,0)),100,VLOOKUP($A186,'Race 3-Ladies'!$U$27:$Z$61,6,0)) -> 11 | G186: =IF(ISNA(VLOOKUP($A186,'Race 4-Ladies'!$U$30:$Z$100,6,0)),100,VLOOKUP($A186,'Race 4-Ladies'!$U$30:$Z$100,6,0)) -> 100 | H186: =SMALL(D186:G186,{1,2,3}) -> 7 | I186: 10 | J186: 11 | K186: 28 | L186: 7
A187: Christel Ainge | B187: WJ | C187: V45 | D187: =IF(ISNA(VLOOKUP($A187,'Race 1-Ladies'!$U$24:$Z$53,6,0)),100,VLOOKUP($A187,'Race 1-Ladies'!$U$24:$Z$53,6,0)) -> 100 | E187: =IF(ISNA(VLOOKUP($A187,'Race 2-Ladies'!$U$23:$Z$53,6,0)),100,VLOOKUP($A187,'Race 2-Ladies'!$U$23:$Z$53,6,0)) -> 100 | F187: =IF(ISNA(VLOOKUP($A187,'Race 3-Ladies'!$U$27:$Z$61,6,0)),100,VLOOKUP($A187,'Race 3-Ladies'!$U$27:$Z$61,6,0)) -> 14 | G187: =IF(ISNA(VLOOKUP($A187,'Race 4-Ladies'!$U$30:$Z$100,6,0)),100,VLOOKUP($A187,'Race 4-Ladies'!$U$30:$Z$100,6,0)) -> 100 | H187: =SMALL(D187:G187,{1,2,3}) -> 14 | I187: 100 | J187: 100 | K187: 214 | L187: 27
A188: Christy van Maanenberg | B188: WJ | C188: V45 | D188: =IF(ISNA(VLOOKUP($A188,'Race 1-Ladies'!$U$24:$Z$53,6,0)),100,VLOOKUP($A188,'Race 1-Ladies'!$U$24:$Z$53,6,0)) -> 100 | E188: =IF(ISNA(VLOOKUP($A188,'Race 2-Ladies'!$U$23:$Z$53,6,0)),100,VLOOKUP($A188,'Race 2-Ladies'!$U$23:$Z$53,6,0)) -> 100 | F188: =IF(ISNA(VLOOKUP($A188,'Race 3-Ladies'!$U$27:$Z$61,6,0)),100,VLOOKUP($A188,'Race 3-Ladies'!$U$27:$Z$61,6,0)) -> 18 | G188: =IF(ISNA(VLOOKUP($A188,'Race 4-Ladies'!$U$30:$Z$100,6,0)),100,VLOOKUP($A188,'Race 4-Ladies'!$U$30:$Z$100,6,0)) -> 100 | H188: =SMALL(D188:G188,{1,2,3}) -> 18 | I188: 100 | J188: 100 | K188: 218 | L188: 34
A189: Claire Boylan | B189: BS | C189: V45 | D189: =IF(ISNA(VLOOKUP($A189,'Race 1-Ladies'!$U$24:$Z$53,6,0)),100,VLOOKUP($A189,'Race 1-Ladies'!$U$24:$Z$53,6,0)) -> 100 | E189: =IF(ISNA(VLOOKUP($A189,'Race 2-Ladies'!$U$23:$Z$53,6,0)),100,VLOOKUP($A189,'Race 2-Ladies'!$U$23:$Z$53,6,0)) -> 100 | F189: =IF(ISNA(VLOOKUP($A189,'Race 3-Ladies'!$U$27:$Z$61,6,0)),100,VLOOKUP($A189,'Race 3-Ladies'!$U$27:$Z$61,6,0)) -> 100 | G189: =IF(ISNA(VLOOKUP($A189,'Race 4-Ladies'!$U$30:$Z$100,6,0)),100,VLOOKUP($A189,'Race 4-Ladies'!$U$30:$Z$100,6,0)) -> 100 | H189: =SMALL(D189:G189,{1,2,3}) -> 100 | I189: 100 | J189: 100 | K189: 300 | L189: 38
A190: Claire Carter | B190: HRC | C190: V45 | D190: =IF(ISNA(VLOOKUP($A190,'Race 1-Ladies'!$U$24:$Z$53,6,0)),100,VLOOKUP($A190,'Race 1-Ladies'!$U$24:$Z$53,6,0)) -> 100 | E190: =IF(ISNA(VLOOKUP($A190,'Race 2-Ladies'!$U$23:$Z$53,6,0)),100,VLOOKUP($A190,'Race 2-Ladies'!$U$23:$Z$53,6,0)) -> 100 | F190: =IF(ISNA(VLOOKUP($A190,'Race 3-Ladies'!$U$27:$Z$61,6,0)),100,VLOOKUP($A190,'Race 3-Ladies'!$U$27:$Z$61,6,0)) -> 100 | G190: =IF(ISNA(VLOOKUP($A190,'Race 4-Ladies'!$U$30:$Z$100,6,0)),100,VLOOKUP($A190,'Race 4-Ladies'!$U$30:$Z$100,6,0)) -> 15 | H190: =SMALL(D190:G190,{1,2,3}) -> 15 | I190: 100 | J190: 100 | K190: 215 | L190: 28
A191: Claire Crommie | B191: SS | C191: V45 | D191: =IF(ISNA(VLOOKUP($A191,'Race 1-Ladies'!$U$24:$Z$53,6,0)),100,VLOOKUP($A191,'Race 1-Ladies'!$U$24:$Z$53,6,0)) -> 11 | E191: =IF(ISNA(VLOOKUP($A191,'Race 2-Ladies'!$U$23:$Z$53,6,0)),100,VLOOKUP($A191,'Race 2-Ladies'!$U$23:$Z$53,6,0)) -> 10 | F191: =IF(ISNA(VLOOKUP($A191,'Race 3-Ladies'!$U$27:$Z$61,6,0)),100,VLOOKUP($A191,'Race 3-Ladies'!$U$27:$Z$61,6,0)) -> 100 | G191: =IF(ISNA(VLOOKUP($A191,'Race 4-Ladies'!$U$30:$Z$100,6,0)),100,VLOOKUP($A191,'Race 4-Ladies'!$U$30:$Z$100,6,0)) -> 100 | H191: =SMALL(D191:G191,{1,2,3}) -> 10 | I191: 11 | J191: 100 | K191: 121 | L191: 16
A192: Claire Fields | B192: BS | C192: V45 | D192: =IF(ISNA(VLOOKUP($A192,'Race 1-Ladies'!$U$24:$Z$53,6,0)),100,VLOOKUP($A192,'Race 1-Ladies'!$U$24:$Z$53,6,0)) -> 100 | E192: =IF(ISNA(VLOOKUP($A192,'Race 2-Ladies'!$U$23:$Z$53,6,0)),100,VLOOKUP($A192,'Race 2-Ladies'!$U$23:$Z$53,6,0)) -> 100 | F192: =IF(ISNA(VLOOKUP($A192,'Race 3-Ladies'!$U$27:$Z$61,6,0)),100,VLOOKUP($A192,'Race 3-Ladies'!$U$27:$Z$61,6,0)) -> 100 | G192: =IF(ISNA(VLOOKUP($A192,'Race 4-Ladies'!$U$30:$Z$100,6,0)),100,VLOOKUP($A192,'Race 4-Ladies'!$U$30:$Z$100,6,0)) -> 100 | H192: =SMALL(D192:G192,{1,2,3}) -> 100 | I192: 100 | J192: 100 | K192: 300 | L192: 38
A193: Claire Johnson | B193: HRC | C193: V45 | D193: =IF(ISNA(VLOOKUP($A193,'Race 1-Ladies'!$U$24:$Z$53,6,0)),100,VLOOKUP($A193,'Race 1-Ladies'!$U$24:$Z$53,6,0)) -> 100 | E193: =IF(ISNA(VLOOKUP($A193,'Race 2-Ladies'!$U$23:$Z$53,6,0)),100,VLOOKUP($A193,'Race 2-Ladies'!$U$23:$Z$53,6,0)) -> 100 | F193: =IF(ISNA(VLOOKUP($A193,'Race 3-Ladies'!$U$27:$Z$61,6,0)),100,VLOOKUP($A193,'Race 3-Ladies'!$U$27:$Z$61,6,0)) -> 100 | G193: =IF(ISNA(VLOOKUP($A193,'Race 4-Ladies'!$U$30:$Z$100,6,0)),100,VLOOKUP($A193,'Race 4-Ladies'!$U$30:$Z$100,6,0)) -> 100 | H193: =SMALL(D193:G193,{1,2,3}) -> 100 | I193: 100 | J193: 100 | K193: 300 | L193: 38
A194: Claire Nichols | B194: WJ | C194: V45 | D194: =IF(ISNA(VLOOKUP($A194,'Race 1-Ladies'!$U$24:$Z$53,6,0)),100,VLOOKUP($A194,'Race 1-Ladies'!$U$24:$Z$53,6,0)) -> 100 | E194: =IF(ISNA(VLOOKUP($A194,'Race 2-Ladies'!$U$23:$Z$53,6,0)),100,VLOOKUP($A194,'Race 2-Ladies'!$U$23:$Z$53,6,0)) -> 100 | F194: =IF(ISNA(VLOOKUP($A194,'Race 3-Ladies'!$U$27:$Z$61,6,0)),100,VLOOKUP($A194,'Race 3-Ladies'!$U$27:$Z$61,6,0)) -> 100 | G194: =IF(ISNA(VLOOKUP($A194,'Race 4-Ladies'!$U$30:$Z$100,6,0)),100,VLOOKUP($A194,'Race 4-Ladies'!$U$30:$Z$100,6,0)) -> 100 | H194: =SMALL(D194:G194,{1,2,3}) -> 100 | I194: 100 | J194: 100 | K194: 300 | L194: 38
A195: Claire Teague | B195: WJ | C195: V45 | D195: =IF(ISNA(VLOOKUP($A195,'Race 1-Ladies'!$U$24:$Z$53,6,0)),100,VLOOKUP($A195,'Race 1-Ladies'!$U$24:$Z$53,6,0)) -> 100 | E195: =IF(ISNA(VLOOKUP($A195,'Race 2-Ladies'!$U$23:$Z$53,6,0)),100,VLOOKUP($A195,'Race 2-Ladies'!$U$23:$Z$53,6,0)) -> 100 | F195: =IF(ISNA(VLOOKUP($A195,'Race 3-Ladies'!$U$27:$Z$61,6,0)),100,VLOOKUP($A195,'Race 3-Ladies'!$U$27:$Z$61,6,0)) -> 100 | G195: =IF(ISNA(VLOOKUP($A195,'Race 4-Ladies'!$U$30:$Z$100,6,0)),100,VLOOKUP($A195,'Race 4-Ladies'!$U$30:$Z$100,6,0)) -> 100 | H195: =SMALL(D195:G195,{1,2,3}) -> 100 | I195: 100 | J195: 100 | K195: 300 | L195: 38
A196: Claire Watson | B196: WJ | C196: V45 | D196: =IF(ISNA(VLOOKUP($A196,'Race 1-Ladies'!$U$24:$Z$53,6,0)),100,VLOOKUP($A196,'Race 1-Ladies'!$U$24:$Z$53,6,0)) -> 100 | E196: =IF(ISNA(VLOOKUP($A196,'Race 2-Ladies'!$U$23:$Z$53,6,0)),100,VLOOKUP($A196,'Race 2-Ladies'!$U$23:$Z$53,6,0)) -> 100 | F196: =IF(ISNA(VLOOKUP($A196,'Race 3-Ladies'!$U$27:$Z$61,6,0)),100,VLOOKUP($A196,'Race 3-Ladies'!$U$27:$Z$61,6,0)) -> 100 | G196: =IF(ISNA(VLOOKUP($A196,'Race 4-Ladies'!$U$30:$Z$100,6,0)),100,VLOOKUP($A196,'Race 4-Ladies'!$U$30:$Z$100,6,0)) -> 100 | H196: =SMALL(D196:G196,{1,2,3}) -> 100 | I196: 100 | J196: 100 | K196: 300 | L196: 38
A197: Colette Kerins | B197: BS | C197: V45 | D197: =IF(ISNA(VLOOKUP($A197,'Race 1-Ladies'!$U$24:$Z$53,6,0)),100,VLOOKUP($A197,'Race 1-Ladies'!$U$24:$Z$53,6,0)) -> 100 | E197: =IF(ISNA(VLOOKUP($A197,'Race 2-Ladies'!$U$23:$Z$53,6,0)),100,VLOOKUP($A197,'Race 2-Ladies'!$U$23:$Z$53,6,0)) -> 100 | F197: =IF(ISNA(VLOOKUP($A197,'Race 3-Ladies'!$U$27:$Z$61,6,0)),100,VLOOKUP($A197,'Race 3-Ladies'!$U$27:$Z$61,6,0)) -> 100 | G197: =IF(ISNA(VLOOKUP($A197,'Race 4-Ladies'!$U$30:$Z$100,6,0)),100,VLOOKUP($A197,'Race 4-Ladies'!$U$30:$Z$100,6,0)) -> 100 | H197: =SMALL(D197:G197,{1,2,3}) -> 100 | I197: 100 | J197: 100 | K197: =SUM(H197:J197) -> 300 | L197: 38
A198: Danielle Sims | B198: BS | C198: V45 | D198: =IF(ISNA(VLOOKUP($A198,'Race 1-Ladies'!$U$24:$Z$53,6,0)),100,VLOOKUP($A198,'Race 1-Ladies'!$U$24:$Z$53,6,0)) -> 100 | E198: =IF(ISNA(VLOOKUP($A198,'Race 2-Ladies'!$U$23:$Z$53,6,0)),100,VLOOKUP($A198,'Race 2-Ladies'!$U$23:$Z$53,6,0)) -> 100 | F198: =IF(ISNA(VLOOKUP($A198,'Race 3-Ladies'!$U$27:$Z$61,6,0)),100,VLOOKUP($A198,'Race 3-Ladies'!$U$27:$Z$61,6,0)) -> 100 | G198: =IF(ISNA(VLOOKUP($A198,'Race 4-Ladies'!$U$30:$Z$100,6,0)),100,VLOOKUP($A198,'Race 4-Ladies'!$U$30:$Z$100,6,0)) -> 100 | H198: =SMALL(D198:G198,{1,2,3}) -> 100 | I198: 100 | J198: 100 | K198: 300 | L198: 38
A199: Dawn Elford | B199: HRC | C199: V45 | D199: =IF(ISNA(VLOOKUP($A199,'Race 1-Ladies'!$U$24:$Z$53,6,0)),100,VLOOKUP($A199,'Race 1-Ladies'!$U$24:$Z$53,6,0)) -> 100 | E199: =IF(ISNA(VLOOKUP($A199,'Race 2-Ladies'!$U$23:$Z$53,6,0)),100,VLOOKUP($A199,'Race 2-Ladies'!$U$23:$Z$53,6,0)) -> 100 | F199: =IF(ISNA(VLOOKUP($A199,'Race 3-Ladies'!$U$27:$Z$61,6,0)),100,VLOOKUP($A199,'Race 3-Ladies'!$U$27:$Z$61,6,0)) -> 100 | G199: =IF(ISNA(VLOOKUP($A199,'Race 4-Ladies'!$U$30:$Z$100,6,0)),100,VLOOKUP($A199,'Race 4-Ladies'!$U$30:$Z$100,6,0)) -> 100 | H199: =SMALL(D199:G199,{1,2,3}) -> 100 | I199: 100 | J199: 100 | K199: 300 | L199: 38
A200: Debbie Mead | B200: HRC | C200: V45 | D200: =IF(ISNA(VLOOKUP($A200,'Race 1-Ladies'!$U$24:$Z$53,6,0)),100,VLOOKUP($A200,'Race 1-Ladies'!$U$24:$Z$53,6,0)) -> 100 | E200: =IF(ISNA(VLOOKUP($A200,'Race 2-Ladies'!$U$23:$Z$53,6,0)),100,VLOOKUP($A200,'Race 2-Ladies'!$U$23:$Z$53,6,0)) -> 100 | F200: =IF(ISNA(VLOOKUP($A200,'Race 3-Ladies'!$U$27:$Z$61,6,0)),100,VLOOKUP($A200,'Race 3-Ladies'!$U$27:$Z$61,6,0)) -> 100 | G200: =IF(ISNA(VLOOKUP($A200,'Race 4-Ladies'!$U$30:$Z$100,6,0)),100,VLOOKUP($A200,'Race 4-Ladies'!$U$30:$Z$100,6,0)) -> 100 | H200: =SMALL(D200:G200,{1,2,3}) -> 100 | I200: 100 | J200: 100 | K200: 300 | L200: 38
... 227 more rows

Sheet Race 1-Men
A1: Overall | G1: Ware Joggers | N1: Bishop's Stortford | U1: Saffron Striders | AB1: Harlow Running & Tri Club
A2: Name | B2: Club | C2: Age Category | D2: Claim | E2: Position | G2: Name | H2: Club | I2: Age Category | J2: Claim | K2: Position | N2: Name | O2: Club | P2: Age Category | Q2: Claim | R2: Position | U2: Name | V2: Club | W2: Age Category | X2: Claim | Y2: Position | AB2: Name | AC2: Club | AD2: Age Category | AE2: Claim | AF2: Position | AI2: Name | AJ2: Club | AK2: Age Category | AL2: Claim | AM2: Position
A3: Michael Waddington | B3: WJ | C3: S | D3: 1st | E3: 1 | G3: Michael Waddington | H3: WJ | I3: S | J3: 1st | K3: 1 | L3: 1 | N3: Matt McRandal | O3: BS | P3: S | Q3: 1st | R3: 9 | S3: 9 | U3: Craig Dyce | V3: SS | W3: V50 | X3: 1st | Y3: 13 | Z3: 13 | AB3: Paskell Blackwell | AC3: HRC | AD3: V40 | AE3: 1st | AF3: 5 | AG3: 5
A4: Andrew Mynott | B4: WJ | C4: V40 | D4: 1st | E4: 2 | G4: Andrew Mynott | H4: WJ | I4: V40 | J4: 1st | K4: 2 | L4: 2 | N4: Stephen Wilkes | O4: BS | P4: V50 | Q4: 1st | R4: 10 | S4: 10 | U4: Chris O'Donovan | V4: SS | W4: S | X4: 2nd | Y4: 16 | Z4: 16 | AB4: Scott Bird | AC4: HRC | AD4: S | AE4: 1st | AF4: 8 | AG4: 8
A5: Kevin Francis | B5: WJ | C5: V40 | D5: 1st | E5: 3 | G5: Kevin Francis | H5: WJ | I5: V40 | J5: 1st | K5: 3 | L5: 3 | N5: Robert Thorpe | O5: BS | P5: V50 | Q5: 1st | R5: 17 | S5: 17 | U5: Alan Jones | V5: SS | W5: V50 | X5: 1st | Y5: 32 | Z5: 32 | AB5: Martyn Coulter | AC5: HRC | AD5: S | AE5: 1st | AF5: 14 | AG5: 14
A6: Vincent Riviere | B6: WJ | C6: V40 | D6: 1st | E6: 4 | G6: Vincent Riviere | H6: WJ | I6: V40 | J6: 1st | K6: 4 | L6: 4 | N6: Peter Jurd | O6: BS | P6: V40 | Q6: 1st | R6: 18 | S6: 18 | U6: David Martin | V6: SS | W6: V50 | X6: 1st | Y6: 37 | Z6: 37 | AB6: Martin Westley | AC6: HRC | AD6: S | AE6: 1st | AF6: 15 | AG6: 15
A7: Paskell Blackwell | B7: HRC | C7: V40 | D7: 1st | E7: 5 | G7: Tom Porter | H7: WJ | I7: S | J7: 1st | K7: 6 | L7: 6 | N7: Ben Pickford | O7: BS | P7: V40 | Q7: 1st | R7: 20 | S7: 20 | U7: Mark Thackstone | V7: SS | W7: V50 | X7: 1st | Y7: 42 | Z7: 42 | AB7: Lee Webber | AC7: HRC | AD7: V40 | AE7: 1st | AF7: 29 | AG7: 29
A8: Tom Porter | B8: WJ | C8: S | D8: 1st | E8: 6 | G8: Matt Brown | H8: WJ | I8: S | J8: 1st | K8: 7 | L8: 7 | N8: Henry Ward | O8: BS | P8: S | Q8: 1st | R8: 24 | S8: 24 | U8: Nigel Coates | V8: SS | W8: V60 | X8: 1st | Y8: 44 | Z8: 44 | AB8: Benjamin Usher | AC8: HRC | AD8: S | AE8: 1st | AF8: 30 | AG8: 30
A9: Matt Brown | B9: WJ | C9: S | D9: 1st | E9: 7 | G9: Mark Ford | H9: WJ | I9: S | J9: 1st | K9: 11 | L9: 11 | N9: James Delve | O9: BS | P9: V40 | Q9: 1st | R9: 27 | S9: 27 | U9: David Raimondo | V9: SS | W9: V40 | X9: 1st | Y9: 47 | Z9: 47 | AB9: Thomas Beales | AC9: HRC | AD9: V40 | AE9: 1st | AF9: 33 | AG9: 33
A10: Scott Bird | B10: HRC | C10: S | D10: 1st | E10: 8 | G10: Liam Struwe | H10: WJ | I10: S | J10: 1st | K10: 12 | L10: 12 | N10: Richard Eddershaw | O10: BS | P10: V60 | Q10: 1st | R10: 31 | S10: 31 | U10: Neil Halls | V10: SS | W10: V50 | X10: 1st | Y10: 49 | Z10: 49 | AB10: Chris Mella | AC10: HRC | AD10: S | AE10: 1st | AF10: 38 | AG10: 38
A11: Matt McRandal | B11: BS | C11: S | D11: 1st | E11: 9 | G11: William Caunce | H11: WJ | I11: S | J11: 1st | K11: 19 | N11: Kevin Marshall | O11: BS | P11: V50 | Q11: 1st | R11: 34 | U11: Graeme Loudain | V11: SS | W11: V60 | X11: 1st | Y11: 55 | AB11: Andrew Terrell | AC11: HRC | AD11: V40 | AE11: 1st | AF11: 41
A12: Stephen Wilkes | B12: BS | C12: V50 | D12: 1st | E12: 10 | G12: Garth Morris | H12: WJ | I12: V60 | J12: 1st | K12: 21 | N12: Lee Boswell | O12: BS | P12: S | Q12: 1st | R12: 35 | U12: Arthur Oliva | V12: SS | W12: V60 | X12: 1st | Y12: 59 | AB12: Chris Arnell | AC12: HRC | AD12: V40 | AE12: 1st | AF12: 43
A13: Mark Ford | B13: WJ | C13: S | D13: 1st | E13: 11 | G13: Jamie Higgs | H13: WJ | I13: V40 | J13: 1st | K13: 22 | N13: Jamie Smith | O13: BS | P13: V40 | Q13: 1st | R13: 51 | U13: Simon Chambers | V13: SS | W13: V50 | X13: 1st | Y13: 71 | AB13: Miguel Luque | AC13: HRC | AD13: V50 | AE13: 1st | AF13: 52
A14: Liam Struwe | B14: WJ | C14: S | D14: 1st | E14: 12 | G14: Adam Watson | H14: WJ | I14: S | J14: 1st | K14: 23 | N14: Paul Dearlove | O14: BS | P14: V50 | Q14: 1st | R14: 58 | AB14: Mark Unwin | AC14: HRC | AD14: V40 | AE14: 1st | AF14: 53
A15: Craig Dyce | B15: SS | C15: V50 | D15: 1st | E15: 13 | G15: Nick Kenyon-Muir | H15: WJ | I15: V50 | J15: 1st | K15: 25 | N15: Martin Howe | O15: BS | P15: V60 | Q15: 1st | R15: 62 | AB15: Matthew Spires | AC15: HRC | AD15: V40 | AE15: 1st | AF15: 56
A16: Martyn Coulter | B16: HRC | C16: S | D16: 1st | E16: 14 | G16: Andrew Kavanagh | H16: WJ | I16: S | J16: 1st | K16: 26 | N16: Andrew Wilson | O16: BS | P16: V50 | Q16: 1st | R16: 63 | AB16: Sean Flynn | AC16: HRC | AD16: V60 | AE16: 1st | AF16: 57
A17: Martin Westley | B17: HRC | C17: S | D17: 1st | E17: 15 | G17: Alexander Chappell | H17: WJ | I17: S | J17: 1st | K17: 28 | N17: Ian Penson | O17: BS | P17: V60 | Q17: 1st | R17: 64 | AB17: Michael Robey | AC17: HRC | AD17: V40 | AE17: 1st | AF17: 60
A18: Chris O'Donovan | B18: SS | C18: S | D18: 2nd | E18: 16 | G18: Andrew Biggs | H18: WJ | I18: V40 | J18: 1st | K18: 36 | AB18: Andrew Smith | AC18: HRC | AD18: V50 | AE18: 1st | AF18: 65
A19: Robert Thorpe | B19: BS | C19: V50 | D19: 1st | E19: 17 | G19: Stephen Argent | H19: WJ | I19: V60 | J19: 1st | K19: 39 | AB19: Robin Lozeau | AC19: HRC | AD19: V60 | AE19: 1st | AF19: 69
A20: Peter Jurd | B20: BS | C20: V40 | D20: 1st | E20: 18 | G20: Russell Cook | H20: WJ | I20: S | J20: 1st | K20: 40 | AB20: Alan Godbold | AC20: HRC | AD20: V50 | AE20: 1st | AF20: 70
A21: William Caunce | B21: WJ | C21: S | D21: 1st | E21: 19 | G21: Mark Sanz | H21: WJ | I21: V50 | J21: 1st | K21: 45
A22: Ben Pickford | B22: BS | C22: V40 | D22: 1st | E22: 20 | G22: Alan Taylor | H22: WJ | I22: V50 | J22: 1st | K22: 46
A23: Garth Morris | B23: WJ | C23: V60 | D23: 1st | E23: 21 | G23: James Randall | H23: WJ | I23: S | J23: 1st | K23: 48
A24: Jamie Higgs | B24: WJ | C24: V40 | D24: 1st | E24: 22 | G24: Peter Baker | H24: WJ | I24: V60 | J24: 1st | K24: 50
A25: Adam Watson | B25: WJ | C25: S | D25: 1st | E25: 23 | G25: Richard Coffey | H25: WJ | I25: V50 | J25: 1st | K25: 54
A26: Henry Ward | B26: BS | C26: S | D26: 1st | E26: 24 | G26: Simon Joyce | H26: WJ | I26: V50 | J26: 1st | K26: 61
A27: Nick Kenyon-Muir | B27: WJ | C27: V50 | D27: 1st | E27: 25 | G27: Clive Smith | H27: WJ | I27: V60 | J27: 1st | K27: 66
A28: Andrew Kavanagh | B28: WJ | C28: S | D28: 1st | E28: 26 | G28: Roger Partridge | H28: WJ | I28: V60 | J28: 1st | K28: 67
A29: James Delve | B29: BS | C29: V40 | D29: 1st | E29: 27 | G29: Paul Cocklin | H29: WJ | I29: V60 | J29: 1st | K29: 68
A30: Alexander Chappell | B30: WJ | C30: S | D30: 1st | E30: 28
A31: Lee Webber | B31: HRC | C31: V40 | D31: 1st | E31: 29
A32: Benjamin Usher | B32: HRC | C32: S | D32: 1st | E32: 30 | G32: Senior | N32: V40 | U32: V50 | AB32: V60 | AI32: V70
A33: Richard Eddershaw | B33: BS | C33: V60 | D33: 1st | E33: 31 | G33: Name | H33: Club | I33: Age Category | J33: Claim | K33: Overall Position | L33: Category Position | N33: Name | O33: Club | P33: Age Category | Q33: Claim | R33: Overall Position | S33: Category Position | U33: Name | V33: Club | W33: Age Category | X33: Claim | Y33: Overall Position | Z33: Category Position | AB33: Name | AC33: Club | AD33: Age Category | AE33: Claim | AF33: Overall Position | AG33: Category Position | AI33: Name | AJ33: Club | AK33: Age Category | AL33: Claim | AM33: Overall Position | AN33: Category Position
A34: Alan Jones | B34: SS | C34: V50 | D34: 1st | E34: 32 | G34: Michael Waddington | H34: WJ | I34: S | J34: 1st | K34: 1 | L34: 1 | N34: Andrew Mynott | O34: WJ | P34: V40 | Q34: 1st | R34: 2 | S34: 1 | U34: Stephen Wilkes | V34: BS | W34: V50 | X34: 1st | Y34: 10 | Z34: 1 | AB34: Garth Morris | AC34: WJ | AD34: V60 | AE34: 1st | AF34: 21 | AG34: 1
A35: Thomas Beales | B35: HRC | C35: V40 | D35: 1st | E35: 33 | G35: Tom Porter | H35: WJ | I35: S | J35: 1st | K35: 6 | L35: 2 | N35: Kevin Francis | O35: WJ | P35: V40 | Q35: 1st | R35: 3 | S35: 2 | U35: Craig Dyce | V35: SS | W35: V50 | X35: 1st | Y35: 13 | Z35: 2 | AB35: Richard Eddershaw | AC35: BS | AD35: V60 | AE35: 1st | AF35: 31 | AG35: 2
A36: Kevin Marshall | B36: BS | C36: V50 | D36: 1st | E36: 34 | G36: Matt Brown | H36: WJ | I36: S | J36: 1st | K36: 7 | L36: 3 | N36: Vincent Riviere | O36: WJ | P36: V40 | Q36: 1st | R36: 4 | S36: 3 | U36: Robert Thorpe | V36: BS | W36: V50 | X36: 1st | Y36: 17 | Z36: 3 | AB36: Stephen Argent | AC36: WJ | AD36: V60 | AE36: 1st | AF36: 39 | AG36: 3
A37: Lee Boswell | B37: BS | C37: S | D37: 1st | E37: 35 | G37: Scott Bird | H37: HRC | I37: S | J37: 1st | K37: 8 | L37: 4 | N37: Paskell Blackwell | O37: HRC | P37: V40 | Q37: 1st | R37: 5 | S37: 4 | U37: Nick Kenyon-Muir | V37: WJ | W37: V50 | X37: 1st | Y37: 25 | Z37: 4 | AB37: Nigel Coates | AC37: SS | AD37: V60 | AE37: 1st | AF37: 44 | AG37: 4
A38: Andrew Biggs | B38: WJ | C38: V40 | D38: 1st | E38: 36 | G38: Matt McRandal | H38: BS | I38: S | J38: 1st | K38: 9 | L38: 5 | N38: Peter Jurd | O38: BS | P38: V40 | Q38: 1st | R38: 18 | S38: 5 | U38: Alan Jones | V38: SS | W38: V50 | X38: 1st | Y38: 32 | Z38: 5 | AB38: Peter Baker | AC38: WJ | AD38: V60 | AE38: 1st | AF38: 50 | AG38: 5
A39: David Martin | B39: SS | C39: V50 | D39: 1st | E39: 37 | G39: Mark Ford | H39: WJ | I39: S | J39: 1st | K39: 11 | L39: 6 | N39: Ben Pickford | O39: BS | P39: V40 | Q39: 1st | R39: 20 | S39: 6 | U39: Kevin Marshall | V39: BS | W39: V50 | X39: 1st | Y39: 34 | Z39: 6 | AB39: Graeme Loudain | AC39: SS | AD39: V60 | AE39: 1st | AF39: 55 | AG39: 6
A40: Chris Mella | B40: HRC | C40: S | D40: 1st | E40: 38 | G40: Liam Struwe | H40: WJ | I40: S | J40: 1st | K40: 12 | L40: 7 | N40: Jamie Higgs | O40: WJ | P40: V40 | Q40: 1st | R40: 22 | S40: 7 | U40: David Martin | V40: SS | W40: V50 | X40: 1st | Y40: 37 | Z40: 7 | AB40: Sean Flynn | AC40: HRC | AD40: V60 | AE40: 1st | AF40: 57 | AG40: 7
A41: Stephen Argent | B41: WJ | C41: V60 | D41: 1st | E41: 39 | G41: Martyn Coulter | H41: HRC | I41: S | J41: 1st | K41: 14 | L41: 8 | N41: James Delve | O41: BS | P41: V40 | Q41: 1st | R41: 27 | S41: 8 | U41: Mark Thackstone | V41: SS | W41: V50 | X41: 1st | Y41: 42 | Z41: 8 | AB41: Arthur Oliva | AC41: SS | AD41: V60 | AE41: 1st | AF41: 59 | AG41: 8
A42: Russell Cook | B42: WJ | C42: S | D42: 1st | E42: 40 | G42: Martin Westley | H42: HRC | I42: S | J42: 1st | K42: 15 | L42: 9 | N42: Lee Webber | O42: HRC | P42: V40 | Q42: 1st | R42: 29 | S42: 9 | U42: Mark Sanz | V42: WJ | W42: V50 | X42: 1st | Y42: 45 | Z42: 9 | AB42: Martin Howe | AC42: BS | AD42: V60 | AE42: 1st | AF42: 62 | AG42: 9
A43: Andrew Terrell | B43: HRC | C43: V40 | D43: 1st | E43: 41 | G43: Chris O'Donovan | H43: SS | I43: S | J43: 2nd | K43: 16 | L43: 10 | N43: Thomas Beales | O43: HRC | P43: V40 | Q43: 1st | R43: 33 | S43: 10 | U43: Alan Taylor | V43: WJ | W43: V50 | X43: 1st | Y43: 46 | Z43: 10 | AB43: Ian Penson | AC43: BS | AD43: V60 | AE43: 1st | AF43: 64 | AG43: 10
A44: Mark Thackstone | B44: SS | C44: V50 | D44: 1st | E44: 42 | G44: William Caunce | H44: WJ | I44: S | J44: 1st | K44: 19 | L44: 11 | N44: Andrew Biggs | O44: WJ | P44: V40 | Q44: 1st | R44: 36 | S44: 11 | U44: Neil Halls | V44: SS | W44: V50 | X44: 1st | Y44: 49 | Z44: 11 | AB44: Clive Smith | AC44: WJ | AD44: V60 | AE44: 1st | AF44: 66 | AG44: 11
A45: Chris Arnell | B45: HRC | C45: V40 | D45: 1st | E45: 43 | G45: Adam Watson | H45: WJ | I45: S | J45: 1st | K45: 23 | L45: 12 | N45: Andrew Terrell | O45: HRC | P45: V40 | Q45: 1st | R45: 41 | S45: 12 | U45: Miguel Luque | V45: HRC | W45: V50 | X45: 1st | Y45: 52 | Z45: 12 | AB45: Roger Partridge | AC45: WJ | AD45: V60 | AE45: 1st | AF45: 67 | AG45: 12
A46: Nigel Coates | B46: SS | C46: V60 | D46: 1st | E46: 44 | G46: Henry Ward | H46: BS | I46: S | J46: 1st | K46: 24 | L46: 13 | N46: Chris Arnell | O46: HRC | P46: V40 | Q46: 1st | R46: 43 | S46: 13 | U46: Richard Coffey | V46: WJ | W46: V50 | X46: 1st | Y46: 54 | Z46: 13 | AB46: Paul Cocklin | AC46: WJ | AD46: V60 | AE46: 1st | AF46: 68 | AG46: 13
A47: Mark Sanz | B47: WJ | C47: V50 | D47: 1st | E47: 45 | G47: Andrew Kavanagh | H47: WJ | I47: S | J47: 1st | K47: 26 | L47: 14 | N47: David Raimondo | O47: SS | P47: V40 | Q47: 1st | R47: 47 | S47: 14 | U47: Paul Dearlove | V47: BS | W47: V50 | X47: 1st | Y47: 58 | Z47: 14 | AB47: Robin Lozeau | AC47: HRC | AD47: V60 | AE47: 1st | AF47: 69 | AG47: 14
A48: Alan Taylor | B48: WJ | C48: V50 | D48: 1st | E48: 46 | G48: Alexander Chappell | H48: WJ | I48: S | J48: 1st | K48: 28 | L48: 15 | N48: Jamie Smith | O48: BS | P48: V40 | Q48: 1st | R48: 51 | S48: 15 | U48: Simon Joyce | V48: WJ | W48: V50 | X48: 1st | Y48: 61 | Z48: 15
A49: David Raimondo | B49: SS | C49: V40 | D49: 1st | E49: 47 | G49: Benjamin Usher | H49: HRC | I49: S | J49: 1st | K49: 30 | L49: 16 | N49: Mark Unwin | O49: HRC | P49: V40 | Q49: 1st | R49: 53 | S49: 16 | U49: Andrew Wilson | V49: BS | W49: V50 | X49: 1st | Y49: 63 | Z49: 16
A50: James Randall | B50: WJ | C50: S | D50: 1st | E50: 48 | G50: Lee Boswell | H50: BS | I50: S | J50: 1st | K50: 35 | L50: 17 | N50: Matthew Spires | O50: HRC | P50: V40 | Q50: 1st | R50: 56 | S50: 17 | U50: Andrew Smith | V50: HRC | W50: V50 | X50: 1st | Y50: 65 | Z50: 17
A51: Neil Halls | B51: SS | C51: V50 | D51: 1st | E51: 49 | G51: Chris Mella | H51: HRC | I51: S | J51: 1st | K51: 38 | L51: 18 | N51: Michael Robey | O51: HRC | P51: V40 | Q51: 1st | R51: 60 | S51: 18 | U51: Alan Godbold | V51: HRC | W51: V50 | X51: 1st | Y51: 70 | Z51: 18
A52: Peter Baker | B52: WJ | C52: V60 | D52: 1st | E52: 50 | G52: Russell Cook | H52: WJ | I52: S | J52: 1st | K52: 40 | L52: 19 | U52: Simon Chambers | V52: SS | W52: V50 | X52: 1st | Y52: 71 | Z52: 19
A53: Jamie Smith | B53: BS | C53: V40 | D53: 1st | E53: 51 | G53: James Randall | H53: WJ | I53: S | J53: 1st | K53: 48 | L53: 20
A54: Miguel Luque | B54: HRC | C54: V50 | D54: 1st | E54: 52
A55: Mark Unwin | B55: HRC | C55: V40 | D55: 1st | E55: 53
A56: Richard Coffey | B56: WJ | C56: V50 | D56: 1st | E56: 54
A57: Graeme Loudain | B57: SS | C57: V60 | D57: 1st | E57: 55
A58: Matthew Spires | B58: HRC | C58: V40 | D58: 1st | E58: 56
A59: Sean Flynn | B59: HRC | C59: V60 | D59: 1st | E59: 57
A60: Paul Dearlove | B60: BS | C60: V50 | D60: 1st | E60: 58
A61: Arthur Oliva | B61: SS | C61: V60 | D61: 1st | E61: 59
A62: Michael Robey | B62: HRC | C62: V40 | D62: 1st | E62: 60
A63: Simon Joyce | B63: WJ | C63: V50 | D63: 1st | E63: 61
A64: Martin Howe | B64: BS | C64: V60 | D64: 1st | E64: 62
A65: Andrew Wilson | B65: BS | C65: V50 | D65: 1st | E65: 63
A66: Ian Penson | B66: BS | C66: V60 | D66: 1st | E66: 64
A67: Andrew Smith | B67: HRC | C67: V50 | D67: 1st | E67: 65
A68: Clive Smith | B68: WJ | C68: V60 | D68: 1st | E68: 66
A69: Roger Partridge | B69: WJ | C69: V60 | D69: 1st | E69: 67
A70: Paul Cocklin | B70: WJ | C70: V60 | D70: 1st | E70: 68
A71: Robin Lozeau | B71: HRC | C71: V60 | D71: 1st | E71: 69
A72: Alan Godbold | B72: HRC | C72: V50 | D72: 1st | E72: 70
A73: Simon Chambers | B73: SS | C73: V50 | D73: 1st | E73: 71

Sheet Race 1-Ladies
A1: Overall | G1: Ware Joggers | N1: Bishop's Stortford | U1: Saffron Striders | AB1: Harlow Running & Tri Club
A2: Name | B2: Club | C2: Age Category | D2: Claim | E2: Position | G2: Name | H2: Club | I2: Age Category | J2: Claim | K2: Position | N2: Name | O2: Club | P2: Age Category | Q2: Claim | R2: Position | U2: Name | V2: Club | W2: Age Category | X2: Claim | Y2: Position | AB2: Name | AC2: Club | AD2: Age Category | AE2: Claim | AF2: Position | AI2: Name | AJ2: Club | AK2: Age Category | AL2: Claim | AM2: Position
A3: Lucy Barnes | B3: HRC | C3: S | D3: 1st | E3: 1 | G3: Katy Woodward | H3: WJ | I3: V35 | J3: 1st | K3: 2 | L3: 2 | N3: Sophie Barc | O3: BS | P3: V45 | Q3: 1st | R3: 7 | S3: 7 | U3: Fliss Tournant | V3: SS | W3: S | X3: 1st | Y3: 3 | Z3: 3 | AB3: Lucy Barnes | AC3: HRC | AD3: S | AE3: 1st | AF3: 1 | AG3: 1
A4: Katy Woodward | B4: WJ | C4: V35 | D4: 1st | E4: 2 | G4: Susan Millward | H4: WJ | I4: V45 | J4: 1st | K4: 5 | L4: 5 | N4: Hannah McIlvenna | O4: BS | P4: V45 | Q4: 2nd | R4: 8 | S4: 8 | U4: Kerry Harrington | V4: SS | W4: V45 | X4: 1st | Y4: 13 | Z4: 13 | AB4: Fieke Blackwell | AC4: HRC | AD4: V35 | AE4: 1st | AF4: 4 | AG4: 4
A5: Fliss Tournant | B5: SS | C5: S | D5: 1st | E5: 3 | G5: Katrina Dobson | H5: WJ | I5: V35 | J5: 1st | K5: 6 | L5: 6 | N5: Joanna Jurd | O5: BS | P5: V35 | Q5: 1st | R5: 9 | S5: 9 | U5: Martha Flind | V5: SS | W5: S | X5: 1st | Y5: 18 | Z5: 18 | AB5: Linda Helm-Manley | AC5: HRC | AD5: V55 | AE5: 1st | AF5: 14 | AG5: 14
A6: Fieke Blackwell | B6: HRC | C6: V35 | D6: 1st | E6: 4 | G6: Beverley McLees | H6: WJ | I6: V45 | J6: 1st | K6: 10 | L6: 10 | N6: Emma Nixon | O6: BS | P6: V55 | Q6: 1st | R6: 26 | S6: 26 | U6: Charlotte Diggins | V6: SS | W6: V45 | X6: 1st | Y6: 23 | Z6: 23 | AB6: Sandra Rust | AC6: HRC | AD6: V45 | AE6: 1st | AF6: 15 | AG6: 15
A7: Susan Millward | B7: WJ | C7: V45 | D7: 1st | E7: 5 | G7: Lucy Dupuis | H7: WJ | I7: V45 | J7: 1st | K7: 11 | L7: 11 | N7: Serena Beresford | O7: BS | P7: V35 | Q7: 1st | R7: 27 | S7: 27 | U7: Claire Crommie | V7: SS | W7: V45 | X7: 1st | Y7: 25 | Z7: 25 | AB7: Louise Cootes | AC7: HRC | AD7: V35 | AE7: 1st | AF7: 19 | AG7: 19
A8: Katrina Dobson | B8: WJ | C8: V35 | D8: 1st | E8: 6 | G8: Anthea Francis | H8: WJ | I8: V45 | J8: 1st | K8: 12 | L8: 12 | N8: Jenny Brayshaw | O8: BS | P8: V65 | Q8: 1st | R8: 28 | S8: 28 | U8: Margit Wendelberger James | V8: SS | W8: V55 | X8: 1st | Y8: 30 | Z8: 30 | AB8: Kate Porter | AC8: HRC | AD8: V45 | AE8: 1st | AF8: 20 | AG8: 20
A9: Sophie Barc | B9: BS | C9: V45 | D9: 1st | E9: 7 | G9: Sam Rowe | H9: WJ | I9: V55 | J9: 1st | K9: 16 | L9: 16 | N9: Lara Wheeldon | O9: BS | P9: V45 | Q9: 1st | R9: 35 | S9: 35 | U9: Katharine Lewis | V9: SS | W9: V45 | X9: 1st | Y9: 37 | Z9: 37 | AB9: Anna Robey | AC9: HRC | AD9: V35 | AE9: 1st | AF9: 21 | AG9: 21
A10: Hannah McIlvenna | B10: BS | C10: V45 | D10: 2nd | E10: 8 | G10: Fiona Smith | H10: WJ | I10: S | J10: 1st | K10: 18 | L10: 18 | N10: Niki Champion | O10: BS | P10: V45 | Q10: 1st | R10: 39 | S10: 39 | U10: Lisa Plumb | V10: SS | W10: V45 | X10: 1st | Y10: 38 | Z10: 38 | AB10: Gail Nicholls | AC10: HRC | AD10: V55 | AE10: 1st | AF10: 29 | AG10: 29
A11: Joanna Jurd | B11: BS | C11: V35 | D11: 1st | E11: 9 | G11: Pamela Wilson | H11: WJ | I11: V65 | J11: 1st | K11: 22 | N11: Francesca Palmer | O11: BS | P11: V45 | Q11: 1st | R11: 52 | AB11: Laura Prime | AC11: HRC | AD11: V45 | AE11: 1st | AF11: 32
A12: Beverley McLees | B12: WJ | C12: V45 | D12: 1st | E12: 10 | G12: Michelle Cross | H12: WJ | I12: V55 | J12: 1st | K12: 24 | AB12: Tracy Stratford | AC12: HRC | AD12: V35 | AE12: 1st | AF12: 33
A13: Lucy Dupuis | B13: WJ | C13: V45 | D13: 1st | E13: 11 | G13: Tracy Brennan | H13: WJ | I13: V45 | J13: 1st | K13: 31 | AB13: Selina Morgan | AC13: HRC | AD13: V35 | AE13: 1st | AF13: 34
A14: Anthea Francis | B14: WJ | C14: V45 | D14: 1st | E14: 12 | G14: Paula Gollop | H14: WJ | I14: V35 | J14: 1st | K14: 36 | AB14: Kelly Spires | AC14: HRC | AD14: V45 | AE14: 1st | AF14: 41
A15: Kerry Harrington | B15: SS | C15: V45 | D15: 1st | E15: 13 | G15: Carla Bell | H15: WJ | I15: V55 | J15: 1st | K15: 40 | AB15: Teresa Stickland | AC15: HRC | AD15: V55 | AE15: 1st | AF15: 42
A16: Linda Helm-Manley | B16: HRC | C16: V55 | D16: 1st | E16: 14 | G16: Jenni Viner | H16: WJ | I16: V65 | J16: 1st | K16: 45 | AB16: Kerry Mavris | AC16: HRC | AD16: V45 | AE16: 1st | AF16: 43
A17: Sandra Rust | B17: HRC | C17: V45 | D17: 1st | E17: 15 | G17: Claron Riviere | H17: WJ | I17: V65 | J17: 1st | K17: 47 | AB17: Susan Maloney | AC17: HRC | AD17: V55 | AE17: 1st | AF17: 44
A18: Sam Rowe | B18: WJ | C18: V55 | D18: 1st | E18: 16 | G18: Caroline Stephens | H18: WJ | I18: V55 | J18: 1st | K18: 48 | AB18: Elizabeth Roberts | AC18: HRC | AD18: S | AE18: 1st | AF18: 46
A19: Fiona Smith | B19: WJ | C19: S | D19: 1st | E19: 18 | G19: Rosalind Hitchen | H19: WJ | I19: V55 | J19: 1st | K19: 49 | AB19: Paulene Galoppi | AC19: HRC | AD19: V65 | AE19: 1st | AF19: 50
A20: Martha Flind | B20: SS | C20: S | D20: 1st | E20: 18 | G20: Nadia Selby | H20: WJ | I20: V45 | J20: 1st | K20: 51
A21: Louise Cootes | B21: HRC | C21: V35 | D21: 1st | E21: 19
A22: Kate Porter | B22: HRC | C22: V45 | D22: 1st | E22: 20
A23: Anna Robey | B23: HRC | C23: V35 | D23: 1st | E23: 21 | G23: Senior | N23: V35 | U23: V45 | AB23: V55 | AI23: V65
A24: Pamela Wilson | B24: WJ | C24: V65 | D24: 1st | E24: 22 | G24: Name | H24: Club | I24: Age Category | J24: Claim | K24: Overall Position | L24: Category Position | N24: Name | O24: Club | P24: Age Category | Q24: Claim | R24: Overall Position | S24: Category Position | U24: Name | V24: Club | W24: Age Category | X24: Claim | Y24: Overall Position | Z24: Category Position | AB24: Name | AC24: Club | AD24: Age Category | AE24: Claim | AF24: Overall Position | AG24: Category Position | AI24: Name | AJ24: Club | AK24: Age Category | AL24: Claim | AM24: Overall Position | AN24: Category Position
A25: Charlotte Diggins | B25: SS | C25: V45 | D25: 1st | E25: 23 | G25: Lucy Barnes | H25: HRC | I25: S | J25: 1st | K25: 1 | L25: 1 | N25: Katy Woodward | O25: WJ | P25: V35 | Q25: 1st | R25: 2 | S25: 1 | U25: Susan Millward | V25: WJ | W25: V45 | X25: 1st | Y25: 5 | Z25: 1 | AB25: Linda Helm-Manley | AC25: HRC | AD25: V55 | AE25: 1st | AF25: 14 | AG25: 1 | AI25: Pamela Wilson | AJ25: WJ | AK25: V65 | AL25: 1st | AM25: 22 | AN25: 1
A26: Michelle Cross | B26: WJ | C26: V55 | D26: 1st | E26: 24 | G26: Fliss Tournant | H26: SS | I26: S | J26: 1st | K26: 3 | L26: 2 | N26: Fieke Blackwell | O26: HRC | P26: V35 | Q26: 1st | R26: 4 | S26: 2 | U26: Sophie Barc | V26: BS | W26: V45 | X26: 1st | Y26: 7 | Z26: 2 | AB26: Sam Rowe | AC26: WJ | AD26: V55 | AE26: 1st | AF26: 16 | AG26: 2 | AI26: Jenny Brayshaw | AJ26: BS | AK26: V65 | AL26: 1st | AM26: 28 | AN26: 2
A27: Claire Crommie | B27: SS | C27: V45 | D27: 1st | E27: 25 | G27: Fiona Smith | H27: WJ | I27: S | J27: 1st | K27: 18 | L27: 3 | N27: Katrina Dobson | O27: WJ | P27: V35 | Q27: 1st | R27: 6 | S27: 3 | U27: Hannah McIlvenna | V27: BS | W27: V45 | X27: 2nd | Y27: 8 | Z27: 3 | AB27: Michelle Cross | AC27: WJ | AD27: V55 | AE27: 1st | AF27: 24 | AG27: 3 | AI27: Jenni Viner | AJ27: WJ | AK27: V65 | AL27: 1st | AM27: 45 | AN27: 3
A28: Emma Nixon | B28: BS | C28: V55 | D28: 1st | E28: 26 | G28: Martha Flind | H28: SS | I28: S | J28: 1st | K28: 18 | L28: 4 | N28: Joanna Jurd | O28: BS | P28: V35 | Q28: 1st | R28: 9 | S28: 4 | U28: Beverley McLees | V28: WJ | W28: V45 | X28: 1st | Y28: 10 | Z28: 4 | AB28: Emma Nixon | AC28: BS | AD28: V55 | AE28: 1st | AF28: 26 | AG28: 4 | AI28: Claron Riviere | AJ28: WJ | AK28: V65 | AL28: 1st | AM28: 47 | AN28: 4
A29: Serena Beresford | B29: BS | C29: V35 | D29: 1st | E29: 27 | G29: Elizabeth Roberts | H29: HRC | I29: S | J29: 1st | K29: 46 | L29: 5 | N29: Louise Cootes | O29: HRC | P29: V35 | Q29: 1st | R29: 19 | S29: 5 | U29: Lucy Dupuis | V29: WJ | W29: V45 | X29: 1st | Y29: 11 | Z29: 5 | AB29: Gail Nicholls | AC29: HRC | AD29: V55 | AE29: 1st | AF29: 29 | AG29: 5 | AI29: Paulene Galoppi | AJ29: HRC | AK29: V65 | AL29: 1st | AM29: 50 | AN29: 5
A30: Jenny Brayshaw | B30: BS | C30: V65 | D30: 1st | E30: 28 | N30: Anna Robey | O30: HRC | P30: V35 | Q30: 1st | R30: 21 | S30: 6 | U30: Anthea Francis | V30: WJ | W30: V45 | X30: 1st | Y30: 12 | Z30: 6 | AB30: Margit Wendelberger James | AC30: SS | AD30: V55 | AE30: 1st | AF30: 30 | AG30: 6
A31: Gail Nicholls | B31: HRC | C31: V55 | D31: 1st | E31: 29 | N31: Serena Beresford | O31: BS | P31: V35 | Q31: 1st | R31: 27 | S31: 7 | U31: Kerry Harrington | V31: SS | W31: V45 | X31: 1st | Y31: 13 | Z31: 7 | AB31: Carla Bell | AC31: WJ | AD31: V55 | AE31: 1st | AF31: 40 | AG31: 7
A32: Margit Wendelberger James | B32: SS | C32: V55 | D32: 1st | E32: 30 | N32: Tracy Stratford | O32: HRC | P32: V35 | Q32: 1st | R32: 33 | S32: 8 | U32: Sandra Rust | V32: HRC | W32: V45 | X32: 1st | Y32: 15 | Z32: 8 | AB32: Teresa Stickland | AC32: HRC | AD32: V55 | AE32: 1st | AF32: 42 | AG32: 8
A33: Tracy Brennan | B33: WJ | C33: V45 | D33: 1st | E33: 31 | N33: Selina Morgan | O33: HRC | P33: V35 | Q33: 1st | R33: 34 | S33: 9 | U33: Kate Porter | V33: HRC | W33: V45 | X33: 1st | Y33: 20 | Z33: 9 | AB33: Susan Maloney | AC33: HRC | AD33: V55 | AE33: 1st | AF33: 44 | AG33: 9
A34: Laura Prime | B34: HRC | C34: V45 | D34: 1st | E34: 32 | N34: Paula Gollop | O34: WJ | P34: V35 | Q34: 1st | R34: 36 | S34: 10 | U34: Charlotte Diggins | V34: SS | W34: V45 | X34: 1st | Y34: 23 | Z34: 10 | AB34: Caroline Stephens | AC34: WJ | AD34: V55 | AE34: 1st | AF34: 48 | AG34: 10
A35: Tracy Stratford | B35: HRC | C35: V35 | D35: 1st | E35: 33 | U35: Claire Crommie | V35: SS | W35: V45 | X35: 1st | Y35: 25 | Z35: 11 | AB35: Rosalind Hitchen | AC35: WJ | AD35: V55 | AE35: 1st | AF35: 49 | AG35: 11
A36: Selina Morgan | B36: HRC | C36: V35 | D36: 1st | E36: 34 | U36: Tracy Brennan | V36: WJ | W36: V45 | X36: 1st | Y36: 31 | Z36: 12
A37: Lara Wheeldon | B37: BS | C37: V45 | D37: 1st | E37: 35 | U37: Laura Prime | V37: HRC | W37: V45 | X37: 1st | Y37: 32 | Z37: 13
A38: Paula Gollop | B38: WJ | C38: V35 | D38: 1st | E38: 36 | U38: Lara Wheeldon | V38: BS | W38: V45 | X38: 1st | Y38: 35 | Z38: 14
A39: Katharine Lewis | B39: SS | C39: V45 | D39: 1st | E39: 37 | U39: Katharine Lewis | V39: SS | W39: V45 | X39: 1st | Y39: 37 | Z39: 15
A40: Lisa Plumb | B40: SS | C40: V45 | D40: 1st | E40: 38 | U40: Lisa Plumb | V40: SS | W40: V45 | X40: 1st | Y40: 38 | Z40: 16
A41: Niki Champion | B41: BS | C41: V45 | D41: 1st | E41: 39 | U41: Niki Champion | V41: BS | W41: V45 | X41: 1st | Y41: 39 | Z41: 17
A42: Carla Bell | B42: WJ | C42: V55 | D42: 1st | E42: 40 | U42: Kelly Spires | V42: HRC | W42: V45 | X42: 1st | Y42: 41 | Z42: 18
A43: Kelly Spires | B43: HRC | C43: V45 | D43: 1st | E43: 41 | U43: Kerry Mavris | V43: HRC | W43: V45 | X43: 1st | Y43: 43 | Z43: 19
A44: Teresa Stickland | B44: HRC | C44: V55 | D44: 1st | E44: 42 | U44: Nadia Selby | V44: WJ | W44: V45 | X44: 1st | Y44: 51 | Z44: 20
A45: Kerry Mavris | B45: HRC | C45: V45 | D45: 1st | E45: 43 | U45: Francesca Palmer | V45: BS | W45: V45 | X45: 1st | Y45: 52 | Z45: 21
A46: Susan Maloney | B46: HRC | C46: V55 | D46: 1st | E46: 44
A47: Jenni Viner | B47: WJ | C47: V65 | D47: 1st | E47: 45
A48: Elizabeth Roberts | B48: HRC | C48: S | D48: 1st | E48: 46
A49: Claron Riviere | B49: WJ | C49: V65 | D49: 1st | E49: 47
A50: Caroline Stephens | B50: WJ | C50: V55 | D50: 1st | E50: 48
A51: Rosalind Hitchen | B51: WJ | C51: V55 | D51: 1st | E51: 49
A52: Paulene Galoppi | B52: HRC | C52: V65 | D52: 1st | E52: 50
A53: Nadia Selby | B53: WJ | C53: V45 | D53: 1st | E53: 51
A54: Francesca Palmer | B54: BS | C54: V45 | D54: 1st | E54: 52

Sheet Race 2-Men
A1: Overall | G1: Ware Joggers | N1: Bishop's Stortford | U1: Saffron Striders | AB1: Harlow Running & Tri Club
A2: Name | B2: Club | C2: Age Category | D2: Claim | E2: Position | G2: Name | H2: Club | I2: Age Category | J2: Claim | K2: Position | N2: Name | O2: Club | P2: Age Category | Q2: Claim | R2: Position | U2: Name | V2: Club | W2: Age Category | X2: Claim | Y2: Position | AB2: Name | AC2: Club | AD2: Age Category | AE2: Claim | AF2: Position | AI2: Name | AJ2: Club | AK2: Age Category | AL2: Claim | AM2: Position
